{"text_format":"1","workbook":"xlsx","n_sheets":14,"sheets":["✅","TTCty","TKKT","CTBC","CTTM","Map mã","Dòng tiền","Tập đoàn","Vốn vay","Khác","↓","Công ty","~ctbc","~cttm"],"not_rendered":{"charts":0,"images":0,"macros":1,"external_links":1,"defined_names":24,"comments":2,"pivot_tables":0},"unopened":[],"bounds":{"document_bytes":16777216,"sheet_cells":100000,"rows_first":2000,"rows_last":500,"rows_between":2000,"halvings":0,"cell_chars":16384,"cell_head_chars":4096},"cells_cut":0,"cells_raw":0,"read":"whole","date_system":"1900"}

{"sheet":"✅","index":0,"n_rows":28,"n_cols":4,"rows_kept":28,"cut":false,"hidden":false,"merged":[[0,0,3,0]]}
["Tasco Group"]
[]
[null,null,"CẤU HÌNH"]
[]
["BCTC hợp nhất",null,"Tham số","Giá trị"]
[null,null,"Chọn mã có tên",true]
[]
["Tập đoàn"]
[]
["Danh mục công ty"]
[]
["Thông tin công ty"]
[]
["Tài khoản kế toán"]
[]
["Chỉ tiêu báo cáo"]
[]
["Chỉ tiêu thuyết minh"]
[]
["Map chỉ tiêu BC-TM"]
[]
["Chỉ tiêu dòng tiền"]
[]
["Phân loại vốn vay"]
[]
["Danh mục khác"]
[]
["Tùy chọn"]

{"sheet":"TTCty","index":1,"n_rows":179,"n_cols":12,"rows_kept":179,"cut":false,"hidden":false,"merged":[[0,0,3,0]]}
[{"$f":"'✅'!A1","v":"Tasco Group"},null,{"$f":"Range2(L_CT2[MÃ])","v":"C6:C179"}]
[]
[null,null,{"$f":"COUNTA(L_CT2[MÃ])","v":174},null,"THÔNG TIN CÔNG TY"]
[null,null,"⏬",null,null,null,null,null,null,null,null,"Kiểm tra trùng"]
["BCTC hợp nhất",null,"MÃ","TÊN THEO DANH SÁCH","TÊN CÔNG TY","ĐỊA CHỈ","NGÀNH NGHỀ KINH DOANH","COMPANY NAME","ADDRESS","BUSINESS SECTOR",null,"MÃ"]
[null,null,"100_",{"$f":"IFERROR(_xlfn.XLOOKUP(L_CT2[[#This Row],[MÃ]],L_CTY[MÃ],L_CTY[TÊN CÔNG TY]),\"-\")","v":"Công ty CP Tasco"},"Công ty CP Tasco","Hà Nội","Dịch vụ thương mại","Tasco JSC","Ha Noi","Commercial services",null,{"$f":"_Trùng(L_CT2[MÃ])","v":"null"}]
[null,null,"173_",{"$f":"IFERROR(_xlfn.XLOOKUP(L_CT2[[#This Row],[MÃ]],L_CTY[MÃ],L_CTY[TÊN CÔNG TY]),\"-\")","v":"Công ty CP VETC"},"Công ty CP VETC","Hà Nội","Dịch vụ","VETC Joint Stock Company","Ha Noi","Services"]
["Tập đoàn",null,"186_",{"$f":"IFERROR(_xlfn.XLOOKUP(L_CT2[[#This Row],[MÃ]],L_CTY[MÃ],L_CTY[TÊN CÔNG TY]),\"-\")","v":"Công ty TNHH Tasco Land"},"Công ty TNHH Tasco Land","Hà Nội","Bất động sản","Tasco Land Co., Ltd","Ha Noi","Property"]
[null,null,"114_",{"$f":"IFERROR(_xlfn.XLOOKUP(L_CT2[[#This Row],[MÃ]],L_CTY[MÃ],L_CTY[TÊN CÔNG TY]),\"-\")","v":"Công ty TNHH Bảo hiểm Tasco"},"Công ty TNHH Bảo hiểm Tasco","Hà Nội","Bảo hiểm phi nhân thọ","Tasco Insurance Co., Ltd","Ha Noi","Non-life insurance"]
["Danh mục công ty",null,"185_",{"$f":"IFERROR(_xlfn.XLOOKUP(L_CT2[[#This Row],[MÃ]],L_CTY[MÃ],L_CTY[TÊN CÔNG TY]),\"-\")","v":"Công ty TNHH MTV Tasco BOT"},"Công ty TNHH MTV Tasco BOT","Hà Nội","Hạ tầng giao thông","Tasco BOT MTV Co., Ltd","Ha Noi","Transportation infrastructure"]
[null,null,"151_",{"$f":"IFERROR(_xlfn.XLOOKUP(L_CT2[[#This Row],[MÃ]],L_CTY[MÃ],L_CTY[TÊN CÔNG TY]),\"-\")","v":"Công ty TNHH MTV Tasco 6"},"Công ty TNHH MTV Tasco 6","Ninh Bình","Hạ tầng giao thông","Tasco 6 Co., Ltd.","Ninh Binh","Transportation infrastructure"]
["Thông tin công ty",null,"171_",{"$f":"IFERROR(_xlfn.XLOOKUP(L_CT2[[#This Row],[MÃ]],L_CTY[MÃ],L_CTY[TÊN CÔNG TY]),\"-\")","v":"Công ty TNHH MTV Tasco Quảng Bình"},"Công ty TNHH MTV Tasco Quảng Bình","Quảng Trị","Hạ tầng giao thông","Tasco Quang Binh Co., Ltd","Quang Tri","Transportation infrastructure"]
[null,null,"157_",{"$f":"IFERROR(_xlfn.XLOOKUP(L_CT2[[#This Row],[MÃ]],L_CTY[MÃ],L_CTY[TÊN CÔNG TY]),\"-\")","v":"Công ty TNHH MTV Tasco Hải Phòng"},"Công ty TNHH MTV Tasco Hải Phòng","Hải Phòng","Hạ tầng giao thông","Tasco Hai Phong Co., Ltd.","Hai Phong","Transportation infrastructure"]
["Tài khoản kế toán",null,"147_",{"$f":"IFERROR(_xlfn.XLOOKUP(L_CT2[[#This Row],[MÃ]],L_CTY[MÃ],L_CTY[TÊN CÔNG TY]),\"-\")","v":"Công ty CP Tasco Nam Thái"},"Công ty CP Tasco Nam Thái","Hưng Yên","Xây lắp","Tasco Nam Thai JSC","Hung Yen","Construction"]
[null,null,"133_",{"$f":"IFERROR(_xlfn.XLOOKUP(L_CT2[[#This Row],[MÃ]],L_CTY[MÃ],L_CTY[TÊN CÔNG TY]),\"-\")","v":"Công ty TNHH thu phí tự động VETC"},"Công ty TNHH thu phí tự động VETC","Hà Nội","Dịch vụ thu phí","VETC Electronic Toll Collection Co., Ltd","Ha Noi","Toll collection service"]
["Chỉ tiêu báo cáo",null,"200_",{"$f":"IFERROR(_xlfn.XLOOKUP(L_CT2[[#This Row],[MÃ]],L_CTY[MÃ],L_CTY[TÊN CÔNG TY]),\"-\")","v":"Công ty CP Tasco Auto"},"Công ty CP Tasco Auto","Hà Nội","Dịch vụ thương mại","Tasco Auto JSC (old name: Tasco Auto Co., Ltd)","Ha Noi","Commercial services"]
[null,null,"228_",{"$f":"IFERROR(_xlfn.XLOOKUP(L_CT2[[#This Row],[MÃ]],L_CTY[MÃ],L_CTY[TÊN CÔNG TY]),\"-\")","v":"Công ty TNHH BOT Hùng Thắng Phú Thọ"},"Công ty TNHH BOT Hùng Thắng Phú Thọ","Phú Thọ","Hạ tầng giao thông","BOT Hung Thang Phu Tho Co., Ltd","Phu Tho","Transportation infrastructure"]
["Chỉ tiêu thuyết minh",null,"265_",{"$f":"IFERROR(_xlfn.XLOOKUP(L_CT2[[#This Row],[MÃ]],L_CTY[MÃ],L_CTY[TÊN CÔNG TY]),\"-\")","v":"Công ty CP NVT Holdings"},"Công ty CP NVT Holdings","Hà Nội","Kinh doanh bất động sản","NVT Holdings JSC\n(old name: NVT Holdings Co., Ltd)\n","Ha Noi","Property"]
[null,null,"288_",{"$f":"IFERROR(_xlfn.XLOOKUP(L_CT2[[#This Row],[MÃ]],L_CTY[MÃ],L_CTY[TÊN CÔNG TY]),\"-\")","v":"Công ty CP Dana"},"Công ty CP Dana","Đà Nẵng","Dịch vụ thương mại","Dana Corporation","Da Nang","Commercial services"]
["Map chỉ tiêu BC-TM",null,"229_",{"$f":"IFERROR(_xlfn.XLOOKUP(L_CT2[[#This Row],[MÃ]],L_CTY[MÃ],L_CTY[TÊN CÔNG TY]),\"-\")","v":"Công ty TNHH Ô tô Bắc Âu Hà Nội"},"Công ty TNHH Ô tô Bắc Âu Hà Nội","Hà Nội","Dịch vụ thương mại","Bac Au Ha Noi Automobile Co., Ltd","Ha Noi","Commercial services"]
[null,null,"252_",{"$f":"IFERROR(_xlfn.XLOOKUP(L_CT2[[#This Row],[MÃ]],L_CTY[MÃ],L_CTY[TÊN CÔNG TY]),\"-\")","v":"Công ty CP Ô tô Bắc Âu"},"Công ty CP Ô tô Bắc Âu","Hồ Chí Minh","Dịch vụ thương mại","Bac Au Automobile Corporation","Ho Chi Minh","Commercial services"]
["Chỉ tiêu dòng tiền",null,"218_",{"$f":"IFERROR(_xlfn.XLOOKUP(L_CT2[[#This Row],[MÃ]],L_CTY[MÃ],L_CTY[TÊN CÔNG TY]),\"-\")","v":"Công ty TNHH Ô tô Bắc Âu Sài Gòn"},"Công ty TNHH Ô tô Bắc Âu Sài Gòn","Hồ Chí Minh","Dịch vụ thương mại","Bac Au Sai Gon Automobile Co., Ltd","Ho Chi Minh","Commercial services"]
[null,null,"289_",{"$f":"IFERROR(_xlfn.XLOOKUP(L_CT2[[#This Row],[MÃ]],L_CTY[MÃ],L_CTY[TÊN CÔNG TY]),\"-\")","v":"Công ty TNHH New Energy Holdings"},"Công ty TNHH New Energy Holdings","Hà Nội","Dịch vụ thương mại","New Energy Holdings Co.,Ltd","Ha Noi","Commercial services"]
["Phân loại vốn vay",null,"300_",{"$f":"IFERROR(_xlfn.XLOOKUP(L_CT2[[#This Row],[MÃ]],L_CTY[MÃ],L_CTY[TÊN CÔNG TY]),\"-\")","v":"Công ty CP Dịch vụ Tổng Hợp Sài Gòn"},"Công ty CP Dịch vụ Tổng Hợp Sài Gòn","Hồ Chí Minh","Dịch vụ thương mại, bất động sản, dịch vụ tài chính","Saigon General Service Corporation","Ho Chi Minh","Commercial services, property, financial services"]
[null,null,"311_",{"$f":"IFERROR(_xlfn.XLOOKUP(L_CT2[[#This Row],[MÃ]],L_CTY[MÃ],L_CTY[TÊN CÔNG TY]),\"-\")","v":"Công ty CP Dịch vụ Sài Gòn Ô tô"},"Công ty CP Dịch vụ Sài Gòn Ô tô","Hồ Chí Minh","Dịch vụ thương mại","Saigon Automobile Service JSC","Ho Chi Minh","Commercial services"]
["Danh mục khác",null,"353_",{"$f":"IFERROR(_xlfn.XLOOKUP(L_CT2[[#This Row],[MÃ]],L_CTY[MÃ],L_CTY[TÊN CÔNG TY]),\"-\")","v":"Công ty CP Đầu tư TMDV Sài Gòn ô tô Cần Thơ"},"Công ty CP Đầu tư TMDV Sài Gòn ô tô Cần Thơ","Cần Thơ","Dịch vụ thương mại","SG Can Tho Auto Service Trading Investment JSC","Can Tho","Commercial services"]
[null,null,"364_",{"$f":"IFERROR(_xlfn.XLOOKUP(L_CT2[[#This Row],[MÃ]],L_CTY[MÃ],L_CTY[TÊN CÔNG TY]),\"-\")","v":"Công ty CP Bến Thành Ô tô"},"Công ty CP Bến Thành Ô tô","Hồ Chí Minh","Dịch vụ thương mại","Ben Thanh Automobile Corporation","Ho Chi Minh","Commercial services"]
["Tùy chọn",null,"350_",{"$f":"IFERROR(_xlfn.XLOOKUP(L_CT2[[#This Row],[MÃ]],L_CTY[MÃ],L_CTY[TÊN CÔNG TY]),\"-\")","v":"Công ty CP Ô tô Sài Gòn Tây Ninh"},"Công ty CP Ô tô Sài Gòn Tây Ninh","Tây Ninh","Dịch vụ thương mại","Sai Gon Tay Ninh Automobile Corporation","Tay Ninh","Commercial services"]
[null,null,"351_",{"$f":"IFERROR(_xlfn.XLOOKUP(L_CT2[[#This Row],[MÃ]],L_CTY[MÃ],L_CTY[TÊN CÔNG TY]),\"-\")","v":"Công ty CP Đầu tư TMDV Ô tô Tân Phú"},"Công ty CP Đầu tư TMDV Ô tô Tân Phú","Hồ Chí Minh","Dịch vụ thương mại","Tan Phu Automobile TMDV Investment JSC","Ho Chi Minh","Commercial services"]
[null,null,"347_",{"$f":"IFERROR(_xlfn.XLOOKUP(L_CT2[[#This Row],[MÃ]],L_CTY[MÃ],L_CTY[TÊN CÔNG TY]),\"-\")","v":"Công ty CP Ô tô Sài Gòn Long An"},"Công ty CP Ô tô Sài Gòn Long An","Tây Ninh","Dịch vụ thương mại","Sai Gon Long An Automobile Corporation","Tay Ninh","Commercial services"]
[null,null,"338_",{"$f":"IFERROR(_xlfn.XLOOKUP(L_CT2[[#This Row],[MÃ]],L_CTY[MÃ],L_CTY[TÊN CÔNG TY]),\"-\")","v":"Công ty CP Ô tô Trường Chinh"},"Công ty CP Ô tô Trường Chinh","Hồ Chí Minh","Dịch vụ thương mại","Truong Chinh Automobile JSC","Ho Chi Minh","Commercial services"]
[null,null,"386_",{"$f":"IFERROR(_xlfn.XLOOKUP(L_CT2[[#This Row],[MÃ]],L_CTY[MÃ],L_CTY[TÊN CÔNG TY]),\"-\")","v":"Công ty CP Ô tô Bến Thành Tây Ninh"},"Công ty CP Ô tô Bến Thành Tây Ninh","Tây Ninh","Dịch vụ thương mại","Ben Thanh Tay Ninh Automobile Corporation","Tay Ninh","Commercial services"]
[null,null,"409_",{"$f":"IFERROR(_xlfn.XLOOKUP(L_CT2[[#This Row],[MÃ]],L_CTY[MÃ],L_CTY[TÊN CÔNG TY]),\"-\")","v":"Công ty CP Tasco Auto Tây Sài Gòn"},"Công ty CP Tasco Auto Tây Sài Gòn","Hồ Chí Minh","Dịch vụ thương mại","Tasco Auto West Sai Gon JSC","Ho Chi Minh","Commercial services"]
[null,null,"331_",{"$f":"IFERROR(_xlfn.XLOOKUP(L_CT2[[#This Row],[MÃ]],L_CTY[MÃ],L_CTY[TÊN CÔNG TY]),\"-\")","v":"Công ty TNHH FX Auto"},"Công ty TNHH FX Auto","Hồ Chí Minh","Dịch vụ thương mại","FX Auto Co., Ltd","Ho Chi Minh","Commercial services"]
[null,null,"359_",{"$f":"IFERROR(_xlfn.XLOOKUP(L_CT2[[#This Row],[MÃ]],L_CTY[MÃ],L_CTY[TÊN CÔNG TY]),\"-\")","v":"Công ty CP Đầu tư Thương mại Dịch vụ Ô tô Sài Gòn Phú Lâm"},"Công ty CP Đầu tư Thương mại Dịch vụ Ô tô Sài Gòn Phú Lâm","Hồ Chí Minh","Dịch vụ thương mại","SG Phu Lam Auto Investment Trading Service JSC","Ho Chi Minh","Commercial services"]
[null,null,"313_",{"$f":"IFERROR(_xlfn.XLOOKUP(L_CT2[[#This Row],[MÃ]],L_CTY[MÃ],L_CTY[TÊN CÔNG TY]),\"-\")","v":"Công ty CP Dịch vụ ô tô Bình Thuận"},"Công ty CP Dịch vụ ô tô Bình Thuận","Lâm Đồng","Dịch vụ thương mại","Binh Thuan Automotive Service JSC","Lam Dong","Commercial services"]
[null,null,"394_",{"$f":"IFERROR(_xlfn.XLOOKUP(L_CT2[[#This Row],[MÃ]],L_CTY[MÃ],L_CTY[TÊN CÔNG TY]),\"-\")","v":"Công ty cổ phần Ô tô Bình Thuận"},"Công ty cổ phần Ô tô Bình Thuận","Lâm Đồng","Dịch vụ thương mại","Binh Thuan Automotives JSC","Lam Dong","Commercial services"]
[null,null,"334_",{"$f":"IFERROR(_xlfn.XLOOKUP(L_CT2[[#This Row],[MÃ]],L_CTY[MÃ],L_CTY[TÊN CÔNG TY]),\"-\")","v":"Công ty CP Ô tô Sài Gòn Cửu Long"},"Công ty CP Ô tô Sài Gòn Cửu Long","Cần Thơ","Dịch vụ thương mại","Sai Gon Cuu Long Automobile Corporation","Can Tho","Commercial services"]
[null,null,"385_",{"$f":"IFERROR(_xlfn.XLOOKUP(L_CT2[[#This Row],[MÃ]],L_CTY[MÃ],L_CTY[TÊN CÔNG TY]),\"-\")","v":"Công ty TNHH Toyota Giải Phóng"},"Công ty TNHH Toyota Giải Phóng","Hà Nội","Dịch vụ thương mại","Toyota Giai Phong Co., Ltd","Ha Noi","Commercial services"]
[null,null,"388_",{"$f":"IFERROR(_xlfn.XLOOKUP(L_CT2[[#This Row],[MÃ]],L_CTY[MÃ],L_CTY[TÊN CÔNG TY]),\"-\")","v":"Công ty CP Toyota Ninh Bình"},"Công ty CP Toyota Ninh Bình","Ninh Bình","Dịch vụ thương mại","Toyota Ninh Binh JSC","Ninh Binh","Commercial services"]
[null,null,"342_",{"$f":"IFERROR(_xlfn.XLOOKUP(L_CT2[[#This Row],[MÃ]],L_CTY[MÃ],L_CTY[TÊN CÔNG TY]),\"-\")","v":"Công ty TNHH Thương mại Dịch vụ Sài Gòn"},"Công ty TNHH Thương mại Dịch vụ Sài Gòn","Cần Thơ","Dịch vụ thương mại","Saigon Service Trading Co., Ltd","Can Tho","Commercial services"]
[null,null,"332_",{"$f":"IFERROR(_xlfn.XLOOKUP(L_CT2[[#This Row],[MÃ]],L_CTY[MÃ],L_CTY[TÊN CÔNG TY]),\"-\")","v":"Công ty CP Sài Gòn Ngôi sao"},"Công ty CP Sài Gòn Ngôi sao","Hồ Chí Minh","Dịch vụ thương mại","Saigon Star JSC","Ho Chi Minh","Commercial services"]
[null,null,"322_",{"$f":"IFERROR(_xlfn.XLOOKUP(L_CT2[[#This Row],[MÃ]],L_CTY[MÃ],L_CTY[TÊN CÔNG TY]),\"-\")","v":"Công ty TNHH TMDV Sài Gòn Viễn Đông"},"Công ty TNHH TMDV Sài Gòn Viễn Đông","Hồ Chí Minh","Dịch vụ thương mại","Saigon Far East Service Trading Co., Ltd","Ho Chi Minh","Commercial services"]
[null,null,"314_",{"$f":"IFERROR(_xlfn.XLOOKUP(L_CT2[[#This Row],[MÃ]],L_CTY[MÃ],L_CTY[TÊN CÔNG TY]),\"-\")","v":"Công ty CP Savico Hà Nội"},"Công ty CP Savico Hà Nội","Hà Nội","Kinh doanh bất động sản","Savico Ha Noi Corporation","Ha Noi","Property"]
[null,null,"329_",{"$f":"IFERROR(_xlfn.XLOOKUP(L_CT2[[#This Row],[MÃ]],L_CTY[MÃ],L_CTY[TÊN CÔNG TY]),\"-\")","v":"Công ty TNHH Toyota Long Biên"},"Công ty TNHH Toyota Long Biên","Hà Nội","Dịch vụ thương mại","Toyota Long Bien Co., Ltd","Ha Noi","Commercial services"]
[null,null,"341_",{"$f":"IFERROR(_xlfn.XLOOKUP(L_CT2[[#This Row],[MÃ]],L_CTY[MÃ],L_CTY[TÊN CÔNG TY]),\"-\")","v":"Công ty TNHH Toyota Hải Dương"},"Công ty TNHH Toyota Hải Dương","Hải Phòng","Dịch vụ thương mại","Toyota Hai Duong Co., Ltd","Hai Phong","Commercial services"]
[null,null,"339_",{"$f":"IFERROR(_xlfn.XLOOKUP(L_CT2[[#This Row],[MÃ]],L_CTY[MÃ],L_CTY[TÊN CÔNG TY]),\"-\")","v":"Công ty TNHH Toyota Chí Linh"},"Công ty TNHH Toyota Chí Linh","Hải Phòng","Dịch vụ thương mại","Toyota Chi Linh Co., Ltd","Hai Phong","Commercial services"]
[null,null,"349_",{"$f":"IFERROR(_xlfn.XLOOKUP(L_CT2[[#This Row],[MÃ]],L_CTY[MÃ],L_CTY[TÊN CÔNG TY]),\"-\")","v":"Công ty TNHH Đầu tư và Dịch vụ Ô tô Hải Dương"},"Công ty TNHH Đầu tư và Dịch vụ Ô tô Hải Dương","Hải Phòng","Dịch vụ thương mại","Hai Duong Auto Investment & Services Co.,Ltd","Hai Phong","Commercial services"]
[null,null,"411_",{"$f":"IFERROR(_xlfn.XLOOKUP(L_CT2[[#This Row],[MÃ]],L_CTY[MÃ],L_CTY[TÊN CÔNG TY]),\"-\")","v":"Công ty Cổ phần G-Lynk Hải Dương"},"Công ty Cổ phần G-Lynk Hải Dương","Hải Phòng","Dịch vụ thương mại","G-Lynk Hai Duong Joint Stock Company","Hai Phong","Commercial services"]
[null,null,"362_",{"$f":"IFERROR(_xlfn.XLOOKUP(L_CT2[[#This Row],[MÃ]],L_CTY[MÃ],L_CTY[TÊN CÔNG TY]),\"-\")","v":"Công ty TNHH Savico Thanh Hóa"},"Công ty TNHH Savico Thanh Hóa","Thanh Hóa","Dịch vụ thương mại","Savico Thanh Hoa Co., Ltd","Thanh Hoa","Commercial services"]
[null,null,"318_",{"$f":"IFERROR(_xlfn.XLOOKUP(L_CT2[[#This Row],[MÃ]],L_CTY[MÃ],L_CTY[TÊN CÔNG TY]),\"-\")","v":"Công ty CP Savico Kỷ nguyên mới"},"Công ty CP Savico Kỷ nguyên mới","Ninh Bình","Dịch vụ thương mại","Savico New Era JSC","Ninh Binh","Commercial services"]
[null,null,"370_",{"$f":"IFERROR(_xlfn.XLOOKUP(L_CT2[[#This Row],[MÃ]],L_CTY[MÃ],L_CTY[TÊN CÔNG TY]),\"-\")","v":"Công ty TNHH Đầu tư và Phát triển SVC Miền Bắc"},"Công ty TNHH Đầu tư và Phát triển SVC Miền Bắc","Hà Nội","Dịch vụ thương mại","SVC North Development and Investment Co., Ltd","Ha Noi","Commercial services"]
[null,null,"357_",{"$f":"IFERROR(_xlfn.XLOOKUP(L_CT2[[#This Row],[MÃ]],L_CTY[MÃ],L_CTY[TÊN CÔNG TY]),\"-\")","v":"Công ty CP Carpla"},"Công ty CP Carpla","Hà Nội","Dịch vụ thương mại","Carpla JSC","Ha Noi","Commercial services"]
[null,null,"358_",{"$f":"IFERROR(_xlfn.XLOOKUP(L_CT2[[#This Row],[MÃ]],L_CTY[MÃ],L_CTY[TÊN CÔNG TY]),\"-\")","v":"Công ty TNHH Truyền thông Carpla"},"Công ty TNHH Truyền thông Carpla","Hà Nội","Dịch vụ thương mại","Carpla Media Co., Ltd","Ha Noi","Commercial services"]
[null,null,"407_",{"$f":"IFERROR(_xlfn.XLOOKUP(L_CT2[[#This Row],[MÃ]],L_CTY[MÃ],L_CTY[TÊN CÔNG TY]),\"-\")","v":"Công ty TNHH Dịch vụ Ô tô Carpla"},"Công ty TNHH Dịch vụ Ô tô Carpla","Hà Nội","Dịch vụ thương mại","Carpl Car Service Co., Ltd","Ha Noi","Commercial services"]
[null,null,"408_",{"$f":"IFERROR(_xlfn.XLOOKUP(L_CT2[[#This Row],[MÃ]],L_CTY[MÃ],L_CTY[TÊN CÔNG TY]),\"-\")","v":"Công ty TNHH Stargo"},"Công ty TNHH Stargo","Hà Nội","Dịch vụ thương mại","Stargo Co.,Ltd","Ha Noi","Commercial services"]
[null,null,"174_",{"$f":"IFERROR(_xlfn.XLOOKUP(L_CT2[[#This Row],[MÃ]],L_CTY[MÃ],L_CTY[TÊN CÔNG TY]),\"-\")","v":"Công ty TNHH VETC Digital"},"Công ty TNHH VETC Digital","Hà Nội","Dịch vụ thương mại","VETC Digital Company Limited","Ha Noi","Commercial services"]
[null,null,"416_",{"$f":"IFERROR(_xlfn.XLOOKUP(L_CT2[[#This Row],[MÃ]],L_CTY[MÃ],L_CTY[TÊN CÔNG TY]),\"-\")","v":"Công ty TNHH Carpla Service Đông Nam Bộ"},"Công ty TNHH Carpla Service Đông Nam Bộ","Hồ Chí Minh","Dịch vụ thương mại","Carpla Service SouthEast Regoin Company Limited","Ho Chi Minh","Commercial services"]
[null,null,"419_",{"$f":"IFERROR(_xlfn.XLOOKUP(L_CT2[[#This Row],[MÃ]],L_CTY[MÃ],L_CTY[TÊN CÔNG TY]),\"-\")","v":"Công ty TNHH VETC RSA"},"Công ty TNHH VETC RSA","Hà Nội","Dịch vụ thương mại","VETC RSA Parts Company Limited","Ha Noi","Commercial services"]
[null,null,"420_",{"$f":"IFERROR(_xlfn.XLOOKUP(L_CT2[[#This Row],[MÃ]],L_CTY[MÃ],L_CTY[TÊN CÔNG TY]),\"-\")","v":"Công ty TNHH VETC Auto Parts"},"Công ty TNHH VETC Auto Parts","Hồ Chí Minh","Dịch vụ thương mại","VETC Auto Parts Company Limited","Ho Chi Minh","Commercial services"]
[null,null,"315_",{"$f":"IFERROR(_xlfn.XLOOKUP(L_CT2[[#This Row],[MÃ]],L_CTY[MÃ],L_CTY[TÊN CÔNG TY]),\"-\")","v":"Công ty CP Glynk"},"Công ty CP Glynk","Hà Nội","Dịch vụ thương mại","G-Lynk JSC","Ha Noi","Commercial services"]
[null,null,"337_",{"$f":"IFERROR(_xlfn.XLOOKUP(L_CT2[[#This Row],[MÃ]],L_CTY[MÃ],L_CTY[TÊN CÔNG TY]),\"-\")","v":"Công ty CP Tasco Auto Sài Gòn"},"Công ty CP Tasco Auto Sài Gòn","Hồ Chí Minh","Dịch vụ thương mại","Tasco Auto Sai Gon JSC","Ho Chi Minh","Commercial services"]
[null,null,"402_",{"$f":"IFERROR(_xlfn.XLOOKUP(L_CT2[[#This Row],[MÃ]],L_CTY[MÃ],L_CTY[TÊN CÔNG TY]),\"-\")","v":"Công ty TNHH G-Lynk Hà Nội"},"Công ty TNHH G-Lynk Hà Nội","Hà Nội","Dịch vụ thương mại","G-Lynk Hanoi Co.,Ltd","Ha Noi","Commercial services"]
[null,null,"323_",{"$f":"IFERROR(_xlfn.XLOOKUP(L_CT2[[#This Row],[MÃ]],L_CTY[MÃ],L_CTY[TÊN CÔNG TY]),\"-\")","v":"Công ty TNHH Toyota Cần Thơ"},"Công ty TNHH Toyota Cần Thơ","Cần Thơ","Dịch vụ thương mại","Toyota Can Tho Co., Ltd","Can Tho","Commercial services"]
[null,null,"414_",{"$f":"IFERROR(_xlfn.XLOOKUP(L_CT2[[#This Row],[MÃ]],L_CTY[MÃ],L_CTY[TÊN CÔNG TY]),\"-\")","v":"Công ty TNHH MTV AG-25"},"Công ty TNHH MTV AG-25","An Giang","Dịch vụ thương mại","AG-25 Company Limited","An Giang","Commercial services"]
[null,null,"415_",{"$f":"IFERROR(_xlfn.XLOOKUP(L_CT2[[#This Row],[MÃ]],L_CTY[MÃ],L_CTY[TÊN CÔNG TY]),\"-\")","v":"Công ty CP Geely An Giang"},"Công ty CP Geely An Giang","An Giang","Dịch vụ thương mại","Geely An Giang Joint Stock Company","An Giang","Commercial services"]
[null,null,"361_",{"$f":"IFERROR(_xlfn.XLOOKUP(L_CT2[[#This Row],[MÃ]],L_CTY[MÃ],L_CTY[TÊN CÔNG TY]),\"-\")","v":"Công ty CP Đầu tư Đà Nẵng Sơn Trà"},"Công ty CP Đầu tư Đà Nẵng Sơn Trà","Đà Nẵng","Bất động sản","Danang Sontra Corporation","Da Nang","Property"]
[null,null,"320_",{"$f":"IFERROR(_xlfn.XLOOKUP(L_CT2[[#This Row],[MÃ]],L_CTY[MÃ],L_CTY[TÊN CÔNG TY]),\"-\")","v":"Công ty CP Savico Đà Nẵng"},"Công ty CP Savico Đà Nẵng","Đà Nẵng","Kinh doanh bất động sản","Savico Da Nang Corporation","Da Nang","Property"]
[null,null,"310_",{"$f":"IFERROR(_xlfn.XLOOKUP(L_CT2[[#This Row],[MÃ]],L_CTY[MÃ],L_CTY[TÊN CÔNG TY]),\"-\")","v":"Công ty CP Ô tô Sông Hàn"},"Công ty CP Ô tô Sông Hàn","Đà Nẵng","Dịch vụ thương mại","Han River Automobile Corporation","Da Nang","Commercial services"]
[null,null,"352_",{"$f":"IFERROR(_xlfn.XLOOKUP(L_CT2[[#This Row],[MÃ]],L_CTY[MÃ],L_CTY[TÊN CÔNG TY]),\"-\")","v":"Công ty TNHH MTV Ô tô Sơn Trà"},"Công ty TNHH MTV Ô tô Sơn Trà","Đà Nẵng","Dịch vụ thương mại","Son Tra Automobile Co., Ltd","Da Nang","Commercial services"]
[null,null,"325_",{"$f":"IFERROR(_xlfn.XLOOKUP(L_CT2[[#This Row],[MÃ]],L_CTY[MÃ],L_CTY[TÊN CÔNG TY]),\"-\")","v":"Công ty TNHH MTV Ô tô Gia Lai"},"Công ty TNHH MTV Ô tô Gia Lai","Gia Lai","Dịch vụ thương mại","Gia Lai Automobile One Member Co., Ltd","Gia Lai","Commercial services"]
[null,null,"321_",{"$f":"IFERROR(_xlfn.XLOOKUP(L_CT2[[#This Row],[MÃ]],L_CTY[MÃ],L_CTY[TÊN CÔNG TY]),\"-\")","v":"Công ty CP Ô tô Kon Tum"},"Công ty CP Ô tô Kon Tum","Quảng Ngãi","Dịch vụ thương mại","Kon Tum Automobile JSC","Quang Ngai","Commercial services"]
[null,null,"366_",{"$f":"IFERROR(_xlfn.XLOOKUP(L_CT2[[#This Row],[MÃ]],L_CTY[MÃ],L_CTY[TÊN CÔNG TY]),\"-\")","v":"Công ty TNHH Tasco Auto Gia Lai"},"Công ty TNHH Tasco Auto Gia Lai","Gia Lai","Dịch vụ thương mại","Tasco Auto Gia Lai Co., Ltd","Gia Lai","Commercial services"]
[null,null,"384_",{"$f":"IFERROR(_xlfn.XLOOKUP(L_CT2[[#This Row],[MÃ]],L_CTY[MÃ],L_CTY[TÊN CÔNG TY]),\"-\")","v":"Công ty TNHH Ô tô Đà Nẵng"},"Công ty TNHH Ô tô Đà Nẵng","Đà Nẵng","Dịch vụ thương mại","Da Nang Automobile Co.,Ltd","Da Nang","Commercial services"]
[null,null,"345_",{"$f":"IFERROR(_xlfn.XLOOKUP(L_CT2[[#This Row],[MÃ]],L_CTY[MÃ],L_CTY[TÊN CÔNG TY]),\"-\")","v":"Công ty TNHH Ô tô Quảng Nam"},"Công ty TNHH Ô tô Quảng Nam","Đà Nẵng","Dịch vụ thương mại","Quang Nam Automobile Co.,Ltd","Da Nang","Commercial services"]
[null,null,"403_",{"$f":"IFERROR(_xlfn.XLOOKUP(L_CT2[[#This Row],[MÃ]],L_CTY[MÃ],L_CTY[TÊN CÔNG TY]),\"-\")","v":"Công ty Cổ phần Tasco Auto Đà Nẵng"},"Công ty Cổ phần Tasco Auto Đà Nẵng","Đà Nẵng","Dịch vụ thương mại","Tasco Auto Da Nang Joint Stock Company","Da Nang","Commercial services"]
[null,null,"379_",{"$f":"IFERROR(_xlfn.XLOOKUP(L_CT2[[#This Row],[MÃ]],L_CTY[MÃ],L_CTY[TÊN CÔNG TY]),\"-\")","v":"Công ty CP Hưng Thịnh Ô tô"},"Công ty CP Hưng Thịnh Ô tô","Đà Nẵng","Dịch vụ thương mại","Hung Thinh Automobile JSC","Da Nang","Commercial services"]
[null,null,"363_",{"$f":"IFERROR(_xlfn.XLOOKUP(L_CT2[[#This Row],[MÃ]],L_CTY[MÃ],L_CTY[TÊN CÔNG TY]),\"-\")","v":"Công ty CP Ô tô Đại Thịnh"},"Công ty CP Ô tô Đại Thịnh","Đà Nẵng","Dịch vụ thương mại","Dai Thinh Automobile JSC","Da Nang","Commercial services"]
[null,null,"343_",{"$f":"IFERROR(_xlfn.XLOOKUP(L_CT2[[#This Row],[MÃ]],L_CTY[MÃ],L_CTY[TÊN CÔNG TY]),\"-\")","v":"Công ty CP OTOS"},"Công ty CP OTOS","Hồ Chí Minh","Dịch vụ thương mại","OtoS JSC","Ho Chi Minh","Commercial services"]
[null,null,"367_",{"$f":"IFERROR(_xlfn.XLOOKUP(L_CT2[[#This Row],[MÃ]],L_CTY[MÃ],L_CTY[TÊN CÔNG TY]),\"-\")","v":"Công ty TNHH xe và thiết bị chuyên dùng Vĩnh Thịnh"},"Công ty TNHH xe và thiết bị chuyên dùng Vĩnh Thịnh","Đồng Nai","Dịch vụ thương mại","Vinh Thinh Vehicles & Specialized Equipment Co., Ltd","Dong Nai","Commercial services"]
[null,null,"336_",{"$f":"IFERROR(_xlfn.XLOOKUP(L_CT2[[#This Row],[MÃ]],L_CTY[MÃ],L_CTY[TÊN CÔNG TY]),\"-\")","v":"Công ty CP Tasco Auto Bắc Sài Gòn"},"Công ty CP Tasco Auto Bắc Sài Gòn","Hồ Chí Minh","Dịch vụ thương mại","Tasco Auto North Saigon JSC","Ho Chi Minh","Commercial services"]
[null,null,"360_",{"$f":"IFERROR(_xlfn.XLOOKUP(L_CT2[[#This Row],[MÃ]],L_CTY[MÃ],L_CTY[TÊN CÔNG TY]),\"-\")","v":"Công ty CP Ô tô Đông Bình Dương"},"Công ty CP Ô tô Đông Bình Dương","Hồ Chí Minh","Dịch vụ thương mại","Dong Binh Duong Automobile JSC","Ho Chi Minh","Commercial services"]
[null,null,"326_",{"$f":"IFERROR(_xlfn.XLOOKUP(L_CT2[[#This Row],[MÃ]],L_CTY[MÃ],L_CTY[TÊN CÔNG TY]),\"-\")","v":"Công ty CP Ô tô Nam Sông Hậu"},"Công ty CP Ô tô Nam Sông Hậu","Cần Thơ","Dịch vụ thương mại","Nam Song Hau Automobile JSC","Can Tho","Commercial services"]
[null,null,"324_",{"$f":"IFERROR(_xlfn.XLOOKUP(L_CT2[[#This Row],[MÃ]],L_CTY[MÃ],L_CTY[TÊN CÔNG TY]),\"-\")","v":"Công ty CP Ô tô Tây Bắc Sài Gòn"},"Công ty CP Ô tô Tây Bắc Sài Gòn","Hồ Chí Minh","Dịch vụ thương mại","North West Sai Gon Automobile JSC","Ho Chi Minh","Commercial services"]
[null,null,"356_",{"$f":"IFERROR(_xlfn.XLOOKUP(L_CT2[[#This Row],[MÃ]],L_CTY[MÃ],L_CTY[TÊN CÔNG TY]),\"-\")","v":"Công ty TNHH TM&DV Ô tô Đồng Hiệp"},"Công ty TNHH TM&DV Ô tô Đồng Hiệp","Tây Ninh","Dịch vụ thương mại","Auto Dong Hiep Trading and Service Co., Ltd","Tay Ninh","Commercial services"]
[null,null,"316_",{"$f":"IFERROR(_xlfn.XLOOKUP(L_CT2[[#This Row],[MÃ]],L_CTY[MÃ],L_CTY[TÊN CÔNG TY]),\"-\")","v":"Công ty CP Ô tô Bà Rịa Vũng Tàu"},"Công ty CP Ô tô Bà Rịa Vũng Tàu","Hồ Chí Minh","Dịch vụ thương mại","Ba Ria Vung Tau Automobile JSC","Ho Chi Minh","Commercial services"]
[null,null,"382_",{"$f":"IFERROR(_xlfn.XLOOKUP(L_CT2[[#This Row],[MÃ]],L_CTY[MÃ],L_CTY[TÊN CÔNG TY]),\"-\")","v":"Công ty CP DV Ô tô TP Mới Bình Dương"},"Công ty CP DV Ô tô TP Mới Bình Dương","Hồ Chí Minh","Dịch vụ thương mại","Binh Duong New City Automobile Service JSC","Ho Chi Minh","Commercial services"]
[null,null,"346_",{"$f":"IFERROR(_xlfn.XLOOKUP(L_CT2[[#This Row],[MÃ]],L_CTY[MÃ],L_CTY[TÊN CÔNG TY]),\"-\")","v":"Công ty TNHH Ô tô Lâm Đồng"},"Công ty TNHH Ô tô Lâm Đồng","Lâm Đồng","Dịch vụ thương mại","Lam Dong Auto Co., Ltd","Lam Dong","Commercial services"]
[null,null,"330_",{"$f":"IFERROR(_xlfn.XLOOKUP(L_CT2[[#This Row],[MÃ]],L_CTY[MÃ],L_CTY[TÊN CÔNG TY]),\"-\")","v":"Công ty CP Ô tô Sao Tây Nam"},"Công ty CP Ô tô Sao Tây Nam","Cần Thơ","Dịch vụ thương mại","Sao Tay Nam Automobile JSC","Can Tho","Commercial services"]
[null,null,"372_",{"$f":"IFERROR(_xlfn.XLOOKUP(L_CT2[[#This Row],[MÃ]],L_CTY[MÃ],L_CTY[TÊN CÔNG TY]),\"-\")","v":"Công ty TNHH MTV DV TM Đầu tư Ô tô Kiên Giang"},"Công ty TNHH MTV DV TM Đầu tư Ô tô Kiên Giang","An Giang","Dịch vụ thương mại","Kien Giang Auto Investment Trading Service Co., Ltd","An Giang","Commercial services"]
[null,null,"333_",{"$f":"IFERROR(_xlfn.XLOOKUP(L_CT2[[#This Row],[MÃ]],L_CTY[MÃ],L_CTY[TÊN CÔNG TY]),\"-\")","v":"Công ty CP Dịch vụ Ô tô Cần Thơ"},"Công ty CP Dịch vụ Ô tô Cần Thơ","Cần Thơ","Dịch vụ thương mại","Can Tho Automobile Service JSC","Can Tho","Commercial services"]
[null,null,"383_",{"$f":"IFERROR(_xlfn.XLOOKUP(L_CT2[[#This Row],[MÃ]],L_CTY[MÃ],L_CTY[TÊN CÔNG TY]),\"-\")","v":"Công ty CP Ô tô Âu Việt"},"Công ty CP Ô tô Âu Việt","Đà Nẵng","Dịch vụ thương mại","Au Viet Automobile JSC","Da Nang","Commercial services"]
[null,null,"344_",{"$f":"IFERROR(_xlfn.XLOOKUP(L_CT2[[#This Row],[MÃ]],L_CTY[MÃ],L_CTY[TÊN CÔNG TY]),\"-\")","v":"Công ty CP Đầu tư phát triển Savico Miền Nam"},"Công ty CP Đầu tư phát triển Savico Miền Nam","Hồ Chí Minh","Kinh doanh bất động sản","Savico Southern Investment Development JSC","Ho Chi Minh","Property"]
[null,null,"317_",{"$f":"IFERROR(_xlfn.XLOOKUP(L_CT2[[#This Row],[MÃ]],L_CTY[MÃ],L_CTY[TÊN CÔNG TY]),\"-\")","v":"Công ty CP Ô tô New Energy"},"Công ty CP Ô tô New Energy","Hồ Chí Minh","Dịch vụ thương mại","New Energy Automotive Corporation","Ho Chi Minh","Commercial services"]
[null,null,"373_",{"$f":"IFERROR(_xlfn.XLOOKUP(L_CT2[[#This Row],[MÃ]],L_CTY[MÃ],L_CTY[TÊN CÔNG TY]),\"-\")","v":"Công ty TNHH Toyota Lý Thường Kiệt"},"Công ty TNHH Toyota Lý Thường Kiệt","Hồ Chí Minh","Dịch vụ thương mại","Toyota Ly Thuong Kiet Co., Ltd","Ho Chi Minh","Commercial services"]
[null,null,"395_",{"$f":"IFERROR(_xlfn.XLOOKUP(L_CT2[[#This Row],[MÃ]],L_CTY[MÃ],L_CTY[TÊN CÔNG TY]),\"-\")","v":"Công Ty TNHH MTV Toyota Tây Ninh"},"Công Ty TNHH MTV Toyota Tây Ninh","Tây Ninh","Dịch vụ thương mại","Toyota Tay Ninh Co., Ltd","Tay Ninh","Commercial services"]
[null,null,"417_",{"$f":"IFERROR(_xlfn.XLOOKUP(L_CT2[[#This Row],[MÃ]],L_CTY[MÃ],L_CTY[TÊN CÔNG TY]),\"-\")","v":"Công ty TNHH Tasco Auto Miền Nam"},"Công ty TNHH Tasco Auto Miền Nam","Hồ Chí Minh","Dịch vụ thương mại","Tasco Auto Southern Company Limited","Ho Chi Minh","Commercial services"]
[null,null,"328_",{"$f":"IFERROR(_xlfn.XLOOKUP(L_CT2[[#This Row],[MÃ]],L_CTY[MÃ],L_CTY[TÊN CÔNG TY]),\"-\")","v":"Công ty CP Đầu tư SAVICO"},"Công ty CP Đầu tư SAVICO","Hồ Chí Minh","Kinh doanh bất động sản","Savico Investment JSC","Ho Chi Minh","Property"]
[null,null,"396_",{"$f":"IFERROR(_xlfn.XLOOKUP(L_CT2[[#This Row],[MÃ]],L_CTY[MÃ],L_CTY[TÊN CÔNG TY]),\"-\")","v":"Công ty Cổ phần Giải pháp Ô tô"},"Công ty Cổ phần Giải pháp Ô tô","Hà Nội","Dịch vụ thương mại","Auto Solutions JSC","Ha Noi","Commercial services"]
[null,null,"397_",{"$f":"IFERROR(_xlfn.XLOOKUP(L_CT2[[#This Row],[MÃ]],L_CTY[MÃ],L_CTY[TÊN CÔNG TY]),\"-\")","v":"Công ty TNHH Sweden Auto"},"Công ty TNHH Sweden Auto","Hồ Chí Minh","Dịch vụ thương mại","Sweden Auto Co., Ltd","Ho Chi Minh","Commercial services"]
[null,null,"398_",{"$f":"IFERROR(_xlfn.XLOOKUP(L_CT2[[#This Row],[MÃ]],L_CTY[MÃ],L_CTY[TÊN CÔNG TY]),\"-\")","v":"Công ty cổ phần phân phối xe thương mại Tasco"},"Công ty cổ phần phân phối xe thương mại Tasco","Hà Nội","Dịch vụ thương mại","Tasco Commercial Vehicle Distribution JSC","Ha Noi","Commercial services"]
[null,null,"399_",{"$f":"IFERROR(_xlfn.XLOOKUP(L_CT2[[#This Row],[MÃ]],L_CTY[MÃ],L_CTY[TÊN CÔNG TY]),\"-\")","v":"Công ty TNHH Phân phối Ô tô Tasco"},"Công ty TNHH Phân phối Ô tô Tasco","Hà Nội","Dịch vụ thương mại","Tasco Auto Distribution Co., Ltd","Ha Noi","Commercial services"]
[null,null,"400_",{"$f":"IFERROR(_xlfn.XLOOKUP(L_CT2[[#This Row],[MÃ]],L_CTY[MÃ],L_CTY[TÊN CÔNG TY]),\"-\")","v":"Công ty TNHH Kinh doanh Ô tô Tasco"},"Công ty TNHH Kinh doanh Ô tô Tasco","Hà Nội","Dịch vụ thương mại","Tasco Auto Retail Co., Ltd","Ha Noi","Commercial services"]
[null,null,"418_",{"$f":"IFERROR(_xlfn.XLOOKUP(L_CT2[[#This Row],[MÃ]],L_CTY[MÃ],L_CTY[TÊN CÔNG TY]),\"-\")","v":"Công ty TNHH Tasco Auto Cần Thơ"},"Công ty TNHH Tasco Auto Cần Thơ","Cần Thơ","Dịch vụ thương mại","Tasco Auto Can Tho Company Limited","Can Tho","Commercial services"]
[null,null,"401_",{"$f":"IFERROR(_xlfn.XLOOKUP(L_CT2[[#This Row],[MÃ]],L_CTY[MÃ],L_CTY[TÊN CÔNG TY]),\"-\")","v":"Công ty TNHH Premium EV"},"Công ty TNHH Premium EV","Hà Nội","Dịch vụ thương mại","Premium EV Co., Ltd","Ha Noi","Commercial services"]
[null,null,"139_",{"$f":"IFERROR(_xlfn.XLOOKUP(L_CT2[[#This Row],[MÃ]],L_CTY[MÃ],L_CTY[TÊN CÔNG TY]),\"-\")","v":"Công ty TNHH Ana services"},"Công ty TNHH Ana services","Hà Nội","Dịch vụ","Ana Services Co., Ltd","Ha Noi","Services"]
[null,null,"312_",{"$f":"IFERROR(_xlfn.XLOOKUP(L_CT2[[#This Row],[MÃ]],L_CTY[MÃ],L_CTY[TÊN CÔNG TY]),\"-\")","v":"Công ty CP Toyota Đông Sài Gòn"},"Công ty CP Toyota Đông Sài Gòn","Hồ Chí Minh","Dịch vụ thương mại","Toyota East Saigon JSC","Ho Chi Minh","Commercial services"]
[null,null,"319_",{"$f":"IFERROR(_xlfn.XLOOKUP(L_CT2[[#This Row],[MÃ]],L_CTY[MÃ],L_CTY[TÊN CÔNG TY]),\"-\")","v":"Công ty CP Dịch vụ Sài Gòn Ô tô Gia Định"},"Công ty CP Dịch vụ Sài Gòn Ô tô Gia Định","Hồ Chí Minh","Dịch vụ thương mại","Sai Gon Auto Gia Dinh Service JSC","Ho Chi Minh","Commercial services"]
[null,null,"327_",{"$f":"IFERROR(_xlfn.XLOOKUP(L_CT2[[#This Row],[MÃ]],L_CTY[MÃ],L_CTY[TÊN CÔNG TY]),\"-\")","v":"Công ty TNHH Savico Quảng Nam"},"Công ty TNHH Savico Quảng Nam","Đà Nẵng","Dịch vụ thương mại","Savico Quang Nam Co., Ltd","Da Nang","Commercial services"]
[null,null,"348_",{"$f":"IFERROR(_xlfn.XLOOKUP(L_CT2[[#This Row],[MÃ]],L_CTY[MÃ],L_CTY[TÊN CÔNG TY]),\"-\")","v":"Công ty CP Đầu tư phát triển Tri thức Tương Lai"},"Công ty CP Đầu tư phát triển Tri thức Tương Lai","Hà Nội","Kinh doanh BĐS và giáo dục","Future Knowledge Investment JSC","Ha Noi","Property and Education"]
[null,null,"389_",{"$f":"IFERROR(_xlfn.XLOOKUP(L_CT2[[#This Row],[MÃ]],L_CTY[MÃ],L_CTY[TÊN CÔNG TY]),\"-\")","v":"Công ty CP Greenlynk Automotives"},"Công ty CP Greenlynk Automotives","Hồ Chí Minh","Dịch vụ thương mại","GreenLynk Automotives JSC","Ho Chi Minh","Commercial services"]
[null,null,"390_",{"$f":"IFERROR(_xlfn.XLOOKUP(L_CT2[[#This Row],[MÃ]],L_CTY[MÃ],L_CTY[TÊN CÔNG TY]),\"-\")","v":"Công ty Cổ phần du lịch Hồng Hải"},"Công ty Cổ phần du lịch Hồng Hải"]
[null,null,"391_",{"$f":"IFERROR(_xlfn.XLOOKUP(L_CT2[[#This Row],[MÃ]],L_CTY[MÃ],L_CTY[TÊN CÔNG TY]),\"-\")","v":"Công ty Cổ phần phát triển Du lịch Tân An"},"Công ty Cổ phần phát triển Du lịch Tân An"]
[null,null,"392_",{"$f":"IFERROR(_xlfn.XLOOKUP(L_CT2[[#This Row],[MÃ]],L_CTY[MÃ],L_CTY[TÊN CÔNG TY]),\"-\")","v":"Công ty CP đầu tư và phát triển y tế Việt Nhật"},"Công ty CP đầu tư và phát triển y tế Việt Nhật"]
[null,null,"393_",{"$f":"IFERROR(_xlfn.XLOOKUP(L_CT2[[#This Row],[MÃ]],L_CTY[MÃ],L_CTY[TÊN CÔNG TY]),\"-\")","v":"Công ty CP Du thuyền SVC"},"Công ty CP Du thuyền SVC"]
[null,null,"412_",{"$f":"IFERROR(_xlfn.XLOOKUP(L_CT2[[#This Row],[MÃ]],L_CTY[MÃ],L_CTY[TÊN CÔNG TY]),\"-\")","v":"Công ty TNHH Tasco Investment"},"Công ty TNHH Tasco Investment","Hà Nội","Dịch vụ tài chính","Tasco Investment Co., Ltd","Ha Noi","Financial services"]
[null,null,"413_",{"$f":"IFERROR(_xlfn.XLOOKUP(L_CT2[[#This Row],[MÃ]],L_CTY[MÃ],L_CTY[TÊN CÔNG TY]),\"-\")","v":"Công ty TNHH Ô tô Thể thao Anh Quốc"},"Công ty TNHH Ô tô Thể thao Anh Quốc","Hà Nội","Dịch vụ thương mại","British Sport Cars Limited Company","Ha Noi","Commercial services"]
[null,null,"010_",{"$f":"IFERROR(_xlfn.XLOOKUP(L_CT2[[#This Row],[MÃ]],L_CTY[MÃ],L_CTY[TÊN CÔNG TY]),\"-\")","v":"Công ty CP DNP Holding"},"Công ty CP DNP Holding","Đồng Nai","Dịch vụ thương mại","DNP Holdings JSC","Dong Nai","Commercial services"]
[null,null,"011_",{"$f":"IFERROR(_xlfn.XLOOKUP(L_CT2[[#This Row],[MÃ]],L_CTY[MÃ],L_CTY[TÊN CÔNG TY]),\"-\")","v":"Công ty CP Nhựa Đồng Nai"},"Công ty CP Nhựa Đồng Nai","Đà Nẵng","Sản xuất và kinh doanh ống nước","Dongnai Plastic Joint Stock Company","Da Nang","Manufacturing and trading of water pipes"]
[null,null,"022_",{"$f":"IFERROR(_xlfn.XLOOKUP(L_CT2[[#This Row],[MÃ]],L_CTY[MÃ],L_CTY[TÊN CÔNG TY]),\"-\")","v":"Công ty CP Tân Phú Việt Nam"},"Công ty CP Tân Phú Việt Nam","Hồ Chí Minh","Sản xuất và \nkinh doanh nhựa công nghiệp","Tan Phu Viet Nam Joint Stock Company","Ho Chi Minh","Manufacturing and trading of industrial plastics"]
[null,null,"049_",{"$f":"IFERROR(_xlfn.XLOOKUP(L_CT2[[#This Row],[MÃ]],L_CTY[MÃ],L_CTY[TÊN CÔNG TY]),\"-\")","v":"Công ty CP Đầu tư ngành nước DNP"},"Công ty CP Đầu tư ngành nước DNP","Bắc Ninh","Đầu tư vào các Công ty/dự án nước sạch ","DNP-Water Joint Stock Company\n","Bac Ninh","Investing in water supply companies/projects"]
[null,null,"085_",{"$f":"IFERROR(_xlfn.XLOOKUP(L_CT2[[#This Row],[MÃ]],L_CTY[MÃ],L_CTY[TÊN CÔNG TY]),\"-\")","v":"Công ty CP CMC"},"Công ty CP CMC","Phú Thọ","Sản xuất, kinh doanh và phân phối gạch men","CMC Joint Stock Company","Phu Tho","Manufacturing, trading, and distributing ceramic tiles"]
[null,null,"062_",{"$f":"IFERROR(_xlfn.XLOOKUP(L_CT2[[#This Row],[MÃ]],L_CTY[MÃ],L_CTY[TÊN CÔNG TY]),\"-\")","v":"Công ty TNHH Đầu tư Hạ tầng nước DNP - Bắc Giang"},"Công ty TNHH Đầu tư Hạ tầng nước DNP - Bắc Giang","Bắc Ninh","Sản xuất và kinh doanh nước sạch","DNP - Bac Giang Water Infrastructure Investment Joint Stock Company","Bac Ninh","Manufacturing and trading of clean water"]
[null,null,"080_",{"$f":"IFERROR(_xlfn.XLOOKUP(L_CT2[[#This Row],[MÃ]],L_CTY[MÃ],L_CTY[TÊN CÔNG TY]),\"-\")","v":"Công ty CP Sản xuất Kinh doanh nước sạch số 3 Hà Nội"},"Công ty CP Sản xuất Kinh doanh nước sạch số 3 Hà Nội","Hà Nội","Sản xuất và kinh doanh nước sạch","Hanoi Water Manufacturing Joint Stock Company No. 3","Ha Noi","Manufacturing and trading of clean water"]
[null,null,"020_",{"$f":"IFERROR(_xlfn.XLOOKUP(L_CT2[[#This Row],[MÃ]],L_CTY[MÃ],L_CTY[TÊN CÔNG TY]),\"-\")","v":"Công ty CP Bình Hiệp"},"Công ty CP Bình Hiệp","Lâm Đồng","Sản xuất và kinh doanh nước sạch","Binh Hiep Joint Stock Company","Lam Dong","Manufacturing and trading of clean water"]
[null,null,"056_",{"$f":"IFERROR(_xlfn.XLOOKUP(L_CT2[[#This Row],[MÃ]],L_CTY[MÃ],L_CTY[TÊN CÔNG TY]),\"-\")","v":"Công ty CP Cấp thoát nước Bình Thuận"},"Công ty CP Cấp thoát nước Bình Thuận","Lâm Đồng","Sản xuất và kinh doanh nước sạch","Binh Thuan Water Supply Sewerage Joint Stock Company","Lam Dong","Manufacturing and trading of clean water"]
[null,null,"054_",{"$f":"IFERROR(_xlfn.XLOOKUP(L_CT2[[#This Row],[MÃ]],L_CTY[MÃ],L_CTY[TÊN CÔNG TY]),\"-\")","v":"Công ty CP Nhà máy nước Đồng Tâm"},"Công ty CP Nhà máy nước Đồng Tâm","Đồng Tháp","Sản xuất và kinh doanh nước sạch","Dong Tam Water Corporation","Dong Thap","Manufacturing and trading of clean water"]
[null,null,"083_",{"$f":"IFERROR(_xlfn.XLOOKUP(L_CT2[[#This Row],[MÃ]],L_CTY[MÃ],L_CTY[TÊN CÔNG TY]),\"-\")","v":"Công ty CP Cấp thoát nước Tây Ninh"},"Công ty CP Cấp thoát nước Tây Ninh","Tây Ninh","Sản xuất và kinh doanh nước sạch","Tay Ninh Water Supply Sewerage Joint Stock Company","Tay Ninh","Manufacturing and trading of clean water"]
[null,null,"012_",{"$f":"IFERROR(_xlfn.XLOOKUP(L_CT2[[#This Row],[MÃ]],L_CTY[MÃ],L_CTY[TÊN CÔNG TY]),\"-\")","v":"Công ty CP Quản lý và Vận hành hệ thống nước sạch"},"Công ty CP Quản lý và Vận hành hệ thống nước sạch","Đồng Tháp","Sản xuất và kinh doanh nước sạch","Clean Water System Management and Operation Joint Stock Company","Dong Thap","Manufacturing and trading of clean water"]
[null,null,"075_",{"$f":"IFERROR(_xlfn.XLOOKUP(L_CT2[[#This Row],[MÃ]],L_CTY[MÃ],L_CTY[TÊN CÔNG TY]),\"-\")","v":"Công ty CP Đầu tư nước Bình An"},"Công ty CP Đầu tư nước Bình An","Lâm Đồng","Sản xuất và kinh doanh nước sạch","Binh An Water Investment Joint Stock Company","Lam Dong","Manufacturing and trading of clean water"]
[null,null,"092_",{"$f":"IFERROR(_xlfn.XLOOKUP(L_CT2[[#This Row],[MÃ]],L_CTY[MÃ],L_CTY[TÊN CÔNG TY]),\"-\")","v":"Công ty CP DNP Hawaco"},"Công ty CP DNP Hawaco","Hà Nội","Kinh doanh vật tư ngành nước","DNP Hawaco Joint Stock Company","Ha Noi","Trading in water supply materials"]
[null,null,"073_",{"$f":"IFERROR(_xlfn.XLOOKUP(L_CT2[[#This Row],[MÃ]],L_CTY[MÃ],L_CTY[TÊN CÔNG TY]),\"-\")","v":"Công ty CP DNP Hawaco Miền Nam"},"Công ty CP DNP Hawaco Miền Nam","Hồ Chí Minh","Cung cấp vật tư thiết bị, giải pháp và thi công cho lĩnh vực cơ điện","DNP Hawaco Southern Joint Stock Company","Ho Chi Minh","Providing materials, equipment, solutions, and construction services in the electromechanical field"]
[null,null,"040_",{"$f":"IFERROR(_xlfn.XLOOKUP(L_CT2[[#This Row],[MÃ]],L_CTY[MÃ],L_CTY[TÊN CÔNG TY]),\"-\")","v":"Công ty CP Đô thị Ninh Hòa"},"Công ty CP Đô thị Ninh Hòa","Khánh Hoà","Sản xuất và kinh doanh nước sạch, dịch vụ công ích","Ninh Hoa Urban Joint Stock Company","Khanh Hoa","Manufacturing and trading clean water, and providing public utility services"]
[null,null,"032_",{"$f":"IFERROR(_xlfn.XLOOKUP(L_CT2[[#This Row],[MÃ]],L_CTY[MÃ],L_CTY[TÊN CÔNG TY]),\"-\")","v":"Công ty TNHH Kiểm định Đo lường Ninh Hòa"},"Công ty TNHH Kiểm định Đo lường Ninh Hòa","Khánh Hoà","Kiểm tra và phân tích kỹ thuật đồng hồ đo nước","Ninh Hoa Metrology Inspection Company Limited","Khanh Hoa","Inspection and technical analysis of water meters"]
[null,null,"071_",{"$f":"IFERROR(_xlfn.XLOOKUP(L_CT2[[#This Row],[MÃ]],L_CTY[MÃ],L_CTY[TÊN CÔNG TY]),\"-\")","v":"Công ty TNHH MTV Xây lắp Đô thị Ninh Hòa"},"Công ty TNHH MTV Xây lắp Đô thị Ninh Hòa","Khánh Hoà","Thương mại dịch vụ và lắp ráp, sản xuất","Ninh Hoa Urban Construction One Member Limited Liability Company","Khanh Hoa","Trading, services, assembly, and manufacturing"]
[null,null,"090_",{"$f":"IFERROR(_xlfn.XLOOKUP(L_CT2[[#This Row],[MÃ]],L_CTY[MÃ],L_CTY[TÊN CÔNG TY]),\"-\")","v":"Công ty CP Cấp thoát nước Bình Phước"},"Công ty CP Cấp thoát nước Bình Phước","Đồng Nai","Sản xuất và kinh doanh nước sạch","Binh Phuoc Water Supply And Sewerage Joint Stock Company","Dong Nai","Trading in water supply materials"]
[null,null,"014_",{"$f":"IFERROR(_xlfn.XLOOKUP(L_CT2[[#This Row],[MÃ]],L_CTY[MÃ],L_CTY[TÊN CÔNG TY]),\"-\")","v":"Công ty CP Nước thô DNP - Sông Tiền"},"Công ty CP Nước thô DNP - Sông Tiền","Đồng Tháp","Khai thác, xử lý và cung cấp nước","DNP - Song Tien Raw Water Joint Stock Company","Dong Thap","Water extraction, treatment, and supply"]
[null,null,"038_",{"$f":"IFERROR(_xlfn.XLOOKUP(L_CT2[[#This Row],[MÃ]],L_CTY[MÃ],L_CTY[TÊN CÔNG TY]),\"-\")","v":"Công ty CP Thiết bị và Công nghệ Ecop Việt Nam"},"Công ty CP Thiết bị và Công nghệ Ecop Việt Nam","Hà Nội","Cung cấp vật tư thiết bị, giải pháp và thi công cho lĩnh vực xử lý nước cấp và nước thải","Eco Vietnam Equipment and Technology Joint Stock Company","Ha Noi","Providing materials, equipment, solutions, and construction services for water supply and wastewater treatment fields."]
[null,null,"065_",{"$f":"IFERROR(_xlfn.XLOOKUP(L_CT2[[#This Row],[MÃ]],L_CTY[MÃ],L_CTY[TÊN CÔNG TY]),\"-\")","v":"Công ty TNHH Đầu tư và Phát triển CVT"},"Công ty TNHH Đầu tư và Phát triển CVT","Phú Thọ","Hoạt động dịch vụ tài chính","CVT Investment And Development Ltd Company","Phu Tho","Financial services"]
[null,null,"099_",{"$f":"IFERROR(_xlfn.XLOOKUP(L_CT2[[#This Row],[MÃ]],L_CTY[MÃ],L_CTY[TÊN CÔNG TY]),\"-\")","v":"Công ty CP Đầu tư Xây dựng Cấp thoát nước Sơn Thạnh"},"Công ty CP Đầu tư Xây dựng Cấp thoát nước Sơn Thạnh","Khánh Hoà","Sản xuất và kinh doanh nước sạch","Son Thanh Water Supply And Sewerage Investment Construction Joint Stock Company","Khanh Hoa","Manufacturing and trading of clean water"]
[null,null,"027_",{"$f":"IFERROR(_xlfn.XLOOKUP(L_CT2[[#This Row],[MÃ]],L_CTY[MÃ],L_CTY[TÊN CÔNG TY]),\"-\")","v":"Công ty TNHH Cấp thoát nước Đại Dương Xanh"},"Công ty TNHH Cấp thoát nước Đại Dương Xanh","Lâm Đồng","Sản xuất và kinh doanh nước sạch","Blue Ocean Water Supply Sewerage Company Limited","Lam Dong","Manufacturing and trading of clean water"]
[null,null,"064_",{"$f":"IFERROR(_xlfn.XLOOKUP(L_CT2[[#This Row],[MÃ]],L_CTY[MÃ],L_CTY[TÊN CÔNG TY]),\"-\")","v":"Công ty CP Nước và Môi trường Đông Hải"},"Công ty CP Nước và Môi trường Đông Hải","Lâm Đồng","Sản xuất và kinh doanh nước sạch","Dong Hai Water and Environment Joint Stock Company","Lam Dong","Manufacturing and trading of clean water"]
[null,null,"015_",{"$f":"IFERROR(_xlfn.XLOOKUP(L_CT2[[#This Row],[MÃ]],L_CTY[MÃ],L_CTY[TÊN CÔNG TY]),\"-\")","v":"Công ty CP Đô thị Cam Ranh"},"Công ty CP Đô thị Cam Ranh"]
[null,null,"037_",{"$f":"IFERROR(_xlfn.XLOOKUP(L_CT2[[#This Row],[MÃ]],L_CTY[MÃ],L_CTY[TÊN CÔNG TY]),\"-\")","v":"Công ty CP Nước sạch Bắc Giang"},"Công ty CP Nước sạch Bắc Giang","Bắc Ninh","Sản xuất và kinh doanh nước sạch","Bac Giang Clean Water Joint Stock Company.","Bac Ninh","Manufacturing and trading of clean water"]
[null,null,"028_",{"$f":"IFERROR(_xlfn.XLOOKUP(L_CT2[[#This Row],[MÃ]],L_CTY[MÃ],L_CTY[TÊN CÔNG TY]),\"-\")","v":"Công ty TNHH Xuất nhập khẩu Nhựa Việt Lào"},"Công ty TNHH Xuất nhập khẩu Nhựa Việt Lào"]
[null,null,"081_",{"$f":"IFERROR(_xlfn.XLOOKUP(L_CT2[[#This Row],[MÃ]],L_CTY[MÃ],L_CTY[TÊN CÔNG TY]),\"-\")","v":"Công ty CP DNP Hawaco Cơ điện"},"Công ty CP DNP Hawaco Cơ điện"]
[null,null,"086_",{"$f":"IFERROR(_xlfn.XLOOKUP(L_CT2[[#This Row],[MÃ]],L_CTY[MÃ],L_CTY[TÊN CÔNG TY]),\"-\")","v":"Công ty CP Đầu tư Hạ tầng nước DNP Long An"},"Công ty CP Đầu tư Hạ tầng nước DNP Long An"]
[null,null,"082_",{"$f":"IFERROR(_xlfn.XLOOKUP(L_CT2[[#This Row],[MÃ]],L_CTY[MÃ],L_CTY[TÊN CÔNG TY]),\"-\")","v":"Công ty CP Công trình Đô thị Châu Thành"},"Công ty CP Công trình Đô thị Châu Thành"]
[null,null,"089_",{"$f":"IFERROR(_xlfn.XLOOKUP(L_CT2[[#This Row],[MÃ]],L_CTY[MÃ],L_CTY[TÊN CÔNG TY]),\"-\")","v":"Công ty CP Cấp thoát nước Long An"},"Công ty CP Cấp thoát nước Long An"]
[null,null,"094_",{"$f":"IFERROR(_xlfn.XLOOKUP(L_CT2[[#This Row],[MÃ]],L_CTY[MÃ],L_CTY[TÊN CÔNG TY]),\"-\")","v":"Công ty CP Cấp thoát nước Cần Thơ"},"Công ty CP Cấp thoát nước Cần Thơ"]
[null,null,"084_",{"$f":"IFERROR(_xlfn.XLOOKUP(L_CT2[[#This Row],[MÃ]],L_CTY[MÃ],L_CTY[TÊN CÔNG TY]),\"-\")","v":"Công ty CP Cấp thoát nước Cần Thơ 2"},"Công ty CP Cấp thoát nước Cần Thơ 2"]
[null,null,"093_",{"$f":"IFERROR(_xlfn.XLOOKUP(L_CT2[[#This Row],[MÃ]],L_CTY[MÃ],L_CTY[TÊN CÔNG TY]),\"-\")","v":"Công ty CP Cấp nước Cà Mau"},"Công ty CP Cấp nước Cà Mau"]
[null,null,"091_",{"$f":"IFERROR(_xlfn.XLOOKUP(L_CT2[[#This Row],[MÃ]],L_CTY[MÃ],L_CTY[TÊN CÔNG TY]),\"-\")","v":"Công ty CP Cấp nước Quảng Bình"},"Công ty CP Cấp nước Quảng Bình"]
[null,null,"095_",{"$f":"IFERROR(_xlfn.XLOOKUP(L_CT2[[#This Row],[MÃ]],L_CTY[MÃ],L_CTY[TÊN CÔNG TY]),\"-\")","v":"Công ty CP Công trình Đô thị Thủ Thừa"},"Công ty CP Công trình Đô thị Thủ Thừa"]
[null,null,"087_",{"$f":"IFERROR(_xlfn.XLOOKUP(L_CT2[[#This Row],[MÃ]],L_CTY[MÃ],L_CTY[TÊN CÔNG TY]),\"-\")","v":"Công ty CP Đầu tư Hạ tầng nước DNP Quảng Bình"},"Công ty CP Đầu tư Hạ tầng nước DNP Quảng Bình"]
[null,null,"017_",{"$f":"IFERROR(_xlfn.XLOOKUP(L_CT2[[#This Row],[MÃ]],L_CTY[MÃ],L_CTY[TÊN CÔNG TY]),\"-\")","v":"Công ty CP Hạ Tầng nước Sài Gòn"},"Công ty CP Hạ Tầng nước Sài Gòn","Hồ Chí Minh","Sản xuất và kinh doanh nước sạch","Sai Gon Water Infrastructure Joint Stock Company","Ho Chi Minh","Manufacturing and trading of clean water"]
[null,null,"018_",{"$f":"IFERROR(_xlfn.XLOOKUP(L_CT2[[#This Row],[MÃ]],L_CTY[MÃ],L_CTY[TÊN CÔNG TY]),\"-\")","v":"Công ty CP Cấp thoát nước Củ Chi"},"Công ty CP Cấp thoát nước Củ Chi","Hồ Chí Minh","Khai thác, xử lý và cung cấp nước","Cu Chi Supply Sewerage Joint Stock Company","Ho Chi Minh","Water extraction, treatment, and supply"]
[null,null,"019_",{"$f":"IFERROR(_xlfn.XLOOKUP(L_CT2[[#This Row],[MÃ]],L_CTY[MÃ],L_CTY[TÊN CÔNG TY]),\"-\")","v":"Công ty CP Cấp thoát nước Gia Lai"},"Công ty CP Cấp thoát nước Gia Lai","Gia Lai","Khai thác, xử lý và cung cấp nước","Gia Lai Water Supply Sewerage Joint Stock Company","Gia Lai","Water extraction, treatment, and supply"]
[null,null,"023_",{"$f":"IFERROR(_xlfn.XLOOKUP(L_CT2[[#This Row],[MÃ]],L_CTY[MÃ],L_CTY[TÊN CÔNG TY]),\"-\")","v":"Công ty CP Cấp thoát nước Dankia"},"Công ty CP Cấp thoát nước Dankia","Lâm Đồng","Khai thác, xử lý và cung cấp nước","Sai Gon - Dan Kia Water Supply Joint Stock Company","Lam Dong","Water extraction, treatment, and supply"]
[null,null,"024_",{"$f":"IFERROR(_xlfn.XLOOKUP(L_CT2[[#This Row],[MÃ]],L_CTY[MÃ],L_CTY[TÊN CÔNG TY]),\"-\")","v":"Công ty CP Kỹ thuật Enviro"},"Công ty CP Kỹ thuật Enviro"]
[null,null,"025_",{"$f":"IFERROR(_xlfn.XLOOKUP(L_CT2[[#This Row],[MÃ]],L_CTY[MÃ],L_CTY[TÊN CÔNG TY]),\"-\")","v":"Công ty CP Nước Sài Gòn- An Khê"},"Công ty CP Nước Sài Gòn- An Khê","Gia Lai","Khai thác, xử lý và cung cấp nước","Sai Gon - An Khe Water Joint Stock Company","Gia Lai","Water extraction, treatment, and supply"]
[null,null,"021_",{"$f":"IFERROR(_xlfn.XLOOKUP(L_CT2[[#This Row],[MÃ]],L_CTY[MÃ],L_CTY[TÊN CÔNG TY]),\"-\")","v":"Công ty CP đầu tư nước Tân Hiệp"},"Công ty CP đầu tư nước Tân Hiệp"]
[null,null,"026_",{"$f":"IFERROR(_xlfn.XLOOKUP(L_CT2[[#This Row],[MÃ]],L_CTY[MÃ],L_CTY[TÊN CÔNG TY]),\"-\")","v":"Công ty CP Nước Sài Gòn- Pleiku"},"Công ty CP Nước Sài Gòn- Pleiku","Gia Lai","Khai thác, xử lý và cung cấp nước","Sai Gon - Pleiku Water Supply Joint Stock Company","Gia Lai","Water extraction, treatment, and supply"]
[null,null,"066_",{"$f":"IFERROR(_xlfn.XLOOKUP(L_CT2[[#This Row],[MÃ]],L_CTY[MÃ],L_CTY[TÊN CÔNG TY]),\"-\")","v":"Công ty TNHH Đầu tư và Phát triển Hạ tầng Công nghiệp PT"},"Công ty TNHH Đầu tư và Phát triển Hạ tầng Công nghiệp PT","Phú Thọ","Kinh doanh bất động sản, quyền sử dụng đất thuộc chủ sở hữu, chủ sử dụng hoặc đi thuê","PT Industrial Infrastructure Investment and Development Company Limited","Phu Tho","Real estate business, ownership or leasehold rights to land"]
[null,null,"039_",{"$f":"IFERROR(_xlfn.XLOOKUP(L_CT2[[#This Row],[MÃ]],L_CTY[MÃ],L_CTY[TÊN CÔNG TY]),\"-\")","v":"Viện khoa học và công nghệ nước"},"Viện khoa học và công nghệ nước","Hà Nội","Nghiên cứu khoa học, ứng dụng công nghệ và thực hiện các dự án trong lĩnh vực cấp thoát và xử lý nước","Water Science and Technology Institute","Ha Noi","Scientific research, technology application, and implementation of projects in the field of water supply, drainage, and treatment."]
[null,null,"096_",{"$f":"IFERROR(_xlfn.XLOOKUP(L_CT2[[#This Row],[MÃ]],L_CTY[MÃ],L_CTY[TÊN CÔNG TY]),\"-\")","v":"Công ty CP Năng lượng Tasco"},"Công ty CP Năng lượng Tasco","Hồ Chí Minh","Sản xuất điện","Tasco Energy JSC","Ho Chi Minh","Electricity generation"]
[null,null,"097_",{"$f":"IFERROR(_xlfn.XLOOKUP(L_CT2[[#This Row],[MÃ]],L_CTY[MÃ],L_CTY[TÊN CÔNG TY]),\"-\")","v":"Công ty CP sản xuất và thương mại DNP"},"Công ty CP sản xuất và thương mại DNP","Hồ Chí Minh","Sản xuất và kinh doanh sản phẩm từ nhựa","DNP Production and Trading Joint Stock Company","Ho Chi Minh","Manufacturing and trading of plastic products"]
[null,null,"471_",{"$f":"IFERROR(_xlfn.XLOOKUP(L_CT2[[#This Row],[MÃ]],L_CTY[MÃ],L_CTY[TÊN CÔNG TY]),\"-\")","v":"Công ty TNHH Tasco Auto An Giang"},"Công ty TNHH Tasco Auto An Giang","An Giang","Dịch vụ thương mại","Tasco Auto An Giang Company Limited","An Giang ","Commercial services"]
[null,null,"472_",{"$f":"IFERROR(_xlfn.XLOOKUP(L_CT2[[#This Row],[MÃ]],L_CTY[MÃ],L_CTY[TÊN CÔNG TY]),\"-\")","v":"Công ty TNHH Tasco Auto Bình Thuận"},"Công ty TNHH Tasco Auto Bình Thuận","Lâm Đồng","Dịch vụ thương mại","Tasco Auto Bình Thuận Company Limited","Binh Thuan","Commercial services"]
[null,null,"473_",{"$f":"IFERROR(_xlfn.XLOOKUP(L_CT2[[#This Row],[MÃ]],L_CTY[MÃ],L_CTY[TÊN CÔNG TY]),\"-\")","v":"Công ty Cổ phần Đầu tư Phát triển Công nghệ TKT Land"},"Công ty Cổ phần Đầu tư Phát triển Công nghệ TKT Land","Hà Nội","Bất động sản","TKT LAND Technology Development Investment JSC","Ha Noi","Property"]
[null,null,"474_",{"$f":"IFERROR(_xlfn.XLOOKUP(L_CT2[[#This Row],[MÃ]],L_CTY[MÃ],L_CTY[TÊN CÔNG TY]),\"-\")","v":"Công ty TNHH Great Auto"},"Công ty TNHH Great Auto","Hồ Chí Minh","Dịch vụ thương mại","Great Auto Co., Ltd","Ho Chi Minh","Commercial services"]
[null,null,"098_",{"$f":"IFERROR(_xlfn.XLOOKUP(L_CT2[[#This Row],[MÃ]],L_CTY[MÃ],L_CTY[TÊN CÔNG TY]),\"-\")","v":"Công ty CP Giải pháp ngành nước S&D"},"Công ty CP Giải pháp ngành nước S&D","Hà Nội","Khai thác, xử lý và cung cấp nước","Water Solutions Joint Stock Company","Ha Noi","Water abstraction, treatment, and supply"]
[null,null,"101_",{"$f":"IFERROR(_xlfn.XLOOKUP(L_CT2[[#This Row],[MÃ]],L_CTY[MÃ],L_CTY[TÊN CÔNG TY]),\"-\")","v":"Công ty CP Kĩ thuật Meta"},"Công ty CP Kĩ thuật Meta","Hà Nội","Cung cấp vật tư thiết bị, giải pháp và thi công cho lĩnh vực cơ điện","META INFRASTRUCTURE ENGINEERING JOINT STOCK COMPANY","Ha Noi","Mechanical and Electrical (M&E) Equipment Supply, Solutions, and Installation"]
[null,null,"102_",{"$f":"IFERROR(_xlfn.XLOOKUP(L_CT2[[#This Row],[MÃ]],L_CTY[MÃ],L_CTY[TÊN CÔNG TY]),\"-\")","v":"Công ty Cổ phần Tasco Headway"},"Công ty Cổ phần Tasco Headway","Hồ Chí Minh","Vận tải hàng hóa bằng đường bộ (trừ hóa lỏng khí để vận chuyển)","Tasco Headway Logistics Joint Stock Company","Ho Chi Minh","Supply equipment and materials, provide solutions, and execute construction for the MEP (Mechanical, Electrical & Plumbing) sector."]
[null,null,"103_",{"$f":"IFERROR(_xlfn.XLOOKUP(L_CT2[[#This Row],[MÃ]],L_CTY[MÃ],L_CTY[TÊN CÔNG TY]),\"-\")","v":"Công ty TNHH Tasco Mobility"},"Công ty TNHH Tasco Mobility","Hà Nội","Dịch vụ thương mại","Tasco Mobility Co., Ltd","Ha Noi","Commercial services"]
[null,null,"104_",{"$f":"IFERROR(_xlfn.XLOOKUP(L_CT2[[#This Row],[MÃ]],L_CTY[MÃ],L_CTY[TÊN CÔNG TY]),\"-\")","v":"Công ty TNHH xe tải điện Tasco"},"Công ty TNHH xe tải điện Tasco","Hà Nội","Dịch vụ thương mại","Tasco Eco Truck Co., Ltd","Ha Noi","Commercial services"]
[null,null,"105_",{"$f":"IFERROR(_xlfn.XLOOKUP(L_CT2[[#This Row],[MÃ]],L_CTY[MÃ],L_CTY[TÊN CÔNG TY]),\"-\")","v":"Công ty TNHH TMDV Xe tải điện Tasco"},"Công ty TNHH TMDV Xe tải điện Tasco","Hà Nội","Dịch vụ thương mại","Tasco Electric Vehicle Trading and Service Co., Ltd","Ha Noi","Commercial services"]
[null,null,"106_",{"$f":"IFERROR(_xlfn.XLOOKUP(L_CT2[[#This Row],[MÃ]],L_CTY[MÃ],L_CTY[TÊN CÔNG TY]),\"-\")","v":"Công ty TNHH Sinh phẩm và Dược phẩm Tasco"},"Công ty TNHH Sinh phẩm và Dược phẩm Tasco","Hà Nội","Bán buôn dược phẩm và dụng cụ y tế","Tasco Pharmaceutical & Biological Co., Ltd","Ha Noi","Wholesale of pharmaceuticals and medical equipment"]
[null,null,"107_",{"$f":"IFERROR(_xlfn.XLOOKUP(L_CT2[[#This Row],[MÃ]],L_CTY[MÃ],L_CTY[TÊN CÔNG TY]),\"-\")","v":"Công ty CP Sản xuất Ô tô Tasco"},"Công ty CP Sản xuất Ô tô Tasco","Hưng Yên","Sản xuất ô tô","Tasco Auto Manufacturing JSC","Hung Yen","Automobile manufacturing"]

{"sheet":"TKKT","index":2,"n_rows":181,"n_cols":10,"rows_kept":181,"cut":false,"hidden":false,"merged":[[0,0,3,0]]}
[{"$f":"'✅'!A1","v":"Tasco Group"}]
[]
[null,null,null,"TÀI KHOẢN KẾ TOÁN"]
[]
[{"$f":"'Công ty'!A5","v":"BCTC hợp nhất"},null,"MÃ TK","Tên tài khoản","±","Loại","Mã FS","Tên chỉ tiêu BCTC",null,"Trùng"]
[null,null,"111_","Tiền mặt",1,"BS","111_",{"$f":"_xlfn.XLOOKUP(L_TB[[#This Row],[Mã FS]],L_FS[MÃ],L_FS[CHỈ TIÊU],\"-\")","v":"Tiền"},null,{"$f":"_Trùng(L_TB[MÃ TK])","v":"null"}]
[null,null,"112_","Tiền gửi ngân hàng, các tổ chức tín dụng",1,"BS","111_",{"$f":"_xlfn.XLOOKUP(L_TB[[#This Row],[Mã FS]],L_FS[MÃ],L_FS[CHỈ TIÊU],\"-\")","v":"Tiền"}]
["Tập đoàn",null,"113_","Tiền đang chuyển",1,"BS","111_",{"$f":"_xlfn.XLOOKUP(L_TB[[#This Row],[Mã FS]],L_FS[MÃ],L_FS[CHỈ TIÊU],\"-\")","v":"Tiền"}]
[null,null,"121_","Chứng khoán kinh doanh",1,"BS","121_",{"$f":"_xlfn.XLOOKUP(L_TB[[#This Row],[Mã FS]],L_FS[MÃ],L_FS[CHỈ TIÊU],\"-\")","v":"Chứng khoán kinh doanh"}]
["Danh mục công ty",null,"1281_","Tiền gửi có kỳ hạn",1,"BS","123_",{"$f":"_xlfn.XLOOKUP(L_TB[[#This Row],[Mã FS]],L_FS[MÃ],L_FS[CHỈ TIÊU],\"-\")","v":"Đầu tư nắm giữ đến ngày đáo hạn ngắn hạn"}]
[null,null,"1281DH_","Tiền gửi có kỳ hạn dài hạn",1,"BS","265_",{"$f":"_xlfn.XLOOKUP(L_TB[[#This Row],[Mã FS]],L_FS[MÃ],L_FS[CHỈ TIÊU],\"-\")","v":"Đầu tư nắm giữ đến ngày đáo hạn dài hạn"}]
["Thông tin công ty",null,"1281t_","Tiền gửi có kỳ hạn (dưới 03 tháng)",1,"BS","112_",{"$f":"_xlfn.XLOOKUP(L_TB[[#This Row],[Mã FS]],L_FS[MÃ],L_FS[CHỈ TIÊU],\"-\")","v":"Các khoản tương đương tiền"}]
[null,null,"1282_","Trái phiếu",1,"BS","123_",{"$f":"_xlfn.XLOOKUP(L_TB[[#This Row],[Mã FS]],L_FS[MÃ],L_FS[CHỈ TIÊU],\"-\")","v":"Đầu tư nắm giữ đến ngày đáo hạn ngắn hạn"}]
["Tài khoản kế toán",null,"1282DH_","Trái phiếu dài hạn",1,"BS","265_",{"$f":"_xlfn.XLOOKUP(L_TB[[#This Row],[Mã FS]],L_FS[MÃ],L_FS[CHỈ TIÊU],\"-\")","v":"Đầu tư nắm giữ đến ngày đáo hạn dài hạn"}]
[null,null,"1282t_","Trái phiếu (dưới 03 tháng)",1,"BS","112_",{"$f":"_xlfn.XLOOKUP(L_TB[[#This Row],[Mã FS]],L_FS[MÃ],L_FS[CHỈ TIÊU],\"-\")","v":"Các khoản tương đương tiền"}]
["Chỉ tiêu báo cáo",null,"1283DH_","Cho vay dài hạn",1,"BS","265_",{"$f":"_xlfn.XLOOKUP(L_TB[[#This Row],[Mã FS]],L_FS[MÃ],L_FS[CHỈ TIÊU],\"-\")","v":"Đầu tư nắm giữ đến ngày đáo hạn dài hạn"}]
[null,null,"1283NH_","Cho vay ngắn hạn",1,"BS","123_",{"$f":"_xlfn.XLOOKUP(L_TB[[#This Row],[Mã FS]],L_FS[MÃ],L_FS[CHỈ TIÊU],\"-\")","v":"Đầu tư nắm giữ đến ngày đáo hạn ngắn hạn"}]
["Chỉ tiêu thuyết minh",null,"1283t_","Cho vay (dưới 03 tháng)",1,"BS","112_",{"$f":"_xlfn.XLOOKUP(L_TB[[#This Row],[Mã FS]],L_FS[MÃ],L_FS[CHỈ TIÊU],\"-\")","v":"Các khoản tương đương tiền"}]
[null,null,"1288_","Các khoản đầu tư khác nắm giữ đến ngày đáo hạn",1,"BS","123_",{"$f":"_xlfn.XLOOKUP(L_TB[[#This Row],[Mã FS]],L_FS[MÃ],L_FS[CHỈ TIÊU],\"-\")","v":"Đầu tư nắm giữ đến ngày đáo hạn ngắn hạn"}]
["Map chỉ tiêu BC-TM",null,"1288DH_","Các khoản đầu tư khác nắm giữ đến ngày đáo hạn (trên 12 tháng)",1,"BS","265_",{"$f":"_xlfn.XLOOKUP(L_TB[[#This Row],[Mã FS]],L_FS[MÃ],L_FS[CHỈ TIÊU],\"-\")","v":"Đầu tư nắm giữ đến ngày đáo hạn dài hạn"}]
[null,null,"1288t_","Các khoản đầu tư khác nắm giữ đến ngày đáo hạn (dưới 03 tháng)",1,"BS","112_",{"$f":"_xlfn.XLOOKUP(L_TB[[#This Row],[Mã FS]],L_FS[MÃ],L_FS[CHỈ TIÊU],\"-\")","v":"Các khoản tương đương tiền"}]
["Chỉ tiêu dòng tiền",null,"131_","Phải thu khách hàng ngắn hạn",1,"BS","131_",{"$f":"_xlfn.XLOOKUP(L_TB[[#This Row],[Mã FS]],L_FS[MÃ],L_FS[CHỈ TIÊU],\"-\")","v":"Phải thu ngắn hạn của khách hàng"}]
[null,null,"131DH_","Phải thu dài hạn của khách hàng",1,"BS","211_",{"$f":"_xlfn.XLOOKUP(L_TB[[#This Row],[Mã FS]],L_FS[MÃ],L_FS[CHỈ TIÊU],\"-\")","v":"Phải thu dài hạn của khách hàng"}]
["Phân loại vốn vay",null,"131NV_","Khách hàng trả tiền trước ngắn hạn",-1,"BS","312_",{"$f":"_xlfn.XLOOKUP(L_TB[[#This Row],[Mã FS]],L_FS[MÃ],L_FS[CHỈ TIÊU],\"-\")","v":"Người mua trả trước ngắn hạn"}]
[null,null,"131NVDH_","Khách hàng trả tiền trước dài hạn",-1,"BS","332_",{"$f":"_xlfn.XLOOKUP(L_TB[[#This Row],[Mã FS]],L_FS[MÃ],L_FS[CHỈ TIÊU],\"-\")","v":"Người mua trả trước dài hạn"}]
["Danh mục khác",null,"133_","Thuế GTGT được khấu trừ",1,"BS","162_",{"$f":"_xlfn.XLOOKUP(L_TB[[#This Row],[Mã FS]],L_FS[MÃ],L_FS[CHỈ TIÊU],\"-\")","v":"Thuế GTGT được khấu trừ"}]
[null,null,"136_","Phải thu nội bộ ngắn hạn",1,"BS","133_",{"$f":"_xlfn.XLOOKUP(L_TB[[#This Row],[Mã FS]],L_FS[MÃ],L_FS[CHỈ TIÊU],\"-\")","v":"Phải thu nội bộ ngắn hạn"}]
["Tùy chọn",null,"136DH_","Phải thu nội bộ dài hạn",1,"BS","214_",{"$f":"_xlfn.XLOOKUP(L_TB[[#This Row],[Mã FS]],L_FS[MÃ],L_FS[CHỈ TIÊU],\"-\")","v":"Phải thu nội bộ dài hạn"}]
[null,null,"136v_","Vốn kinh doanh ở đơn vị trực thuộc",1,"BS","213_",{"$f":"_xlfn.XLOOKUP(L_TB[[#This Row],[Mã FS]],L_FS[MÃ],L_FS[CHỈ TIÊU],\"-\")","v":"Vốn kinh doanh ở đơn vị trực thuộc"}]
[null,null,"1381_","Tài sản thiếu chờ xử lý",1,"BS","137_",{"$f":"_xlfn.XLOOKUP(L_TB[[#This Row],[Mã FS]],L_FS[MÃ],L_FS[CHỈ TIÊU],\"-\")","v":"Tài sản thiếu chờ xử lý"}]
[null,null,"1385_","Phải thu về cổ phần hóa ngắn hạn",1,"BS","135_",{"$f":"_xlfn.XLOOKUP(L_TB[[#This Row],[Mã FS]],L_FS[MÃ],L_FS[CHỈ TIÊU],\"-\")","v":"Các khoản phải thu khác"}]
[null,null,"1385DH_","Phải thu về cổ phần hóa dài hạn",1,"BS","215_",{"$f":"_xlfn.XLOOKUP(L_TB[[#This Row],[Mã FS]],L_FS[MÃ],L_FS[CHỈ TIÊU],\"-\")","v":"Phải thu dài hạn khác"}]
[null,null,"1388KDH_","Các khoản phải thu dài hạn khác",1,"BS","215_",{"$f":"_xlfn.XLOOKUP(L_TB[[#This Row],[Mã FS]],L_FS[MÃ],L_FS[CHỈ TIÊU],\"-\")","v":"Phải thu dài hạn khác"}]
[null,null,"1388NH_","Các khoản phải thu ngắn hạn khác",1,"BS","135_",{"$f":"_xlfn.XLOOKUP(L_TB[[#This Row],[Mã FS]],L_FS[MÃ],L_FS[CHỈ TIÊU],\"-\")","v":"Các khoản phải thu khác"}]
[null,null,"1388NV_","Các khoản phải thu khác dư Có",-1,"BS","320_",{"$f":"_xlfn.XLOOKUP(L_TB[[#This Row],[Mã FS]],L_FS[MÃ],L_FS[CHỈ TIÊU],\"-\")","v":"Các khoản phải trả ngắn hạn khác"}]
[null,null,"1388NVDH_","Các khoản phải thu khác dư Có dài hạn",-1,"BS","338_",{"$f":"_xlfn.XLOOKUP(L_TB[[#This Row],[Mã FS]],L_FS[MÃ],L_FS[CHỈ TIÊU],\"-\")","v":"Phải trả dài hạn khác"}]
[null,null,"1389DH_","Tài sản dài hạn khác",1,"BS","274_",{"$f":"_xlfn.XLOOKUP(L_TB[[#This Row],[Mã FS]],L_FS[MÃ],L_FS[CHỈ TIÊU],\"-\")","v":"Tài sản dài hạn khác"}]
[null,null,"138CT_","Phải thu về cổ tức và lợi nhuận được chia ngắn hạn",1,"BS","135_",{"$f":"_xlfn.XLOOKUP(L_TB[[#This Row],[Mã FS]],L_FS[MÃ],L_FS[CHỈ TIÊU],\"-\")","v":"Các khoản phải thu khác"}]
[null,null,"138CTDH_","Phải thu về cổ tức và lợi nhuận được chia dài hạn",1,"BS","215_",{"$f":"_xlfn.XLOOKUP(L_TB[[#This Row],[Mã FS]],L_FS[MÃ],L_FS[CHỈ TIÊU],\"-\")","v":"Phải thu dài hạn khác"}]
[null,null,"141DH_","Tạm ứng dài hạn",1,"BS","215_",{"$f":"_xlfn.XLOOKUP(L_TB[[#This Row],[Mã FS]],L_FS[MÃ],L_FS[CHỈ TIÊU],\"-\")","v":"Phải thu dài hạn khác"}]
[null,null,"141NH_","Tạm ứng ngắn hạn",1,"BS","135_",{"$f":"_xlfn.XLOOKUP(L_TB[[#This Row],[Mã FS]],L_FS[MÃ],L_FS[CHỈ TIÊU],\"-\")","v":"Các khoản phải thu khác"}]
[null,null,"151_","Hàng mua đang đi đường",1,"BS","141_",{"$f":"_xlfn.XLOOKUP(L_TB[[#This Row],[Mã FS]],L_FS[MÃ],L_FS[CHỈ TIÊU],\"-\")","v":"Hàng tồn kho"}]
[null,null,"152_","Nguyên liệu, vật liệu",1,"BS","141_",{"$f":"_xlfn.XLOOKUP(L_TB[[#This Row],[Mã FS]],L_FS[MÃ],L_FS[CHỈ TIÊU],\"-\")","v":"Hàng tồn kho"}]
[null,null,"153_","Thiết bị, vật tư, phụ tùng thay thế ngắn hạn",1,"BS","141_",{"$f":"_xlfn.XLOOKUP(L_TB[[#This Row],[Mã FS]],L_FS[MÃ],L_FS[CHỈ TIÊU],\"-\")","v":"Hàng tồn kho"}]
[null,null,"153DH_","Thiết bị, vật tư, phụ tùng thay thế dài hạn",1,"BS","273_",{"$f":"_xlfn.XLOOKUP(L_TB[[#This Row],[Mã FS]],L_FS[MÃ],L_FS[CHỈ TIÊU],\"-\")","v":"Thiết bị, vật tư, phụ tùng thay thế dài hạn"}]
[null,null,"154_","Chi phí sản xuất, kinh doanh dở dang",1,"BS","141_",{"$f":"_xlfn.XLOOKUP(L_TB[[#This Row],[Mã FS]],L_FS[MÃ],L_FS[CHỈ TIÊU],\"-\")","v":"Hàng tồn kho"}]
[null,null,"154DH_","Chi phí sản xuất, kinh doanh dở dang dài hạn",1,"BS","251_",{"$f":"_xlfn.XLOOKUP(L_TB[[#This Row],[Mã FS]],L_FS[MÃ],L_FS[CHỈ TIÊU],\"-\")","v":"Chi phí sản xuất, kinh doanh dở dang dài hạn"}]
[null,null,"155_","Thành phẩm",1,"BS","141_",{"$f":"_xlfn.XLOOKUP(L_TB[[#This Row],[Mã FS]],L_FS[MÃ],L_FS[CHỈ TIÊU],\"-\")","v":"Hàng tồn kho"}]
[null,null,"156_","Hàng hóa",1,"BS","141_",{"$f":"_xlfn.XLOOKUP(L_TB[[#This Row],[Mã FS]],L_FS[MÃ],L_FS[CHỈ TIÊU],\"-\")","v":"Hàng tồn kho"}]
[null,null,"1567_","Hàng hóa bất động sản",1,"BS","141_",{"$f":"_xlfn.XLOOKUP(L_TB[[#This Row],[Mã FS]],L_FS[MÃ],L_FS[CHỈ TIÊU],\"-\")","v":"Hàng tồn kho"}]
[null,null,"157_","Hàng gửi bán",1,"BS","141_",{"$f":"_xlfn.XLOOKUP(L_TB[[#This Row],[Mã FS]],L_FS[MÃ],L_FS[CHỈ TIÊU],\"-\")","v":"Hàng tồn kho"}]
[null,null,"158_","Hàng hóa kho bảo thuế",1,"BS","141_",{"$f":"_xlfn.XLOOKUP(L_TB[[#This Row],[Mã FS]],L_FS[MÃ],L_FS[CHỈ TIÊU],\"-\")","v":"Hàng tồn kho"}]
[null,null,"171_","Giao dịch mua bán lại trái phiếu chính phủ",1,"BS","164_",{"$f":"_xlfn.XLOOKUP(L_TB[[#This Row],[Mã FS]],L_FS[MÃ],L_FS[CHỈ TIÊU],\"-\")","v":"Giao dịch mua bán lại trái phiếu Chính phủ"}]
[null,null,"171NV_","Giao dịch mua bán lại trái phiếu chính phủ dư Có",-1,"BS","325_",{"$f":"_xlfn.XLOOKUP(L_TB[[#This Row],[Mã FS]],L_FS[MÃ],L_FS[CHỈ TIÊU],\"-\")","v":"Giao dịch mua bán lại trái phiếu Chính phủ"}]
[null,null,"211_","TSCĐ hữu hình",1,"BS","222_",{"$f":"_xlfn.XLOOKUP(L_TB[[#This Row],[Mã FS]],L_FS[MÃ],L_FS[CHỈ TIÊU],\"-\")","v":"Nguyên giá TSCĐ hữu hình"}]
[null,null,"212_","TSCĐ thuê tài chính",1,"BS","225_",{"$f":"_xlfn.XLOOKUP(L_TB[[#This Row],[Mã FS]],L_FS[MÃ],L_FS[CHỈ TIÊU],\"-\")","v":"Nguyên giá TSCĐ thuê tài chính"}]
[null,null,"213_","TSCĐ vô hình",1,"BS","228_",{"$f":"_xlfn.XLOOKUP(L_TB[[#This Row],[Mã FS]],L_FS[MÃ],L_FS[CHỈ TIÊU],\"-\")","v":"Nguyên giá TSCĐ vô hình"}]
[null,null,"2141_","Khấu hao TSCĐ hữu hình",1,"BS","223_",{"$f":"_xlfn.XLOOKUP(L_TB[[#This Row],[Mã FS]],L_FS[MÃ],L_FS[CHỈ TIÊU],\"-\")","v":"Giá trị hao mòn lũy kế TSCĐ hữu hình"}]
[null,null,"2142_","Khấu hao TSCĐ thuê tài chính",1,"BS","226_",{"$f":"_xlfn.XLOOKUP(L_TB[[#This Row],[Mã FS]],L_FS[MÃ],L_FS[CHỈ TIÊU],\"-\")","v":"Giá trị hao mòn lũy kế TSCĐ thuê tài chính"}]
[null,null,"2143_","Khấu hao TSCĐ vô hình",1,"BS","229_",{"$f":"_xlfn.XLOOKUP(L_TB[[#This Row],[Mã FS]],L_FS[MÃ],L_FS[CHỈ TIÊU],\"-\")","v":"Giá trị hao mòn lũy kế TSCĐ vô hình"}]
[null,null,"2147_","Khấu hao bất động sản đầu tư",1,"BS","242_",{"$f":"_xlfn.XLOOKUP(L_TB[[#This Row],[Mã FS]],L_FS[MÃ],L_FS[CHỈ TIÊU],\"-\")","v":"Giá trị hao mòn lũy kế BĐS đầu tư *"}]
[null,null,"217_","Bất động sản đầu tư",1,"BS","241_",{"$f":"_xlfn.XLOOKUP(L_TB[[#This Row],[Mã FS]],L_FS[MÃ],L_FS[CHỈ TIÊU],\"-\")","v":"Nguyên giá BĐS đầu tư"}]
[null,null,"221_","Đầu tư vào công ty con",1,"BS","261_",{"$f":"_xlfn.XLOOKUP(L_TB[[#This Row],[Mã FS]],L_FS[MÃ],L_FS[CHỈ TIÊU],\"-\")","v":"Đầu tư vào công ty con"}]
[null,null,"222_","Đầu tư vào công ty liên doanh, liên kết",1,"BS","262_",{"$f":"_xlfn.XLOOKUP(L_TB[[#This Row],[Mã FS]],L_FS[MÃ],L_FS[CHỈ TIÊU],\"-\")","v":"Đầu tư vào công ty liên doanh, liên kết"}]
[null,null,"228_","Đầu tư dài hạn khác",1,"BS","263_",{"$f":"_xlfn.XLOOKUP(L_TB[[#This Row],[Mã FS]],L_FS[MÃ],L_FS[CHỈ TIÊU],\"-\")","v":"Đầu tư góp vốn vào đơn vị khác"}]
[null,null,"2288K_","Đầu tư nắm giữ chờ tăng giá, không phân loại vào BĐS đầu tư",1,"BS","165_",{"$f":"_xlfn.XLOOKUP(L_TB[[#This Row],[Mã FS]],L_FS[MÃ],L_FS[CHỈ TIÊU],\"-\")","v":"Tài sản ngắn hạn khác"}]
[null,null,"2288KDH_","Đầu tư nắm giữ chờ tăng giá, không phân loại vào BĐS đầu tư dài hạn",1,"BS","274_",{"$f":"_xlfn.XLOOKUP(L_TB[[#This Row],[Mã FS]],L_FS[MÃ],L_FS[CHỈ TIÊU],\"-\")","v":"Tài sản dài hạn khác"}]
[null,null,"2291_","Dự phòng giảm giá chứng khoán kinh doanh",1,"BS","122_",{"$f":"_xlfn.XLOOKUP(L_TB[[#This Row],[Mã FS]],L_FS[MÃ],L_FS[CHỈ TIÊU],\"-\")","v":"Dự phòng giảm giá chứng khoán kinh doanh *"}]
[null,null,"2292_","Dự phòng tổn thất đầu tư vào đơn vị khác",1,"BS","264_",{"$f":"_xlfn.XLOOKUP(L_TB[[#This Row],[Mã FS]],L_FS[MÃ],L_FS[CHỈ TIÊU],\"-\")","v":"Dự phòng tổn thất đầu tư vào đơn vị khác dài hạn *"}]
[null,null,"2293_","Dự phòng phải thu khó đòi ngắn hạn",1,"BS","136_",{"$f":"_xlfn.XLOOKUP(L_TB[[#This Row],[Mã FS]],L_FS[MÃ],L_FS[CHỈ TIÊU],\"-\")","v":"Dự phòng phải thu ngắn hạn khó đòi *"}]
[null,null,"2293DH_","Dự phòng phải thu khó đòi dài hạn",1,"BS","216_",{"$f":"_xlfn.XLOOKUP(L_TB[[#This Row],[Mã FS]],L_FS[MÃ],L_FS[CHỈ TIÊU],\"-\")","v":"Dự phòng phải thu dài hạn khó đòi *"}]
[null,null,"2294_","Dự phòng giảm giá hàng tồn kho",1,"BS","142_",{"$f":"_xlfn.XLOOKUP(L_TB[[#This Row],[Mã FS]],L_FS[MÃ],L_FS[CHỈ TIÊU],\"-\")","v":"Dự phòng giảm giá hàng tồn kho *"}]
[null,null,"2294DH_","Dự phòng giảm giá hàng tồn kho dài hạn",1,"BS","251_",{"$f":"_xlfn.XLOOKUP(L_TB[[#This Row],[Mã FS]],L_FS[MÃ],L_FS[CHỈ TIÊU],\"-\")","v":"Chi phí sản xuất, kinh doanh dở dang dài hạn"}]
[null,null,"2294DHVT_","Dự phòng giảm giá hàng tồn kho dài hạn của thiết bị, vật tư thay thế",1,"BS","273_",{"$f":"_xlfn.XLOOKUP(L_TB[[#This Row],[Mã FS]],L_FS[MÃ],L_FS[CHỈ TIÊU],\"-\")","v":"Thiết bị, vật tư, phụ tùng thay thế dài hạn"}]
[null,null,"241_","Xây dựng cơ bản dở dang",1,"BS","252_",{"$f":"_xlfn.XLOOKUP(L_TB[[#This Row],[Mã FS]],L_FS[MÃ],L_FS[CHỈ TIÊU],\"-\")","v":"Chi phí xây dựng cơ bản dở dang"}]
[null,null,"242DH_","Chi phí trả trước dài hạn",1,"BS","271_",{"$f":"_xlfn.XLOOKUP(L_TB[[#This Row],[Mã FS]],L_FS[MÃ],L_FS[CHỈ TIÊU],\"-\")","v":"Chi phí chờ phân bổ dài hạn"}]
[null,null,"242NH_","Chi phí trả trước ngắn hạn",1,"BS","161_",{"$f":"_xlfn.XLOOKUP(L_TB[[#This Row],[Mã FS]],L_FS[MÃ],L_FS[CHỈ TIÊU],\"-\")","v":"Chi phí chờ phân bổ ngắn hạn"}]
[null,null,"243_","Tài sản thuế thu nhập hoãn lại",1,"BS","272_",{"$f":"_xlfn.XLOOKUP(L_TB[[#This Row],[Mã FS]],L_FS[MÃ],L_FS[CHỈ TIÊU],\"-\")","v":"Tài sản thuế thu nhập hoãn lại"}]
[null,null,"244DH_","Ký quỹ, ký cược dài hạn",1,"BS","215_",{"$f":"_xlfn.XLOOKUP(L_TB[[#This Row],[Mã FS]],L_FS[MÃ],L_FS[CHỈ TIÊU],\"-\")","v":"Phải thu dài hạn khác"}]
[null,null,"244NH_","Ký quỹ, ký cược ngắn hạn",1,"BS","135_",{"$f":"_xlfn.XLOOKUP(L_TB[[#This Row],[Mã FS]],L_FS[MÃ],L_FS[CHỈ TIÊU],\"-\")","v":"Các khoản phải thu khác"}]
[null,null,"269_","Lợi thế TM",1,"BS","279_",{"$f":"_xlfn.XLOOKUP(L_TB[[#This Row],[Mã FS]],L_FS[MÃ],L_FS[CHỈ TIÊU],\"-\")","v":"Lợi thế thương mại"}]
[null,null,"331_","Phải trả cho người bán",-1,"BS","311_",{"$f":"_xlfn.XLOOKUP(L_TB[[#This Row],[Mã FS]],L_FS[MÃ],L_FS[CHỈ TIÊU],\"-\")","v":"Phải trả người bán ngắn hạn"}]
[null,null,"331DH_","Phải trả dài hạn cho người bán",-1,"BS","331_",{"$f":"_xlfn.XLOOKUP(L_TB[[#This Row],[Mã FS]],L_FS[MÃ],L_FS[CHỈ TIÊU],\"-\")","v":"Phải trả người bán dài hạn"}]
[null,null,"331TSDH_","Trả trước dài hạn cho người bán",1,"BS","212_",{"$f":"_xlfn.XLOOKUP(L_TB[[#This Row],[Mã FS]],L_FS[MÃ],L_FS[CHỈ TIÊU],\"-\")","v":"Trả trước cho người bán dài hạn"}]
[null,null,"331TSNH_","Trả trước ngắn hạn cho người bán",1,"BS","132_",{"$f":"_xlfn.XLOOKUP(L_TB[[#This Row],[Mã FS]],L_FS[MÃ],L_FS[CHỈ TIÊU],\"-\")","v":"Trả trước cho người bán ngắn hạn"}]
[null,null,"33311_","Thuế GTGT đầu ra",-1,"BS","314_",{"$f":"_xlfn.XLOOKUP(L_TB[[#This Row],[Mã FS]],L_FS[MÃ],L_FS[CHỈ TIÊU],\"-\")","v":"Thuế và các khoản phải nộp Nhà nước ngắn hạn"}]
[null,null,"33311TS_","Thuế GTGT đầu ra (dư Nợ)",1,"BS","163_",{"$f":"_xlfn.XLOOKUP(L_TB[[#This Row],[Mã FS]],L_FS[MÃ],L_FS[CHỈ TIÊU],\"-\")","v":"Thuế và các khoản phải thu Nhà nước"}]
[null,null,"33312_","Thuế GTGT hàng nhập khẩu",-1,"BS","314_",{"$f":"_xlfn.XLOOKUP(L_TB[[#This Row],[Mã FS]],L_FS[MÃ],L_FS[CHỈ TIÊU],\"-\")","v":"Thuế và các khoản phải nộp Nhà nước ngắn hạn"}]
[null,null,"33312TS_","Thuế GTGT hàng nhập khẩu (dư Nợ)",1,"BS","163_",{"$f":"_xlfn.XLOOKUP(L_TB[[#This Row],[Mã FS]],L_FS[MÃ],L_FS[CHỈ TIÊU],\"-\")","v":"Thuế và các khoản phải thu Nhà nước"}]
[null,null,"3331DHT_","Thuế GTGT trực tiếp (giảm trừ doanh thu)",null,"BS",null,{"$f":"_xlfn.XLOOKUP(L_TB[[#This Row],[Mã FS]],L_FS[MÃ],L_FS[CHỈ TIÊU],\"-\")","v":"-"}]
[null,null,"3332_","Thuế tiêu thụ đặc biệt",-1,"BS","314_",{"$f":"_xlfn.XLOOKUP(L_TB[[#This Row],[Mã FS]],L_FS[MÃ],L_FS[CHỈ TIÊU],\"-\")","v":"Thuế và các khoản phải nộp Nhà nước ngắn hạn"}]
[null,null,"3332TS_","Thuế tiêu thụ đặc biệt (dư Nợ)",1,"BS","163_",{"$f":"_xlfn.XLOOKUP(L_TB[[#This Row],[Mã FS]],L_FS[MÃ],L_FS[CHỈ TIÊU],\"-\")","v":"Thuế và các khoản phải thu Nhà nước"}]
[null,null,"3333_","Thuế xuất, nhập khẩu",-1,"BS","314_",{"$f":"_xlfn.XLOOKUP(L_TB[[#This Row],[Mã FS]],L_FS[MÃ],L_FS[CHỈ TIÊU],\"-\")","v":"Thuế và các khoản phải nộp Nhà nước ngắn hạn"}]
[null,null,"3333DHT_","Thuế xuất khẩu",null,"BS",null,{"$f":"_xlfn.XLOOKUP(L_TB[[#This Row],[Mã FS]],L_FS[MÃ],L_FS[CHỈ TIÊU],\"-\")","v":"-"}]
[null,null,"3333TS_","Thuế xuất, nhập khẩu (dư Nợ)",1,"BS","163_",{"$f":"_xlfn.XLOOKUP(L_TB[[#This Row],[Mã FS]],L_FS[MÃ],L_FS[CHỈ TIÊU],\"-\")","v":"Thuế và các khoản phải thu Nhà nước"}]
[null,null,"3334_","Thuế thu nhập doanh nghiệp",-1,"BS","314_",{"$f":"_xlfn.XLOOKUP(L_TB[[#This Row],[Mã FS]],L_FS[MÃ],L_FS[CHỈ TIÊU],\"-\")","v":"Thuế và các khoản phải nộp Nhà nước ngắn hạn"}]
[null,null,"3334TS_","Thuế thu nhập doanh nghiệp (dư Nợ)",1,"BS","163_",{"$f":"_xlfn.XLOOKUP(L_TB[[#This Row],[Mã FS]],L_FS[MÃ],L_FS[CHỈ TIÊU],\"-\")","v":"Thuế và các khoản phải thu Nhà nước"}]
[null,null,"3335_","Thuế thu nhập cá nhân",-1,"BS","314_",{"$f":"_xlfn.XLOOKUP(L_TB[[#This Row],[Mã FS]],L_FS[MÃ],L_FS[CHỈ TIÊU],\"-\")","v":"Thuế và các khoản phải nộp Nhà nước ngắn hạn"}]
[null,null,"3335TS_","Thuế thu nhập cá nhân (dư Nợ)",1,"BS","163_",{"$f":"_xlfn.XLOOKUP(L_TB[[#This Row],[Mã FS]],L_FS[MÃ],L_FS[CHỈ TIÊU],\"-\")","v":"Thuế và các khoản phải thu Nhà nước"}]
[null,null,"3336_","Thuế tài nguyên",-1,"BS","314_",{"$f":"_xlfn.XLOOKUP(L_TB[[#This Row],[Mã FS]],L_FS[MÃ],L_FS[CHỈ TIÊU],\"-\")","v":"Thuế và các khoản phải nộp Nhà nước ngắn hạn"}]
[null,null,"3336TS_","Thuế tài nguyên (dư Nợ)",1,"BS","163_",{"$f":"_xlfn.XLOOKUP(L_TB[[#This Row],[Mã FS]],L_FS[MÃ],L_FS[CHỈ TIÊU],\"-\")","v":"Thuế và các khoản phải thu Nhà nước"}]
[null,null,"3337_","Thuế nhà đất, tiền thuê đất",-1,"BS","314_",{"$f":"_xlfn.XLOOKUP(L_TB[[#This Row],[Mã FS]],L_FS[MÃ],L_FS[CHỈ TIÊU],\"-\")","v":"Thuế và các khoản phải nộp Nhà nước ngắn hạn"}]
[null,null,"3337TS_","Thuế nhà đất, tiền thuê đất (dư Nợ)",1,"BS","163_",{"$f":"_xlfn.XLOOKUP(L_TB[[#This Row],[Mã FS]],L_FS[MÃ],L_FS[CHỈ TIÊU],\"-\")","v":"Thuế và các khoản phải thu Nhà nước"}]
[null,null,"3338_","Thuế bảo vệ môi trường và các loại thuế khác",-1,"BS","314_",{"$f":"_xlfn.XLOOKUP(L_TB[[#This Row],[Mã FS]],L_FS[MÃ],L_FS[CHỈ TIÊU],\"-\")","v":"Thuế và các khoản phải nộp Nhà nước ngắn hạn"}]
[null,null,"3338TS_","Thuế khác (dư Nợ)",1,"BS","163_",{"$f":"_xlfn.XLOOKUP(L_TB[[#This Row],[Mã FS]],L_FS[MÃ],L_FS[CHỈ TIÊU],\"-\")","v":"Thuế và các khoản phải thu Nhà nước"}]
[null,null,"3339_","Phí, lệ phí và các khoản phải nộp khác",-1,"BS","314_",{"$f":"_xlfn.XLOOKUP(L_TB[[#This Row],[Mã FS]],L_FS[MÃ],L_FS[CHỈ TIÊU],\"-\")","v":"Thuế và các khoản phải nộp Nhà nước ngắn hạn"}]
[null,null,"3339TS_","Các khoản khác phải thu Nhà nước",1,"BS","163_",{"$f":"_xlfn.XLOOKUP(L_TB[[#This Row],[Mã FS]],L_FS[MÃ],L_FS[CHỈ TIÊU],\"-\")","v":"Thuế và các khoản phải thu Nhà nước"}]
[null,null,"334_","Phải trả người lao động",-1,"BS","315_",{"$f":"_xlfn.XLOOKUP(L_TB[[#This Row],[Mã FS]],L_FS[MÃ],L_FS[CHỈ TIÊU],\"-\")","v":"Phải trả người lao động"}]
[null,null,"334TS_","Phải thu người lao động ngắn hạn",1,"BS","135_",{"$f":"_xlfn.XLOOKUP(L_TB[[#This Row],[Mã FS]],L_FS[MÃ],L_FS[CHỈ TIÊU],\"-\")","v":"Các khoản phải thu khác"}]
[null,null,"334TSDH_","Phải thu người lao động dài hạn",1,"BS","215_",{"$f":"_xlfn.XLOOKUP(L_TB[[#This Row],[Mã FS]],L_FS[MÃ],L_FS[CHỈ TIÊU],\"-\")","v":"Phải thu dài hạn khác"}]
[null,null,"335_","Chi phí phải trả ngắn hạn",-1,"BS","316_",{"$f":"_xlfn.XLOOKUP(L_TB[[#This Row],[Mã FS]],L_FS[MÃ],L_FS[CHỈ TIÊU],\"-\")","v":"Chi phí phải trả ngắn hạn"}]
[null,null,"335DH_","Chi phí phải trả dài hạn",-1,"BS","334_",{"$f":"_xlfn.XLOOKUP(L_TB[[#This Row],[Mã FS]],L_FS[MÃ],L_FS[CHỈ TIÊU],\"-\")","v":"Chi phí phải trả dài hạn"}]
[null,null,"336_","Phải trả nội bộ",-1,"BS","317_",{"$f":"_xlfn.XLOOKUP(L_TB[[#This Row],[Mã FS]],L_FS[MÃ],L_FS[CHỈ TIÊU],\"-\")","v":"Phải trả nội bộ ngắn hạn"}]
[null,null,"336DH_","Phải trả nội bộ (dài hạn)",-1,"BS","336_",{"$f":"_xlfn.XLOOKUP(L_TB[[#This Row],[Mã FS]],L_FS[MÃ],L_FS[CHỈ TIÊU],\"-\")","v":"Phải trả nội bộ dài hạn"}]
[null,null,"336v_","Phải trả nội bộ về vốn kinh doanh",-1,"BS","335_",{"$f":"_xlfn.XLOOKUP(L_TB[[#This Row],[Mã FS]],L_FS[MÃ],L_FS[CHỈ TIÊU],\"-\")","v":"Phải trả nội bộ về vốn kinh doanh"}]
[null,null,"337_","Phải trả theo tiến độ HĐXD",-1,"BS","318_",{"$f":"_xlfn.XLOOKUP(L_TB[[#This Row],[Mã FS]],L_FS[MÃ],L_FS[CHỈ TIÊU],\"-\")","v":"Phải trả theo tiến độ HĐXD ngắn hạn"}]
[null,null,"337TS_","Phải thu theo tiến độ HĐXD",1,"BS","134_",{"$f":"_xlfn.XLOOKUP(L_TB[[#This Row],[Mã FS]],L_FS[MÃ],L_FS[CHỈ TIÊU],\"-\")","v":"Phải thu theo tiến độ HĐXD"}]
[null,null,"3381_","Tài sản thừa chờ giải quyết",-1,"BS","320_",{"$f":"_xlfn.XLOOKUP(L_TB[[#This Row],[Mã FS]],L_FS[MÃ],L_FS[CHỈ TIÊU],\"-\")","v":"Các khoản phải trả ngắn hạn khác"}]
[null,null,"3382_","Kinh phí công đoàn",-1,"BS","320_",{"$f":"_xlfn.XLOOKUP(L_TB[[#This Row],[Mã FS]],L_FS[MÃ],L_FS[CHỈ TIÊU],\"-\")","v":"Các khoản phải trả ngắn hạn khác"}]
[null,null,"3383_","Bảo hiểm xã hội",-1,"BS","320_",{"$f":"_xlfn.XLOOKUP(L_TB[[#This Row],[Mã FS]],L_FS[MÃ],L_FS[CHỈ TIÊU],\"-\")","v":"Các khoản phải trả ngắn hạn khác"}]
[null,null,"3384_","Bảo hiểm y tế",-1,"BS","320_",{"$f":"_xlfn.XLOOKUP(L_TB[[#This Row],[Mã FS]],L_FS[MÃ],L_FS[CHỈ TIÊU],\"-\")","v":"Các khoản phải trả ngắn hạn khác"}]
[null,null,"3385_","Phải trả về cổ phần hóa",-1,"BS","320_",{"$f":"_xlfn.XLOOKUP(L_TB[[#This Row],[Mã FS]],L_FS[MÃ],L_FS[CHỈ TIÊU],\"-\")","v":"Các khoản phải trả ngắn hạn khác"}]
[null,null,"3386_","Bảo hiểm thất nghiệp",-1,"BS","320_",{"$f":"_xlfn.XLOOKUP(L_TB[[#This Row],[Mã FS]],L_FS[MÃ],L_FS[CHỈ TIÊU],\"-\")","v":"Các khoản phải trả ngắn hạn khác"}]
[null,null,"3387_","Doanh thu chưa thực hiện ngắn hạn",-1,"BS","319_",{"$f":"_xlfn.XLOOKUP(L_TB[[#This Row],[Mã FS]],L_FS[MÃ],L_FS[CHỈ TIÊU],\"-\")","v":"Doanh thu chờ phân bổ ngắn hạn"}]
[null,null,"3387DH_","Doanh thu chưa thực hiện dài hạn",-1,"BS","337_",{"$f":"_xlfn.XLOOKUP(L_TB[[#This Row],[Mã FS]],L_FS[MÃ],L_FS[CHỈ TIÊU],\"-\")","v":"Doanh thu chờ phân bổ dài hạn"}]
[null,null,"3388_","Phải trả, phải nộp khác",-1,"BS","320_",{"$f":"_xlfn.XLOOKUP(L_TB[[#This Row],[Mã FS]],L_FS[MÃ],L_FS[CHỈ TIÊU],\"-\")","v":"Các khoản phải trả ngắn hạn khác"}]
[null,null,"3388TSDH_","Phải trả, phải nộp khác - dư nợ dài hạn",1,"BS","215_",{"$f":"_xlfn.XLOOKUP(L_TB[[#This Row],[Mã FS]],L_FS[MÃ],L_FS[CHỈ TIÊU],\"-\")","v":"Phải thu dài hạn khác"}]
[null,null,"3388TSNH_","Phải trả, phải nộp khác - dư nợ ngắn hạn",1,"BS","135_",{"$f":"_xlfn.XLOOKUP(L_TB[[#This Row],[Mã FS]],L_FS[MÃ],L_FS[CHỈ TIÊU],\"-\")","v":"Các khoản phải thu khác"}]
[null,null,"338DH_","Phải trả, phải nộp khác (dài hạn)",-1,"BS","338_",{"$f":"_xlfn.XLOOKUP(L_TB[[#This Row],[Mã FS]],L_FS[MÃ],L_FS[CHỈ TIÊU],\"-\")","v":"Phải trả dài hạn khác"}]
[null,null,"3411_","Vay ngắn hạn",-1,"BS","321_",{"$f":"_xlfn.XLOOKUP(L_TB[[#This Row],[Mã FS]],L_FS[MÃ],L_FS[CHỈ TIÊU],\"-\")","v":"Vay và nợ thuê tài chính ngắn hạn"}]
[null,null,"3411DH_","Vay dài hạn",-1,"BS","339_",{"$f":"_xlfn.XLOOKUP(L_TB[[#This Row],[Mã FS]],L_FS[MÃ],L_FS[CHỈ TIÊU],\"-\")","v":"Vay và nợ thuê tài chính dài hạn"}]
[null,null,"3412_","Nợ thuê tài chính ngắn hạn",-1,"BS","321_",{"$f":"_xlfn.XLOOKUP(L_TB[[#This Row],[Mã FS]],L_FS[MÃ],L_FS[CHỈ TIÊU],\"-\")","v":"Vay và nợ thuê tài chính ngắn hạn"}]
[null,null,"3412DH_","Nợ thuê tài chính dài hạn",-1,"BS","339_",{"$f":"_xlfn.XLOOKUP(L_TB[[#This Row],[Mã FS]],L_FS[MÃ],L_FS[CHỈ TIÊU],\"-\")","v":"Vay và nợ thuê tài chính dài hạn"}]
[null,null,"3431_","Trái phiếu thường ngắn hạn",-1,"BS","321_",{"$f":"_xlfn.XLOOKUP(L_TB[[#This Row],[Mã FS]],L_FS[MÃ],L_FS[CHỈ TIÊU],\"-\")","v":"Vay và nợ thuê tài chính ngắn hạn"}]
[null,null,"3431DH_","Trái phiếu thường dài hạn",-1,"BS","339_",{"$f":"_xlfn.XLOOKUP(L_TB[[#This Row],[Mã FS]],L_FS[MÃ],L_FS[CHỈ TIÊU],\"-\")","v":"Vay và nợ thuê tài chính dài hạn"}]
[null,null,"3432_","Trái phiếu chuyển đổi",-1,"BS","340_",{"$f":"_xlfn.XLOOKUP(L_TB[[#This Row],[Mã FS]],L_FS[MÃ],L_FS[CHỈ TIÊU],\"-\")","v":"Trái phiếu chuyển đổi"}]
[null,null,"344_","Nhận ký cược, ký quỹ ngắn hạn",-1,"BS","320_",{"$f":"_xlfn.XLOOKUP(L_TB[[#This Row],[Mã FS]],L_FS[MÃ],L_FS[CHỈ TIÊU],\"-\")","v":"Các khoản phải trả ngắn hạn khác"}]
[null,null,"344DH_","Nhận ký cược, ký quỹ dài hạn",-1,"BS","338_",{"$f":"_xlfn.XLOOKUP(L_TB[[#This Row],[Mã FS]],L_FS[MÃ],L_FS[CHỈ TIÊU],\"-\")","v":"Phải trả dài hạn khác"}]
[null,null,"347_","Thuế thu nhập hoãn lại phải trả",-1,"BS","342_",{"$f":"_xlfn.XLOOKUP(L_TB[[#This Row],[Mã FS]],L_FS[MÃ],L_FS[CHỈ TIÊU],\"-\")","v":"Thuế thu nhập hoãn lại phải trả"}]
[null,null,"352_","Dự phòng phải trả ngắn hạn",-1,"BS","322_",{"$f":"_xlfn.XLOOKUP(L_TB[[#This Row],[Mã FS]],L_FS[MÃ],L_FS[CHỈ TIÊU],\"-\")","v":"Dự phòng phải trả ngắn hạn"}]
[null,null,"352DH_","Dự phòng phải trả dài hạn",-1,"BS","343_",{"$f":"_xlfn.XLOOKUP(L_TB[[#This Row],[Mã FS]],L_FS[MÃ],L_FS[CHỈ TIÊU],\"-\")","v":"Dự phòng phải trả dài hạn"}]
[null,null,"353_","Quỹ khen thưởng, phúc lợi",-1,"BS","323_",{"$f":"_xlfn.XLOOKUP(L_TB[[#This Row],[Mã FS]],L_FS[MÃ],L_FS[CHỈ TIÊU],\"-\")","v":"Quỹ khen thưởng, phúc lợi"}]
[null,null,"356_","Quỹ phát triển khoa học và công nghệ",-1,"BS","344_",{"$f":"_xlfn.XLOOKUP(L_TB[[#This Row],[Mã FS]],L_FS[MÃ],L_FS[CHỈ TIÊU],\"-\")","v":"Quỹ phát triển khoa học và công nghệ"}]
[null,null,"357_","Quỹ bình ổn giá",-1,"BS","324_",{"$f":"_xlfn.XLOOKUP(L_TB[[#This Row],[Mã FS]],L_FS[MÃ],L_FS[CHỈ TIÊU],\"-\")","v":"Quỹ bình ổn giá"}]
[null,null,"41111_","Cổ phiếu phổ thông có quyền biểu quyết",-1,"BS","41a_",{"$f":"_xlfn.XLOOKUP(L_TB[[#This Row],[Mã FS]],L_FS[MÃ],L_FS[CHỈ TIÊU],\"-\")","v":"Cổ phiếu phổ thông có quyền biểu quyết"}]
[null,null,"41112_","Cổ phiếu phổ ưu đãi",-1,"BS","41b_",{"$f":"_xlfn.XLOOKUP(L_TB[[#This Row],[Mã FS]],L_FS[MÃ],L_FS[CHỈ TIÊU],\"-\")","v":"Cổ phiếu ưu đãi"}]
[null,null,"41112NPT_","Cổ phiếu phổ ưu đãi được phân loại là nợ phải trả",-1,"BS","341_",{"$f":"_xlfn.XLOOKUP(L_TB[[#This Row],[Mã FS]],L_FS[MÃ],L_FS[CHỈ TIÊU],\"-\")","v":"Cổ phiếu ưu đãi"}]
[null,null,"4112_","Thặng dư vốn cổ phần",-1,"BS","412_",{"$f":"_xlfn.XLOOKUP(L_TB[[#This Row],[Mã FS]],L_FS[MÃ],L_FS[CHỈ TIÊU],\"-\")","v":"Thặng dư vốn cổ phần"}]
[null,null,"4113_","Quyền chọn chuyển đổi trái phiếu",-1,"BS","413_",{"$f":"_xlfn.XLOOKUP(L_TB[[#This Row],[Mã FS]],L_FS[MÃ],L_FS[CHỈ TIÊU],\"-\")","v":"Quyền chọn chuyển đổi trái phiếu"}]
[null,null,"4118_","Vốn khác",-1,"BS","414_",{"$f":"_xlfn.XLOOKUP(L_TB[[#This Row],[Mã FS]],L_FS[MÃ],L_FS[CHỈ TIÊU],\"-\")","v":"Vốn khác của chủ sở hữu"}]
[null,null,"412_","Chênh lệch đánh giá lại tài sản",-1,"BS","416_",{"$f":"_xlfn.XLOOKUP(L_TB[[#This Row],[Mã FS]],L_FS[MÃ],L_FS[CHỈ TIÊU],\"-\")","v":"Chênh lệch đánh giá lại tài sản"}]
[null,null,"413_","Chênh lệch tỷ giá hối đoái",-1,"BS","417_",{"$f":"_xlfn.XLOOKUP(L_TB[[#This Row],[Mã FS]],L_FS[MÃ],L_FS[CHỈ TIÊU],\"-\")","v":"Chênh lệch tỷ giá hối đoái"}]
[null,null,"414_","Quỹ đầu tư, phát triển",-1,"BS","418_",{"$f":"_xlfn.XLOOKUP(L_TB[[#This Row],[Mã FS]],L_FS[MÃ],L_FS[CHỈ TIÊU],\"-\")","v":"Quỹ đầu tư phát triển"}]
[null,null,"418_","Quỹ khác thuộc vốn chủ sở hữu",-1,"BS","419_",{"$f":"_xlfn.XLOOKUP(L_TB[[#This Row],[Mã FS]],L_FS[MÃ],L_FS[CHỈ TIÊU],\"-\")","v":"Quỹ khác thuộc vốn chủ sở hữu"}]
[null,null,"419_","Cổ phiếu ngân quỹ",-1,"BS","415_",{"$f":"_xlfn.XLOOKUP(L_TB[[#This Row],[Mã FS]],L_FS[MÃ],L_FS[CHỈ TIÊU],\"-\")","v":"Cổ phiếu mua lại của chính mình *"}]
[null,null,"4211_","Lợi nhuận sau thuế chưa phân phối lũy kế đến cuối kỳ trước",-1,"BS","42a_",{"$f":"_xlfn.XLOOKUP(L_TB[[#This Row],[Mã FS]],L_FS[MÃ],L_FS[CHỈ TIÊU],\"-\")","v":"LNST chưa phân phối lũy kế đến cuối kỳ trước"}]
[null,null,"4212_","Lợi nhuận sau thuế chưa phân phối kỳ này",-1,"BS","42b_",{"$f":"_xlfn.XLOOKUP(L_TB[[#This Row],[Mã FS]],L_FS[MÃ],L_FS[CHỈ TIÊU],\"-\")","v":"LNST chưa phân phối kỳ này"}]
[null,null,"429_","Lợi ích cổ đông KKS",-1,"BS","429_",{"$f":"_xlfn.XLOOKUP(L_TB[[#This Row],[Mã FS]],L_FS[MÃ],L_FS[CHỈ TIÊU],\"-\")","v":"Lợi ích của cổ đông không kiểm soát"}]
[null,null,"VTT_","Vàng tiền tệ",1,"BS","165_",{"$f":"_xlfn.XLOOKUP(L_TB[[#This Row],[Mã FS]],L_FS[MÃ],L_FS[CHỈ TIÊU],\"-\")","v":"Tài sản ngắn hạn khác"}]
[null,null,"VTTDH_","Vàng tiền tệ dài hạn",1,"BS","274_",{"$f":"_xlfn.XLOOKUP(L_TB[[#This Row],[Mã FS]],L_FS[MÃ],L_FS[CHỈ TIÊU],\"-\")","v":"Tài sản dài hạn khác"}]
[null,null,"-",null,null,null,null,{"$f":"_xlfn.XLOOKUP(L_TB[[#This Row],[Mã FS]],L_FS[MÃ],L_FS[CHỈ TIÊU],\"-\")","v":"-"}]
[null,null,"511_","Doanh thu bán hàng",-1,"PL","001_",{"$f":"_xlfn.XLOOKUP(L_TB[[#This Row],[Mã FS]],L_FS[MÃ],L_FS[CHỈ TIÊU],\"-\")","v":"Doanh thu bán hàng & cung cấp dịch vụ"}]
[null,null,"512_","Doanh thu bán hàng nội bộ",null,null,"001_",{"$f":"_xlfn.XLOOKUP(L_TB[[#This Row],[Mã FS]],L_FS[MÃ],L_FS[CHỈ TIÊU],\"-\")","v":"Doanh thu bán hàng & cung cấp dịch vụ"}]
[null,null,"515_","Doanh thu hoạt động tài chính",-1,"PL","022_",{"$f":"_xlfn.XLOOKUP(L_TB[[#This Row],[Mã FS]],L_FS[MÃ],L_FS[CHỈ TIÊU],\"-\")","v":"Doanh thu hoạt động tài chính"}]
[null,null,"5211_","Chiết khấu thương mại",1,"PL","002_",{"$f":"_xlfn.XLOOKUP(L_TB[[#This Row],[Mã FS]],L_FS[MÃ],L_FS[CHỈ TIÊU],\"-\")","v":"Các khoản giảm trừ"}]
[null,null,"5212_","Giảm giá hàng bán",1,"PL","002_",{"$f":"_xlfn.XLOOKUP(L_TB[[#This Row],[Mã FS]],L_FS[MÃ],L_FS[CHỈ TIÊU],\"-\")","v":"Các khoản giảm trừ"}]
[null,null,"5213_","Hàng bán bị trả lại",1,"PL","002_",{"$f":"_xlfn.XLOOKUP(L_TB[[#This Row],[Mã FS]],L_FS[MÃ],L_FS[CHỈ TIÊU],\"-\")","v":"Các khoản giảm trừ"}]
[null,null,"621_","Chi phí NVL trực tiếp",null,null,null,{"$f":"_xlfn.XLOOKUP(L_TB[[#This Row],[Mã FS]],L_FS[MÃ],L_FS[CHỈ TIÊU],\"-\")","v":"-"}]
[null,null,"622_","Chi phí nhân công trực tiếp",null,null,null,{"$f":"_xlfn.XLOOKUP(L_TB[[#This Row],[Mã FS]],L_FS[MÃ],L_FS[CHỈ TIÊU],\"-\")","v":"-"}]
[null,null,"627_","Chi phí sản xuất chung",null,null,null,{"$f":"_xlfn.XLOOKUP(L_TB[[#This Row],[Mã FS]],L_FS[MÃ],L_FS[CHỈ TIÊU],\"-\")","v":"-"}]
[null,null,"632_","Giá vốn hàng bán",1,"PL","011_",{"$f":"_xlfn.XLOOKUP(L_TB[[#This Row],[Mã FS]],L_FS[MÃ],L_FS[CHỈ TIÊU],\"-\")","v":"Giá vốn hàng bán"}]
[null,null,"635_","Chi phí tài chính",1,"PL","023_",{"$f":"_xlfn.XLOOKUP(L_TB[[#This Row],[Mã FS]],L_FS[MÃ],L_FS[CHỈ TIÊU],\"-\")","v":"Chi phí tài chính"}]
[null,null,"6351_","Chi phí lãi vay",1,"PL","024_",{"$f":"_xlfn.XLOOKUP(L_TB[[#This Row],[Mã FS]],L_FS[MÃ],L_FS[CHỈ TIÊU],\"-\")","v":"- Trong đó: chi phí đi vay"}]
[null,null,"641_","Chi phí bán hàng",1,"PL","025_",{"$f":"_xlfn.XLOOKUP(L_TB[[#This Row],[Mã FS]],L_FS[MÃ],L_FS[CHỈ TIÊU],\"-\")","v":"Chi phí bán hàng"}]
[null,null,"642_","Chi phí quản lý doanh nghiệp",1,"PL","026_",{"$f":"_xlfn.XLOOKUP(L_TB[[#This Row],[Mã FS]],L_FS[MÃ],L_FS[CHỈ TIÊU],\"-\")","v":"Chi phí quản lý doanh nghiệp"}]
[null,null,"711_","Thu nhập khác",-1,"PL","031_",{"$f":"_xlfn.XLOOKUP(L_TB[[#This Row],[Mã FS]],L_FS[MÃ],L_FS[CHỈ TIÊU],\"-\")","v":"Thu nhập khác"}]
[null,null,"811_","Chi phí khác",1,"PL","032_",{"$f":"_xlfn.XLOOKUP(L_TB[[#This Row],[Mã FS]],L_FS[MÃ],L_FS[CHỈ TIÊU],\"-\")","v":"Chi phí khác"}]
[null,null,"8211_","Chi phí thuế TNDN hiện hành",1,"PL","051_",{"$f":"_xlfn.XLOOKUP(L_TB[[#This Row],[Mã FS]],L_FS[MÃ],L_FS[CHỈ TIÊU],\"-\")","v":"Chi phí thuế TNDN hiện hành"}]
[null,null,"8212_","Chi phí thuế TNDN hoãn lại",1,"PL","052_",{"$f":"_xlfn.XLOOKUP(L_TB[[#This Row],[Mã FS]],L_FS[MÃ],L_FS[CHỈ TIÊU],\"-\")","v":"Chi phí thuế TNDN hoãn lại"}]
[null,null,"MS24_","Phần lãi hoặc lỗ trong công ty liên doanh, liên kết",1,"PL","029_",{"$f":"_xlfn.XLOOKUP(L_TB[[#This Row],[Mã FS]],L_FS[MÃ],L_FS[CHỈ TIÊU],\"-\")","v":"-"}]
[null,null,"MS62_","Lợi nhuận sau thuế của cổ đông không kiểm soát",1,"PL","062_",{"$f":"_xlfn.XLOOKUP(L_TB[[#This Row],[Mã FS]],L_FS[MÃ],L_FS[CHỈ TIÊU],\"-\")","v":"Lợi nhuận sau thuế của CĐ không ks"}]

{"sheet":"CTBC","index":3,"n_rows":122,"n_cols":15,"rows_kept":122,"cut":false,"hidden":false,"merged":[[0,0,3,0]]}
[{"$f":"'✅'!A1","v":"Tasco Group"},null,{"$f":"Range2(L_FS[KC])","v":"H6:H122"}]
[null,null,null,null,null,null,"Hạch toán",null,null,"Vay và nợ nội bộ"]
[null,null,null,"CHỈ TIÊU BÁO CÁO TÀI CHÍNH",null,null,null,"Kết chuyển",null,null,"Giao dịch nội bộ"]
[null,null,null,null,null,null,"⏬","⏬","⏬","⏬","⏬","⏬"]
[{"$f":"'Công ty'!A5","v":"BCTC hợp nhất"},null,"MÃ","CHỈ TIÊU","PL","BS","HT","KC","KHOẢN MỤC","BSⁿ","PLⁿ","MÃ TM","CHỈ TIÊU THUYẾT MINH",null,"Mã trùng"]
[null,null,"000_",{"$f":"_xlfn.XLOOKUP(L_FS[[#This Row],[MÃ]],'~ctbc'!C:C,'~ctbc'!D:D)","v":"Tài khoản ngoại bảng"},0,0,true,"000_","_",null,null,{"$f":"_xlfn.LET(_xlpm.a,_xlfn.TEXTJOIN(\";\",TRUE,IF((L_Map[MÃ BC]=L_FS[[#This Row],[MÃ]]),L_Map[MÃ TM],\"\")),IF(LEN(_xlpm.a)>1,_xlpm.a,\"\"))","v":""},{"$f":"_xlfn.TEXTJOIN(\"; \",TRUE,IF((L_Map[MÃ BC]=L_FS[[#This Row],[MÃ]])*(L_Map[BCR]=0),L_Map[CHỈ TIÊU THUYẾT MINH],\"\"))","v":""},null,{"$f":"IFERROR(_xlfn.LET(_xlpm.i,L_FS[MÃ],_xlfn._xlws.FILTER(_xlfn.UNIQUE(_xlpm.i),COUNTIF(_xlpm.i,_xlfn.UNIQUE(_xlpm.i))>1)),\"null\")","v":"null"}]
[null,null,"001_",{"$f":"_xlfn.XLOOKUP(L_FS[[#This Row],[MÃ]],'~ctbc'!C:C,'~ctbc'!D:D)","v":"Doanh thu bán hàng & cung cấp dịch vụ"},1,0,true,"42b_","KQKD",null,true,{"$f":"_xlfn.LET(_xlpm.a,_xlfn.TEXTJOIN(\";\",TRUE,IF((L_Map[MÃ BC]=L_FS[[#This Row],[MÃ]]),L_Map[MÃ TM],\"\")),IF(LEN(_xlpm.a)>1,_xlpm.a,\"\"))","v":"311_"},{"$f":"_xlfn.TEXTJOIN(\"; \",TRUE,IF((L_Map[MÃ BC]=L_FS[[#This Row],[MÃ]])*(L_Map[BCR]=0),L_Map[CHỈ TIÊU THUYẾT MINH],\"\"))","v":"Doanh thu bán hàng"}]
["Tập đoàn",null,"002_",{"$f":"_xlfn.XLOOKUP(L_FS[[#This Row],[MÃ]],'~ctbc'!C:C,'~ctbc'!D:D)","v":"Các khoản giảm trừ"},-1,0,true,"42b_","KQKD",null,true,{"$f":"_xlfn.LET(_xlpm.a,_xlfn.TEXTJOIN(\";\",TRUE,IF((L_Map[MÃ BC]=L_FS[[#This Row],[MÃ]]),L_Map[MÃ TM],\"\")),IF(LEN(_xlpm.a)>1,_xlpm.a,\"\"))","v":"312_"},{"$f":"_xlfn.TEXTJOIN(\"; \",TRUE,IF((L_Map[MÃ BC]=L_FS[[#This Row],[MÃ]])*(L_Map[BCR]=0),L_Map[CHỈ TIÊU THUYẾT MINH],\"\"))","v":"Giảm trừ doanh thu"}]
[null,null,"011_",{"$f":"_xlfn.XLOOKUP(L_FS[[#This Row],[MÃ]],'~ctbc'!C:C,'~ctbc'!D:D)","v":"Giá vốn hàng bán"},-1,0,true,"42b_","KQKD",null,true,{"$f":"_xlfn.LET(_xlpm.a,_xlfn.TEXTJOIN(\";\",TRUE,IF((L_Map[MÃ BC]=L_FS[[#This Row],[MÃ]]),L_Map[MÃ TM],\"\")),IF(LEN(_xlpm.a)>1,_xlpm.a,\"\"))","v":"320_;370_"},{"$f":"_xlfn.TEXTJOIN(\"; \",TRUE,IF((L_Map[MÃ BC]=L_FS[[#This Row],[MÃ]])*(L_Map[BCR]=0),L_Map[CHỈ TIÊU THUYẾT MINH],\"\"))","v":"Giá vốn hàng bán; Chi phí SXKD theo yếu tố"}]
["Danh mục công ty",null,"021_",{"$f":"_xlfn.XLOOKUP(L_FS[[#This Row],[MÃ]],'~ctbc'!C:C,'~ctbc'!D:D)","v":"Lãi/lỗ bán, thanh lý BĐS đầu tư"},1,0,true,"42b_","KQKD",null,true,{"$f":"_xlfn.LET(_xlpm.a,_xlfn.TEXTJOIN(\";\",TRUE,IF((L_Map[MÃ BC]=L_FS[[#This Row],[MÃ]]),L_Map[MÃ TM],\"\")),IF(LEN(_xlpm.a)>1,_xlpm.a,\"\"))","v":""},{"$f":"_xlfn.TEXTJOIN(\"; \",TRUE,IF((L_Map[MÃ BC]=L_FS[[#This Row],[MÃ]])*(L_Map[BCR]=0),L_Map[CHỈ TIÊU THUYẾT MINH],\"\"))","v":""},null,{"$f":"_Trùng(L_FS[MÃ])","v":"null"}]
[null,null,"022_",{"$f":"_xlfn.XLOOKUP(L_FS[[#This Row],[MÃ]],'~ctbc'!C:C,'~ctbc'!D:D)","v":"Doanh thu hoạt động tài chính"},1,0,true,"42b_","KQKD",null,true,{"$f":"_xlfn.LET(_xlpm.a,_xlfn.TEXTJOIN(\";\",TRUE,IF((L_Map[MÃ BC]=L_FS[[#This Row],[MÃ]]),L_Map[MÃ TM],\"\")),IF(LEN(_xlpm.a)>1,_xlpm.a,\"\"))","v":"331_"},{"$f":"_xlfn.TEXTJOIN(\"; \",TRUE,IF((L_Map[MÃ BC]=L_FS[[#This Row],[MÃ]])*(L_Map[BCR]=0),L_Map[CHỈ TIÊU THUYẾT MINH],\"\"))","v":"Doanh thu tài chính"}]
["Thông tin công ty",null,"023_",{"$f":"_xlfn.XLOOKUP(L_FS[[#This Row],[MÃ]],'~ctbc'!C:C,'~ctbc'!D:D)","v":"Chi phí tài chính"},-1,0,true,"42b_","KQKD",null,true,{"$f":"_xlfn.LET(_xlpm.a,_xlfn.TEXTJOIN(\";\",TRUE,IF((L_Map[MÃ BC]=L_FS[[#This Row],[MÃ]]),L_Map[MÃ TM],\"\")),IF(LEN(_xlpm.a)>1,_xlpm.a,\"\"))","v":"332_"},{"$f":"_xlfn.TEXTJOIN(\"; \",TRUE,IF((L_Map[MÃ BC]=L_FS[[#This Row],[MÃ]])*(L_Map[BCR]=0),L_Map[CHỈ TIÊU THUYẾT MINH],\"\"))","v":"Chi phí tài chính"}]
[null,null,"024_",{"$f":"_xlfn.XLOOKUP(L_FS[[#This Row],[MÃ]],'~ctbc'!C:C,'~ctbc'!D:D)","v":"- Trong đó: chi phí đi vay"},0,0,true,"000_","KQKD",null,true,{"$f":"_xlfn.LET(_xlpm.a,_xlfn.TEXTJOIN(\";\",TRUE,IF((L_Map[MÃ BC]=L_FS[[#This Row],[MÃ]]),L_Map[MÃ TM],\"\")),IF(LEN(_xlpm.a)>1,_xlpm.a,\"\"))","v":""},{"$f":"_xlfn.TEXTJOIN(\"; \",TRUE,IF((L_Map[MÃ BC]=L_FS[[#This Row],[MÃ]])*(L_Map[BCR]=0),L_Map[CHỈ TIÊU THUYẾT MINH],\"\"))","v":"-"}]
["Tài khoản kế toán",null,"025_",{"$f":"_xlfn.XLOOKUP(L_FS[[#This Row],[MÃ]],'~ctbc'!C:C,'~ctbc'!D:D)","v":"Chi phí bán hàng"},-1,0,true,"42b_","KQKD",null,true,{"$f":"_xlfn.LET(_xlpm.a,_xlfn.TEXTJOIN(\";\",TRUE,IF((L_Map[MÃ BC]=L_FS[[#This Row],[MÃ]]),L_Map[MÃ TM],\"\")),IF(LEN(_xlpm.a)>1,_xlpm.a,\"\"))","v":"341_;370_"},{"$f":"_xlfn.TEXTJOIN(\"; \",TRUE,IF((L_Map[MÃ BC]=L_FS[[#This Row],[MÃ]])*(L_Map[BCR]=0),L_Map[CHỈ TIÊU THUYẾT MINH],\"\"))","v":"Chi phí bán hàng; Chi phí SXKD theo yếu tố"}]
[null,null,"026_",{"$f":"_xlfn.XLOOKUP(L_FS[[#This Row],[MÃ]],'~ctbc'!C:C,'~ctbc'!D:D)","v":"Chi phí quản lý doanh nghiệp"},-1,0,true,"42b_","KQKD",null,true,{"$f":"_xlfn.LET(_xlpm.a,_xlfn.TEXTJOIN(\";\",TRUE,IF((L_Map[MÃ BC]=L_FS[[#This Row],[MÃ]]),L_Map[MÃ TM],\"\")),IF(LEN(_xlpm.a)>1,_xlpm.a,\"\"))","v":"342_;370_"},{"$f":"_xlfn.TEXTJOIN(\"; \",TRUE,IF((L_Map[MÃ BC]=L_FS[[#This Row],[MÃ]])*(L_Map[BCR]=0),L_Map[CHỈ TIÊU THUYẾT MINH],\"\"))","v":"Chi phí QLDN; Chi phí SXKD theo yếu tố"}]
["Chỉ tiêu báo cáo",null,"027_",{"$f":"_xlfn.XLOOKUP(L_FS[[#This Row],[MÃ]],'~ctbc'!C:C,'~ctbc'!D:D)","v":"Phần lãi (lỗ) trong cty liên kết, liên doanh"},1,0,true,"42b_","KQKD",null,null,{"$f":"_xlfn.LET(_xlpm.a,_xlfn.TEXTJOIN(\";\",TRUE,IF((L_Map[MÃ BC]=L_FS[[#This Row],[MÃ]]),L_Map[MÃ TM],\"\")),IF(LEN(_xlpm.a)>1,_xlpm.a,\"\"))","v":""},{"$f":"_xlfn.TEXTJOIN(\"; \",TRUE,IF((L_Map[MÃ BC]=L_FS[[#This Row],[MÃ]])*(L_Map[BCR]=0),L_Map[CHỈ TIÊU THUYẾT MINH],\"\"))","v":""}]
[null,null,"031_",{"$f":"_xlfn.XLOOKUP(L_FS[[#This Row],[MÃ]],'~ctbc'!C:C,'~ctbc'!D:D)","v":"Thu nhập khác"},1,0,true,"42b_","KQKD",null,true,{"$f":"_xlfn.LET(_xlpm.a,_xlfn.TEXTJOIN(\";\",TRUE,IF((L_Map[MÃ BC]=L_FS[[#This Row],[MÃ]]),L_Map[MÃ TM],\"\")),IF(LEN(_xlpm.a)>1,_xlpm.a,\"\"))","v":"351_"},{"$f":"_xlfn.TEXTJOIN(\"; \",TRUE,IF((L_Map[MÃ BC]=L_FS[[#This Row],[MÃ]])*(L_Map[BCR]=0),L_Map[CHỈ TIÊU THUYẾT MINH],\"\"))","v":"Thu nhập khác"}]
["Chỉ tiêu thuyết minh",null,"032_",{"$f":"_xlfn.XLOOKUP(L_FS[[#This Row],[MÃ]],'~ctbc'!C:C,'~ctbc'!D:D)","v":"Chi phí khác"},-1,0,true,"42b_","KQKD",null,true,{"$f":"_xlfn.LET(_xlpm.a,_xlfn.TEXTJOIN(\";\",TRUE,IF((L_Map[MÃ BC]=L_FS[[#This Row],[MÃ]]),L_Map[MÃ TM],\"\")),IF(LEN(_xlpm.a)>1,_xlpm.a,\"\"))","v":"352_"},{"$f":"_xlfn.TEXTJOIN(\"; \",TRUE,IF((L_Map[MÃ BC]=L_FS[[#This Row],[MÃ]])*(L_Map[BCR]=0),L_Map[CHỈ TIÊU THUYẾT MINH],\"\"))","v":"Chi phí khác"}]
[null,null,"051_",{"$f":"_xlfn.XLOOKUP(L_FS[[#This Row],[MÃ]],'~ctbc'!C:C,'~ctbc'!D:D)","v":"Chi phí thuế TNDN hiện hành"},-1,0,true,"42b_","KQKD",null,null,{"$f":"_xlfn.LET(_xlpm.a,_xlfn.TEXTJOIN(\";\",TRUE,IF((L_Map[MÃ BC]=L_FS[[#This Row],[MÃ]]),L_Map[MÃ TM],\"\")),IF(LEN(_xlpm.a)>1,_xlpm.a,\"\"))","v":"361_"},{"$f":"_xlfn.TEXTJOIN(\"; \",TRUE,IF((L_Map[MÃ BC]=L_FS[[#This Row],[MÃ]])*(L_Map[BCR]=0),L_Map[CHỈ TIÊU THUYẾT MINH],\"\"))","v":"Chi phí thuế TNDN hiện hành"}]
["Map chỉ tiêu BC-TM",null,"052_",{"$f":"_xlfn.XLOOKUP(L_FS[[#This Row],[MÃ]],'~ctbc'!C:C,'~ctbc'!D:D)","v":"Chi phí thuế TNDN hoãn lại"},-1,0,true,"42b_","KQKD",null,null,{"$f":"_xlfn.LET(_xlpm.a,_xlfn.TEXTJOIN(\";\",TRUE,IF((L_Map[MÃ BC]=L_FS[[#This Row],[MÃ]]),L_Map[MÃ TM],\"\")),IF(LEN(_xlpm.a)>1,_xlpm.a,\"\"))","v":"362_"},{"$f":"_xlfn.TEXTJOIN(\"; \",TRUE,IF((L_Map[MÃ BC]=L_FS[[#This Row],[MÃ]])*(L_Map[BCR]=0),L_Map[CHỈ TIÊU THUYẾT MINH],\"\"))","v":"Chi phí thuế TNDN hoãn lại"}]
[null,null,"061_",{"$f":"_xlfn.XLOOKUP(L_FS[[#This Row],[MÃ]],'~ctbc'!C:C,'~ctbc'!D:D)","v":"Lợi nhuận sau thuế của CĐ cty mẹ"},0,0,false,null,"KQKD",null,null,{"$f":"_xlfn.LET(_xlpm.a,_xlfn.TEXTJOIN(\";\",TRUE,IF((L_Map[MÃ BC]=L_FS[[#This Row],[MÃ]]),L_Map[MÃ TM],\"\")),IF(LEN(_xlpm.a)>1,_xlpm.a,\"\"))","v":""},{"$f":"_xlfn.TEXTJOIN(\"; \",TRUE,IF((L_Map[MÃ BC]=L_FS[[#This Row],[MÃ]])*(L_Map[BCR]=0),L_Map[CHỈ TIÊU THUYẾT MINH],\"\"))","v":"-"}]
["Chỉ tiêu dòng tiền",null,"062_",{"$f":"_xlfn.XLOOKUP(L_FS[[#This Row],[MÃ]],'~ctbc'!C:C,'~ctbc'!D:D)","v":"Lợi nhuận sau thuế của CĐ không ks"},1,0,true,"429_","KQKD",null,null,{"$f":"_xlfn.LET(_xlpm.a,_xlfn.TEXTJOIN(\";\",TRUE,IF((L_Map[MÃ BC]=L_FS[[#This Row],[MÃ]]),L_Map[MÃ TM],\"\")),IF(LEN(_xlpm.a)>1,_xlpm.a,\"\"))","v":""},{"$f":"_xlfn.TEXTJOIN(\"; \",TRUE,IF((L_Map[MÃ BC]=L_FS[[#This Row],[MÃ]])*(L_Map[BCR]=0),L_Map[CHỈ TIÊU THUYẾT MINH],\"\"))","v":"-"}]
[null,null,"111_",{"$f":"_xlfn.XLOOKUP(L_FS[[#This Row],[MÃ]],'~ctbc'!C:C,'~ctbc'!D:D)","v":"Tiền"},0,-1,true,"111_","TS ngắn",null,null,{"$f":"_xlfn.LET(_xlpm.a,_xlfn.TEXTJOIN(\";\",TRUE,IF((L_Map[MÃ BC]=L_FS[[#This Row],[MÃ]]),L_Map[MÃ TM],\"\")),IF(LEN(_xlpm.a)>1,_xlpm.a,\"\"))","v":"010_"},{"$f":"_xlfn.TEXTJOIN(\"; \",TRUE,IF((L_Map[MÃ BC]=L_FS[[#This Row],[MÃ]])*(L_Map[BCR]=0),L_Map[CHỈ TIÊU THUYẾT MINH],\"\"))","v":"Tiền và tương đương tiền"}]
["Phân loại vốn vay",null,"112_",{"$f":"_xlfn.XLOOKUP(L_FS[[#This Row],[MÃ]],'~ctbc'!C:C,'~ctbc'!D:D)","v":"Các khoản tương đương tiền"},0,-1,true,"112_","TS ngắn",null,null,{"$f":"_xlfn.LET(_xlpm.a,_xlfn.TEXTJOIN(\";\",TRUE,IF((L_Map[MÃ BC]=L_FS[[#This Row],[MÃ]]),L_Map[MÃ TM],\"\")),IF(LEN(_xlpm.a)>1,_xlpm.a,\"\"))","v":"010_"},{"$f":"_xlfn.TEXTJOIN(\"; \",TRUE,IF((L_Map[MÃ BC]=L_FS[[#This Row],[MÃ]])*(L_Map[BCR]=0),L_Map[CHỈ TIÊU THUYẾT MINH],\"\"))","v":"Tiền và tương đương tiền"}]
[null,null,"121_",{"$f":"_xlfn.XLOOKUP(L_FS[[#This Row],[MÃ]],'~ctbc'!C:C,'~ctbc'!D:D)","v":"Chứng khoán kinh doanh"},0,-1,true,"121_","TS ngắn",true,true,{"$f":"_xlfn.LET(_xlpm.a,_xlfn.TEXTJOIN(\";\",TRUE,IF((L_Map[MÃ BC]=L_FS[[#This Row],[MÃ]]),L_Map[MÃ TM],\"\")),IF(LEN(_xlpm.a)>1,_xlpm.a,\"\"))","v":"026_"},{"$f":"_xlfn.TEXTJOIN(\"; \",TRUE,IF((L_Map[MÃ BC]=L_FS[[#This Row],[MÃ]])*(L_Map[BCR]=0),L_Map[CHỈ TIÊU THUYẾT MINH],\"\"))","v":"Chứng khoán kinh doanh"}]
["Danh mục khác",null,"122_",{"$f":"_xlfn.XLOOKUP(L_FS[[#This Row],[MÃ]],'~ctbc'!C:C,'~ctbc'!D:D)","v":"Dự phòng giảm giá chứng khoán kinh doanh *"},0,-1,true,"122_","TS ngắn",true,true,{"$f":"_xlfn.LET(_xlpm.a,_xlfn.TEXTJOIN(\";\",TRUE,IF((L_Map[MÃ BC]=L_FS[[#This Row],[MÃ]]),L_Map[MÃ TM],\"\")),IF(LEN(_xlpm.a)>1,_xlpm.a,\"\"))","v":"027_"},{"$f":"_xlfn.TEXTJOIN(\"; \",TRUE,IF((L_Map[MÃ BC]=L_FS[[#This Row],[MÃ]])*(L_Map[BCR]=0),L_Map[CHỈ TIÊU THUYẾT MINH],\"\"))","v":"Dự phòng giảm giá chứng khoán kinh doanh *"}]
[null,null,"123_",{"$f":"_xlfn.XLOOKUP(L_FS[[#This Row],[MÃ]],'~ctbc'!C:C,'~ctbc'!D:D)","v":"Đầu tư nắm giữ đến ngày đáo hạn ngắn hạn"},0,-1,true,"123_","TS ngắn",true,true,{"$f":"_xlfn.LET(_xlpm.a,_xlfn.TEXTJOIN(\";\",TRUE,IF((L_Map[MÃ BC]=L_FS[[#This Row],[MÃ]]),L_Map[MÃ TM],\"\")),IF(LEN(_xlpm.a)>1,_xlpm.a,\"\"))","v":"021_"},{"$f":"_xlfn.TEXTJOIN(\"; \",TRUE,IF((L_Map[MÃ BC]=L_FS[[#This Row],[MÃ]])*(L_Map[BCR]=0),L_Map[CHỈ TIÊU THUYẾT MINH],\"\"))","v":"Đầu tư nắm giữ đến ngày đáo hạn ngắn hạn"}]
["Tùy chọn",null,"124_",{"$f":"_xlfn.XLOOKUP(L_FS[[#This Row],[MÃ]],'~ctbc'!C:C,'~ctbc'!D:D)","v":"Dự phòng đầu tư nắm giữ đến ngày đáo hạn ngắn hạn *"},0,-1,true,"124_","TS ngắn",true,null,{"$f":"_xlfn.LET(_xlpm.a,_xlfn.TEXTJOIN(\";\",TRUE,IF((L_Map[MÃ BC]=L_FS[[#This Row],[MÃ]]),L_Map[MÃ TM],\"\")),IF(LEN(_xlpm.a)>1,_xlpm.a,\"\"))","v":""},{"$f":"_xlfn.TEXTJOIN(\"; \",TRUE,IF((L_Map[MÃ BC]=L_FS[[#This Row],[MÃ]])*(L_Map[BCR]=0),L_Map[CHỈ TIÊU THUYẾT MINH],\"\"))","v":""}]
[null,null,"125_",{"$f":"_xlfn.XLOOKUP(L_FS[[#This Row],[MÃ]],'~ctbc'!C:C,'~ctbc'!D:D)","v":"Đầu tư ngắn hạn khác"},0,-1,true,"125_","TS ngắn",null,null,{"$f":"_xlfn.LET(_xlpm.a,_xlfn.TEXTJOIN(\";\",TRUE,IF((L_Map[MÃ BC]=L_FS[[#This Row],[MÃ]]),L_Map[MÃ TM],\"\")),IF(LEN(_xlpm.a)>1,_xlpm.a,\"\"))","v":""},{"$f":"_xlfn.TEXTJOIN(\"; \",TRUE,IF((L_Map[MÃ BC]=L_FS[[#This Row],[MÃ]])*(L_Map[BCR]=0),L_Map[CHỈ TIÊU THUYẾT MINH],\"\"))","v":""}]
[null,null,"126_",{"$f":"_xlfn.XLOOKUP(L_FS[[#This Row],[MÃ]],'~ctbc'!C:C,'~ctbc'!D:D)","v":"Dự phòng tổn thất các khoản đầu tư ngắn hạn khác *"},0,-1,true,"126_","TS ngắn",null,null,{"$f":"_xlfn.LET(_xlpm.a,_xlfn.TEXTJOIN(\";\",TRUE,IF((L_Map[MÃ BC]=L_FS[[#This Row],[MÃ]]),L_Map[MÃ TM],\"\")),IF(LEN(_xlpm.a)>1,_xlpm.a,\"\"))","v":""},{"$f":"_xlfn.TEXTJOIN(\"; \",TRUE,IF((L_Map[MÃ BC]=L_FS[[#This Row],[MÃ]])*(L_Map[BCR]=0),L_Map[CHỈ TIÊU THUYẾT MINH],\"\"))","v":""}]
[null,null,"131_",{"$f":"_xlfn.XLOOKUP(L_FS[[#This Row],[MÃ]],'~ctbc'!C:C,'~ctbc'!D:D)","v":"Phải thu ngắn hạn của khách hàng"},0,-1,true,"131_","TS ngắn",true,true,{"$f":"_xlfn.LET(_xlpm.a,_xlfn.TEXTJOIN(\";\",TRUE,IF((L_Map[MÃ BC]=L_FS[[#This Row],[MÃ]]),L_Map[MÃ TM],\"\")),IF(LEN(_xlpm.a)>1,_xlpm.a,\"\"))","v":"031_"},{"$f":"_xlfn.TEXTJOIN(\"; \",TRUE,IF((L_Map[MÃ BC]=L_FS[[#This Row],[MÃ]])*(L_Map[BCR]=0),L_Map[CHỈ TIÊU THUYẾT MINH],\"\"))","v":"Phải thu ngắn hạn của khách hàng"}]
[null,null,"132_",{"$f":"_xlfn.XLOOKUP(L_FS[[#This Row],[MÃ]],'~ctbc'!C:C,'~ctbc'!D:D)","v":"Trả trước cho người bán ngắn hạn"},0,-1,true,"132_","TS ngắn",true,true,{"$f":"_xlfn.LET(_xlpm.a,_xlfn.TEXTJOIN(\";\",TRUE,IF((L_Map[MÃ BC]=L_FS[[#This Row],[MÃ]]),L_Map[MÃ TM],\"\")),IF(LEN(_xlpm.a)>1,_xlpm.a,\"\"))","v":"033_"},{"$f":"_xlfn.TEXTJOIN(\"; \",TRUE,IF((L_Map[MÃ BC]=L_FS[[#This Row],[MÃ]])*(L_Map[BCR]=0),L_Map[CHỈ TIÊU THUYẾT MINH],\"\"))","v":"Trả trước cho người bán ngắn hạn"}]
[null,null,"133_",{"$f":"_xlfn.XLOOKUP(L_FS[[#This Row],[MÃ]],'~ctbc'!C:C,'~ctbc'!D:D)","v":"Phải thu nội bộ ngắn hạn"},0,-1,true,"133_","TS ngắn",true,true,{"$f":"_xlfn.LET(_xlpm.a,_xlfn.TEXTJOIN(\";\",TRUE,IF((L_Map[MÃ BC]=L_FS[[#This Row],[MÃ]]),L_Map[MÃ TM],\"\")),IF(LEN(_xlpm.a)>1,_xlpm.a,\"\"))","v":"063_"},{"$f":"_xlfn.TEXTJOIN(\"; \",TRUE,IF((L_Map[MÃ BC]=L_FS[[#This Row],[MÃ]])*(L_Map[BCR]=0),L_Map[CHỈ TIÊU THUYẾT MINH],\"\"))","v":"Phải thu nội bộ ngắn hạn"}]
[null,null,"134_",{"$f":"_xlfn.XLOOKUP(L_FS[[#This Row],[MÃ]],'~ctbc'!C:C,'~ctbc'!D:D)","v":"Phải thu theo tiến độ HĐXD"},0,-1,true,"134_","TS ngắn",true,true,{"$f":"_xlfn.LET(_xlpm.a,_xlfn.TEXTJOIN(\";\",TRUE,IF((L_Map[MÃ BC]=L_FS[[#This Row],[MÃ]]),L_Map[MÃ TM],\"\")),IF(LEN(_xlpm.a)>1,_xlpm.a,\"\"))","v":"065_"},{"$f":"_xlfn.TEXTJOIN(\"; \",TRUE,IF((L_Map[MÃ BC]=L_FS[[#This Row],[MÃ]])*(L_Map[BCR]=0),L_Map[CHỈ TIÊU THUYẾT MINH],\"\"))","v":"Phải thu theo tiến độ HĐXD"}]
[null,null,"135_",{"$f":"_xlfn.XLOOKUP(L_FS[[#This Row],[MÃ]],'~ctbc'!C:C,'~ctbc'!D:D)","v":"Các khoản phải thu khác"},0,-1,true,"135_","TS ngắn",true,true,{"$f":"_xlfn.LET(_xlpm.a,_xlfn.TEXTJOIN(\";\",TRUE,IF((L_Map[MÃ BC]=L_FS[[#This Row],[MÃ]]),L_Map[MÃ TM],\"\")),IF(LEN(_xlpm.a)>1,_xlpm.a,\"\"))","v":"041_"},{"$f":"_xlfn.TEXTJOIN(\"; \",TRUE,IF((L_Map[MÃ BC]=L_FS[[#This Row],[MÃ]])*(L_Map[BCR]=0),L_Map[CHỈ TIÊU THUYẾT MINH],\"\"))","v":"Phải thu khác ngắn hạn"}]
[null,null,"136_",{"$f":"_xlfn.XLOOKUP(L_FS[[#This Row],[MÃ]],'~ctbc'!C:C,'~ctbc'!D:D)","v":"Dự phòng phải thu ngắn hạn khó đòi *"},0,-1,true,"136_","TS ngắn",true,true,{"$f":"_xlfn.LET(_xlpm.a,_xlfn.TEXTJOIN(\";\",TRUE,IF((L_Map[MÃ BC]=L_FS[[#This Row],[MÃ]]),L_Map[MÃ TM],\"\")),IF(LEN(_xlpm.a)>1,_xlpm.a,\"\"))","v":"043_"},{"$f":"_xlfn.TEXTJOIN(\"; \",TRUE,IF((L_Map[MÃ BC]=L_FS[[#This Row],[MÃ]])*(L_Map[BCR]=0),L_Map[CHỈ TIÊU THUYẾT MINH],\"\"))","v":"Dự phòng phải thu ngắn hạn khó đòi *"}]
[null,null,"137_",{"$f":"_xlfn.XLOOKUP(L_FS[[#This Row],[MÃ]],'~ctbc'!C:C,'~ctbc'!D:D)","v":"Tài sản thiếu chờ xử lý"},0,-1,true,"137_","TS ngắn",null,true,{"$f":"_xlfn.LET(_xlpm.a,_xlfn.TEXTJOIN(\";\",TRUE,IF((L_Map[MÃ BC]=L_FS[[#This Row],[MÃ]]),L_Map[MÃ TM],\"\")),IF(LEN(_xlpm.a)>1,_xlpm.a,\"\"))","v":"050_"},{"$f":"_xlfn.TEXTJOIN(\"; \",TRUE,IF((L_Map[MÃ BC]=L_FS[[#This Row],[MÃ]])*(L_Map[BCR]=0),L_Map[CHỈ TIÊU THUYẾT MINH],\"\"))","v":"Tài sản thiếu chờ xử lý"}]
[null,null,"141_",{"$f":"_xlfn.XLOOKUP(L_FS[[#This Row],[MÃ]],'~ctbc'!C:C,'~ctbc'!D:D)","v":"Hàng tồn kho"},0,-1,true,"141_","TS ngắn",true,true,{"$f":"_xlfn.LET(_xlpm.a,_xlfn.TEXTJOIN(\";\",TRUE,IF((L_Map[MÃ BC]=L_FS[[#This Row],[MÃ]]),L_Map[MÃ TM],\"\")),IF(LEN(_xlpm.a)>1,_xlpm.a,\"\"))","v":"071_"},{"$f":"_xlfn.TEXTJOIN(\"; \",TRUE,IF((L_Map[MÃ BC]=L_FS[[#This Row],[MÃ]])*(L_Map[BCR]=0),L_Map[CHỈ TIÊU THUYẾT MINH],\"\"))","v":"Hàng tồn kho"}]
[null,null,"142_",{"$f":"_xlfn.XLOOKUP(L_FS[[#This Row],[MÃ]],'~ctbc'!C:C,'~ctbc'!D:D)","v":"Dự phòng giảm giá hàng tồn kho *"},0,-1,true,"142_","TS ngắn",true,true,{"$f":"_xlfn.LET(_xlpm.a,_xlfn.TEXTJOIN(\";\",TRUE,IF((L_Map[MÃ BC]=L_FS[[#This Row],[MÃ]]),L_Map[MÃ TM],\"\")),IF(LEN(_xlpm.a)>1,_xlpm.a,\"\"))","v":"072_"},{"$f":"_xlfn.TEXTJOIN(\"; \",TRUE,IF((L_Map[MÃ BC]=L_FS[[#This Row],[MÃ]])*(L_Map[BCR]=0),L_Map[CHỈ TIÊU THUYẾT MINH],\"\"))","v":"Dự phòng giảm giá hàng tồn kho *"}]
[null,null,"151_",{"$f":"_xlfn.XLOOKUP(L_FS[[#This Row],[MÃ]],'~ctbc'!C:C,'~ctbc'!D:D)","v":"Con vật nuôi lấy sản phẩm một lần ngắn hạn"},0,-1,true,"151_","TS ngắn",null,null,{"$f":"_xlfn.LET(_xlpm.a,_xlfn.TEXTJOIN(\";\",TRUE,IF((L_Map[MÃ BC]=L_FS[[#This Row],[MÃ]]),L_Map[MÃ TM],\"\")),IF(LEN(_xlpm.a)>1,_xlpm.a,\"\"))","v":"121_"},{"$f":"_xlfn.TEXTJOIN(\"; \",TRUE,IF((L_Map[MÃ BC]=L_FS[[#This Row],[MÃ]])*(L_Map[BCR]=0),L_Map[CHỈ TIÊU THUYẾT MINH],\"\"))","v":"Tài sản sinh học khác"}]
[null,null,"152_",{"$f":"_xlfn.XLOOKUP(L_FS[[#This Row],[MÃ]],'~ctbc'!C:C,'~ctbc'!D:D)","v":"Cây trồng theo mùa vụ hoặc lấy SP một lần ngắn hạn"},0,-1,true,"152_","TS ngắn",null,null,{"$f":"_xlfn.LET(_xlpm.a,_xlfn.TEXTJOIN(\";\",TRUE,IF((L_Map[MÃ BC]=L_FS[[#This Row],[MÃ]]),L_Map[MÃ TM],\"\")),IF(LEN(_xlpm.a)>1,_xlpm.a,\"\"))","v":"121_"},{"$f":"_xlfn.TEXTJOIN(\"; \",TRUE,IF((L_Map[MÃ BC]=L_FS[[#This Row],[MÃ]])*(L_Map[BCR]=0),L_Map[CHỈ TIÊU THUYẾT MINH],\"\"))","v":"Tài sản sinh học khác"}]
[null,null,"153_",{"$f":"_xlfn.XLOOKUP(L_FS[[#This Row],[MÃ]],'~ctbc'!C:C,'~ctbc'!D:D)","v":"Dự phòng tổn thất tài sản sinh học ngắn hạn"},0,-1,true,"153_","TS ngắn",null,null,{"$f":"_xlfn.LET(_xlpm.a,_xlfn.TEXTJOIN(\";\",TRUE,IF((L_Map[MÃ BC]=L_FS[[#This Row],[MÃ]]),L_Map[MÃ TM],\"\")),IF(LEN(_xlpm.a)>1,_xlpm.a,\"\"))","v":""},{"$f":"_xlfn.TEXTJOIN(\"; \",TRUE,IF((L_Map[MÃ BC]=L_FS[[#This Row],[MÃ]])*(L_Map[BCR]=0),L_Map[CHỈ TIÊU THUYẾT MINH],\"\"))","v":""}]
[null,null,"161_",{"$f":"_xlfn.XLOOKUP(L_FS[[#This Row],[MÃ]],'~ctbc'!C:C,'~ctbc'!D:D)","v":"Chi phí chờ phân bổ ngắn hạn"},0,-1,true,"161_","TS ngắn",true,true,{"$f":"_xlfn.LET(_xlpm.a,_xlfn.TEXTJOIN(\";\",TRUE,IF((L_Map[MÃ BC]=L_FS[[#This Row],[MÃ]]),L_Map[MÃ TM],\"\")),IF(LEN(_xlpm.a)>1,_xlpm.a,\"\"))","v":"141_"},{"$f":"_xlfn.TEXTJOIN(\"; \",TRUE,IF((L_Map[MÃ BC]=L_FS[[#This Row],[MÃ]])*(L_Map[BCR]=0),L_Map[CHỈ TIÊU THUYẾT MINH],\"\"))","v":"Chi phí chờ phân bổ ngắn hạn"}]
[null,null,"162_",{"$f":"_xlfn.XLOOKUP(L_FS[[#This Row],[MÃ]],'~ctbc'!C:C,'~ctbc'!D:D)","v":"Thuế GTGT được khấu trừ"},0,-1,true,"162_","TS ngắn",null,true,{"$f":"_xlfn.LET(_xlpm.a,_xlfn.TEXTJOIN(\";\",TRUE,IF((L_Map[MÃ BC]=L_FS[[#This Row],[MÃ]]),L_Map[MÃ TM],\"\")),IF(LEN(_xlpm.a)>1,_xlpm.a,\"\"))","v":""},{"$f":"_xlfn.TEXTJOIN(\"; \",TRUE,IF((L_Map[MÃ BC]=L_FS[[#This Row],[MÃ]])*(L_Map[BCR]=0),L_Map[CHỈ TIÊU THUYẾT MINH],\"\"))","v":""}]
[null,null,"163_",{"$f":"_xlfn.XLOOKUP(L_FS[[#This Row],[MÃ]],'~ctbc'!C:C,'~ctbc'!D:D)","v":"Thuế và các khoản phải thu Nhà nước"},0,-1,true,"163_","TS ngắn",null,true,{"$f":"_xlfn.LET(_xlpm.a,_xlfn.TEXTJOIN(\";\",TRUE,IF((L_Map[MÃ BC]=L_FS[[#This Row],[MÃ]]),L_Map[MÃ TM],\"\")),IF(LEN(_xlpm.a)>1,_xlpm.a,\"\"))","v":"191_"},{"$f":"_xlfn.TEXTJOIN(\"; \",TRUE,IF((L_Map[MÃ BC]=L_FS[[#This Row],[MÃ]])*(L_Map[BCR]=0),L_Map[CHỈ TIÊU THUYẾT MINH],\"\"))","v":"Thuế và các khoản phải nộp Nhà nước"}]
[null,null,"164_",{"$f":"_xlfn.XLOOKUP(L_FS[[#This Row],[MÃ]],'~ctbc'!C:C,'~ctbc'!D:D)","v":"Giao dịch mua bán lại trái phiếu Chính phủ"},0,-1,true,"164_","TS ngắn",null,true,{"$f":"_xlfn.LET(_xlpm.a,_xlfn.TEXTJOIN(\";\",TRUE,IF((L_Map[MÃ BC]=L_FS[[#This Row],[MÃ]]),L_Map[MÃ TM],\"\")),IF(LEN(_xlpm.a)>1,_xlpm.a,\"\"))","v":""},{"$f":"_xlfn.TEXTJOIN(\"; \",TRUE,IF((L_Map[MÃ BC]=L_FS[[#This Row],[MÃ]])*(L_Map[BCR]=0),L_Map[CHỈ TIÊU THUYẾT MINH],\"\"))","v":""}]
[null,null,"165_",{"$f":"_xlfn.XLOOKUP(L_FS[[#This Row],[MÃ]],'~ctbc'!C:C,'~ctbc'!D:D)","v":"Tài sản ngắn hạn khác"},0,-1,true,"165_","TS ngắn",null,true,{"$f":"_xlfn.LET(_xlpm.a,_xlfn.TEXTJOIN(\";\",TRUE,IF((L_Map[MÃ BC]=L_FS[[#This Row],[MÃ]]),L_Map[MÃ TM],\"\")),IF(LEN(_xlpm.a)>1,_xlpm.a,\"\"))","v":"061_"},{"$f":"_xlfn.TEXTJOIN(\"; \",TRUE,IF((L_Map[MÃ BC]=L_FS[[#This Row],[MÃ]])*(L_Map[BCR]=0),L_Map[CHỈ TIÊU THUYẾT MINH],\"\"))","v":"Tài sản khác ngắn hạn"}]
[null,null,"211_",{"$f":"_xlfn.XLOOKUP(L_FS[[#This Row],[MÃ]],'~ctbc'!C:C,'~ctbc'!D:D)","v":"Phải thu dài hạn của khách hàng"},0,-1,true,"211_","TS dài",true,true,{"$f":"_xlfn.LET(_xlpm.a,_xlfn.TEXTJOIN(\";\",TRUE,IF((L_Map[MÃ BC]=L_FS[[#This Row],[MÃ]]),L_Map[MÃ TM],\"\")),IF(LEN(_xlpm.a)>1,_xlpm.a,\"\"))","v":"032_"},{"$f":"_xlfn.TEXTJOIN(\"; \",TRUE,IF((L_Map[MÃ BC]=L_FS[[#This Row],[MÃ]])*(L_Map[BCR]=0),L_Map[CHỈ TIÊU THUYẾT MINH],\"\"))","v":"Phải thu dài hạn của khách hàng"}]
[null,null,"212_",{"$f":"_xlfn.XLOOKUP(L_FS[[#This Row],[MÃ]],'~ctbc'!C:C,'~ctbc'!D:D)","v":"Trả trước cho người bán dài hạn"},0,-1,true,"212_","TS dài",true,true,{"$f":"_xlfn.LET(_xlpm.a,_xlfn.TEXTJOIN(\";\",TRUE,IF((L_Map[MÃ BC]=L_FS[[#This Row],[MÃ]]),L_Map[MÃ TM],\"\")),IF(LEN(_xlpm.a)>1,_xlpm.a,\"\"))","v":"034_"},{"$f":"_xlfn.TEXTJOIN(\"; \",TRUE,IF((L_Map[MÃ BC]=L_FS[[#This Row],[MÃ]])*(L_Map[BCR]=0),L_Map[CHỈ TIÊU THUYẾT MINH],\"\"))","v":"Trả trước cho người bán dài hạn"}]
[null,null,"213_",{"$f":"_xlfn.XLOOKUP(L_FS[[#This Row],[MÃ]],'~ctbc'!C:C,'~ctbc'!D:D)","v":"Vốn kinh doanh ở đơn vị trực thuộc"},0,-1,true,"213_","TS dài",null,true,{"$f":"_xlfn.LET(_xlpm.a,_xlfn.TEXTJOIN(\";\",TRUE,IF((L_Map[MÃ BC]=L_FS[[#This Row],[MÃ]]),L_Map[MÃ TM],\"\")),IF(LEN(_xlpm.a)>1,_xlpm.a,\"\"))","v":"064_"},{"$f":"_xlfn.TEXTJOIN(\"; \",TRUE,IF((L_Map[MÃ BC]=L_FS[[#This Row],[MÃ]])*(L_Map[BCR]=0),L_Map[CHỈ TIÊU THUYẾT MINH],\"\"))","v":"Phải thu nội bộ dài hạn"}]
[null,null,"214_",{"$f":"_xlfn.XLOOKUP(L_FS[[#This Row],[MÃ]],'~ctbc'!C:C,'~ctbc'!D:D)","v":"Phải thu nội bộ dài hạn"},0,-1,true,"214_","TS dài",true,true,{"$f":"_xlfn.LET(_xlpm.a,_xlfn.TEXTJOIN(\";\",TRUE,IF((L_Map[MÃ BC]=L_FS[[#This Row],[MÃ]]),L_Map[MÃ TM],\"\")),IF(LEN(_xlpm.a)>1,_xlpm.a,\"\"))","v":"064_"},{"$f":"_xlfn.TEXTJOIN(\"; \",TRUE,IF((L_Map[MÃ BC]=L_FS[[#This Row],[MÃ]])*(L_Map[BCR]=0),L_Map[CHỈ TIÊU THUYẾT MINH],\"\"))","v":"Phải thu nội bộ dài hạn"}]
[null,null,"215_",{"$f":"_xlfn.XLOOKUP(L_FS[[#This Row],[MÃ]],'~ctbc'!C:C,'~ctbc'!D:D)","v":"Phải thu dài hạn khác"},0,-1,true,"215_","TS dài",true,true,{"$f":"_xlfn.LET(_xlpm.a,_xlfn.TEXTJOIN(\";\",TRUE,IF((L_Map[MÃ BC]=L_FS[[#This Row],[MÃ]]),L_Map[MÃ TM],\"\")),IF(LEN(_xlpm.a)>1,_xlpm.a,\"\"))","v":"042_"},{"$f":"_xlfn.TEXTJOIN(\"; \",TRUE,IF((L_Map[MÃ BC]=L_FS[[#This Row],[MÃ]])*(L_Map[BCR]=0),L_Map[CHỈ TIÊU THUYẾT MINH],\"\"))","v":"Phải thu khác dài hạn"}]
[null,null,"216_",{"$f":"_xlfn.XLOOKUP(L_FS[[#This Row],[MÃ]],'~ctbc'!C:C,'~ctbc'!D:D)","v":"Dự phòng phải thu dài hạn khó đòi *"},0,-1,true,"216_","TS dài",null,true,{"$f":"_xlfn.LET(_xlpm.a,_xlfn.TEXTJOIN(\";\",TRUE,IF((L_Map[MÃ BC]=L_FS[[#This Row],[MÃ]]),L_Map[MÃ TM],\"\")),IF(LEN(_xlpm.a)>1,_xlpm.a,\"\"))","v":"044_"},{"$f":"_xlfn.TEXTJOIN(\"; \",TRUE,IF((L_Map[MÃ BC]=L_FS[[#This Row],[MÃ]])*(L_Map[BCR]=0),L_Map[CHỈ TIÊU THUYẾT MINH],\"\"))","v":"Dự phòng phải thu dài hạn khó đòi *"}]
[null,null,"222_",{"$f":"_xlfn.XLOOKUP(L_FS[[#This Row],[MÃ]],'~ctbc'!C:C,'~ctbc'!D:D)","v":"Nguyên giá TSCĐ hữu hình"},0,-1,true,"222_","TS dài",null,true,{"$f":"_xlfn.LET(_xlpm.a,_xlfn.TEXTJOIN(\";\",TRUE,IF((L_Map[MÃ BC]=L_FS[[#This Row],[MÃ]]),L_Map[MÃ TM],\"\")),IF(LEN(_xlpm.a)>1,_xlpm.a,\"\"))","v":"091_;091s"},{"$f":"_xlfn.TEXTJOIN(\"; \",TRUE,IF((L_Map[MÃ BC]=L_FS[[#This Row],[MÃ]])*(L_Map[BCR]=0),L_Map[CHỈ TIÊU THUYẾT MINH],\"\"))","v":"TSCĐ hữu hình - Nguyên giá; NG TSCĐ HH đã KH hết đang sử dụng"}]
[null,null,"223_",{"$f":"_xlfn.XLOOKUP(L_FS[[#This Row],[MÃ]],'~ctbc'!C:C,'~ctbc'!D:D)","v":"Giá trị hao mòn lũy kế TSCĐ hữu hình"},0,-1,true,"223_","TS dài",null,true,{"$f":"_xlfn.LET(_xlpm.a,_xlfn.TEXTJOIN(\";\",TRUE,IF((L_Map[MÃ BC]=L_FS[[#This Row],[MÃ]]),L_Map[MÃ TM],\"\")),IF(LEN(_xlpm.a)>1,_xlpm.a,\"\"))","v":"092_"},{"$f":"_xlfn.TEXTJOIN(\"; \",TRUE,IF((L_Map[MÃ BC]=L_FS[[#This Row],[MÃ]])*(L_Map[BCR]=0),L_Map[CHỈ TIÊU THUYẾT MINH],\"\"))","v":"TSCĐ hữu hình - Hao mòn lũy kế *"}]
[null,null,"225_",{"$f":"_xlfn.XLOOKUP(L_FS[[#This Row],[MÃ]],'~ctbc'!C:C,'~ctbc'!D:D)","v":"Nguyên giá TSCĐ thuê tài chính"},0,-1,true,"225_","TS dài",null,true,{"$f":"_xlfn.LET(_xlpm.a,_xlfn.TEXTJOIN(\";\",TRUE,IF((L_Map[MÃ BC]=L_FS[[#This Row],[MÃ]]),L_Map[MÃ TM],\"\")),IF(LEN(_xlpm.a)>1,_xlpm.a,\"\"))","v":"111_"},{"$f":"_xlfn.TEXTJOIN(\"; \",TRUE,IF((L_Map[MÃ BC]=L_FS[[#This Row],[MÃ]])*(L_Map[BCR]=0),L_Map[CHỈ TIÊU THUYẾT MINH],\"\"))","v":"TSCĐ thuê tài chính - Nguyên giá"}]
[null,null,"226_",{"$f":"_xlfn.XLOOKUP(L_FS[[#This Row],[MÃ]],'~ctbc'!C:C,'~ctbc'!D:D)","v":"Giá trị hao mòn lũy kế TSCĐ thuê tài chính"},0,-1,true,"226_","TS dài",null,true,{"$f":"_xlfn.LET(_xlpm.a,_xlfn.TEXTJOIN(\";\",TRUE,IF((L_Map[MÃ BC]=L_FS[[#This Row],[MÃ]]),L_Map[MÃ TM],\"\")),IF(LEN(_xlpm.a)>1,_xlpm.a,\"\"))","v":"112_"},{"$f":"_xlfn.TEXTJOIN(\"; \",TRUE,IF((L_Map[MÃ BC]=L_FS[[#This Row],[MÃ]])*(L_Map[BCR]=0),L_Map[CHỈ TIÊU THUYẾT MINH],\"\"))","v":"TSCĐ thuê tài chính - Hao mòn lũy kế *"}]
[null,null,"228_",{"$f":"_xlfn.XLOOKUP(L_FS[[#This Row],[MÃ]],'~ctbc'!C:C,'~ctbc'!D:D)","v":"Nguyên giá TSCĐ vô hình"},0,-1,true,"228_","TS dài",null,true,{"$f":"_xlfn.LET(_xlpm.a,_xlfn.TEXTJOIN(\";\",TRUE,IF((L_Map[MÃ BC]=L_FS[[#This Row],[MÃ]]),L_Map[MÃ TM],\"\")),IF(LEN(_xlpm.a)>1,_xlpm.a,\"\"))","v":"101_;101s"},{"$f":"_xlfn.TEXTJOIN(\"; \",TRUE,IF((L_Map[MÃ BC]=L_FS[[#This Row],[MÃ]])*(L_Map[BCR]=0),L_Map[CHỈ TIÊU THUYẾT MINH],\"\"))","v":"TSCĐ vô hình - Nguyên giá; NG TSCĐ VH đã KH hết đang sử dụng"}]
[null,null,"229_",{"$f":"_xlfn.XLOOKUP(L_FS[[#This Row],[MÃ]],'~ctbc'!C:C,'~ctbc'!D:D)","v":"Giá trị hao mòn lũy kế TSCĐ vô hình"},0,-1,true,"229_","TS dài",null,true,{"$f":"_xlfn.LET(_xlpm.a,_xlfn.TEXTJOIN(\";\",TRUE,IF((L_Map[MÃ BC]=L_FS[[#This Row],[MÃ]]),L_Map[MÃ TM],\"\")),IF(LEN(_xlpm.a)>1,_xlpm.a,\"\"))","v":"102_"},{"$f":"_xlfn.TEXTJOIN(\"; \",TRUE,IF((L_Map[MÃ BC]=L_FS[[#This Row],[MÃ]])*(L_Map[BCR]=0),L_Map[CHỈ TIÊU THUYẾT MINH],\"\"))","v":"TSCĐ vô hình - Hao mòn lũy kế *"}]
[null,null,"232_",{"$f":"_xlfn.XLOOKUP(L_FS[[#This Row],[MÃ]],'~ctbc'!C:C,'~ctbc'!D:D)","v":"Con vật nuôi cho SP định kỳ chưa đến gđ trưởng thành"},0,-1,true,"232_","TS dài",null,null,{"$f":"_xlfn.LET(_xlpm.a,_xlfn.TEXTJOIN(\";\",TRUE,IF((L_Map[MÃ BC]=L_FS[[#This Row],[MÃ]]),L_Map[MÃ TM],\"\")),IF(LEN(_xlpm.a)>1,_xlpm.a,\"\"))","v":"121_"},{"$f":"_xlfn.TEXTJOIN(\"; \",TRUE,IF((L_Map[MÃ BC]=L_FS[[#This Row],[MÃ]])*(L_Map[BCR]=0),L_Map[CHỈ TIÊU THUYẾT MINH],\"\"))","v":"Tài sản sinh học khác"}]
[null,null,"234_",{"$f":"_xlfn.XLOOKUP(L_FS[[#This Row],[MÃ]],'~ctbc'!C:C,'~ctbc'!D:D)","v":"Con vật nuôi cho SP định kỳ đến giai đoạn trưởng thành (nguyên giá)"},0,-1,true,"234_","TS dài",null,null,{"$f":"_xlfn.LET(_xlpm.a,_xlfn.TEXTJOIN(\";\",TRUE,IF((L_Map[MÃ BC]=L_FS[[#This Row],[MÃ]]),L_Map[MÃ TM],\"\")),IF(LEN(_xlpm.a)>1,_xlpm.a,\"\"))","v":"122_"},{"$f":"_xlfn.TEXTJOIN(\"; \",TRUE,IF((L_Map[MÃ BC]=L_FS[[#This Row],[MÃ]])*(L_Map[BCR]=0),L_Map[CHỈ TIÊU THUYẾT MINH],\"\"))","v":"Con vật cho SP định kỳ đạt đến GĐ trưởng thành - Nguyên giá"}]
[null,null,"235_",{"$f":"_xlfn.XLOOKUP(L_FS[[#This Row],[MÃ]],'~ctbc'!C:C,'~ctbc'!D:D)","v":"Con vật nuôi cho SP định kỳ đến giai đoạn trưởng thành (KH lũy kế)"},0,-1,true,"235_","TS dài",null,null,{"$f":"_xlfn.LET(_xlpm.a,_xlfn.TEXTJOIN(\";\",TRUE,IF((L_Map[MÃ BC]=L_FS[[#This Row],[MÃ]]),L_Map[MÃ TM],\"\")),IF(LEN(_xlpm.a)>1,_xlpm.a,\"\"))","v":"123_"},{"$f":"_xlfn.TEXTJOIN(\"; \",TRUE,IF((L_Map[MÃ BC]=L_FS[[#This Row],[MÃ]])*(L_Map[BCR]=0),L_Map[CHỈ TIÊU THUYẾT MINH],\"\"))","v":"Con vật cho SP định kỳ đạt đến GĐ trưởng thành - Khấu hao lũy kế"}]
[null,null,"236_",{"$f":"_xlfn.XLOOKUP(L_FS[[#This Row],[MÃ]],'~ctbc'!C:C,'~ctbc'!D:D)","v":"Con vật nuôi lấy sản phẩm một lần dài hạn"},0,-1,true,"236_","TS dài",null,null,{"$f":"_xlfn.LET(_xlpm.a,_xlfn.TEXTJOIN(\";\",TRUE,IF((L_Map[MÃ BC]=L_FS[[#This Row],[MÃ]]),L_Map[MÃ TM],\"\")),IF(LEN(_xlpm.a)>1,_xlpm.a,\"\"))","v":""},{"$f":"_xlfn.TEXTJOIN(\"; \",TRUE,IF((L_Map[MÃ BC]=L_FS[[#This Row],[MÃ]])*(L_Map[BCR]=0),L_Map[CHỈ TIÊU THUYẾT MINH],\"\"))","v":""}]
[null,null,"237_",{"$f":"_xlfn.XLOOKUP(L_FS[[#This Row],[MÃ]],'~ctbc'!C:C,'~ctbc'!D:D)","v":"Cây trồng theo mùa vụ hoặc lấy sản phẩm một lần dài hạn"},0,-1,true,"237_","TS dài",null,null,{"$f":"_xlfn.LET(_xlpm.a,_xlfn.TEXTJOIN(\";\",TRUE,IF((L_Map[MÃ BC]=L_FS[[#This Row],[MÃ]]),L_Map[MÃ TM],\"\")),IF(LEN(_xlpm.a)>1,_xlpm.a,\"\"))","v":""},{"$f":"_xlfn.TEXTJOIN(\"; \",TRUE,IF((L_Map[MÃ BC]=L_FS[[#This Row],[MÃ]])*(L_Map[BCR]=0),L_Map[CHỈ TIÊU THUYẾT MINH],\"\"))","v":""}]
[null,null,"238_",{"$f":"_xlfn.XLOOKUP(L_FS[[#This Row],[MÃ]],'~ctbc'!C:C,'~ctbc'!D:D)","v":"Dự phòng tổn thất tài sản sinh học dài hạn *"},0,-1,true,"238_","TS dài",null,null,{"$f":"_xlfn.LET(_xlpm.a,_xlfn.TEXTJOIN(\";\",TRUE,IF((L_Map[MÃ BC]=L_FS[[#This Row],[MÃ]]),L_Map[MÃ TM],\"\")),IF(LEN(_xlpm.a)>1,_xlpm.a,\"\"))","v":""},{"$f":"_xlfn.TEXTJOIN(\"; \",TRUE,IF((L_Map[MÃ BC]=L_FS[[#This Row],[MÃ]])*(L_Map[BCR]=0),L_Map[CHỈ TIÊU THUYẾT MINH],\"\"))","v":""}]
[null,null,"241_",{"$f":"_xlfn.XLOOKUP(L_FS[[#This Row],[MÃ]],'~ctbc'!C:C,'~ctbc'!D:D)","v":"Nguyên giá BĐS đầu tư"},0,-1,true,"241_","TS dài",null,true,{"$f":"_xlfn.LET(_xlpm.a,_xlfn.TEXTJOIN(\";\",TRUE,IF((L_Map[MÃ BC]=L_FS[[#This Row],[MÃ]]),L_Map[MÃ TM],\"\")),IF(LEN(_xlpm.a)>1,_xlpm.a,\"\"))","v":"131_"},{"$f":"_xlfn.TEXTJOIN(\"; \",TRUE,IF((L_Map[MÃ BC]=L_FS[[#This Row],[MÃ]])*(L_Map[BCR]=0),L_Map[CHỈ TIÊU THUYẾT MINH],\"\"))","v":"BĐS đầu tư - Nguyên giá"}]
[null,null,"242_",{"$f":"_xlfn.XLOOKUP(L_FS[[#This Row],[MÃ]],'~ctbc'!C:C,'~ctbc'!D:D)","v":"Giá trị hao mòn lũy kế BĐS đầu tư *"},0,-1,true,"242_","TS dài",null,true,{"$f":"_xlfn.LET(_xlpm.a,_xlfn.TEXTJOIN(\";\",TRUE,IF((L_Map[MÃ BC]=L_FS[[#This Row],[MÃ]]),L_Map[MÃ TM],\"\")),IF(LEN(_xlpm.a)>1,_xlpm.a,\"\"))","v":"132_"},{"$f":"_xlfn.TEXTJOIN(\"; \",TRUE,IF((L_Map[MÃ BC]=L_FS[[#This Row],[MÃ]])*(L_Map[BCR]=0),L_Map[CHỈ TIÊU THUYẾT MINH],\"\"))","v":"BĐS đầu tư - Hao mòn lũy kế *"}]
[null,null,"251_",{"$f":"_xlfn.XLOOKUP(L_FS[[#This Row],[MÃ]],'~ctbc'!C:C,'~ctbc'!D:D)","v":"Chi phí sản xuất, kinh doanh dở dang dài hạn"},0,-1,true,"251_","TS dài",true,true,{"$f":"_xlfn.LET(_xlpm.a,_xlfn.TEXTJOIN(\";\",TRUE,IF((L_Map[MÃ BC]=L_FS[[#This Row],[MÃ]]),L_Map[MÃ TM],\"\")),IF(LEN(_xlpm.a)>1,_xlpm.a,\"\"))","v":"081_"},{"$f":"_xlfn.TEXTJOIN(\"; \",TRUE,IF((L_Map[MÃ BC]=L_FS[[#This Row],[MÃ]])*(L_Map[BCR]=0),L_Map[CHỈ TIÊU THUYẾT MINH],\"\"))","v":"Chi phí SXKD dở dang dài hạn"}]
[null,null,"252_",{"$f":"_xlfn.XLOOKUP(L_FS[[#This Row],[MÃ]],'~ctbc'!C:C,'~ctbc'!D:D)","v":"Chi phí xây dựng cơ bản dở dang"},0,-1,true,"252_","TS dài",null,true,{"$f":"_xlfn.LET(_xlpm.a,_xlfn.TEXTJOIN(\";\",TRUE,IF((L_Map[MÃ BC]=L_FS[[#This Row],[MÃ]]),L_Map[MÃ TM],\"\")),IF(LEN(_xlpm.a)>1,_xlpm.a,\"\"))","v":"082_"},{"$f":"_xlfn.TEXTJOIN(\"; \",TRUE,IF((L_Map[MÃ BC]=L_FS[[#This Row],[MÃ]])*(L_Map[BCR]=0),L_Map[CHỈ TIÊU THUYẾT MINH],\"\"))","v":"Chi phí XDCB dở dang"}]
[null,null,"261_",{"$f":"_xlfn.XLOOKUP(L_FS[[#This Row],[MÃ]],'~ctbc'!C:C,'~ctbc'!D:D)","v":"Đầu tư vào công ty con"},0,-1,true,"261_","TS dài",true,true,{"$f":"_xlfn.LET(_xlpm.a,_xlfn.TEXTJOIN(\";\",TRUE,IF((L_Map[MÃ BC]=L_FS[[#This Row],[MÃ]]),L_Map[MÃ TM],\"\")),IF(LEN(_xlpm.a)>1,_xlpm.a,\"\"))","v":"023_"},{"$f":"_xlfn.TEXTJOIN(\"; \",TRUE,IF((L_Map[MÃ BC]=L_FS[[#This Row],[MÃ]])*(L_Map[BCR]=0),L_Map[CHỈ TIÊU THUYẾT MINH],\"\"))","v":"Đầu tư vào công ty con"}]
[null,null,"262_",{"$f":"_xlfn.XLOOKUP(L_FS[[#This Row],[MÃ]],'~ctbc'!C:C,'~ctbc'!D:D)","v":"Đầu tư vào công ty liên doanh, liên kết"},0,-1,true,"262_","TS dài",true,true,{"$f":"_xlfn.LET(_xlpm.a,_xlfn.TEXTJOIN(\";\",TRUE,IF((L_Map[MÃ BC]=L_FS[[#This Row],[MÃ]]),L_Map[MÃ TM],\"\")),IF(LEN(_xlpm.a)>1,_xlpm.a,\"\"))","v":"024_"},{"$f":"_xlfn.TEXTJOIN(\"; \",TRUE,IF((L_Map[MÃ BC]=L_FS[[#This Row],[MÃ]])*(L_Map[BCR]=0),L_Map[CHỈ TIÊU THUYẾT MINH],\"\"))","v":"Đầu tư vào công ty liên kết"}]
[null,null,"263_",{"$f":"_xlfn.XLOOKUP(L_FS[[#This Row],[MÃ]],'~ctbc'!C:C,'~ctbc'!D:D)","v":"Đầu tư góp vốn vào đơn vị khác"},0,-1,true,"263_","TS dài",true,true,{"$f":"_xlfn.LET(_xlpm.a,_xlfn.TEXTJOIN(\";\",TRUE,IF((L_Map[MÃ BC]=L_FS[[#This Row],[MÃ]]),L_Map[MÃ TM],\"\")),IF(LEN(_xlpm.a)>1,_xlpm.a,\"\"))","v":"025_"},{"$f":"_xlfn.TEXTJOIN(\"; \",TRUE,IF((L_Map[MÃ BC]=L_FS[[#This Row],[MÃ]])*(L_Map[BCR]=0),L_Map[CHỈ TIÊU THUYẾT MINH],\"\"))","v":"Đầu tư góp vốn vào đơn vị khác"}]
[null,null,"264_",{"$f":"_xlfn.XLOOKUP(L_FS[[#This Row],[MÃ]],'~ctbc'!C:C,'~ctbc'!D:D)","v":"Dự phòng tổn thất đầu tư vào đơn vị khác dài hạn *"},0,-1,true,"264_","TS dài",true,true,{"$f":"_xlfn.LET(_xlpm.a,_xlfn.TEXTJOIN(\";\",TRUE,IF((L_Map[MÃ BC]=L_FS[[#This Row],[MÃ]]),L_Map[MÃ TM],\"\")),IF(LEN(_xlpm.a)>1,_xlpm.a,\"\"))","v":"028_"},{"$f":"_xlfn.TEXTJOIN(\"; \",TRUE,IF((L_Map[MÃ BC]=L_FS[[#This Row],[MÃ]])*(L_Map[BCR]=0),L_Map[CHỈ TIÊU THUYẾT MINH],\"\"))","v":"Dự phòng đầu tư tài chính dài hạn *"}]
[null,null,"265_",{"$f":"_xlfn.XLOOKUP(L_FS[[#This Row],[MÃ]],'~ctbc'!C:C,'~ctbc'!D:D)","v":"Đầu tư nắm giữ đến ngày đáo hạn dài hạn"},0,-1,true,"265_","TS dài",true,true,{"$f":"_xlfn.LET(_xlpm.a,_xlfn.TEXTJOIN(\";\",TRUE,IF((L_Map[MÃ BC]=L_FS[[#This Row],[MÃ]]),L_Map[MÃ TM],\"\")),IF(LEN(_xlpm.a)>1,_xlpm.a,\"\"))","v":"022_"},{"$f":"_xlfn.TEXTJOIN(\"; \",TRUE,IF((L_Map[MÃ BC]=L_FS[[#This Row],[MÃ]])*(L_Map[BCR]=0),L_Map[CHỈ TIÊU THUYẾT MINH],\"\"))","v":"Đầu tư nắm giữ đến ngày đáo hạn dài hạn"}]
[null,null,"266_",{"$f":"_xlfn.XLOOKUP(L_FS[[#This Row],[MÃ]],'~ctbc'!C:C,'~ctbc'!D:D)","v":"Dự phòng đầu tư nắm giữ đến ngày đáo hạn dài hạn *"},0,-1,true,"266_","TS dài",true,true,"022_","Đầu tư nắm giữ đến ngày đáo hạn dài hạn"]
[null,null,"271_",{"$f":"_xlfn.XLOOKUP(L_FS[[#This Row],[MÃ]],'~ctbc'!C:C,'~ctbc'!D:D)","v":"Chi phí chờ phân bổ dài hạn"},0,-1,true,"271_","TS dài",null,true,{"$f":"_xlfn.LET(_xlpm.a,_xlfn.TEXTJOIN(\";\",TRUE,IF((L_Map[MÃ BC]=L_FS[[#This Row],[MÃ]]),L_Map[MÃ TM],\"\")),IF(LEN(_xlpm.a)>1,_xlpm.a,\"\"))","v":"142_"},{"$f":"_xlfn.TEXTJOIN(\"; \",TRUE,IF((L_Map[MÃ BC]=L_FS[[#This Row],[MÃ]])*(L_Map[BCR]=0),L_Map[CHỈ TIÊU THUYẾT MINH],\"\"))","v":"Chi phí chờ phân bổ dài hạn"}]
[null,null,"272_",{"$f":"_xlfn.XLOOKUP(L_FS[[#This Row],[MÃ]],'~ctbc'!C:C,'~ctbc'!D:D)","v":"Tài sản thuế thu nhập hoãn lại"},0,-1,true,"272_","TS dài",null,true,{"$f":"_xlfn.LET(_xlpm.a,_xlfn.TEXTJOIN(\";\",TRUE,IF((L_Map[MÃ BC]=L_FS[[#This Row],[MÃ]]),L_Map[MÃ TM],\"\")),IF(LEN(_xlpm.a)>1,_xlpm.a,\"\"))","v":"261_"},{"$f":"_xlfn.TEXTJOIN(\"; \",TRUE,IF((L_Map[MÃ BC]=L_FS[[#This Row],[MÃ]])*(L_Map[BCR]=0),L_Map[CHỈ TIÊU THUYẾT MINH],\"\"))","v":"Tài sản thuế TNDN hoãn lại"}]
[null,null,"273_",{"$f":"_xlfn.XLOOKUP(L_FS[[#This Row],[MÃ]],'~ctbc'!C:C,'~ctbc'!D:D)","v":"Thiết bị, vật tư, phụ tùng thay thế dài hạn"},0,-1,true,"273_","TS dài",null,true,{"$f":"_xlfn.LET(_xlpm.a,_xlfn.TEXTJOIN(\";\",TRUE,IF((L_Map[MÃ BC]=L_FS[[#This Row],[MÃ]]),L_Map[MÃ TM],\"\")),IF(LEN(_xlpm.a)>1,_xlpm.a,\"\"))","v":"062_"},{"$f":"_xlfn.TEXTJOIN(\"; \",TRUE,IF((L_Map[MÃ BC]=L_FS[[#This Row],[MÃ]])*(L_Map[BCR]=0),L_Map[CHỈ TIÊU THUYẾT MINH],\"\"))","v":"Tài sản khác dài hạn"}]
[null,null,"274_",{"$f":"_xlfn.XLOOKUP(L_FS[[#This Row],[MÃ]],'~ctbc'!C:C,'~ctbc'!D:D)","v":"Tài sản dài hạn khác"},0,-1,true,"274_","TS dài",null,true,{"$f":"_xlfn.LET(_xlpm.a,_xlfn.TEXTJOIN(\";\",TRUE,IF((L_Map[MÃ BC]=L_FS[[#This Row],[MÃ]]),L_Map[MÃ TM],\"\")),IF(LEN(_xlpm.a)>1,_xlpm.a,\"\"))","v":"062_"},{"$f":"_xlfn.TEXTJOIN(\"; \",TRUE,IF((L_Map[MÃ BC]=L_FS[[#This Row],[MÃ]])*(L_Map[BCR]=0),L_Map[CHỈ TIÊU THUYẾT MINH],\"\"))","v":"Tài sản khác dài hạn"}]
[null,null,"279_",{"$f":"_xlfn.XLOOKUP(L_FS[[#This Row],[MÃ]],'~ctbc'!C:C,'~ctbc'!D:D)","v":"Lợi thế thương mại"},0,-1,true,"279_","TS dài",true,true,{"$f":"_xlfn.LET(_xlpm.a,_xlfn.TEXTJOIN(\";\",TRUE,IF((L_Map[MÃ BC]=L_FS[[#This Row],[MÃ]]),L_Map[MÃ TM],\"\")),IF(LEN(_xlpm.a)>1,_xlpm.a,\"\"))","v":"151_"},{"$f":"_xlfn.TEXTJOIN(\"; \",TRUE,IF((L_Map[MÃ BC]=L_FS[[#This Row],[MÃ]])*(L_Map[BCR]=0),L_Map[CHỈ TIÊU THUYẾT MINH],\"\"))","v":"Lợi thế thương mại"}]
[null,null,"311_",{"$f":"_xlfn.XLOOKUP(L_FS[[#This Row],[MÃ]],'~ctbc'!C:C,'~ctbc'!D:D)","v":"Phải trả người bán ngắn hạn"},0,1,true,"311_","Nợ ngắn",true,true,{"$f":"_xlfn.LET(_xlpm.a,_xlfn.TEXTJOIN(\";\",TRUE,IF((L_Map[MÃ BC]=L_FS[[#This Row],[MÃ]]),L_Map[MÃ TM],\"\")),IF(LEN(_xlpm.a)>1,_xlpm.a,\"\"))","v":"171_"},{"$f":"_xlfn.TEXTJOIN(\"; \",TRUE,IF((L_Map[MÃ BC]=L_FS[[#This Row],[MÃ]])*(L_Map[BCR]=0),L_Map[CHỈ TIÊU THUYẾT MINH],\"\"))","v":"Phải trả người bán ngắn hạn"}]
[null,null,"312_",{"$f":"_xlfn.XLOOKUP(L_FS[[#This Row],[MÃ]],'~ctbc'!C:C,'~ctbc'!D:D)","v":"Người mua trả trước ngắn hạn"},0,1,true,"312_","Nợ ngắn",true,true,{"$f":"_xlfn.LET(_xlpm.a,_xlfn.TEXTJOIN(\";\",TRUE,IF((L_Map[MÃ BC]=L_FS[[#This Row],[MÃ]]),L_Map[MÃ TM],\"\")),IF(LEN(_xlpm.a)>1,_xlpm.a,\"\"))","v":"173_"},{"$f":"_xlfn.TEXTJOIN(\"; \",TRUE,IF((L_Map[MÃ BC]=L_FS[[#This Row],[MÃ]])*(L_Map[BCR]=0),L_Map[CHỈ TIÊU THUYẾT MINH],\"\"))","v":"Người mua trả trước ngắn hạn"}]
[null,null,"313_",{"$f":"_xlfn.XLOOKUP(L_FS[[#This Row],[MÃ]],'~ctbc'!C:C,'~ctbc'!D:D)","v":"Phải trả về cổ tức, lợi nhuận"},0,1,true,"313_","Nợ ngắn",true,true,{"$f":"_xlfn.LET(_xlpm.a,_xlfn.TEXTJOIN(\";\",TRUE,IF((L_Map[MÃ BC]=L_FS[[#This Row],[MÃ]]),L_Map[MÃ TM],\"\")),IF(LEN(_xlpm.a)>1,_xlpm.a,\"\"))","v":"181_"},{"$f":"_xlfn.TEXTJOIN(\"; \",TRUE,IF((L_Map[MÃ BC]=L_FS[[#This Row],[MÃ]])*(L_Map[BCR]=0),L_Map[CHỈ TIÊU THUYẾT MINH],\"\"))","v":"Phải trả về cổ tức, lợi nhuận"}]
[null,null,"314_",{"$f":"_xlfn.XLOOKUP(L_FS[[#This Row],[MÃ]],'~ctbc'!C:C,'~ctbc'!D:D)","v":"Thuế và các khoản phải nộp Nhà nước ngắn hạn"},0,1,true,"314_","Nợ ngắn",null,true,{"$f":"_xlfn.LET(_xlpm.a,_xlfn.TEXTJOIN(\";\",TRUE,IF((L_Map[MÃ BC]=L_FS[[#This Row],[MÃ]]),L_Map[MÃ TM],\"\")),IF(LEN(_xlpm.a)>1,_xlpm.a,\"\"))","v":"191_"},{"$f":"_xlfn.TEXTJOIN(\"; \",TRUE,IF((L_Map[MÃ BC]=L_FS[[#This Row],[MÃ]])*(L_Map[BCR]=0),L_Map[CHỈ TIÊU THUYẾT MINH],\"\"))","v":"Thuế và các khoản phải nộp Nhà nước"}]
[null,null,"315_",{"$f":"_xlfn.XLOOKUP(L_FS[[#This Row],[MÃ]],'~ctbc'!C:C,'~ctbc'!D:D)","v":"Phải trả người lao động"},0,1,true,"315_","Nợ ngắn",true,true,{"$f":"_xlfn.LET(_xlpm.a,_xlfn.TEXTJOIN(\";\",TRUE,IF((L_Map[MÃ BC]=L_FS[[#This Row],[MÃ]]),L_Map[MÃ TM],\"\")),IF(LEN(_xlpm.a)>1,_xlpm.a,\"\"))","v":""},{"$f":"_xlfn.TEXTJOIN(\"; \",TRUE,IF((L_Map[MÃ BC]=L_FS[[#This Row],[MÃ]])*(L_Map[BCR]=0),L_Map[CHỈ TIÊU THUYẾT MINH],\"\"))","v":"-"}]
[null,null,"316_",{"$f":"_xlfn.XLOOKUP(L_FS[[#This Row],[MÃ]],'~ctbc'!C:C,'~ctbc'!D:D)","v":"Chi phí phải trả ngắn hạn"},0,1,true,"316_","Nợ ngắn",true,true,{"$f":"_xlfn.LET(_xlpm.a,_xlfn.TEXTJOIN(\";\",TRUE,IF((L_Map[MÃ BC]=L_FS[[#This Row],[MÃ]]),L_Map[MÃ TM],\"\")),IF(LEN(_xlpm.a)>1,_xlpm.a,\"\"))","v":"201_"},{"$f":"_xlfn.TEXTJOIN(\"; \",TRUE,IF((L_Map[MÃ BC]=L_FS[[#This Row],[MÃ]])*(L_Map[BCR]=0),L_Map[CHỈ TIÊU THUYẾT MINH],\"\"))","v":"Chi phí phải trả ngắn hạn"}]
[null,null,"317_",{"$f":"_xlfn.XLOOKUP(L_FS[[#This Row],[MÃ]],'~ctbc'!C:C,'~ctbc'!D:D)","v":"Phải trả nội bộ ngắn hạn"},0,1,true,"317_","Nợ ngắn",true,true,{"$f":"_xlfn.LET(_xlpm.a,_xlfn.TEXTJOIN(\";\",TRUE,IF((L_Map[MÃ BC]=L_FS[[#This Row],[MÃ]]),L_Map[MÃ TM],\"\")),IF(LEN(_xlpm.a)>1,_xlpm.a,\"\"))","v":"213_"},{"$f":"_xlfn.TEXTJOIN(\"; \",TRUE,IF((L_Map[MÃ BC]=L_FS[[#This Row],[MÃ]])*(L_Map[BCR]=0),L_Map[CHỈ TIÊU THUYẾT MINH],\"\"))","v":"Phải trả nội bộ ngắn hạn"}]
[null,null,"318_",{"$f":"_xlfn.XLOOKUP(L_FS[[#This Row],[MÃ]],'~ctbc'!C:C,'~ctbc'!D:D)","v":"Phải trả theo tiến độ HĐXD ngắn hạn"},0,1,true,"318_","Nợ ngắn",true,true,{"$f":"_xlfn.LET(_xlpm.a,_xlfn.TEXTJOIN(\";\",TRUE,IF((L_Map[MÃ BC]=L_FS[[#This Row],[MÃ]]),L_Map[MÃ TM],\"\")),IF(LEN(_xlpm.a)>1,_xlpm.a,\"\"))","v":"215_"},{"$f":"_xlfn.TEXTJOIN(\"; \",TRUE,IF((L_Map[MÃ BC]=L_FS[[#This Row],[MÃ]])*(L_Map[BCR]=0),L_Map[CHỈ TIÊU THUYẾT MINH],\"\"))","v":"Phải trả theo tiến độ HĐXD"}]
[null,null,"319_",{"$f":"_xlfn.XLOOKUP(L_FS[[#This Row],[MÃ]],'~ctbc'!C:C,'~ctbc'!D:D)","v":"Doanh thu chờ phân bổ ngắn hạn"},0,1,true,"319_","Nợ ngắn",true,true,{"$f":"_xlfn.LET(_xlpm.a,_xlfn.TEXTJOIN(\";\",TRUE,IF((L_Map[MÃ BC]=L_FS[[#This Row],[MÃ]]),L_Map[MÃ TM],\"\")),IF(LEN(_xlpm.a)>1,_xlpm.a,\"\"))","v":"221_"},{"$f":"_xlfn.TEXTJOIN(\"; \",TRUE,IF((L_Map[MÃ BC]=L_FS[[#This Row],[MÃ]])*(L_Map[BCR]=0),L_Map[CHỈ TIÊU THUYẾT MINH],\"\"))","v":"Doanh thu chờ phân bổ ngắn hạn"}]
[null,null,"320_",{"$f":"_xlfn.XLOOKUP(L_FS[[#This Row],[MÃ]],'~ctbc'!C:C,'~ctbc'!D:D)","v":"Các khoản phải trả ngắn hạn khác"},0,1,true,"320_","Nợ ngắn",true,true,{"$f":"_xlfn.LET(_xlpm.a,_xlfn.TEXTJOIN(\";\",TRUE,IF((L_Map[MÃ BC]=L_FS[[#This Row],[MÃ]]),L_Map[MÃ TM],\"\")),IF(LEN(_xlpm.a)>1,_xlpm.a,\"\"))","v":"211_"},{"$f":"_xlfn.TEXTJOIN(\"; \",TRUE,IF((L_Map[MÃ BC]=L_FS[[#This Row],[MÃ]])*(L_Map[BCR]=0),L_Map[CHỈ TIÊU THUYẾT MINH],\"\"))","v":"Phải trả ngắn hạn khác"}]
[null,null,"321_",{"$f":"_xlfn.XLOOKUP(L_FS[[#This Row],[MÃ]],'~ctbc'!C:C,'~ctbc'!D:D)","v":"Vay và nợ thuê tài chính ngắn hạn"},0,1,true,"321_","Nợ ngắn",true,true,{"$f":"_xlfn.LET(_xlpm.a,_xlfn.TEXTJOIN(\";\",TRUE,IF((L_Map[MÃ BC]=L_FS[[#This Row],[MÃ]]),L_Map[MÃ TM],\"\")),IF(LEN(_xlpm.a)>1,_xlpm.a,\"\"))","v":"161_"},{"$f":"_xlfn.TEXTJOIN(\"; \",TRUE,IF((L_Map[MÃ BC]=L_FS[[#This Row],[MÃ]])*(L_Map[BCR]=0),L_Map[CHỈ TIÊU THUYẾT MINH],\"\"))","v":"Vay và nợ thuê tài chính ngắn hạn"}]
[null,null,"322_",{"$f":"_xlfn.XLOOKUP(L_FS[[#This Row],[MÃ]],'~ctbc'!C:C,'~ctbc'!D:D)","v":"Dự phòng phải trả ngắn hạn"},0,1,true,"322_","Nợ ngắn",true,true,{"$f":"_xlfn.LET(_xlpm.a,_xlfn.TEXTJOIN(\";\",TRUE,IF((L_Map[MÃ BC]=L_FS[[#This Row],[MÃ]]),L_Map[MÃ TM],\"\")),IF(LEN(_xlpm.a)>1,_xlpm.a,\"\"))","v":"251_"},{"$f":"_xlfn.TEXTJOIN(\"; \",TRUE,IF((L_Map[MÃ BC]=L_FS[[#This Row],[MÃ]])*(L_Map[BCR]=0),L_Map[CHỈ TIÊU THUYẾT MINH],\"\"))","v":"Dự phòng phải trả ngắn hạn"}]
[null,null,"323_",{"$f":"_xlfn.XLOOKUP(L_FS[[#This Row],[MÃ]],'~ctbc'!C:C,'~ctbc'!D:D)","v":"Quỹ khen thưởng, phúc lợi"},0,1,true,"323_","Nợ ngắn",true,true,{"$f":"_xlfn.LET(_xlpm.a,_xlfn.TEXTJOIN(\";\",TRUE,IF((L_Map[MÃ BC]=L_FS[[#This Row],[MÃ]]),L_Map[MÃ TM],\"\")),IF(LEN(_xlpm.a)>1,_xlpm.a,\"\"))","v":"271_"},{"$f":"_xlfn.TEXTJOIN(\"; \",TRUE,IF((L_Map[MÃ BC]=L_FS[[#This Row],[MÃ]])*(L_Map[BCR]=0),L_Map[CHỈ TIÊU THUYẾT MINH],\"\"))","v":"Quỹ không thuộc CSH"}]
[null,null,"324_",{"$f":"_xlfn.XLOOKUP(L_FS[[#This Row],[MÃ]],'~ctbc'!C:C,'~ctbc'!D:D)","v":"Quỹ bình ổn giá"},0,1,true,"324_","Nợ ngắn",null,true,{"$f":"_xlfn.LET(_xlpm.a,_xlfn.TEXTJOIN(\";\",TRUE,IF((L_Map[MÃ BC]=L_FS[[#This Row],[MÃ]]),L_Map[MÃ TM],\"\")),IF(LEN(_xlpm.a)>1,_xlpm.a,\"\"))","v":"271_"},{"$f":"_xlfn.TEXTJOIN(\"; \",TRUE,IF((L_Map[MÃ BC]=L_FS[[#This Row],[MÃ]])*(L_Map[BCR]=0),L_Map[CHỈ TIÊU THUYẾT MINH],\"\"))","v":"Quỹ không thuộc CSH"}]
[null,null,"325_",{"$f":"_xlfn.XLOOKUP(L_FS[[#This Row],[MÃ]],'~ctbc'!C:C,'~ctbc'!D:D)","v":"Giao dịch mua bán lại trái phiếu Chính phủ"},0,1,true,"325_","Nợ ngắn",null,true,{"$f":"_xlfn.LET(_xlpm.a,_xlfn.TEXTJOIN(\";\",TRUE,IF((L_Map[MÃ BC]=L_FS[[#This Row],[MÃ]]),L_Map[MÃ TM],\"\")),IF(LEN(_xlpm.a)>1,_xlpm.a,\"\"))","v":""},{"$f":"_xlfn.TEXTJOIN(\"; \",TRUE,IF((L_Map[MÃ BC]=L_FS[[#This Row],[MÃ]])*(L_Map[BCR]=0),L_Map[CHỈ TIÊU THUYẾT MINH],\"\"))","v":""}]
[null,null,"331_",{"$f":"_xlfn.XLOOKUP(L_FS[[#This Row],[MÃ]],'~ctbc'!C:C,'~ctbc'!D:D)","v":"Phải trả người bán dài hạn"},0,1,true,"331_","Nợ dài",true,true,{"$f":"_xlfn.LET(_xlpm.a,_xlfn.TEXTJOIN(\";\",TRUE,IF((L_Map[MÃ BC]=L_FS[[#This Row],[MÃ]]),L_Map[MÃ TM],\"\")),IF(LEN(_xlpm.a)>1,_xlpm.a,\"\"))","v":"172_"},{"$f":"_xlfn.TEXTJOIN(\"; \",TRUE,IF((L_Map[MÃ BC]=L_FS[[#This Row],[MÃ]])*(L_Map[BCR]=0),L_Map[CHỈ TIÊU THUYẾT MINH],\"\"))","v":"Phải trả người bán dài hạn"}]
[null,null,"332_",{"$f":"_xlfn.XLOOKUP(L_FS[[#This Row],[MÃ]],'~ctbc'!C:C,'~ctbc'!D:D)","v":"Người mua trả trước dài hạn"},0,1,true,"332_","Nợ dài",true,true,{"$f":"_xlfn.LET(_xlpm.a,_xlfn.TEXTJOIN(\";\",TRUE,IF((L_Map[MÃ BC]=L_FS[[#This Row],[MÃ]]),L_Map[MÃ TM],\"\")),IF(LEN(_xlpm.a)>1,_xlpm.a,\"\"))","v":"174_"},{"$f":"_xlfn.TEXTJOIN(\"; \",TRUE,IF((L_Map[MÃ BC]=L_FS[[#This Row],[MÃ]])*(L_Map[BCR]=0),L_Map[CHỈ TIÊU THUYẾT MINH],\"\"))","v":"Người mua trả trước dài hạn"}]
[null,null,"333_",{"$f":"_xlfn.XLOOKUP(L_FS[[#This Row],[MÃ]],'~ctbc'!C:C,'~ctbc'!D:D)","v":"Thuế và các khoản phải nộp Nhà nước dài hạn"},0,1,true,"333_","Nợ dài",null,null,{"$f":"_xlfn.LET(_xlpm.a,_xlfn.TEXTJOIN(\";\",TRUE,IF((L_Map[MÃ BC]=L_FS[[#This Row],[MÃ]]),L_Map[MÃ TM],\"\")),IF(LEN(_xlpm.a)>1,_xlpm.a,\"\"))","v":""},{"$f":"_xlfn.TEXTJOIN(\"; \",TRUE,IF((L_Map[MÃ BC]=L_FS[[#This Row],[MÃ]])*(L_Map[BCR]=0),L_Map[CHỈ TIÊU THUYẾT MINH],\"\"))","v":""}]
[null,null,"334_",{"$f":"_xlfn.XLOOKUP(L_FS[[#This Row],[MÃ]],'~ctbc'!C:C,'~ctbc'!D:D)","v":"Chi phí phải trả dài hạn"},0,1,true,"334_","Nợ dài",true,true,{"$f":"_xlfn.LET(_xlpm.a,_xlfn.TEXTJOIN(\";\",TRUE,IF((L_Map[MÃ BC]=L_FS[[#This Row],[MÃ]]),L_Map[MÃ TM],\"\")),IF(LEN(_xlpm.a)>1,_xlpm.a,\"\"))","v":"202_"},{"$f":"_xlfn.TEXTJOIN(\"; \",TRUE,IF((L_Map[MÃ BC]=L_FS[[#This Row],[MÃ]])*(L_Map[BCR]=0),L_Map[CHỈ TIÊU THUYẾT MINH],\"\"))","v":"Chi phí phải trả dài hạn"}]
[null,null,"335_",{"$f":"_xlfn.XLOOKUP(L_FS[[#This Row],[MÃ]],'~ctbc'!C:C,'~ctbc'!D:D)","v":"Phải trả nội bộ về vốn kinh doanh"},0,1,true,"335_","Nợ dài",null,true,{"$f":"_xlfn.LET(_xlpm.a,_xlfn.TEXTJOIN(\";\",TRUE,IF((L_Map[MÃ BC]=L_FS[[#This Row],[MÃ]]),L_Map[MÃ TM],\"\")),IF(LEN(_xlpm.a)>1,_xlpm.a,\"\"))","v":"213_"},{"$f":"_xlfn.TEXTJOIN(\"; \",TRUE,IF((L_Map[MÃ BC]=L_FS[[#This Row],[MÃ]])*(L_Map[BCR]=0),L_Map[CHỈ TIÊU THUYẾT MINH],\"\"))","v":"Phải trả nội bộ ngắn hạn"}]
[null,null,"336_",{"$f":"_xlfn.XLOOKUP(L_FS[[#This Row],[MÃ]],'~ctbc'!C:C,'~ctbc'!D:D)","v":"Phải trả nội bộ dài hạn"},0,1,true,"336_","Nợ dài",true,true,{"$f":"_xlfn.LET(_xlpm.a,_xlfn.TEXTJOIN(\";\",TRUE,IF((L_Map[MÃ BC]=L_FS[[#This Row],[MÃ]]),L_Map[MÃ TM],\"\")),IF(LEN(_xlpm.a)>1,_xlpm.a,\"\"))","v":"213_"},{"$f":"_xlfn.TEXTJOIN(\"; \",TRUE,IF((L_Map[MÃ BC]=L_FS[[#This Row],[MÃ]])*(L_Map[BCR]=0),L_Map[CHỈ TIÊU THUYẾT MINH],\"\"))","v":"Phải trả nội bộ ngắn hạn"}]
[null,null,"337_",{"$f":"_xlfn.XLOOKUP(L_FS[[#This Row],[MÃ]],'~ctbc'!C:C,'~ctbc'!D:D)","v":"Doanh thu chờ phân bổ dài hạn"},0,1,true,"337_","Nợ dài",true,true,{"$f":"_xlfn.LET(_xlpm.a,_xlfn.TEXTJOIN(\";\",TRUE,IF((L_Map[MÃ BC]=L_FS[[#This Row],[MÃ]]),L_Map[MÃ TM],\"\")),IF(LEN(_xlpm.a)>1,_xlpm.a,\"\"))","v":"222_"},{"$f":"_xlfn.TEXTJOIN(\"; \",TRUE,IF((L_Map[MÃ BC]=L_FS[[#This Row],[MÃ]])*(L_Map[BCR]=0),L_Map[CHỈ TIÊU THUYẾT MINH],\"\"))","v":"Doanh thu chờ phân bổ dài hạn"}]
[null,null,"338_",{"$f":"_xlfn.XLOOKUP(L_FS[[#This Row],[MÃ]],'~ctbc'!C:C,'~ctbc'!D:D)","v":"Phải trả dài hạn khác"},0,1,true,"338_","Nợ dài",true,true,{"$f":"_xlfn.LET(_xlpm.a,_xlfn.TEXTJOIN(\";\",TRUE,IF((L_Map[MÃ BC]=L_FS[[#This Row],[MÃ]]),L_Map[MÃ TM],\"\")),IF(LEN(_xlpm.a)>1,_xlpm.a,\"\"))","v":"212_"},{"$f":"_xlfn.TEXTJOIN(\"; \",TRUE,IF((L_Map[MÃ BC]=L_FS[[#This Row],[MÃ]])*(L_Map[BCR]=0),L_Map[CHỈ TIÊU THUYẾT MINH],\"\"))","v":"Phải trả dài hạn khác"}]
[null,null,"339_",{"$f":"_xlfn.XLOOKUP(L_FS[[#This Row],[MÃ]],'~ctbc'!C:C,'~ctbc'!D:D)","v":"Vay và nợ thuê tài chính dài hạn"},0,1,true,"339_","Nợ dài",true,true,{"$f":"_xlfn.LET(_xlpm.a,_xlfn.TEXTJOIN(\";\",TRUE,IF((L_Map[MÃ BC]=L_FS[[#This Row],[MÃ]]),L_Map[MÃ TM],\"\")),IF(LEN(_xlpm.a)>1,_xlpm.a,\"\"))","v":"162_"},{"$f":"_xlfn.TEXTJOIN(\"; \",TRUE,IF((L_Map[MÃ BC]=L_FS[[#This Row],[MÃ]])*(L_Map[BCR]=0),L_Map[CHỈ TIÊU THUYẾT MINH],\"\"))","v":"Vay và nợ thuê tài chính dài hạn hạn"}]
[null,null,"340_",{"$f":"_xlfn.XLOOKUP(L_FS[[#This Row],[MÃ]],'~ctbc'!C:C,'~ctbc'!D:D)","v":"Trái phiếu chuyển đổi"},0,1,true,"340_","Nợ dài",null,true,{"$f":"_xlfn.LET(_xlpm.a,_xlfn.TEXTJOIN(\";\",TRUE,IF((L_Map[MÃ BC]=L_FS[[#This Row],[MÃ]]),L_Map[MÃ TM],\"\")),IF(LEN(_xlpm.a)>1,_xlpm.a,\"\"))","v":"162_;232_"},{"$f":"_xlfn.TEXTJOIN(\"; \",TRUE,IF((L_Map[MÃ BC]=L_FS[[#This Row],[MÃ]])*(L_Map[BCR]=0),L_Map[CHỈ TIÊU THUYẾT MINH],\"\"))","v":"Vay và nợ thuê tài chính dài hạn hạn; Trái phiếu chuyển đổi"}]
[null,null,"341_",{"$f":"_xlfn.XLOOKUP(L_FS[[#This Row],[MÃ]],'~ctbc'!C:C,'~ctbc'!D:D)","v":"Cổ phiếu ưu đãi"},0,1,true,"341_","Nợ dài",null,true,{"$f":"_xlfn.LET(_xlpm.a,_xlfn.TEXTJOIN(\";\",TRUE,IF((L_Map[MÃ BC]=L_FS[[#This Row],[MÃ]]),L_Map[MÃ TM],\"\")),IF(LEN(_xlpm.a)>1,_xlpm.a,\"\"))","v":"271_"},{"$f":"_xlfn.TEXTJOIN(\"; \",TRUE,IF((L_Map[MÃ BC]=L_FS[[#This Row],[MÃ]])*(L_Map[BCR]=0),L_Map[CHỈ TIÊU THUYẾT MINH],\"\"))","v":"Quỹ không thuộc CSH"}]
[null,null,"342_",{"$f":"_xlfn.XLOOKUP(L_FS[[#This Row],[MÃ]],'~ctbc'!C:C,'~ctbc'!D:D)","v":"Thuế thu nhập hoãn lại phải trả"},0,1,true,"342_","Nợ dài",null,true,{"$f":"_xlfn.LET(_xlpm.a,_xlfn.TEXTJOIN(\";\",TRUE,IF((L_Map[MÃ BC]=L_FS[[#This Row],[MÃ]]),L_Map[MÃ TM],\"\")),IF(LEN(_xlpm.a)>1,_xlpm.a,\"\"))","v":"262_"},{"$f":"_xlfn.TEXTJOIN(\"; \",TRUE,IF((L_Map[MÃ BC]=L_FS[[#This Row],[MÃ]])*(L_Map[BCR]=0),L_Map[CHỈ TIÊU THUYẾT MINH],\"\"))","v":"Thuế TNDN hoãn lại phải trả"}]
[null,null,"343_",{"$f":"_xlfn.XLOOKUP(L_FS[[#This Row],[MÃ]],'~ctbc'!C:C,'~ctbc'!D:D)","v":"Dự phòng phải trả dài hạn"},0,1,true,"343_","Nợ dài",null,true,{"$f":"_xlfn.LET(_xlpm.a,_xlfn.TEXTJOIN(\";\",TRUE,IF((L_Map[MÃ BC]=L_FS[[#This Row],[MÃ]]),L_Map[MÃ TM],\"\")),IF(LEN(_xlpm.a)>1,_xlpm.a,\"\"))","v":"252_"},{"$f":"_xlfn.TEXTJOIN(\"; \",TRUE,IF((L_Map[MÃ BC]=L_FS[[#This Row],[MÃ]])*(L_Map[BCR]=0),L_Map[CHỈ TIÊU THUYẾT MINH],\"\"))","v":"Dự phòng phải trả dài hạn"}]
[null,null,"344_",{"$f":"_xlfn.XLOOKUP(L_FS[[#This Row],[MÃ]],'~ctbc'!C:C,'~ctbc'!D:D)","v":"Quỹ phát triển khoa học và công nghệ"},0,1,true,"344_","Nợ dài",null,true,{"$f":"_xlfn.LET(_xlpm.a,_xlfn.TEXTJOIN(\";\",TRUE,IF((L_Map[MÃ BC]=L_FS[[#This Row],[MÃ]]),L_Map[MÃ TM],\"\")),IF(LEN(_xlpm.a)>1,_xlpm.a,\"\"))","v":"271_"},{"$f":"_xlfn.TEXTJOIN(\"; \",TRUE,IF((L_Map[MÃ BC]=L_FS[[#This Row],[MÃ]])*(L_Map[BCR]=0),L_Map[CHỈ TIÊU THUYẾT MINH],\"\"))","v":"Quỹ không thuộc CSH"}]
[null,null,"412_",{"$f":"_xlfn.XLOOKUP(L_FS[[#This Row],[MÃ]],'~ctbc'!C:C,'~ctbc'!D:D)","v":"Thặng dư vốn cổ phần"},0,1,true,"412_","Vốn khác",null,true,{"$f":"_xlfn.LET(_xlpm.a,_xlfn.TEXTJOIN(\";\",TRUE,IF((L_Map[MÃ BC]=L_FS[[#This Row],[MÃ]]),L_Map[MÃ TM],\"\")),IF(LEN(_xlpm.a)>1,_xlpm.a,\"\"))","v":"270_"},{"$f":"_xlfn.TEXTJOIN(\"; \",TRUE,IF((L_Map[MÃ BC]=L_FS[[#This Row],[MÃ]])*(L_Map[BCR]=0),L_Map[CHỈ TIÊU THUYẾT MINH],\"\"))","v":"Vốn chủ sở hữu"}]
[null,null,"413_",{"$f":"_xlfn.XLOOKUP(L_FS[[#This Row],[MÃ]],'~ctbc'!C:C,'~ctbc'!D:D)","v":"Quyền chọn chuyển đổi trái phiếu"},0,1,true,"413_","Vốn khác",null,true,{"$f":"_xlfn.LET(_xlpm.a,_xlfn.TEXTJOIN(\";\",TRUE,IF((L_Map[MÃ BC]=L_FS[[#This Row],[MÃ]]),L_Map[MÃ TM],\"\")),IF(LEN(_xlpm.a)>1,_xlpm.a,\"\"))","v":"270_"},{"$f":"_xlfn.TEXTJOIN(\"; \",TRUE,IF((L_Map[MÃ BC]=L_FS[[#This Row],[MÃ]])*(L_Map[BCR]=0),L_Map[CHỈ TIÊU THUYẾT MINH],\"\"))","v":"Vốn chủ sở hữu"}]
[null,null,"414_",{"$f":"_xlfn.XLOOKUP(L_FS[[#This Row],[MÃ]],'~ctbc'!C:C,'~ctbc'!D:D)","v":"Vốn khác của chủ sở hữu"},0,1,true,"414_","Vốn khác",null,true,{"$f":"_xlfn.LET(_xlpm.a,_xlfn.TEXTJOIN(\";\",TRUE,IF((L_Map[MÃ BC]=L_FS[[#This Row],[MÃ]]),L_Map[MÃ TM],\"\")),IF(LEN(_xlpm.a)>1,_xlpm.a,\"\"))","v":"270_"},{"$f":"_xlfn.TEXTJOIN(\"; \",TRUE,IF((L_Map[MÃ BC]=L_FS[[#This Row],[MÃ]])*(L_Map[BCR]=0),L_Map[CHỈ TIÊU THUYẾT MINH],\"\"))","v":"Vốn chủ sở hữu"}]
[null,null,"415_",{"$f":"_xlfn.XLOOKUP(L_FS[[#This Row],[MÃ]],'~ctbc'!C:C,'~ctbc'!D:D)","v":"Cổ phiếu mua lại của chính mình *"},0,1,true,"415_","Vốn khác",null,true,{"$f":"_xlfn.LET(_xlpm.a,_xlfn.TEXTJOIN(\";\",TRUE,IF((L_Map[MÃ BC]=L_FS[[#This Row],[MÃ]]),L_Map[MÃ TM],\"\")),IF(LEN(_xlpm.a)>1,_xlpm.a,\"\"))","v":"270_"},{"$f":"_xlfn.TEXTJOIN(\"; \",TRUE,IF((L_Map[MÃ BC]=L_FS[[#This Row],[MÃ]])*(L_Map[BCR]=0),L_Map[CHỈ TIÊU THUYẾT MINH],\"\"))","v":"Vốn chủ sở hữu"}]
[null,null,"416_",{"$f":"_xlfn.XLOOKUP(L_FS[[#This Row],[MÃ]],'~ctbc'!C:C,'~ctbc'!D:D)","v":"Chênh lệch đánh giá lại tài sản"},0,1,true,"416_","Vốn khác",null,true,{"$f":"_xlfn.LET(_xlpm.a,_xlfn.TEXTJOIN(\";\",TRUE,IF((L_Map[MÃ BC]=L_FS[[#This Row],[MÃ]]),L_Map[MÃ TM],\"\")),IF(LEN(_xlpm.a)>1,_xlpm.a,\"\"))","v":"270_"},{"$f":"_xlfn.TEXTJOIN(\"; \",TRUE,IF((L_Map[MÃ BC]=L_FS[[#This Row],[MÃ]])*(L_Map[BCR]=0),L_Map[CHỈ TIÊU THUYẾT MINH],\"\"))","v":"Vốn chủ sở hữu"}]
[null,null,"417_",{"$f":"_xlfn.XLOOKUP(L_FS[[#This Row],[MÃ]],'~ctbc'!C:C,'~ctbc'!D:D)","v":"Chênh lệch tỷ giá hối đoái"},0,1,true,"417_","Vốn khác",null,true,{"$f":"_xlfn.LET(_xlpm.a,_xlfn.TEXTJOIN(\";\",TRUE,IF((L_Map[MÃ BC]=L_FS[[#This Row],[MÃ]]),L_Map[MÃ TM],\"\")),IF(LEN(_xlpm.a)>1,_xlpm.a,\"\"))","v":"270_"},{"$f":"_xlfn.TEXTJOIN(\"; \",TRUE,IF((L_Map[MÃ BC]=L_FS[[#This Row],[MÃ]])*(L_Map[BCR]=0),L_Map[CHỈ TIÊU THUYẾT MINH],\"\"))","v":"Vốn chủ sở hữu"}]
[null,null,"418_",{"$f":"_xlfn.XLOOKUP(L_FS[[#This Row],[MÃ]],'~ctbc'!C:C,'~ctbc'!D:D)","v":"Quỹ đầu tư phát triển"},0,1,true,"418_","Vốn khác",null,true,{"$f":"_xlfn.LET(_xlpm.a,_xlfn.TEXTJOIN(\";\",TRUE,IF((L_Map[MÃ BC]=L_FS[[#This Row],[MÃ]]),L_Map[MÃ TM],\"\")),IF(LEN(_xlpm.a)>1,_xlpm.a,\"\"))","v":"270_"},{"$f":"_xlfn.TEXTJOIN(\"; \",TRUE,IF((L_Map[MÃ BC]=L_FS[[#This Row],[MÃ]])*(L_Map[BCR]=0),L_Map[CHỈ TIÊU THUYẾT MINH],\"\"))","v":"Vốn chủ sở hữu"}]
[null,null,"419_",{"$f":"_xlfn.XLOOKUP(L_FS[[#This Row],[MÃ]],'~ctbc'!C:C,'~ctbc'!D:D)","v":"Quỹ khác thuộc vốn chủ sở hữu"},0,1,true,"419_","Vốn khác",null,true,{"$f":"_xlfn.LET(_xlpm.a,_xlfn.TEXTJOIN(\";\",TRUE,IF((L_Map[MÃ BC]=L_FS[[#This Row],[MÃ]]),L_Map[MÃ TM],\"\")),IF(LEN(_xlpm.a)>1,_xlpm.a,\"\"))","v":"270_"},{"$f":"_xlfn.TEXTJOIN(\"; \",TRUE,IF((L_Map[MÃ BC]=L_FS[[#This Row],[MÃ]])*(L_Map[BCR]=0),L_Map[CHỈ TIÊU THUYẾT MINH],\"\"))","v":"Vốn chủ sở hữu"}]
[null,null,"41a_",{"$f":"_xlfn.XLOOKUP(L_FS[[#This Row],[MÃ]],'~ctbc'!C:C,'~ctbc'!D:D)","v":"Cổ phiếu phổ thông có quyền biểu quyết"},0,1,true,"41a_","Vốn góp",null,true,{"$f":"_xlfn.LET(_xlpm.a,_xlfn.TEXTJOIN(\";\",TRUE,IF((L_Map[MÃ BC]=L_FS[[#This Row],[MÃ]]),L_Map[MÃ TM],\"\")),IF(LEN(_xlpm.a)>1,_xlpm.a,\"\"))","v":"270_"},{"$f":"_xlfn.TEXTJOIN(\"; \",TRUE,IF((L_Map[MÃ BC]=L_FS[[#This Row],[MÃ]])*(L_Map[BCR]=0),L_Map[CHỈ TIÊU THUYẾT MINH],\"\"))","v":"Vốn chủ sở hữu"}]
[null,null,"41b_",{"$f":"_xlfn.XLOOKUP(L_FS[[#This Row],[MÃ]],'~ctbc'!C:C,'~ctbc'!D:D)","v":"Cổ phiếu ưu đãi"},0,1,true,"41b_","Vốn góp",null,true,{"$f":"_xlfn.LET(_xlpm.a,_xlfn.TEXTJOIN(\";\",TRUE,IF((L_Map[MÃ BC]=L_FS[[#This Row],[MÃ]]),L_Map[MÃ TM],\"\")),IF(LEN(_xlpm.a)>1,_xlpm.a,\"\"))","v":"270_;241_"},{"$f":"_xlfn.TEXTJOIN(\"; \",TRUE,IF((L_Map[MÃ BC]=L_FS[[#This Row],[MÃ]])*(L_Map[BCR]=0),L_Map[CHỈ TIÊU THUYẾT MINH],\"\"))","v":"Vốn chủ sở hữu; Cổ phiếu ưu đãi phân loại là nợ phải trả"}]
[null,null,"429_",{"$f":"_xlfn.XLOOKUP(L_FS[[#This Row],[MÃ]],'~ctbc'!C:C,'~ctbc'!D:D)","v":"Lợi ích của cổ đông không kiểm soát"},0,1,true,"429_","Vốn khác",true,true,{"$f":"_xlfn.LET(_xlpm.a,_xlfn.TEXTJOIN(\";\",TRUE,IF((L_Map[MÃ BC]=L_FS[[#This Row],[MÃ]]),L_Map[MÃ TM],\"\")),IF(LEN(_xlpm.a)>1,_xlpm.a,\"\"))","v":"270_"},{"$f":"_xlfn.TEXTJOIN(\"; \",TRUE,IF((L_Map[MÃ BC]=L_FS[[#This Row],[MÃ]])*(L_Map[BCR]=0),L_Map[CHỈ TIÊU THUYẾT MINH],\"\"))","v":"Vốn chủ sở hữu"}]
[null,null,"42a_",{"$f":"_xlfn.XLOOKUP(L_FS[[#This Row],[MÃ]],'~ctbc'!C:C,'~ctbc'!D:D)","v":"LNST chưa phân phối lũy kế đến cuối kỳ trước"},0,1,true,"42a_","Vốn khác",true,true,{"$f":"_xlfn.LET(_xlpm.a,_xlfn.TEXTJOIN(\";\",TRUE,IF((L_Map[MÃ BC]=L_FS[[#This Row],[MÃ]]),L_Map[MÃ TM],\"\")),IF(LEN(_xlpm.a)>1,_xlpm.a,\"\"))","v":"270_"},{"$f":"_xlfn.TEXTJOIN(\"; \",TRUE,IF((L_Map[MÃ BC]=L_FS[[#This Row],[MÃ]])*(L_Map[BCR]=0),L_Map[CHỈ TIÊU THUYẾT MINH],\"\"))","v":"Vốn chủ sở hữu"}]
[null,null,"42b_",{"$f":"_xlfn.XLOOKUP(L_FS[[#This Row],[MÃ]],'~ctbc'!C:C,'~ctbc'!D:D)","v":"LNST chưa phân phối kỳ này"},0,1,true,"42b_","Vốn khác",true,true,{"$f":"_xlfn.LET(_xlpm.a,_xlfn.TEXTJOIN(\";\",TRUE,IF((L_Map[MÃ BC]=L_FS[[#This Row],[MÃ]]),L_Map[MÃ TM],\"\")),IF(LEN(_xlpm.a)>1,_xlpm.a,\"\"))","v":"270_"},{"$f":"_xlfn.TEXTJOIN(\"; \",TRUE,IF((L_Map[MÃ BC]=L_FS[[#This Row],[MÃ]])*(L_Map[BCR]=0),L_Map[CHỈ TIÊU THUYẾT MINH],\"\"))","v":"Vốn chủ sở hữu"}]

{"sheet":"CTTM","index":4,"n_rows":109,"n_cols":17,"rows_kept":109,"cut":false,"hidden":false,"merged":[[0,0,3,0]]}
[{"$f":"'✅'!A1","v":"Tasco Group"}]
[]
[null,null,"NHÓM THUYẾT MINH",null,null,null,"CHỈ TIÊU THUYẾT MINH BCTC"]
[null,null,null,null,null,null,"(mã x: Chỉ cho BCTC riêng, (*): ghi bằng số âm)","⏬","⏬","Hệ số","BC riêng","Thuyết minh dự phòng"]
[{"$f":"'Công ty'!A5","v":"BCTC hợp nhất"},null,"NH TM","TÊN NHÓM TM",null,"MÃ","CHỈ TIÊU","KHOẢN MỤC","NHÓM","HS","BCR","TMDP","SL link","CTBC đã link","Tên CTBC đã link",null,"Kiểm tra trùng"]
[null,null,"N1","Tài sản và nợ",null,"010_",{"$f":"_xlfn.XLOOKUP(L_TM[[#This Row],[MÃ]],'~cttm'!C:C,'~cttm'!D:D)","v":"Tiền và tương đương tiền"},"TS ngắn","N1",1,null,null,{"$f":"COUNTIFS(L_Map[MÃ TM],L_TM[[#This Row],[MÃ]])","v":2},{"$f":"_xlfn.TEXTJOIN(\";\",TRUE,IF(L_Map[MÃ TM]=L_TM[[#This Row],[MÃ]],L_Map[MÃ BC],\"\"))","v":"111_;112_"},{"$f":"_xlfn.TEXTJOIN(\"; \",TRUE,IF(L_Map[MÃ TM]=L_TM[[#This Row],[MÃ]],L_Map[CHỈ TIÊU BÁO CÁO],\"\"))","v":"Tiền; Các khoản tương đương tiền"},null,{"$f":"_Trùng(L_TM[MÃ])","v":"null"}]
[null,null,"N2","Tài sản cố định",null,"021_",{"$f":"_xlfn.XLOOKUP(L_TM[[#This Row],[MÃ]],'~cttm'!C:C,'~cttm'!D:D)","v":"Đầu tư nắm giữ đến ngày đáo hạn ngắn hạn"},"TS ngắn","N1",1,null,null,{"$f":"COUNTIFS(L_Map[MÃ TM],L_TM[[#This Row],[MÃ]])","v":1},{"$f":"_xlfn.TEXTJOIN(\";\",TRUE,IF(L_Map[MÃ TM]=L_TM[[#This Row],[MÃ]],L_Map[MÃ BC],\"\"))","v":"123_"},{"$f":"_xlfn.TEXTJOIN(\"; \",TRUE,IF(L_Map[MÃ TM]=L_TM[[#This Row],[MÃ]],L_Map[CHỈ TIÊU BÁO CÁO],\"\"))","v":"Đầu tư nắm giữ đến ngày đáo hạn ngắn hạn"}]
["Tập đoàn",null,"N3","Vốn vay",null,"022_",{"$f":"_xlfn.XLOOKUP(L_TM[[#This Row],[MÃ]],'~cttm'!C:C,'~cttm'!D:D)","v":"Đầu tư nắm giữ đến ngày đáo hạn dài hạn"},"TS dài","N1",1,null,null,{"$f":"COUNTIFS(L_Map[MÃ TM],L_TM[[#This Row],[MÃ]])","v":1},{"$f":"_xlfn.TEXTJOIN(\";\",TRUE,IF(L_Map[MÃ TM]=L_TM[[#This Row],[MÃ]],L_Map[MÃ BC],\"\"))","v":"265_"},{"$f":"_xlfn.TEXTJOIN(\"; \",TRUE,IF(L_Map[MÃ TM]=L_TM[[#This Row],[MÃ]],L_Map[CHỈ TIÊU BÁO CÁO],\"\"))","v":"Đầu tư nắm giữ đến ngày đáo hạn dài hạn"}]
[null,null,"N4","Vốn chủ sở hữu",null,"023_",{"$f":"_xlfn.XLOOKUP(L_TM[[#This Row],[MÃ]],'~cttm'!C:C,'~cttm'!D:D)","v":"Đầu tư vào công ty con"},"TS dài","N1",1,null,null,{"$f":"COUNTIFS(L_Map[MÃ TM],L_TM[[#This Row],[MÃ]])","v":1},{"$f":"_xlfn.TEXTJOIN(\";\",TRUE,IF(L_Map[MÃ TM]=L_TM[[#This Row],[MÃ]],L_Map[MÃ BC],\"\"))","v":"261_"},{"$f":"_xlfn.TEXTJOIN(\"; \",TRUE,IF(L_Map[MÃ TM]=L_TM[[#This Row],[MÃ]],L_Map[CHỈ TIÊU BÁO CÁO],\"\"))","v":"Đầu tư vào công ty con"}]
["Danh mục công ty",null,"N5","Doanh thu chi phí",null,"024_",{"$f":"_xlfn.XLOOKUP(L_TM[[#This Row],[MÃ]],'~cttm'!C:C,'~cttm'!D:D)","v":"Đầu tư vào công ty liên kết"},"TS dài","N1",1,null,null,{"$f":"COUNTIFS(L_Map[MÃ TM],L_TM[[#This Row],[MÃ]])","v":1},{"$f":"_xlfn.TEXTJOIN(\";\",TRUE,IF(L_Map[MÃ TM]=L_TM[[#This Row],[MÃ]],L_Map[MÃ BC],\"\"))","v":"262_"},{"$f":"_xlfn.TEXTJOIN(\"; \",TRUE,IF(L_Map[MÃ TM]=L_TM[[#This Row],[MÃ]],L_Map[CHỈ TIÊU BÁO CÁO],\"\"))","v":"Đầu tư vào công ty liên doanh, liên kết"}]
[null,null,"N6","Thuế",null,"025_",{"$f":"_xlfn.XLOOKUP(L_TM[[#This Row],[MÃ]],'~cttm'!C:C,'~cttm'!D:D)","v":"Đầu tư góp vốn vào đơn vị khác"},"TS dài","N1",1,null,null,{"$f":"COUNTIFS(L_Map[MÃ TM],L_TM[[#This Row],[MÃ]])","v":1},{"$f":"_xlfn.TEXTJOIN(\";\",TRUE,IF(L_Map[MÃ TM]=L_TM[[#This Row],[MÃ]],L_Map[MÃ BC],\"\"))","v":"263_"},{"$f":"_xlfn.TEXTJOIN(\"; \",TRUE,IF(L_Map[MÃ TM]=L_TM[[#This Row],[MÃ]],L_Map[CHỈ TIÊU BÁO CÁO],\"\"))","v":"Đầu tư góp vốn vào đơn vị khác"}]
["Thông tin công ty",null,"BP","Báo cáo bộ phận",null,"026_",{"$f":"_xlfn.XLOOKUP(L_TM[[#This Row],[MÃ]],'~cttm'!C:C,'~cttm'!D:D)","v":"Chứng khoán kinh doanh"},"TS ngắn","N1",1,null,null,{"$f":"COUNTIFS(L_Map[MÃ TM],L_TM[[#This Row],[MÃ]])","v":1},{"$f":"_xlfn.TEXTJOIN(\";\",TRUE,IF(L_Map[MÃ TM]=L_TM[[#This Row],[MÃ]],L_Map[MÃ BC],\"\"))","v":"121_"},{"$f":"_xlfn.TEXTJOIN(\"; \",TRUE,IF(L_Map[MÃ TM]=L_TM[[#This Row],[MÃ]],L_Map[CHỈ TIÊU BÁO CÁO],\"\"))","v":"Chứng khoán kinh doanh"}]
[null,null,"N¹¹","Bổ sung số dư",null,"027_",{"$f":"_xlfn.XLOOKUP(L_TM[[#This Row],[MÃ]],'~cttm'!C:C,'~cttm'!D:D)","v":"Dự phòng giảm giá chứng khoán kinh doanh *"},"TS ngắn","N1",-1,null,"021_;026_",{"$f":"COUNTIFS(L_Map[MÃ TM],L_TM[[#This Row],[MÃ]])","v":1},{"$f":"_xlfn.TEXTJOIN(\";\",TRUE,IF(L_Map[MÃ TM]=L_TM[[#This Row],[MÃ]],L_Map[MÃ BC],\"\"))","v":"122_"},{"$f":"_xlfn.TEXTJOIN(\"; \",TRUE,IF(L_Map[MÃ TM]=L_TM[[#This Row],[MÃ]],L_Map[CHỈ TIÊU BÁO CÁO],\"\"))","v":"Dự phòng giảm giá chứng khoán kinh doanh *"}]
["Tài khoản kế toán",null,"N¹²","Bổ sung phát sinh",null,"028_",{"$f":"_xlfn.XLOOKUP(L_TM[[#This Row],[MÃ]],'~cttm'!C:C,'~cttm'!D:D)","v":"Dự phòng đầu tư tài chính dài hạn *"},"TS dài","N1",-1,null,"022_;023_;024_;025_",{"$f":"COUNTIFS(L_Map[MÃ TM],L_TM[[#This Row],[MÃ]])","v":2},{"$f":"_xlfn.TEXTJOIN(\";\",TRUE,IF(L_Map[MÃ TM]=L_TM[[#This Row],[MÃ]],L_Map[MÃ BC],\"\"))","v":"264_;266_"},{"$f":"_xlfn.TEXTJOIN(\"; \",TRUE,IF(L_Map[MÃ TM]=L_TM[[#This Row],[MÃ]],L_Map[CHỈ TIÊU BÁO CÁO],\"\"))","v":"Dự phòng tổn thất đầu tư vào đơn vị khác dài hạn *; Dự phòng đầu tư nắm giữ đến ngày đáo hạn dài hạn *"}]
[null,null,null,null,null,"031_",{"$f":"_xlfn.XLOOKUP(L_TM[[#This Row],[MÃ]],'~cttm'!C:C,'~cttm'!D:D)","v":"Phải thu ngắn hạn của khách hàng"},"TS ngắn","N1",1,null,null,{"$f":"COUNTIFS(L_Map[MÃ TM],L_TM[[#This Row],[MÃ]])","v":1},{"$f":"_xlfn.TEXTJOIN(\";\",TRUE,IF(L_Map[MÃ TM]=L_TM[[#This Row],[MÃ]],L_Map[MÃ BC],\"\"))","v":"131_"},{"$f":"_xlfn.TEXTJOIN(\"; \",TRUE,IF(L_Map[MÃ TM]=L_TM[[#This Row],[MÃ]],L_Map[CHỈ TIÊU BÁO CÁO],\"\"))","v":"Phải thu ngắn hạn của khách hàng"}]
["Chỉ tiêu báo cáo",null,null,null,null,"031s",{"$f":"_xlfn.XLOOKUP(L_TM[[#This Row],[MÃ]],'~cttm'!C:C,'~cttm'!D:D)","v":"Phải thu ngắn hạn của khách hàng ᴿ"},"TS ngắn","N1",1,true,null,{"$f":"COUNTIFS(L_Map[MÃ TM],L_TM[[#This Row],[MÃ]])","v":0},{"$f":"_xlfn.TEXTJOIN(\";\",TRUE,IF(L_Map[MÃ TM]=L_TM[[#This Row],[MÃ]],L_Map[MÃ BC],\"\"))","v":""},{"$f":"_xlfn.TEXTJOIN(\"; \",TRUE,IF(L_Map[MÃ TM]=L_TM[[#This Row],[MÃ]],L_Map[CHỈ TIÊU BÁO CÁO],\"\"))","v":""}]
[null,null,null,null,null,"032_",{"$f":"_xlfn.XLOOKUP(L_TM[[#This Row],[MÃ]],'~cttm'!C:C,'~cttm'!D:D)","v":"Phải thu dài hạn của khách hàng"},"TS dài","N1",1,null,null,{"$f":"COUNTIFS(L_Map[MÃ TM],L_TM[[#This Row],[MÃ]])","v":1},{"$f":"_xlfn.TEXTJOIN(\";\",TRUE,IF(L_Map[MÃ TM]=L_TM[[#This Row],[MÃ]],L_Map[MÃ BC],\"\"))","v":"211_"},{"$f":"_xlfn.TEXTJOIN(\"; \",TRUE,IF(L_Map[MÃ TM]=L_TM[[#This Row],[MÃ]],L_Map[CHỈ TIÊU BÁO CÁO],\"\"))","v":"Phải thu dài hạn của khách hàng"}]
["Chỉ tiêu thuyết minh",null,null,null,null,"032s",{"$f":"_xlfn.XLOOKUP(L_TM[[#This Row],[MÃ]],'~cttm'!C:C,'~cttm'!D:D)","v":"Phải thu dài hạn của khách hàng ᴿ"},"TS dài","N1",1,true,null,{"$f":"COUNTIFS(L_Map[MÃ TM],L_TM[[#This Row],[MÃ]])","v":0},{"$f":"_xlfn.TEXTJOIN(\";\",TRUE,IF(L_Map[MÃ TM]=L_TM[[#This Row],[MÃ]],L_Map[MÃ BC],\"\"))","v":""},{"$f":"_xlfn.TEXTJOIN(\"; \",TRUE,IF(L_Map[MÃ TM]=L_TM[[#This Row],[MÃ]],L_Map[CHỈ TIÊU BÁO CÁO],\"\"))","v":""}]
[null,null,null,null,null,"033_",{"$f":"_xlfn.XLOOKUP(L_TM[[#This Row],[MÃ]],'~cttm'!C:C,'~cttm'!D:D)","v":"Trả trước cho người bán ngắn hạn"},"TS ngắn","N1",1,null,null,{"$f":"COUNTIFS(L_Map[MÃ TM],L_TM[[#This Row],[MÃ]])","v":1},{"$f":"_xlfn.TEXTJOIN(\";\",TRUE,IF(L_Map[MÃ TM]=L_TM[[#This Row],[MÃ]],L_Map[MÃ BC],\"\"))","v":"132_"},{"$f":"_xlfn.TEXTJOIN(\"; \",TRUE,IF(L_Map[MÃ TM]=L_TM[[#This Row],[MÃ]],L_Map[CHỈ TIÊU BÁO CÁO],\"\"))","v":"Trả trước cho người bán ngắn hạn"}]
["Map chỉ tiêu BC-TM",null,null,null,null,"033s",{"$f":"_xlfn.XLOOKUP(L_TM[[#This Row],[MÃ]],'~cttm'!C:C,'~cttm'!D:D)","v":"Trả trước cho người bán ngắn hạn ᴿ"},"TS ngắn","N1",1,true,null,{"$f":"COUNTIFS(L_Map[MÃ TM],L_TM[[#This Row],[MÃ]])","v":0},{"$f":"_xlfn.TEXTJOIN(\";\",TRUE,IF(L_Map[MÃ TM]=L_TM[[#This Row],[MÃ]],L_Map[MÃ BC],\"\"))","v":""},{"$f":"_xlfn.TEXTJOIN(\"; \",TRUE,IF(L_Map[MÃ TM]=L_TM[[#This Row],[MÃ]],L_Map[CHỈ TIÊU BÁO CÁO],\"\"))","v":""}]
[null,null,null,null,null,"034_",{"$f":"_xlfn.XLOOKUP(L_TM[[#This Row],[MÃ]],'~cttm'!C:C,'~cttm'!D:D)","v":"Trả trước cho người bán dài hạn"},"TS dài","N1",1,null,null,{"$f":"COUNTIFS(L_Map[MÃ TM],L_TM[[#This Row],[MÃ]])","v":1},{"$f":"_xlfn.TEXTJOIN(\";\",TRUE,IF(L_Map[MÃ TM]=L_TM[[#This Row],[MÃ]],L_Map[MÃ BC],\"\"))","v":"212_"},{"$f":"_xlfn.TEXTJOIN(\"; \",TRUE,IF(L_Map[MÃ TM]=L_TM[[#This Row],[MÃ]],L_Map[CHỈ TIÊU BÁO CÁO],\"\"))","v":"Trả trước cho người bán dài hạn"}]
["Chỉ tiêu dòng tiền",null,null,null,null,"034s",{"$f":"_xlfn.XLOOKUP(L_TM[[#This Row],[MÃ]],'~cttm'!C:C,'~cttm'!D:D)","v":"Trả trước cho người bán dài hạn ᴿ"},"TS dài","N1",1,true,null,{"$f":"COUNTIFS(L_Map[MÃ TM],L_TM[[#This Row],[MÃ]])","v":0},{"$f":"_xlfn.TEXTJOIN(\";\",TRUE,IF(L_Map[MÃ TM]=L_TM[[#This Row],[MÃ]],L_Map[MÃ BC],\"\"))","v":""},{"$f":"_xlfn.TEXTJOIN(\"; \",TRUE,IF(L_Map[MÃ TM]=L_TM[[#This Row],[MÃ]],L_Map[CHỈ TIÊU BÁO CÁO],\"\"))","v":""}]
[null,null,null,null,null,"041_",{"$f":"_xlfn.XLOOKUP(L_TM[[#This Row],[MÃ]],'~cttm'!C:C,'~cttm'!D:D)","v":"Phải thu khác ngắn hạn"},"TS ngắn","N1",1,null,null,{"$f":"COUNTIFS(L_Map[MÃ TM],L_TM[[#This Row],[MÃ]])","v":1},{"$f":"_xlfn.TEXTJOIN(\";\",TRUE,IF(L_Map[MÃ TM]=L_TM[[#This Row],[MÃ]],L_Map[MÃ BC],\"\"))","v":"135_"},{"$f":"_xlfn.TEXTJOIN(\"; \",TRUE,IF(L_Map[MÃ TM]=L_TM[[#This Row],[MÃ]],L_Map[CHỈ TIÊU BÁO CÁO],\"\"))","v":"Các khoản phải thu khác"}]
["Phân loại vốn vay",null,null,null,null,"041s",{"$f":"_xlfn.XLOOKUP(L_TM[[#This Row],[MÃ]],'~cttm'!C:C,'~cttm'!D:D)","v":"Phải thu khác ngắn hạn ᴿ"},"TS ngắn","N1",1,true,null,{"$f":"COUNTIFS(L_Map[MÃ TM],L_TM[[#This Row],[MÃ]])","v":0},{"$f":"_xlfn.TEXTJOIN(\";\",TRUE,IF(L_Map[MÃ TM]=L_TM[[#This Row],[MÃ]],L_Map[MÃ BC],\"\"))","v":""},{"$f":"_xlfn.TEXTJOIN(\"; \",TRUE,IF(L_Map[MÃ TM]=L_TM[[#This Row],[MÃ]],L_Map[CHỈ TIÊU BÁO CÁO],\"\"))","v":""}]
[null,null,null,null,null,"042_",{"$f":"_xlfn.XLOOKUP(L_TM[[#This Row],[MÃ]],'~cttm'!C:C,'~cttm'!D:D)","v":"Phải thu khác dài hạn"},"TS dài","N1",1,null,null,{"$f":"COUNTIFS(L_Map[MÃ TM],L_TM[[#This Row],[MÃ]])","v":1},{"$f":"_xlfn.TEXTJOIN(\";\",TRUE,IF(L_Map[MÃ TM]=L_TM[[#This Row],[MÃ]],L_Map[MÃ BC],\"\"))","v":"215_"},{"$f":"_xlfn.TEXTJOIN(\"; \",TRUE,IF(L_Map[MÃ TM]=L_TM[[#This Row],[MÃ]],L_Map[CHỈ TIÊU BÁO CÁO],\"\"))","v":"Phải thu dài hạn khác"}]
["Danh mục khác",null,null,null,null,"042s",{"$f":"_xlfn.XLOOKUP(L_TM[[#This Row],[MÃ]],'~cttm'!C:C,'~cttm'!D:D)","v":"Phải thu khác dài hạn ᴿ"},"TS dài","N1",1,true,null,{"$f":"COUNTIFS(L_Map[MÃ TM],L_TM[[#This Row],[MÃ]])","v":0},{"$f":"_xlfn.TEXTJOIN(\";\",TRUE,IF(L_Map[MÃ TM]=L_TM[[#This Row],[MÃ]],L_Map[MÃ BC],\"\"))","v":""},{"$f":"_xlfn.TEXTJOIN(\"; \",TRUE,IF(L_Map[MÃ TM]=L_TM[[#This Row],[MÃ]],L_Map[CHỈ TIÊU BÁO CÁO],\"\"))","v":""}]
[null,null,null,null,null,"043_",{"$f":"_xlfn.XLOOKUP(L_TM[[#This Row],[MÃ]],'~cttm'!C:C,'~cttm'!D:D)","v":"Dự phòng phải thu ngắn hạn khó đòi *"},"TS ngắn","N1",-1,null,"031_;033_;041_;043_",{"$f":"COUNTIFS(L_Map[MÃ TM],L_TM[[#This Row],[MÃ]])","v":1},{"$f":"_xlfn.TEXTJOIN(\";\",TRUE,IF(L_Map[MÃ TM]=L_TM[[#This Row],[MÃ]],L_Map[MÃ BC],\"\"))","v":"136_"},{"$f":"_xlfn.TEXTJOIN(\"; \",TRUE,IF(L_Map[MÃ TM]=L_TM[[#This Row],[MÃ]],L_Map[CHỈ TIÊU BÁO CÁO],\"\"))","v":"Dự phòng phải thu ngắn hạn khó đòi *"}]
["Tùy chọn",null,null,null,null,"044_",{"$f":"_xlfn.XLOOKUP(L_TM[[#This Row],[MÃ]],'~cttm'!C:C,'~cttm'!D:D)","v":"Dự phòng phải thu dài hạn khó đòi *"},"TS dài","N1",-1,null,"032_;034_;042_;044_",{"$f":"COUNTIFS(L_Map[MÃ TM],L_TM[[#This Row],[MÃ]])","v":1},{"$f":"_xlfn.TEXTJOIN(\";\",TRUE,IF(L_Map[MÃ TM]=L_TM[[#This Row],[MÃ]],L_Map[MÃ BC],\"\"))","v":"216_"},{"$f":"_xlfn.TEXTJOIN(\"; \",TRUE,IF(L_Map[MÃ TM]=L_TM[[#This Row],[MÃ]],L_Map[CHỈ TIÊU BÁO CÁO],\"\"))","v":"Dự phòng phải thu dài hạn khó đòi *"}]
[null,null,null,null,null,"050_",{"$f":"_xlfn.XLOOKUP(L_TM[[#This Row],[MÃ]],'~cttm'!C:C,'~cttm'!D:D)","v":"Tài sản thiếu chờ xử lý"},"TS ngắn","N1",1,null,null,{"$f":"COUNTIFS(L_Map[MÃ TM],L_TM[[#This Row],[MÃ]])","v":1},{"$f":"_xlfn.TEXTJOIN(\";\",TRUE,IF(L_Map[MÃ TM]=L_TM[[#This Row],[MÃ]],L_Map[MÃ BC],\"\"))","v":"137_"},{"$f":"_xlfn.TEXTJOIN(\"; \",TRUE,IF(L_Map[MÃ TM]=L_TM[[#This Row],[MÃ]],L_Map[CHỈ TIÊU BÁO CÁO],\"\"))","v":"Tài sản thiếu chờ xử lý"}]
[null,null,null,null,null,"051_",{"$f":"_xlfn.XLOOKUP(L_TM[[#This Row],[MÃ]],'~cttm'!C:C,'~cttm'!D:D)","v":"Nợ xấu"},"TS ngắn","N1",0,null,null,{"$f":"COUNTIFS(L_Map[MÃ TM],L_TM[[#This Row],[MÃ]])","v":0},{"$f":"_xlfn.TEXTJOIN(\";\",TRUE,IF(L_Map[MÃ TM]=L_TM[[#This Row],[MÃ]],L_Map[MÃ BC],\"\"))","v":""},{"$f":"_xlfn.TEXTJOIN(\"; \",TRUE,IF(L_Map[MÃ TM]=L_TM[[#This Row],[MÃ]],L_Map[CHỈ TIÊU BÁO CÁO],\"\"))","v":""}]
[null,null,null,null,null,"061_",{"$f":"_xlfn.XLOOKUP(L_TM[[#This Row],[MÃ]],'~cttm'!C:C,'~cttm'!D:D)","v":"Tài sản khác ngắn hạn"},"TS ngắn","N1",0,null,null,{"$f":"COUNTIFS(L_Map[MÃ TM],L_TM[[#This Row],[MÃ]])","v":1},{"$f":"_xlfn.TEXTJOIN(\";\",TRUE,IF(L_Map[MÃ TM]=L_TM[[#This Row],[MÃ]],L_Map[MÃ BC],\"\"))","v":"165_"},{"$f":"_xlfn.TEXTJOIN(\"; \",TRUE,IF(L_Map[MÃ TM]=L_TM[[#This Row],[MÃ]],L_Map[CHỈ TIÊU BÁO CÁO],\"\"))","v":"Tài sản ngắn hạn khác"}]
[null,null,null,null,null,"062_",{"$f":"_xlfn.XLOOKUP(L_TM[[#This Row],[MÃ]],'~cttm'!C:C,'~cttm'!D:D)","v":"Tài sản khác dài hạn"},"TS dài","N1",0,null,null,{"$f":"COUNTIFS(L_Map[MÃ TM],L_TM[[#This Row],[MÃ]])","v":2},{"$f":"_xlfn.TEXTJOIN(\";\",TRUE,IF(L_Map[MÃ TM]=L_TM[[#This Row],[MÃ]],L_Map[MÃ BC],\"\"))","v":"273_;274_"},{"$f":"_xlfn.TEXTJOIN(\"; \",TRUE,IF(L_Map[MÃ TM]=L_TM[[#This Row],[MÃ]],L_Map[CHỈ TIÊU BÁO CÁO],\"\"))","v":"Thiết bị, vật tư, phụ tùng thay thế dài hạn; Tài sản dài hạn khác"}]
[null,null,null,null,null,"063_",{"$f":"_xlfn.XLOOKUP(L_TM[[#This Row],[MÃ]],'~cttm'!C:C,'~cttm'!D:D)","v":"Phải thu nội bộ ngắn hạn"},"TS ngắn","N1",0,null,null,{"$f":"COUNTIFS(L_Map[MÃ TM],L_TM[[#This Row],[MÃ]])","v":1},{"$f":"_xlfn.TEXTJOIN(\";\",TRUE,IF(L_Map[MÃ TM]=L_TM[[#This Row],[MÃ]],L_Map[MÃ BC],\"\"))","v":"133_"},{"$f":"_xlfn.TEXTJOIN(\"; \",TRUE,IF(L_Map[MÃ TM]=L_TM[[#This Row],[MÃ]],L_Map[CHỈ TIÊU BÁO CÁO],\"\"))","v":"Phải thu nội bộ ngắn hạn"}]
[null,null,null,null,null,"064_",{"$f":"_xlfn.XLOOKUP(L_TM[[#This Row],[MÃ]],'~cttm'!C:C,'~cttm'!D:D)","v":"Phải thu nội bộ dài hạn"},"TS dài","N1",0,null,null,{"$f":"COUNTIFS(L_Map[MÃ TM],L_TM[[#This Row],[MÃ]])","v":2},{"$f":"_xlfn.TEXTJOIN(\";\",TRUE,IF(L_Map[MÃ TM]=L_TM[[#This Row],[MÃ]],L_Map[MÃ BC],\"\"))","v":"213_;214_"},{"$f":"_xlfn.TEXTJOIN(\"; \",TRUE,IF(L_Map[MÃ TM]=L_TM[[#This Row],[MÃ]],L_Map[CHỈ TIÊU BÁO CÁO],\"\"))","v":"Vốn kinh doanh ở đơn vị trực thuộc; Phải thu nội bộ dài hạn"}]
[null,null,null,null,null,"065_",{"$f":"_xlfn.XLOOKUP(L_TM[[#This Row],[MÃ]],'~cttm'!C:C,'~cttm'!D:D)","v":"Phải thu theo tiến độ HĐXD"},"TS ngắn","N1",0,null,null,{"$f":"COUNTIFS(L_Map[MÃ TM],L_TM[[#This Row],[MÃ]])","v":1},{"$f":"_xlfn.TEXTJOIN(\";\",TRUE,IF(L_Map[MÃ TM]=L_TM[[#This Row],[MÃ]],L_Map[MÃ BC],\"\"))","v":"134_"},{"$f":"_xlfn.TEXTJOIN(\"; \",TRUE,IF(L_Map[MÃ TM]=L_TM[[#This Row],[MÃ]],L_Map[CHỈ TIÊU BÁO CÁO],\"\"))","v":"Phải thu theo tiến độ HĐXD"}]
[null,null,null,null,null,"071_",{"$f":"_xlfn.XLOOKUP(L_TM[[#This Row],[MÃ]],'~cttm'!C:C,'~cttm'!D:D)","v":"Hàng tồn kho"},"TS ngắn","N1",1,null,null,{"$f":"COUNTIFS(L_Map[MÃ TM],L_TM[[#This Row],[MÃ]])","v":1},{"$f":"_xlfn.TEXTJOIN(\";\",TRUE,IF(L_Map[MÃ TM]=L_TM[[#This Row],[MÃ]],L_Map[MÃ BC],\"\"))","v":"141_"},{"$f":"_xlfn.TEXTJOIN(\"; \",TRUE,IF(L_Map[MÃ TM]=L_TM[[#This Row],[MÃ]],L_Map[CHỈ TIÊU BÁO CÁO],\"\"))","v":"Hàng tồn kho"}]
[null,null,null,null,null,"072_",{"$f":"_xlfn.XLOOKUP(L_TM[[#This Row],[MÃ]],'~cttm'!C:C,'~cttm'!D:D)","v":"Dự phòng giảm giá hàng tồn kho *"},"TS ngắn","N1",-1,null,"071_",{"$f":"COUNTIFS(L_Map[MÃ TM],L_TM[[#This Row],[MÃ]])","v":1},{"$f":"_xlfn.TEXTJOIN(\";\",TRUE,IF(L_Map[MÃ TM]=L_TM[[#This Row],[MÃ]],L_Map[MÃ BC],\"\"))","v":"142_"},{"$f":"_xlfn.TEXTJOIN(\"; \",TRUE,IF(L_Map[MÃ TM]=L_TM[[#This Row],[MÃ]],L_Map[CHỈ TIÊU BÁO CÁO],\"\"))","v":"Dự phòng giảm giá hàng tồn kho *"}]
[null,null,null,null,null,"081_",{"$f":"_xlfn.XLOOKUP(L_TM[[#This Row],[MÃ]],'~cttm'!C:C,'~cttm'!D:D)","v":"Chi phí SXKD dở dang dài hạn"},"TS dài","N1",1,null,null,{"$f":"COUNTIFS(L_Map[MÃ TM],L_TM[[#This Row],[MÃ]])","v":1},{"$f":"_xlfn.TEXTJOIN(\";\",TRUE,IF(L_Map[MÃ TM]=L_TM[[#This Row],[MÃ]],L_Map[MÃ BC],\"\"))","v":"251_"},{"$f":"_xlfn.TEXTJOIN(\"; \",TRUE,IF(L_Map[MÃ TM]=L_TM[[#This Row],[MÃ]],L_Map[CHỈ TIÊU BÁO CÁO],\"\"))","v":"Chi phí sản xuất, kinh doanh dở dang dài hạn"}]
[null,null,null,null,null,"082_",{"$f":"_xlfn.XLOOKUP(L_TM[[#This Row],[MÃ]],'~cttm'!C:C,'~cttm'!D:D)","v":"Chi phí XDCB dở dang"},"TS dài","N1",1,null,null,{"$f":"COUNTIFS(L_Map[MÃ TM],L_TM[[#This Row],[MÃ]])","v":1},{"$f":"_xlfn.TEXTJOIN(\";\",TRUE,IF(L_Map[MÃ TM]=L_TM[[#This Row],[MÃ]],L_Map[MÃ BC],\"\"))","v":"252_"},{"$f":"_xlfn.TEXTJOIN(\"; \",TRUE,IF(L_Map[MÃ TM]=L_TM[[#This Row],[MÃ]],L_Map[CHỈ TIÊU BÁO CÁO],\"\"))","v":"Chi phí xây dựng cơ bản dở dang"}]
[null,null,null,null,null,"091_",{"$f":"_xlfn.XLOOKUP(L_TM[[#This Row],[MÃ]],'~cttm'!C:C,'~cttm'!D:D)","v":"TSCĐ hữu hình - Nguyên giá"},"TS dài","N2",1,null,null,{"$f":"COUNTIFS(L_Map[MÃ TM],L_TM[[#This Row],[MÃ]])","v":1},{"$f":"_xlfn.TEXTJOIN(\";\",TRUE,IF(L_Map[MÃ TM]=L_TM[[#This Row],[MÃ]],L_Map[MÃ BC],\"\"))","v":"222_"},{"$f":"_xlfn.TEXTJOIN(\"; \",TRUE,IF(L_Map[MÃ TM]=L_TM[[#This Row],[MÃ]],L_Map[CHỈ TIÊU BÁO CÁO],\"\"))","v":"Nguyên giá TSCĐ hữu hình"}]
[null,null,null,null,null,"091s",{"$f":"_xlfn.XLOOKUP(L_TM[[#This Row],[MÃ]],'~cttm'!C:C,'~cttm'!D:D)","v":"NG TSCĐ HH đã KH hết đang sử dụng"},"TS dài","N2",0,null,null,{"$f":"COUNTIFS(L_Map[MÃ TM],L_TM[[#This Row],[MÃ]])","v":1},{"$f":"_xlfn.TEXTJOIN(\";\",TRUE,IF(L_Map[MÃ TM]=L_TM[[#This Row],[MÃ]],L_Map[MÃ BC],\"\"))","v":"222_"},{"$f":"_xlfn.TEXTJOIN(\"; \",TRUE,IF(L_Map[MÃ TM]=L_TM[[#This Row],[MÃ]],L_Map[CHỈ TIÊU BÁO CÁO],\"\"))","v":"Nguyên giá TSCĐ hữu hình"}]
[null,null,null,null,null,"092_",{"$f":"_xlfn.XLOOKUP(L_TM[[#This Row],[MÃ]],'~cttm'!C:C,'~cttm'!D:D)","v":"TSCĐ hữu hình - Hao mòn lũy kế *"},"TS dài","N2",-1,null,null,{"$f":"COUNTIFS(L_Map[MÃ TM],L_TM[[#This Row],[MÃ]])","v":1},{"$f":"_xlfn.TEXTJOIN(\";\",TRUE,IF(L_Map[MÃ TM]=L_TM[[#This Row],[MÃ]],L_Map[MÃ BC],\"\"))","v":"223_"},{"$f":"_xlfn.TEXTJOIN(\"; \",TRUE,IF(L_Map[MÃ TM]=L_TM[[#This Row],[MÃ]],L_Map[CHỈ TIÊU BÁO CÁO],\"\"))","v":"Giá trị hao mòn lũy kế TSCĐ hữu hình"}]
[null,null,null,null,null,"101_",{"$f":"_xlfn.XLOOKUP(L_TM[[#This Row],[MÃ]],'~cttm'!C:C,'~cttm'!D:D)","v":"TSCĐ vô hình - Nguyên giá"},"TS dài","N2",1,null,null,{"$f":"COUNTIFS(L_Map[MÃ TM],L_TM[[#This Row],[MÃ]])","v":1},{"$f":"_xlfn.TEXTJOIN(\";\",TRUE,IF(L_Map[MÃ TM]=L_TM[[#This Row],[MÃ]],L_Map[MÃ BC],\"\"))","v":"228_"},{"$f":"_xlfn.TEXTJOIN(\"; \",TRUE,IF(L_Map[MÃ TM]=L_TM[[#This Row],[MÃ]],L_Map[CHỈ TIÊU BÁO CÁO],\"\"))","v":"Nguyên giá TSCĐ vô hình"}]
[null,null,null,null,null,"101s",{"$f":"_xlfn.XLOOKUP(L_TM[[#This Row],[MÃ]],'~cttm'!C:C,'~cttm'!D:D)","v":"NG TSCĐ VH đã KH hết đang sử dụng"},"TS dài","N2",0,null,null,{"$f":"COUNTIFS(L_Map[MÃ TM],L_TM[[#This Row],[MÃ]])","v":1},{"$f":"_xlfn.TEXTJOIN(\";\",TRUE,IF(L_Map[MÃ TM]=L_TM[[#This Row],[MÃ]],L_Map[MÃ BC],\"\"))","v":"228_"},{"$f":"_xlfn.TEXTJOIN(\"; \",TRUE,IF(L_Map[MÃ TM]=L_TM[[#This Row],[MÃ]],L_Map[CHỈ TIÊU BÁO CÁO],\"\"))","v":"Nguyên giá TSCĐ vô hình"}]
[null,null,null,null,null,"102_",{"$f":"_xlfn.XLOOKUP(L_TM[[#This Row],[MÃ]],'~cttm'!C:C,'~cttm'!D:D)","v":"TSCĐ vô hình - Hao mòn lũy kế *"},"TS dài","N2",-1,null,null,{"$f":"COUNTIFS(L_Map[MÃ TM],L_TM[[#This Row],[MÃ]])","v":1},{"$f":"_xlfn.TEXTJOIN(\";\",TRUE,IF(L_Map[MÃ TM]=L_TM[[#This Row],[MÃ]],L_Map[MÃ BC],\"\"))","v":"229_"},{"$f":"_xlfn.TEXTJOIN(\"; \",TRUE,IF(L_Map[MÃ TM]=L_TM[[#This Row],[MÃ]],L_Map[CHỈ TIÊU BÁO CÁO],\"\"))","v":"Giá trị hao mòn lũy kế TSCĐ vô hình"}]
[null,null,null,null,null,"111_",{"$f":"_xlfn.XLOOKUP(L_TM[[#This Row],[MÃ]],'~cttm'!C:C,'~cttm'!D:D)","v":"TSCĐ thuê tài chính - Nguyên giá"},"TS dài","N2",1,null,null,{"$f":"COUNTIFS(L_Map[MÃ TM],L_TM[[#This Row],[MÃ]])","v":1},{"$f":"_xlfn.TEXTJOIN(\";\",TRUE,IF(L_Map[MÃ TM]=L_TM[[#This Row],[MÃ]],L_Map[MÃ BC],\"\"))","v":"225_"},{"$f":"_xlfn.TEXTJOIN(\"; \",TRUE,IF(L_Map[MÃ TM]=L_TM[[#This Row],[MÃ]],L_Map[CHỈ TIÊU BÁO CÁO],\"\"))","v":"Nguyên giá TSCĐ thuê tài chính"}]
[null,null,null,null,null,"112_",{"$f":"_xlfn.XLOOKUP(L_TM[[#This Row],[MÃ]],'~cttm'!C:C,'~cttm'!D:D)","v":"TSCĐ thuê tài chính - Hao mòn lũy kế *"},"TS dài","N2",-1,null,null,{"$f":"COUNTIFS(L_Map[MÃ TM],L_TM[[#This Row],[MÃ]])","v":1},{"$f":"_xlfn.TEXTJOIN(\";\",TRUE,IF(L_Map[MÃ TM]=L_TM[[#This Row],[MÃ]],L_Map[MÃ BC],\"\"))","v":"226_"},{"$f":"_xlfn.TEXTJOIN(\"; \",TRUE,IF(L_Map[MÃ TM]=L_TM[[#This Row],[MÃ]],L_Map[CHỈ TIÊU BÁO CÁO],\"\"))","v":"Giá trị hao mòn lũy kế TSCĐ thuê tài chính"}]
[null,null,null,null,null,"121_",{"$f":"_xlfn.XLOOKUP(L_TM[[#This Row],[MÃ]],'~cttm'!C:C,'~cttm'!D:D)","v":"Tài sản sinh học khác"},"TS dài","N1",1,null,null,{"$f":"COUNTIFS(L_Map[MÃ TM],L_TM[[#This Row],[MÃ]])","v":3},{"$f":"_xlfn.TEXTJOIN(\";\",TRUE,IF(L_Map[MÃ TM]=L_TM[[#This Row],[MÃ]],L_Map[MÃ BC],\"\"))","v":"151_;152_;232_"},{"$f":"_xlfn.TEXTJOIN(\"; \",TRUE,IF(L_Map[MÃ TM]=L_TM[[#This Row],[MÃ]],L_Map[CHỈ TIÊU BÁO CÁO],\"\"))","v":"Con vật nuôi lấy sản phẩm một lần ngắn hạn; Cây trồng theo mùa vụ hoặc lấy SP một lần ngắn hạn; Con vật nuôi cho SP định kỳ chưa đến gđ trưởng thành"}]
[null,null,null,null,null,"122_",{"$f":"_xlfn.XLOOKUP(L_TM[[#This Row],[MÃ]],'~cttm'!C:C,'~cttm'!D:D)","v":"Con vật cho SP định kỳ đạt đến GĐ trưởng thành - Nguyên giá"},"TS dài","N2",1,null,null,{"$f":"COUNTIFS(L_Map[MÃ TM],L_TM[[#This Row],[MÃ]])","v":1},{"$f":"_xlfn.TEXTJOIN(\";\",TRUE,IF(L_Map[MÃ TM]=L_TM[[#This Row],[MÃ]],L_Map[MÃ BC],\"\"))","v":"234_"},{"$f":"_xlfn.TEXTJOIN(\"; \",TRUE,IF(L_Map[MÃ TM]=L_TM[[#This Row],[MÃ]],L_Map[CHỈ TIÊU BÁO CÁO],\"\"))","v":"Con vật nuôi cho SP định kỳ đến giai đoạn trưởng thành (nguyên giá)"}]
[null,null,null,null,null,"123_",{"$f":"_xlfn.XLOOKUP(L_TM[[#This Row],[MÃ]],'~cttm'!C:C,'~cttm'!D:D)","v":"Con vật cho SP định kỳ đạt đến GĐ trưởng thành - Khấu hao lũy kế"},"TS dài","N2",-1,null,null,{"$f":"COUNTIFS(L_Map[MÃ TM],L_TM[[#This Row],[MÃ]])","v":1},{"$f":"_xlfn.TEXTJOIN(\";\",TRUE,IF(L_Map[MÃ TM]=L_TM[[#This Row],[MÃ]],L_Map[MÃ BC],\"\"))","v":"235_"},{"$f":"_xlfn.TEXTJOIN(\"; \",TRUE,IF(L_Map[MÃ TM]=L_TM[[#This Row],[MÃ]],L_Map[CHỈ TIÊU BÁO CÁO],\"\"))","v":"Con vật nuôi cho SP định kỳ đến giai đoạn trưởng thành (KH lũy kế)"}]
[null,null,null,null,null,"131_",{"$f":"_xlfn.XLOOKUP(L_TM[[#This Row],[MÃ]],'~cttm'!C:C,'~cttm'!D:D)","v":"BĐS đầu tư - Nguyên giá"},"TS dài","N2",1,null,null,{"$f":"COUNTIFS(L_Map[MÃ TM],L_TM[[#This Row],[MÃ]])","v":1},{"$f":"_xlfn.TEXTJOIN(\";\",TRUE,IF(L_Map[MÃ TM]=L_TM[[#This Row],[MÃ]],L_Map[MÃ BC],\"\"))","v":"241_"},{"$f":"_xlfn.TEXTJOIN(\"; \",TRUE,IF(L_Map[MÃ TM]=L_TM[[#This Row],[MÃ]],L_Map[CHỈ TIÊU BÁO CÁO],\"\"))","v":"Nguyên giá BĐS đầu tư"}]
[null,null,null,null,null,"132_",{"$f":"_xlfn.XLOOKUP(L_TM[[#This Row],[MÃ]],'~cttm'!C:C,'~cttm'!D:D)","v":"BĐS đầu tư - Hao mòn lũy kế *"},"TS dài","N2",-1,null,null,{"$f":"COUNTIFS(L_Map[MÃ TM],L_TM[[#This Row],[MÃ]])","v":1},{"$f":"_xlfn.TEXTJOIN(\";\",TRUE,IF(L_Map[MÃ TM]=L_TM[[#This Row],[MÃ]],L_Map[MÃ BC],\"\"))","v":"242_"},{"$f":"_xlfn.TEXTJOIN(\"; \",TRUE,IF(L_Map[MÃ TM]=L_TM[[#This Row],[MÃ]],L_Map[CHỈ TIÊU BÁO CÁO],\"\"))","v":"Giá trị hao mòn lũy kế BĐS đầu tư *"}]
[null,null,null,null,null,"141_",{"$f":"_xlfn.XLOOKUP(L_TM[[#This Row],[MÃ]],'~cttm'!C:C,'~cttm'!D:D)","v":"Chi phí chờ phân bổ ngắn hạn"},"TS ngắn","N1",1,null,null,{"$f":"COUNTIFS(L_Map[MÃ TM],L_TM[[#This Row],[MÃ]])","v":1},{"$f":"_xlfn.TEXTJOIN(\";\",TRUE,IF(L_Map[MÃ TM]=L_TM[[#This Row],[MÃ]],L_Map[MÃ BC],\"\"))","v":"161_"},{"$f":"_xlfn.TEXTJOIN(\"; \",TRUE,IF(L_Map[MÃ TM]=L_TM[[#This Row],[MÃ]],L_Map[CHỈ TIÊU BÁO CÁO],\"\"))","v":"Chi phí chờ phân bổ ngắn hạn"}]
[null,null,null,null,null,"142_",{"$f":"_xlfn.XLOOKUP(L_TM[[#This Row],[MÃ]],'~cttm'!C:C,'~cttm'!D:D)","v":"Chi phí chờ phân bổ dài hạn"},"TS dài","N1",1,null,null,{"$f":"COUNTIFS(L_Map[MÃ TM],L_TM[[#This Row],[MÃ]])","v":1},{"$f":"_xlfn.TEXTJOIN(\";\",TRUE,IF(L_Map[MÃ TM]=L_TM[[#This Row],[MÃ]],L_Map[MÃ BC],\"\"))","v":"271_"},{"$f":"_xlfn.TEXTJOIN(\"; \",TRUE,IF(L_Map[MÃ TM]=L_TM[[#This Row],[MÃ]],L_Map[CHỈ TIÊU BÁO CÁO],\"\"))","v":"Chi phí chờ phân bổ dài hạn"}]
[null,null,null,null,null,"151_",{"$f":"_xlfn.XLOOKUP(L_TM[[#This Row],[MÃ]],'~cttm'!C:C,'~cttm'!D:D)","v":"Lợi thế thương mại"},"TS dài","N1",1,null,null,{"$f":"COUNTIFS(L_Map[MÃ TM],L_TM[[#This Row],[MÃ]])","v":1},{"$f":"_xlfn.TEXTJOIN(\";\",TRUE,IF(L_Map[MÃ TM]=L_TM[[#This Row],[MÃ]],L_Map[MÃ BC],\"\"))","v":"279_"},{"$f":"_xlfn.TEXTJOIN(\"; \",TRUE,IF(L_Map[MÃ TM]=L_TM[[#This Row],[MÃ]],L_Map[CHỈ TIÊU BÁO CÁO],\"\"))","v":"Lợi thế thương mại"}]
[null,null,null,null,null,"161_",{"$f":"_xlfn.XLOOKUP(L_TM[[#This Row],[MÃ]],'~cttm'!C:C,'~cttm'!D:D)","v":"Vay và nợ thuê tài chính ngắn hạn"},"Nợ ngắn","N3",1,null,null,{"$f":"COUNTIFS(L_Map[MÃ TM],L_TM[[#This Row],[MÃ]])","v":1},{"$f":"_xlfn.TEXTJOIN(\";\",TRUE,IF(L_Map[MÃ TM]=L_TM[[#This Row],[MÃ]],L_Map[MÃ BC],\"\"))","v":"321_"},{"$f":"_xlfn.TEXTJOIN(\"; \",TRUE,IF(L_Map[MÃ TM]=L_TM[[#This Row],[MÃ]],L_Map[CHỈ TIÊU BÁO CÁO],\"\"))","v":"Vay và nợ thuê tài chính ngắn hạn"}]
[null,null,null,null,null,"162_",{"$f":"_xlfn.XLOOKUP(L_TM[[#This Row],[MÃ]],'~cttm'!C:C,'~cttm'!D:D)","v":"Vay và nợ thuê tài chính dài hạn hạn"},"Nợ dài","N3",1,null,null,{"$f":"COUNTIFS(L_Map[MÃ TM],L_TM[[#This Row],[MÃ]])","v":2},{"$f":"_xlfn.TEXTJOIN(\";\",TRUE,IF(L_Map[MÃ TM]=L_TM[[#This Row],[MÃ]],L_Map[MÃ BC],\"\"))","v":"339_;340_"},{"$f":"_xlfn.TEXTJOIN(\"; \",TRUE,IF(L_Map[MÃ TM]=L_TM[[#This Row],[MÃ]],L_Map[CHỈ TIÊU BÁO CÁO],\"\"))","v":"Vay và nợ thuê tài chính dài hạn; Trái phiếu chuyển đổi"}]
[null,null,null,null,null,"171_",{"$f":"_xlfn.XLOOKUP(L_TM[[#This Row],[MÃ]],'~cttm'!C:C,'~cttm'!D:D)","v":"Phải trả người bán ngắn hạn"},"Nợ ngắn","N1",1,null,null,{"$f":"COUNTIFS(L_Map[MÃ TM],L_TM[[#This Row],[MÃ]])","v":1},{"$f":"_xlfn.TEXTJOIN(\";\",TRUE,IF(L_Map[MÃ TM]=L_TM[[#This Row],[MÃ]],L_Map[MÃ BC],\"\"))","v":"311_"},{"$f":"_xlfn.TEXTJOIN(\"; \",TRUE,IF(L_Map[MÃ TM]=L_TM[[#This Row],[MÃ]],L_Map[CHỈ TIÊU BÁO CÁO],\"\"))","v":"Phải trả người bán ngắn hạn"}]
[null,null,null,null,null,"171s",{"$f":"_xlfn.XLOOKUP(L_TM[[#This Row],[MÃ]],'~cttm'!C:C,'~cttm'!D:D)","v":"Phải trả người bán ngắn hạn ᴿ"},"Nợ ngắn","N1",1,true,null,{"$f":"COUNTIFS(L_Map[MÃ TM],L_TM[[#This Row],[MÃ]])","v":0},{"$f":"_xlfn.TEXTJOIN(\";\",TRUE,IF(L_Map[MÃ TM]=L_TM[[#This Row],[MÃ]],L_Map[MÃ BC],\"\"))","v":""},{"$f":"_xlfn.TEXTJOIN(\"; \",TRUE,IF(L_Map[MÃ TM]=L_TM[[#This Row],[MÃ]],L_Map[CHỈ TIÊU BÁO CÁO],\"\"))","v":""}]
[null,null,null,null,null,"172_",{"$f":"_xlfn.XLOOKUP(L_TM[[#This Row],[MÃ]],'~cttm'!C:C,'~cttm'!D:D)","v":"Phải trả người bán dài hạn"},"Nợ dài","N1",1,null,null,{"$f":"COUNTIFS(L_Map[MÃ TM],L_TM[[#This Row],[MÃ]])","v":1},{"$f":"_xlfn.TEXTJOIN(\";\",TRUE,IF(L_Map[MÃ TM]=L_TM[[#This Row],[MÃ]],L_Map[MÃ BC],\"\"))","v":"331_"},{"$f":"_xlfn.TEXTJOIN(\"; \",TRUE,IF(L_Map[MÃ TM]=L_TM[[#This Row],[MÃ]],L_Map[CHỈ TIÊU BÁO CÁO],\"\"))","v":"Phải trả người bán dài hạn"}]
[null,null,null,null,null,"172s",{"$f":"_xlfn.XLOOKUP(L_TM[[#This Row],[MÃ]],'~cttm'!C:C,'~cttm'!D:D)","v":"Phải trả người bán dài hạn ᴿ"},"Nợ dài","N1",1,true,null,{"$f":"COUNTIFS(L_Map[MÃ TM],L_TM[[#This Row],[MÃ]])","v":0},{"$f":"_xlfn.TEXTJOIN(\";\",TRUE,IF(L_Map[MÃ TM]=L_TM[[#This Row],[MÃ]],L_Map[MÃ BC],\"\"))","v":""},{"$f":"_xlfn.TEXTJOIN(\"; \",TRUE,IF(L_Map[MÃ TM]=L_TM[[#This Row],[MÃ]],L_Map[CHỈ TIÊU BÁO CÁO],\"\"))","v":""}]
[null,null,null,null,null,"173_",{"$f":"_xlfn.XLOOKUP(L_TM[[#This Row],[MÃ]],'~cttm'!C:C,'~cttm'!D:D)","v":"Người mua trả trước ngắn hạn"},"Nợ ngắn","N1",1,null,null,{"$f":"COUNTIFS(L_Map[MÃ TM],L_TM[[#This Row],[MÃ]])","v":1},{"$f":"_xlfn.TEXTJOIN(\";\",TRUE,IF(L_Map[MÃ TM]=L_TM[[#This Row],[MÃ]],L_Map[MÃ BC],\"\"))","v":"312_"},{"$f":"_xlfn.TEXTJOIN(\"; \",TRUE,IF(L_Map[MÃ TM]=L_TM[[#This Row],[MÃ]],L_Map[CHỈ TIÊU BÁO CÁO],\"\"))","v":"Người mua trả trước ngắn hạn"}]
[null,null,null,null,null,"173s",{"$f":"_xlfn.XLOOKUP(L_TM[[#This Row],[MÃ]],'~cttm'!C:C,'~cttm'!D:D)","v":"Người mua trả trước ngắn hạn ᴿ"},"Nợ ngắn","N1",1,true,null,{"$f":"COUNTIFS(L_Map[MÃ TM],L_TM[[#This Row],[MÃ]])","v":0},{"$f":"_xlfn.TEXTJOIN(\";\",TRUE,IF(L_Map[MÃ TM]=L_TM[[#This Row],[MÃ]],L_Map[MÃ BC],\"\"))","v":""},{"$f":"_xlfn.TEXTJOIN(\"; \",TRUE,IF(L_Map[MÃ TM]=L_TM[[#This Row],[MÃ]],L_Map[CHỈ TIÊU BÁO CÁO],\"\"))","v":""}]
[null,null,null,null,null,"174_",{"$f":"_xlfn.XLOOKUP(L_TM[[#This Row],[MÃ]],'~cttm'!C:C,'~cttm'!D:D)","v":"Người mua trả trước dài hạn"},"Nợ dài","N1",1,null,null,{"$f":"COUNTIFS(L_Map[MÃ TM],L_TM[[#This Row],[MÃ]])","v":1},{"$f":"_xlfn.TEXTJOIN(\";\",TRUE,IF(L_Map[MÃ TM]=L_TM[[#This Row],[MÃ]],L_Map[MÃ BC],\"\"))","v":"332_"},{"$f":"_xlfn.TEXTJOIN(\"; \",TRUE,IF(L_Map[MÃ TM]=L_TM[[#This Row],[MÃ]],L_Map[CHỈ TIÊU BÁO CÁO],\"\"))","v":"Người mua trả trước dài hạn"}]
[null,null,null,null,null,"174s",{"$f":"_xlfn.XLOOKUP(L_TM[[#This Row],[MÃ]],'~cttm'!C:C,'~cttm'!D:D)","v":"Người mua trả trước dài hạn ᴿ"},"Nợ dài","N1",1,true,null,{"$f":"COUNTIFS(L_Map[MÃ TM],L_TM[[#This Row],[MÃ]])","v":0},{"$f":"_xlfn.TEXTJOIN(\";\",TRUE,IF(L_Map[MÃ TM]=L_TM[[#This Row],[MÃ]],L_Map[MÃ BC],\"\"))","v":""},{"$f":"_xlfn.TEXTJOIN(\"; \",TRUE,IF(L_Map[MÃ TM]=L_TM[[#This Row],[MÃ]],L_Map[CHỈ TIÊU BÁO CÁO],\"\"))","v":""}]
[null,null,null,null,null,"181_",{"$f":"_xlfn.XLOOKUP(L_TM[[#This Row],[MÃ]],'~cttm'!C:C,'~cttm'!D:D)","v":"Phải trả về cổ tức, lợi nhuận"},"Nợ ngắn","N1",1,null,null,{"$f":"COUNTIFS(L_Map[MÃ TM],L_TM[[#This Row],[MÃ]])","v":1},{"$f":"_xlfn.TEXTJOIN(\";\",TRUE,IF(L_Map[MÃ TM]=L_TM[[#This Row],[MÃ]],L_Map[MÃ BC],\"\"))","v":"313_"},{"$f":"_xlfn.TEXTJOIN(\"; \",TRUE,IF(L_Map[MÃ TM]=L_TM[[#This Row],[MÃ]],L_Map[CHỈ TIÊU BÁO CÁO],\"\"))","v":"Phải trả về cổ tức, lợi nhuận"}]
[null,null,null,null,null,"191_",{"$f":"_xlfn.XLOOKUP(L_TM[[#This Row],[MÃ]],'~cttm'!C:C,'~cttm'!D:D)","v":"Thuế và các khoản phải nộp Nhà nước"},"Nợ ngắn","N6",1,null,null,{"$f":"COUNTIFS(L_Map[MÃ TM],L_TM[[#This Row],[MÃ]])","v":2},{"$f":"_xlfn.TEXTJOIN(\";\",TRUE,IF(L_Map[MÃ TM]=L_TM[[#This Row],[MÃ]],L_Map[MÃ BC],\"\"))","v":"163_;314_"},{"$f":"_xlfn.TEXTJOIN(\"; \",TRUE,IF(L_Map[MÃ TM]=L_TM[[#This Row],[MÃ]],L_Map[CHỈ TIÊU BÁO CÁO],\"\"))","v":"Thuế và các khoản phải thu Nhà nước; Thuế và các khoản phải nộp Nhà nước ngắn hạn"}]
[null,null,null,null,null,"201_",{"$f":"_xlfn.XLOOKUP(L_TM[[#This Row],[MÃ]],'~cttm'!C:C,'~cttm'!D:D)","v":"Chi phí phải trả ngắn hạn"},"Nợ ngắn","N1",1,null,null,{"$f":"COUNTIFS(L_Map[MÃ TM],L_TM[[#This Row],[MÃ]])","v":1},{"$f":"_xlfn.TEXTJOIN(\";\",TRUE,IF(L_Map[MÃ TM]=L_TM[[#This Row],[MÃ]],L_Map[MÃ BC],\"\"))","v":"316_"},{"$f":"_xlfn.TEXTJOIN(\"; \",TRUE,IF(L_Map[MÃ TM]=L_TM[[#This Row],[MÃ]],L_Map[CHỈ TIÊU BÁO CÁO],\"\"))","v":"Chi phí phải trả ngắn hạn"}]
[null,null,null,null,null,"202_",{"$f":"_xlfn.XLOOKUP(L_TM[[#This Row],[MÃ]],'~cttm'!C:C,'~cttm'!D:D)","v":"Chi phí phải trả dài hạn"},"Nợ dài","N1",1,null,null,{"$f":"COUNTIFS(L_Map[MÃ TM],L_TM[[#This Row],[MÃ]])","v":1},{"$f":"_xlfn.TEXTJOIN(\";\",TRUE,IF(L_Map[MÃ TM]=L_TM[[#This Row],[MÃ]],L_Map[MÃ BC],\"\"))","v":"334_"},{"$f":"_xlfn.TEXTJOIN(\"; \",TRUE,IF(L_Map[MÃ TM]=L_TM[[#This Row],[MÃ]],L_Map[CHỈ TIÊU BÁO CÁO],\"\"))","v":"Chi phí phải trả dài hạn"}]
[null,null,null,null,null,"211_",{"$f":"_xlfn.XLOOKUP(L_TM[[#This Row],[MÃ]],'~cttm'!C:C,'~cttm'!D:D)","v":"Phải trả ngắn hạn khác"},"Nợ ngắn","N1",1,null,null,{"$f":"COUNTIFS(L_Map[MÃ TM],L_TM[[#This Row],[MÃ]])","v":1},{"$f":"_xlfn.TEXTJOIN(\";\",TRUE,IF(L_Map[MÃ TM]=L_TM[[#This Row],[MÃ]],L_Map[MÃ BC],\"\"))","v":"320_"},{"$f":"_xlfn.TEXTJOIN(\"; \",TRUE,IF(L_Map[MÃ TM]=L_TM[[#This Row],[MÃ]],L_Map[CHỈ TIÊU BÁO CÁO],\"\"))","v":"Các khoản phải trả ngắn hạn khác"}]
[null,null,null,null,null,"211s",{"$f":"_xlfn.XLOOKUP(L_TM[[#This Row],[MÃ]],'~cttm'!C:C,'~cttm'!D:D)","v":"Phải trả ngắn hạn khác ᴿ"},"Nợ ngắn","N1",1,true,null,{"$f":"COUNTIFS(L_Map[MÃ TM],L_TM[[#This Row],[MÃ]])","v":0},{"$f":"_xlfn.TEXTJOIN(\";\",TRUE,IF(L_Map[MÃ TM]=L_TM[[#This Row],[MÃ]],L_Map[MÃ BC],\"\"))","v":""},{"$f":"_xlfn.TEXTJOIN(\"; \",TRUE,IF(L_Map[MÃ TM]=L_TM[[#This Row],[MÃ]],L_Map[CHỈ TIÊU BÁO CÁO],\"\"))","v":""}]
[null,null,null,null,null,"212_",{"$f":"_xlfn.XLOOKUP(L_TM[[#This Row],[MÃ]],'~cttm'!C:C,'~cttm'!D:D)","v":"Phải trả dài hạn khác"},"Nợ dài","N1",1,null,null,{"$f":"COUNTIFS(L_Map[MÃ TM],L_TM[[#This Row],[MÃ]])","v":1},{"$f":"_xlfn.TEXTJOIN(\";\",TRUE,IF(L_Map[MÃ TM]=L_TM[[#This Row],[MÃ]],L_Map[MÃ BC],\"\"))","v":"338_"},{"$f":"_xlfn.TEXTJOIN(\"; \",TRUE,IF(L_Map[MÃ TM]=L_TM[[#This Row],[MÃ]],L_Map[CHỈ TIÊU BÁO CÁO],\"\"))","v":"Phải trả dài hạn khác"}]
[null,null,null,null,null,"212s",{"$f":"_xlfn.XLOOKUP(L_TM[[#This Row],[MÃ]],'~cttm'!C:C,'~cttm'!D:D)","v":"Phải trả dài hạn khác ᴿ"},"Nợ dài","N1",1,true,null,{"$f":"COUNTIFS(L_Map[MÃ TM],L_TM[[#This Row],[MÃ]])","v":0},{"$f":"_xlfn.TEXTJOIN(\";\",TRUE,IF(L_Map[MÃ TM]=L_TM[[#This Row],[MÃ]],L_Map[MÃ BC],\"\"))","v":""},{"$f":"_xlfn.TEXTJOIN(\"; \",TRUE,IF(L_Map[MÃ TM]=L_TM[[#This Row],[MÃ]],L_Map[CHỈ TIÊU BÁO CÁO],\"\"))","v":""}]
[null,null,null,null,null,"213_",{"$f":"_xlfn.XLOOKUP(L_TM[[#This Row],[MÃ]],'~cttm'!C:C,'~cttm'!D:D)","v":"Phải trả nội bộ ngắn hạn"},"Nợ ngắn","N1",0,null,null,{"$f":"COUNTIFS(L_Map[MÃ TM],L_TM[[#This Row],[MÃ]])","v":3},{"$f":"_xlfn.TEXTJOIN(\";\",TRUE,IF(L_Map[MÃ TM]=L_TM[[#This Row],[MÃ]],L_Map[MÃ BC],\"\"))","v":"317_;335_;336_"},{"$f":"_xlfn.TEXTJOIN(\"; \",TRUE,IF(L_Map[MÃ TM]=L_TM[[#This Row],[MÃ]],L_Map[CHỈ TIÊU BÁO CÁO],\"\"))","v":"Phải trả nội bộ ngắn hạn; Phải trả nội bộ về vốn kinh doanh; Phải trả nội bộ dài hạn"}]
[null,null,null,null,null,"214_",{"$f":"_xlfn.XLOOKUP(L_TM[[#This Row],[MÃ]],'~cttm'!C:C,'~cttm'!D:D)","v":"Phải trả nội bộ dài hạn"},"Nợ dài","N1",0,null,null,{"$f":"COUNTIFS(L_Map[MÃ TM],L_TM[[#This Row],[MÃ]])","v":0},{"$f":"_xlfn.TEXTJOIN(\";\",TRUE,IF(L_Map[MÃ TM]=L_TM[[#This Row],[MÃ]],L_Map[MÃ BC],\"\"))","v":""},{"$f":"_xlfn.TEXTJOIN(\"; \",TRUE,IF(L_Map[MÃ TM]=L_TM[[#This Row],[MÃ]],L_Map[CHỈ TIÊU BÁO CÁO],\"\"))","v":""}]
[null,null,null,null,null,"215_",{"$f":"_xlfn.XLOOKUP(L_TM[[#This Row],[MÃ]],'~cttm'!C:C,'~cttm'!D:D)","v":"Phải trả theo tiến độ HĐXD"},"Nợ ngắn","N1",1,null,null,{"$f":"COUNTIFS(L_Map[MÃ TM],L_TM[[#This Row],[MÃ]])","v":1},{"$f":"_xlfn.TEXTJOIN(\";\",TRUE,IF(L_Map[MÃ TM]=L_TM[[#This Row],[MÃ]],L_Map[MÃ BC],\"\"))","v":"318_"},{"$f":"_xlfn.TEXTJOIN(\"; \",TRUE,IF(L_Map[MÃ TM]=L_TM[[#This Row],[MÃ]],L_Map[CHỈ TIÊU BÁO CÁO],\"\"))","v":"Phải trả theo tiến độ HĐXD ngắn hạn"}]
[null,null,null,null,null,"221_",{"$f":"_xlfn.XLOOKUP(L_TM[[#This Row],[MÃ]],'~cttm'!C:C,'~cttm'!D:D)","v":"Doanh thu chờ phân bổ ngắn hạn"},"Nợ ngắn","N1",1,null,null,{"$f":"COUNTIFS(L_Map[MÃ TM],L_TM[[#This Row],[MÃ]])","v":1},{"$f":"_xlfn.TEXTJOIN(\";\",TRUE,IF(L_Map[MÃ TM]=L_TM[[#This Row],[MÃ]],L_Map[MÃ BC],\"\"))","v":"319_"},{"$f":"_xlfn.TEXTJOIN(\"; \",TRUE,IF(L_Map[MÃ TM]=L_TM[[#This Row],[MÃ]],L_Map[CHỈ TIÊU BÁO CÁO],\"\"))","v":"Doanh thu chờ phân bổ ngắn hạn"}]
[null,null,null,null,null,"222_",{"$f":"_xlfn.XLOOKUP(L_TM[[#This Row],[MÃ]],'~cttm'!C:C,'~cttm'!D:D)","v":"Doanh thu chờ phân bổ dài hạn"},"Nợ dài","N1",1,null,null,{"$f":"COUNTIFS(L_Map[MÃ TM],L_TM[[#This Row],[MÃ]])","v":1},{"$f":"_xlfn.TEXTJOIN(\";\",TRUE,IF(L_Map[MÃ TM]=L_TM[[#This Row],[MÃ]],L_Map[MÃ BC],\"\"))","v":"337_"},{"$f":"_xlfn.TEXTJOIN(\"; \",TRUE,IF(L_Map[MÃ TM]=L_TM[[#This Row],[MÃ]],L_Map[CHỈ TIÊU BÁO CÁO],\"\"))","v":"Doanh thu chờ phân bổ dài hạn"}]
[null,null,null,null,null,"251_",{"$f":"_xlfn.XLOOKUP(L_TM[[#This Row],[MÃ]],'~cttm'!C:C,'~cttm'!D:D)","v":"Dự phòng phải trả ngắn hạn"},"Nợ ngắn","N1",1,null,null,{"$f":"COUNTIFS(L_Map[MÃ TM],L_TM[[#This Row],[MÃ]])","v":1},{"$f":"_xlfn.TEXTJOIN(\";\",TRUE,IF(L_Map[MÃ TM]=L_TM[[#This Row],[MÃ]],L_Map[MÃ BC],\"\"))","v":"322_"},{"$f":"_xlfn.TEXTJOIN(\"; \",TRUE,IF(L_Map[MÃ TM]=L_TM[[#This Row],[MÃ]],L_Map[CHỈ TIÊU BÁO CÁO],\"\"))","v":"Dự phòng phải trả ngắn hạn"}]
[null,null,null,null,null,"252_",{"$f":"_xlfn.XLOOKUP(L_TM[[#This Row],[MÃ]],'~cttm'!C:C,'~cttm'!D:D)","v":"Dự phòng phải trả dài hạn"},"Nợ dài","N1",1,null,null,{"$f":"COUNTIFS(L_Map[MÃ TM],L_TM[[#This Row],[MÃ]])","v":1},{"$f":"_xlfn.TEXTJOIN(\";\",TRUE,IF(L_Map[MÃ TM]=L_TM[[#This Row],[MÃ]],L_Map[MÃ BC],\"\"))","v":"343_"},{"$f":"_xlfn.TEXTJOIN(\"; \",TRUE,IF(L_Map[MÃ TM]=L_TM[[#This Row],[MÃ]],L_Map[CHỈ TIÊU BÁO CÁO],\"\"))","v":"Dự phòng phải trả dài hạn"}]
[null,null,null,null,null,"231_",{"$f":"_xlfn.XLOOKUP(L_TM[[#This Row],[MÃ]],'~cttm'!C:C,'~cttm'!D:D)","v":"Trái phiếu thường"},"Nợ dài","N1",1,null,null,{"$f":"COUNTIFS(L_Map[MÃ TM],L_TM[[#This Row],[MÃ]])","v":0},{"$f":"_xlfn.TEXTJOIN(\";\",TRUE,IF(L_Map[MÃ TM]=L_TM[[#This Row],[MÃ]],L_Map[MÃ BC],\"\"))","v":""},{"$f":"_xlfn.TEXTJOIN(\"; \",TRUE,IF(L_Map[MÃ TM]=L_TM[[#This Row],[MÃ]],L_Map[CHỈ TIÊU BÁO CÁO],\"\"))","v":""}]
[null,null,null,null,null,"232_",{"$f":"_xlfn.XLOOKUP(L_TM[[#This Row],[MÃ]],'~cttm'!C:C,'~cttm'!D:D)","v":"Trái phiếu chuyển đổi"},"Nợ dài","N1",1,null,null,{"$f":"COUNTIFS(L_Map[MÃ TM],L_TM[[#This Row],[MÃ]])","v":1},{"$f":"_xlfn.TEXTJOIN(\";\",TRUE,IF(L_Map[MÃ TM]=L_TM[[#This Row],[MÃ]],L_Map[MÃ BC],\"\"))","v":"340_"},{"$f":"_xlfn.TEXTJOIN(\"; \",TRUE,IF(L_Map[MÃ TM]=L_TM[[#This Row],[MÃ]],L_Map[CHỈ TIÊU BÁO CÁO],\"\"))","v":"Trái phiếu chuyển đổi"}]
[null,null,null,null,null,"241_",{"$f":"_xlfn.XLOOKUP(L_TM[[#This Row],[MÃ]],'~cttm'!C:C,'~cttm'!D:D)","v":"Cổ phiếu ưu đãi phân loại là nợ phải trả"},"Nợ dài","N1",1,null,null,{"$f":"COUNTIFS(L_Map[MÃ TM],L_TM[[#This Row],[MÃ]])","v":1},{"$f":"_xlfn.TEXTJOIN(\";\",TRUE,IF(L_Map[MÃ TM]=L_TM[[#This Row],[MÃ]],L_Map[MÃ BC],\"\"))","v":"41b_"},{"$f":"_xlfn.TEXTJOIN(\"; \",TRUE,IF(L_Map[MÃ TM]=L_TM[[#This Row],[MÃ]],L_Map[CHỈ TIÊU BÁO CÁO],\"\"))","v":"Cổ phiếu ưu đãi"}]
[null,null,null,null,null,"261_",{"$f":"_xlfn.XLOOKUP(L_TM[[#This Row],[MÃ]],'~cttm'!C:C,'~cttm'!D:D)","v":"Tài sản thuế TNDN hoãn lại"},"TS dài","N1",1,null,null,{"$f":"COUNTIFS(L_Map[MÃ TM],L_TM[[#This Row],[MÃ]])","v":1},{"$f":"_xlfn.TEXTJOIN(\";\",TRUE,IF(L_Map[MÃ TM]=L_TM[[#This Row],[MÃ]],L_Map[MÃ BC],\"\"))","v":"272_"},{"$f":"_xlfn.TEXTJOIN(\"; \",TRUE,IF(L_Map[MÃ TM]=L_TM[[#This Row],[MÃ]],L_Map[CHỈ TIÊU BÁO CÁO],\"\"))","v":"Tài sản thuế thu nhập hoãn lại"}]
[null,null,null,null,null,"262_",{"$f":"_xlfn.XLOOKUP(L_TM[[#This Row],[MÃ]],'~cttm'!C:C,'~cttm'!D:D)","v":"Thuế TNDN hoãn lại phải trả"},"Nợ dài","N1",1,null,null,{"$f":"COUNTIFS(L_Map[MÃ TM],L_TM[[#This Row],[MÃ]])","v":1},{"$f":"_xlfn.TEXTJOIN(\";\",TRUE,IF(L_Map[MÃ TM]=L_TM[[#This Row],[MÃ]],L_Map[MÃ BC],\"\"))","v":"342_"},{"$f":"_xlfn.TEXTJOIN(\"; \",TRUE,IF(L_Map[MÃ TM]=L_TM[[#This Row],[MÃ]],L_Map[CHỈ TIÊU BÁO CÁO],\"\"))","v":"Thuế thu nhập hoãn lại phải trả"}]
[null,null,null,null,null,"270_",{"$f":"_xlfn.XLOOKUP(L_TM[[#This Row],[MÃ]],'~cttm'!C:C,'~cttm'!D:D)","v":"Vốn chủ sở hữu"},"Vốn góp","N4",1,null,null,{"$f":"COUNTIFS(L_Map[MÃ TM],L_TM[[#This Row],[MÃ]])","v":14},{"$f":"_xlfn.TEXTJOIN(\";\",TRUE,IF(L_Map[MÃ TM]=L_TM[[#This Row],[MÃ]],L_Map[MÃ BC],\"\"))","v":"412_;413_;414_;415_;416_;417_;418_;419_;41a_;41b_;420_;429_;42a_;42b_"},{"$f":"_xlfn.TEXTJOIN(\"; \",TRUE,IF(L_Map[MÃ TM]=L_TM[[#This Row],[MÃ]],L_Map[CHỈ TIÊU BÁO CÁO],\"\"))","v":"Thặng dư vốn cổ phần; Quyền chọn chuyển đổi trái phiếu; Vốn khác của chủ sở hữu; Cổ phiếu mua lại của chính mình *; Chênh lệch đánh giá lại tài sản; Chênh lệch tỷ giá hối đoái; Quỹ đầu tư phát triển; Quỹ khác thuộc vốn chủ sở hữu; Cổ phiếu phổ thông có quyền biểu quyết; Cổ phiếu ưu đãi; -; Lợi ích của cổ đông không kiểm soát; LNST chưa phân phối lũy kế đến cuối kỳ trước; LNST chưa phân phối kỳ này"}]
[null,null,null,null,null,"270s",{"$f":"_xlfn.XLOOKUP(L_TM[[#This Row],[MÃ]],'~cttm'!C:C,'~cttm'!D:D)","v":"Vốn chủ sở hữu (năm trước)"},"Vốn góp","N4",0,null,null,{"$f":"COUNTIFS(L_Map[MÃ TM],L_TM[[#This Row],[MÃ]])","v":0},{"$f":"_xlfn.TEXTJOIN(\";\",TRUE,IF(L_Map[MÃ TM]=L_TM[[#This Row],[MÃ]],L_Map[MÃ BC],\"\"))","v":""},{"$f":"_xlfn.TEXTJOIN(\"; \",TRUE,IF(L_Map[MÃ TM]=L_TM[[#This Row],[MÃ]],L_Map[CHỈ TIÊU BÁO CÁO],\"\"))","v":""}]
[null,null,null,null,null,"271_",{"$f":"_xlfn.XLOOKUP(L_TM[[#This Row],[MÃ]],'~cttm'!C:C,'~cttm'!D:D)","v":"Quỹ không thuộc CSH"},"Nợ dài","N1",0,null,null,{"$f":"COUNTIFS(L_Map[MÃ TM],L_TM[[#This Row],[MÃ]])","v":4},{"$f":"_xlfn.TEXTJOIN(\";\",TRUE,IF(L_Map[MÃ TM]=L_TM[[#This Row],[MÃ]],L_Map[MÃ BC],\"\"))","v":"323_;324_;341_;344_"},{"$f":"_xlfn.TEXTJOIN(\"; \",TRUE,IF(L_Map[MÃ TM]=L_TM[[#This Row],[MÃ]],L_Map[CHỈ TIÊU BÁO CÁO],\"\"))","v":"Quỹ khen thưởng, phúc lợi; Quỹ bình ổn giá; Cổ phiếu ưu đãi; Quỹ phát triển khoa học và công nghệ"}]
[null,null,null,null,null,"272_",{"$f":"_xlfn.XLOOKUP(L_TM[[#This Row],[MÃ]],'~cttm'!C:C,'~cttm'!D:D)","v":"Nguồn kinh phí"},"Vốn khác","N4",0,null,null,{"$f":"COUNTIFS(L_Map[MÃ TM],L_TM[[#This Row],[MÃ]])","v":0},{"$f":"_xlfn.TEXTJOIN(\";\",TRUE,IF(L_Map[MÃ TM]=L_TM[[#This Row],[MÃ]],L_Map[MÃ BC],\"\"))","v":""},{"$f":"_xlfn.TEXTJOIN(\"; \",TRUE,IF(L_Map[MÃ TM]=L_TM[[#This Row],[MÃ]],L_Map[CHỈ TIÊU BÁO CÁO],\"\"))","v":""}]
[null,null,null,null,null,"281_",{"$f":"_xlfn.XLOOKUP(L_TM[[#This Row],[MÃ]],'~cttm'!C:C,'~cttm'!D:D)","v":"Chênh lệch đánh giá lại tài sản"},null,null,null,null,null,{"$f":"COUNTIFS(L_Map[MÃ TM],L_TM[[#This Row],[MÃ]])","v":0},{"$f":"_xlfn.TEXTJOIN(\";\",TRUE,IF(L_Map[MÃ TM]=L_TM[[#This Row],[MÃ]],L_Map[MÃ BC],\"\"))","v":""},{"$f":"_xlfn.TEXTJOIN(\"; \",TRUE,IF(L_Map[MÃ TM]=L_TM[[#This Row],[MÃ]],L_Map[CHỈ TIÊU BÁO CÁO],\"\"))","v":""}]
[null,null,null,null,null,"291_",{"$f":"_xlfn.XLOOKUP(L_TM[[#This Row],[MÃ]],'~cttm'!C:C,'~cttm'!D:D)","v":"Chênh lệch tỷ giá"},null,null,null,null,null,{"$f":"COUNTIFS(L_Map[MÃ TM],L_TM[[#This Row],[MÃ]])","v":0},{"$f":"_xlfn.TEXTJOIN(\";\",TRUE,IF(L_Map[MÃ TM]=L_TM[[#This Row],[MÃ]],L_Map[MÃ BC],\"\"))","v":""},{"$f":"_xlfn.TEXTJOIN(\"; \",TRUE,IF(L_Map[MÃ TM]=L_TM[[#This Row],[MÃ]],L_Map[CHỈ TIÊU BÁO CÁO],\"\"))","v":""}]
[null,null,null,null,null,"311_",{"$f":"_xlfn.XLOOKUP(L_TM[[#This Row],[MÃ]],'~cttm'!C:C,'~cttm'!D:D)","v":"Doanh thu bán hàng"},"KQKD","N5",1,null,null,{"$f":"COUNTIFS(L_Map[MÃ TM],L_TM[[#This Row],[MÃ]])","v":1},{"$f":"_xlfn.TEXTJOIN(\";\",TRUE,IF(L_Map[MÃ TM]=L_TM[[#This Row],[MÃ]],L_Map[MÃ BC],\"\"))","v":"001_"},{"$f":"_xlfn.TEXTJOIN(\"; \",TRUE,IF(L_Map[MÃ TM]=L_TM[[#This Row],[MÃ]],L_Map[CHỈ TIÊU BÁO CÁO],\"\"))","v":"Doanh thu bán hàng & cung cấp dịch vụ"}]
[null,null,null,null,null,"311s",{"$f":"_xlfn.XLOOKUP(L_TM[[#This Row],[MÃ]],'~cttm'!C:C,'~cttm'!D:D)","v":"Doanh thu bán hàng ᴿ"},"KQKD","N5",1,true,null,{"$f":"COUNTIFS(L_Map[MÃ TM],L_TM[[#This Row],[MÃ]])","v":0},{"$f":"_xlfn.TEXTJOIN(\";\",TRUE,IF(L_Map[MÃ TM]=L_TM[[#This Row],[MÃ]],L_Map[MÃ BC],\"\"))","v":""},{"$f":"_xlfn.TEXTJOIN(\"; \",TRUE,IF(L_Map[MÃ TM]=L_TM[[#This Row],[MÃ]],L_Map[CHỈ TIÊU BÁO CÁO],\"\"))","v":""}]
[null,null,null,null,null,"312_",{"$f":"_xlfn.XLOOKUP(L_TM[[#This Row],[MÃ]],'~cttm'!C:C,'~cttm'!D:D)","v":"Giảm trừ doanh thu"},"KQKD","N5",1,null,null,{"$f":"COUNTIFS(L_Map[MÃ TM],L_TM[[#This Row],[MÃ]])","v":1},{"$f":"_xlfn.TEXTJOIN(\";\",TRUE,IF(L_Map[MÃ TM]=L_TM[[#This Row],[MÃ]],L_Map[MÃ BC],\"\"))","v":"002_"},{"$f":"_xlfn.TEXTJOIN(\"; \",TRUE,IF(L_Map[MÃ TM]=L_TM[[#This Row],[MÃ]],L_Map[CHỈ TIÊU BÁO CÁO],\"\"))","v":"Các khoản giảm trừ"}]
[null,null,null,null,null,"320_",{"$f":"_xlfn.XLOOKUP(L_TM[[#This Row],[MÃ]],'~cttm'!C:C,'~cttm'!D:D)","v":"Giá vốn hàng bán"},"KQKD","N5",1,null,null,{"$f":"COUNTIFS(L_Map[MÃ TM],L_TM[[#This Row],[MÃ]])","v":1},{"$f":"_xlfn.TEXTJOIN(\";\",TRUE,IF(L_Map[MÃ TM]=L_TM[[#This Row],[MÃ]],L_Map[MÃ BC],\"\"))","v":"011_"},{"$f":"_xlfn.TEXTJOIN(\"; \",TRUE,IF(L_Map[MÃ TM]=L_TM[[#This Row],[MÃ]],L_Map[CHỈ TIÊU BÁO CÁO],\"\"))","v":"Giá vốn hàng bán"}]
[null,null,null,null,null,"320s",{"$f":"_xlfn.XLOOKUP(L_TM[[#This Row],[MÃ]],'~cttm'!C:C,'~cttm'!D:D)","v":"Giá vốn hàng bán ᴿ"},"KQKD","N5",1,true,null,{"$f":"COUNTIFS(L_Map[MÃ TM],L_TM[[#This Row],[MÃ]])","v":0},{"$f":"_xlfn.TEXTJOIN(\";\",TRUE,IF(L_Map[MÃ TM]=L_TM[[#This Row],[MÃ]],L_Map[MÃ BC],\"\"))","v":""},{"$f":"_xlfn.TEXTJOIN(\"; \",TRUE,IF(L_Map[MÃ TM]=L_TM[[#This Row],[MÃ]],L_Map[CHỈ TIÊU BÁO CÁO],\"\"))","v":""}]
[null,null,null,null,null,"331_",{"$f":"_xlfn.XLOOKUP(L_TM[[#This Row],[MÃ]],'~cttm'!C:C,'~cttm'!D:D)","v":"Doanh thu tài chính"},"KQKD","N5",1,null,null,{"$f":"COUNTIFS(L_Map[MÃ TM],L_TM[[#This Row],[MÃ]])","v":1},{"$f":"_xlfn.TEXTJOIN(\";\",TRUE,IF(L_Map[MÃ TM]=L_TM[[#This Row],[MÃ]],L_Map[MÃ BC],\"\"))","v":"022_"},{"$f":"_xlfn.TEXTJOIN(\"; \",TRUE,IF(L_Map[MÃ TM]=L_TM[[#This Row],[MÃ]],L_Map[CHỈ TIÊU BÁO CÁO],\"\"))","v":"Doanh thu hoạt động tài chính"}]
[null,null,null,null,null,"332_",{"$f":"_xlfn.XLOOKUP(L_TM[[#This Row],[MÃ]],'~cttm'!C:C,'~cttm'!D:D)","v":"Chi phí tài chính"},"KQKD","N5",1,null,null,{"$f":"COUNTIFS(L_Map[MÃ TM],L_TM[[#This Row],[MÃ]])","v":1},{"$f":"_xlfn.TEXTJOIN(\";\",TRUE,IF(L_Map[MÃ TM]=L_TM[[#This Row],[MÃ]],L_Map[MÃ BC],\"\"))","v":"023_"},{"$f":"_xlfn.TEXTJOIN(\"; \",TRUE,IF(L_Map[MÃ TM]=L_TM[[#This Row],[MÃ]],L_Map[CHỈ TIÊU BÁO CÁO],\"\"))","v":"Chi phí tài chính"}]
[null,null,null,null,null,"341_",{"$f":"_xlfn.XLOOKUP(L_TM[[#This Row],[MÃ]],'~cttm'!C:C,'~cttm'!D:D)","v":"Chi phí bán hàng"},"KQKD","N5",1,null,null,{"$f":"COUNTIFS(L_Map[MÃ TM],L_TM[[#This Row],[MÃ]])","v":1},{"$f":"_xlfn.TEXTJOIN(\";\",TRUE,IF(L_Map[MÃ TM]=L_TM[[#This Row],[MÃ]],L_Map[MÃ BC],\"\"))","v":"025_"},{"$f":"_xlfn.TEXTJOIN(\"; \",TRUE,IF(L_Map[MÃ TM]=L_TM[[#This Row],[MÃ]],L_Map[CHỈ TIÊU BÁO CÁO],\"\"))","v":"Chi phí bán hàng"}]
[null,null,null,null,null,"342_",{"$f":"_xlfn.XLOOKUP(L_TM[[#This Row],[MÃ]],'~cttm'!C:C,'~cttm'!D:D)","v":"Chi phí QLDN"},"KQKD","N5",1,null,null,{"$f":"COUNTIFS(L_Map[MÃ TM],L_TM[[#This Row],[MÃ]])","v":1},{"$f":"_xlfn.TEXTJOIN(\";\",TRUE,IF(L_Map[MÃ TM]=L_TM[[#This Row],[MÃ]],L_Map[MÃ BC],\"\"))","v":"026_"},{"$f":"_xlfn.TEXTJOIN(\"; \",TRUE,IF(L_Map[MÃ TM]=L_TM[[#This Row],[MÃ]],L_Map[CHỈ TIÊU BÁO CÁO],\"\"))","v":"Chi phí quản lý doanh nghiệp"}]
[null,null,null,null,null,"351_",{"$f":"_xlfn.XLOOKUP(L_TM[[#This Row],[MÃ]],'~cttm'!C:C,'~cttm'!D:D)","v":"Thu nhập khác"},"KQKD","N5",1,null,null,{"$f":"COUNTIFS(L_Map[MÃ TM],L_TM[[#This Row],[MÃ]])","v":1},{"$f":"_xlfn.TEXTJOIN(\";\",TRUE,IF(L_Map[MÃ TM]=L_TM[[#This Row],[MÃ]],L_Map[MÃ BC],\"\"))","v":"031_"},{"$f":"_xlfn.TEXTJOIN(\"; \",TRUE,IF(L_Map[MÃ TM]=L_TM[[#This Row],[MÃ]],L_Map[CHỈ TIÊU BÁO CÁO],\"\"))","v":"Thu nhập khác"}]
[null,null,null,null,null,"352_",{"$f":"_xlfn.XLOOKUP(L_TM[[#This Row],[MÃ]],'~cttm'!C:C,'~cttm'!D:D)","v":"Chi phí khác"},"KQKD","N5",1,null,null,{"$f":"COUNTIFS(L_Map[MÃ TM],L_TM[[#This Row],[MÃ]])","v":1},{"$f":"_xlfn.TEXTJOIN(\";\",TRUE,IF(L_Map[MÃ TM]=L_TM[[#This Row],[MÃ]],L_Map[MÃ BC],\"\"))","v":"032_"},{"$f":"_xlfn.TEXTJOIN(\"; \",TRUE,IF(L_Map[MÃ TM]=L_TM[[#This Row],[MÃ]],L_Map[CHỈ TIÊU BÁO CÁO],\"\"))","v":"Chi phí khác"}]
[null,null,null,null,null,"361_",{"$f":"_xlfn.XLOOKUP(L_TM[[#This Row],[MÃ]],'~cttm'!C:C,'~cttm'!D:D)","v":"Chi phí thuế TNDN hiện hành"},"KQKD","N5",0,null,null,{"$f":"COUNTIFS(L_Map[MÃ TM],L_TM[[#This Row],[MÃ]])","v":1},{"$f":"_xlfn.TEXTJOIN(\";\",TRUE,IF(L_Map[MÃ TM]=L_TM[[#This Row],[MÃ]],L_Map[MÃ BC],\"\"))","v":"051_"},{"$f":"_xlfn.TEXTJOIN(\"; \",TRUE,IF(L_Map[MÃ TM]=L_TM[[#This Row],[MÃ]],L_Map[CHỈ TIÊU BÁO CÁO],\"\"))","v":"Chi phí thuế TNDN hiện hành"}]
[null,null,null,null,null,"362_",{"$f":"_xlfn.XLOOKUP(L_TM[[#This Row],[MÃ]],'~cttm'!C:C,'~cttm'!D:D)","v":"Chi phí thuế TNDN hoãn lại"},"KQKD","N5",0,null,null,{"$f":"COUNTIFS(L_Map[MÃ TM],L_TM[[#This Row],[MÃ]])","v":1},{"$f":"_xlfn.TEXTJOIN(\";\",TRUE,IF(L_Map[MÃ TM]=L_TM[[#This Row],[MÃ]],L_Map[MÃ BC],\"\"))","v":"052_"},{"$f":"_xlfn.TEXTJOIN(\"; \",TRUE,IF(L_Map[MÃ TM]=L_TM[[#This Row],[MÃ]],L_Map[CHỈ TIÊU BÁO CÁO],\"\"))","v":"Chi phí thuế TNDN hoãn lại"}]
[null,null,null,null,null,"370_",{"$f":"_xlfn.XLOOKUP(L_TM[[#This Row],[MÃ]],'~cttm'!C:C,'~cttm'!D:D)","v":"Chi phí SXKD theo yếu tố"},"KQKD","N5",0,null,null,{"$f":"COUNTIFS(L_Map[MÃ TM],L_TM[[#This Row],[MÃ]])","v":3},{"$f":"_xlfn.TEXTJOIN(\";\",TRUE,IF(L_Map[MÃ TM]=L_TM[[#This Row],[MÃ]],L_Map[MÃ BC],\"\"))","v":"011_;025_;026_"},{"$f":"_xlfn.TEXTJOIN(\"; \",TRUE,IF(L_Map[MÃ TM]=L_TM[[#This Row],[MÃ]],L_Map[CHỈ TIÊU BÁO CÁO],\"\"))","v":"Giá vốn hàng bán; Chi phí bán hàng; Chi phí quản lý doanh nghiệp"}]
[null,null,null,null,null,"381_",{"$f":"_xlfn.XLOOKUP(L_TM[[#This Row],[MÃ]],'~cttm'!C:C,'~cttm'!D:D)","v":"Doanh thu bộ phận"},"Bộ phận","BP",0,null,null,{"$f":"COUNTIFS(L_Map[MÃ TM],L_TM[[#This Row],[MÃ]])","v":0},{"$f":"_xlfn.TEXTJOIN(\";\",TRUE,IF(L_Map[MÃ TM]=L_TM[[#This Row],[MÃ]],L_Map[MÃ BC],\"\"))","v":""},{"$f":"_xlfn.TEXTJOIN(\"; \",TRUE,IF(L_Map[MÃ TM]=L_TM[[#This Row],[MÃ]],L_Map[CHỈ TIÊU BÁO CÁO],\"\"))","v":""}]
[null,null,null,null,null,"382_",{"$f":"_xlfn.XLOOKUP(L_TM[[#This Row],[MÃ]],'~cttm'!C:C,'~cttm'!D:D)","v":"LN sau thuế bộ phận"},"Bộ phận","BP",0,null,null,{"$f":"COUNTIFS(L_Map[MÃ TM],L_TM[[#This Row],[MÃ]])","v":0},{"$f":"_xlfn.TEXTJOIN(\";\",TRUE,IF(L_Map[MÃ TM]=L_TM[[#This Row],[MÃ]],L_Map[MÃ BC],\"\"))","v":""},{"$f":"_xlfn.TEXTJOIN(\"; \",TRUE,IF(L_Map[MÃ TM]=L_TM[[#This Row],[MÃ]],L_Map[CHỈ TIÊU BÁO CÁO],\"\"))","v":""}]
[null,null,null,null,null,"383_",{"$f":"_xlfn.XLOOKUP(L_TM[[#This Row],[MÃ]],'~cttm'!C:C,'~cttm'!D:D)","v":"Tài sản bộ phận"},"Bộ phận","BP",0,null,null,{"$f":"COUNTIFS(L_Map[MÃ TM],L_TM[[#This Row],[MÃ]])","v":0},{"$f":"_xlfn.TEXTJOIN(\";\",TRUE,IF(L_Map[MÃ TM]=L_TM[[#This Row],[MÃ]],L_Map[MÃ BC],\"\"))","v":""},{"$f":"_xlfn.TEXTJOIN(\"; \",TRUE,IF(L_Map[MÃ TM]=L_TM[[#This Row],[MÃ]],L_Map[CHỈ TIÊU BÁO CÁO],\"\"))","v":""}]
[null,null,null,null,null,"384_",{"$f":"_xlfn.XLOOKUP(L_TM[[#This Row],[MÃ]],'~cttm'!C:C,'~cttm'!D:D)","v":"Nợ phải trả bộ phận"},"Bộ phận","BP",0,null,null,{"$f":"COUNTIFS(L_Map[MÃ TM],L_TM[[#This Row],[MÃ]])","v":0},{"$f":"_xlfn.TEXTJOIN(\";\",TRUE,IF(L_Map[MÃ TM]=L_TM[[#This Row],[MÃ]],L_Map[MÃ BC],\"\"))","v":""},{"$f":"_xlfn.TEXTJOIN(\"; \",TRUE,IF(L_Map[MÃ TM]=L_TM[[#This Row],[MÃ]],L_Map[CHỈ TIÊU BÁO CÁO],\"\"))","v":""}]

{"sheet":"Map mã","index":5,"n_rows":116,"n_cols":9,"rows_kept":116,"cut":false,"hidden":false,"merged":[[0,0,3,0]]}
[{"$f":"'✅'!A1","v":"Tasco Group"},null,{"$f":"Range2(L_Map[MÃ BC],L_Map[MÃ TM])","v":"C6:C116,E6:E116"}]
[]
[null,null,null,null,null,null,null,"MAP MÃ CHỈ TIÊU BCTC VÀ THUYẾT MINH"]
[null,null,"⏬",null,"⏬"]
[{"$f":"'Công ty'!A5","v":"BCTC hợp nhất"},null,"MÃ BC","¹","MÃ TM","²","BCR","CHỈ TIÊU BÁO CÁO","CHỈ TIÊU THUYẾT MINH"]
[null,null,"001_",{"$f":"IF(L_Map[[#This Row],[MÃ BC]]<>\"\",COUNTIFS(L_Map[MÃ BC],L_Map[[#This Row],[MÃ BC]]),0)","v":1},"311_",{"$f":"IF(L_Map[[#This Row],[MÃ TM]]<>\"\",COUNTIFS(L_Map[MÃ TM],L_Map[[#This Row],[MÃ TM]]),0)","v":1},{"$f":"IF(_xlfn.XLOOKUP(L_Map[[#This Row],[MÃ TM]],L_TM[MÃ],L_TM[BCR],0),1,0)","v":0},{"$f":"_xlfn.XLOOKUP(L_Map[[#This Row],[MÃ BC]],L_FS[MÃ],L_FS[CHỈ TIÊU],\"-\")","v":"Doanh thu bán hàng & cung cấp dịch vụ"},{"$f":"_xlfn.XLOOKUP(L_Map[[#This Row],[MÃ TM]],L_TM[MÃ],L_TM[CHỈ TIÊU],\"-\")","v":"Doanh thu bán hàng"}]
["Tập đoàn",null,"002_",{"$f":"IF(L_Map[[#This Row],[MÃ BC]]<>\"\",COUNTIFS(L_Map[MÃ BC],L_Map[[#This Row],[MÃ BC]]),0)","v":1},"312_",{"$f":"IF(L_Map[[#This Row],[MÃ TM]]<>\"\",COUNTIFS(L_Map[MÃ TM],L_Map[[#This Row],[MÃ TM]]),0)","v":1},{"$f":"IF(_xlfn.XLOOKUP(L_Map[[#This Row],[MÃ TM]],L_TM[MÃ],L_TM[BCR],0),1,0)","v":0},{"$f":"_xlfn.XLOOKUP(L_Map[[#This Row],[MÃ BC]],L_FS[MÃ],L_FS[CHỈ TIÊU],\"-\")","v":"Các khoản giảm trừ"},{"$f":"_xlfn.XLOOKUP(L_Map[[#This Row],[MÃ TM]],L_TM[MÃ],L_TM[CHỈ TIÊU],\"-\")","v":"Giảm trừ doanh thu"}]
[null,null,"011_",{"$f":"IF(L_Map[[#This Row],[MÃ BC]]<>\"\",COUNTIFS(L_Map[MÃ BC],L_Map[[#This Row],[MÃ BC]]),0)","v":2},"320_",{"$f":"IF(L_Map[[#This Row],[MÃ TM]]<>\"\",COUNTIFS(L_Map[MÃ TM],L_Map[[#This Row],[MÃ TM]]),0)","v":1},{"$f":"IF(_xlfn.XLOOKUP(L_Map[[#This Row],[MÃ TM]],L_TM[MÃ],L_TM[BCR],0),1,0)","v":0},{"$f":"_xlfn.XLOOKUP(L_Map[[#This Row],[MÃ BC]],L_FS[MÃ],L_FS[CHỈ TIÊU],\"-\")","v":"Giá vốn hàng bán"},{"$f":"_xlfn.XLOOKUP(L_Map[[#This Row],[MÃ TM]],L_TM[MÃ],L_TM[CHỈ TIÊU],\"-\")","v":"Giá vốn hàng bán"}]
[null,null,"011_",{"$f":"IF(L_Map[[#This Row],[MÃ BC]]<>\"\",COUNTIFS(L_Map[MÃ BC],L_Map[[#This Row],[MÃ BC]]),0)","v":2},"370_",{"$f":"IF(L_Map[[#This Row],[MÃ TM]]<>\"\",COUNTIFS(L_Map[MÃ TM],L_Map[[#This Row],[MÃ TM]]),0)","v":3},{"$f":"IF(_xlfn.XLOOKUP(L_Map[[#This Row],[MÃ TM]],L_TM[MÃ],L_TM[BCR],0),1,0)","v":0},{"$f":"_xlfn.XLOOKUP(L_Map[[#This Row],[MÃ BC]],L_FS[MÃ],L_FS[CHỈ TIÊU],\"-\")","v":"Giá vốn hàng bán"},{"$f":"_xlfn.XLOOKUP(L_Map[[#This Row],[MÃ TM]],L_TM[MÃ],L_TM[CHỈ TIÊU],\"-\")","v":"Chi phí SXKD theo yếu tố"}]
["Thông tin công ty",null,"022_",{"$f":"IF(L_Map[[#This Row],[MÃ BC]]<>\"\",COUNTIFS(L_Map[MÃ BC],L_Map[[#This Row],[MÃ BC]]),0)","v":1},"331_",{"$f":"IF(L_Map[[#This Row],[MÃ TM]]<>\"\",COUNTIFS(L_Map[MÃ TM],L_Map[[#This Row],[MÃ TM]]),0)","v":1},{"$f":"IF(_xlfn.XLOOKUP(L_Map[[#This Row],[MÃ TM]],L_TM[MÃ],L_TM[BCR],0),1,0)","v":0},{"$f":"_xlfn.XLOOKUP(L_Map[[#This Row],[MÃ BC]],L_FS[MÃ],L_FS[CHỈ TIÊU],\"-\")","v":"Doanh thu hoạt động tài chính"},{"$f":"_xlfn.XLOOKUP(L_Map[[#This Row],[MÃ TM]],L_TM[MÃ],L_TM[CHỈ TIÊU],\"-\")","v":"Doanh thu tài chính"}]
[null,null,"023_",{"$f":"IF(L_Map[[#This Row],[MÃ BC]]<>\"\",COUNTIFS(L_Map[MÃ BC],L_Map[[#This Row],[MÃ BC]]),0)","v":1},"332_",{"$f":"IF(L_Map[[#This Row],[MÃ TM]]<>\"\",COUNTIFS(L_Map[MÃ TM],L_Map[[#This Row],[MÃ TM]]),0)","v":1},{"$f":"IF(_xlfn.XLOOKUP(L_Map[[#This Row],[MÃ TM]],L_TM[MÃ],L_TM[BCR],0),1,0)","v":0},{"$f":"_xlfn.XLOOKUP(L_Map[[#This Row],[MÃ BC]],L_FS[MÃ],L_FS[CHỈ TIÊU],\"-\")","v":"Chi phí tài chính"},{"$f":"_xlfn.XLOOKUP(L_Map[[#This Row],[MÃ TM]],L_TM[MÃ],L_TM[CHỈ TIÊU],\"-\")","v":"Chi phí tài chính"}]
["Tài khoản kế toán",null,"024_",{"$f":"IF(L_Map[[#This Row],[MÃ BC]]<>\"\",COUNTIFS(L_Map[MÃ BC],L_Map[[#This Row],[MÃ BC]]),0)","v":1},"",{"$f":"IF(L_Map[[#This Row],[MÃ TM]]<>\"\",COUNTIFS(L_Map[MÃ TM],L_Map[[#This Row],[MÃ TM]]),0)","v":0},{"$f":"IF(_xlfn.XLOOKUP(L_Map[[#This Row],[MÃ TM]],L_TM[MÃ],L_TM[BCR],0),1,0)","v":0},{"$f":"_xlfn.XLOOKUP(L_Map[[#This Row],[MÃ BC]],L_FS[MÃ],L_FS[CHỈ TIÊU],\"-\")","v":"- Trong đó: chi phí đi vay"},{"$f":"_xlfn.XLOOKUP(L_Map[[#This Row],[MÃ TM]],L_TM[MÃ],L_TM[CHỈ TIÊU],\"-\")","v":"-"}]
[null,null,"025_",{"$f":"IF(L_Map[[#This Row],[MÃ BC]]<>\"\",COUNTIFS(L_Map[MÃ BC],L_Map[[#This Row],[MÃ BC]]),0)","v":2},"341_",{"$f":"IF(L_Map[[#This Row],[MÃ TM]]<>\"\",COUNTIFS(L_Map[MÃ TM],L_Map[[#This Row],[MÃ TM]]),0)","v":1},{"$f":"IF(_xlfn.XLOOKUP(L_Map[[#This Row],[MÃ TM]],L_TM[MÃ],L_TM[BCR],0),1,0)","v":0},{"$f":"_xlfn.XLOOKUP(L_Map[[#This Row],[MÃ BC]],L_FS[MÃ],L_FS[CHỈ TIÊU],\"-\")","v":"Chi phí bán hàng"},{"$f":"_xlfn.XLOOKUP(L_Map[[#This Row],[MÃ TM]],L_TM[MÃ],L_TM[CHỈ TIÊU],\"-\")","v":"Chi phí bán hàng"}]
["Chỉ tiêu báo cáo",null,"025_",{"$f":"IF(L_Map[[#This Row],[MÃ BC]]<>\"\",COUNTIFS(L_Map[MÃ BC],L_Map[[#This Row],[MÃ BC]]),0)","v":2},"370_",{"$f":"IF(L_Map[[#This Row],[MÃ TM]]<>\"\",COUNTIFS(L_Map[MÃ TM],L_Map[[#This Row],[MÃ TM]]),0)","v":3},{"$f":"IF(_xlfn.XLOOKUP(L_Map[[#This Row],[MÃ TM]],L_TM[MÃ],L_TM[BCR],0),1,0)","v":0},{"$f":"_xlfn.XLOOKUP(L_Map[[#This Row],[MÃ BC]],L_FS[MÃ],L_FS[CHỈ TIÊU],\"-\")","v":"Chi phí bán hàng"},{"$f":"_xlfn.XLOOKUP(L_Map[[#This Row],[MÃ TM]],L_TM[MÃ],L_TM[CHỈ TIÊU],\"-\")","v":"Chi phí SXKD theo yếu tố"}]
[null,null,"026_",{"$f":"IF(L_Map[[#This Row],[MÃ BC]]<>\"\",COUNTIFS(L_Map[MÃ BC],L_Map[[#This Row],[MÃ BC]]),0)","v":2},"342_",{"$f":"IF(L_Map[[#This Row],[MÃ TM]]<>\"\",COUNTIFS(L_Map[MÃ TM],L_Map[[#This Row],[MÃ TM]]),0)","v":1},{"$f":"IF(_xlfn.XLOOKUP(L_Map[[#This Row],[MÃ TM]],L_TM[MÃ],L_TM[BCR],0),1,0)","v":0},{"$f":"_xlfn.XLOOKUP(L_Map[[#This Row],[MÃ BC]],L_FS[MÃ],L_FS[CHỈ TIÊU],\"-\")","v":"Chi phí quản lý doanh nghiệp"},{"$f":"_xlfn.XLOOKUP(L_Map[[#This Row],[MÃ TM]],L_TM[MÃ],L_TM[CHỈ TIÊU],\"-\")","v":"Chi phí QLDN"}]
["Chỉ tiêu thuyết minh",null,"026_",{"$f":"IF(L_Map[[#This Row],[MÃ BC]]<>\"\",COUNTIFS(L_Map[MÃ BC],L_Map[[#This Row],[MÃ BC]]),0)","v":2},"370_",{"$f":"IF(L_Map[[#This Row],[MÃ TM]]<>\"\",COUNTIFS(L_Map[MÃ TM],L_Map[[#This Row],[MÃ TM]]),0)","v":3},{"$f":"IF(_xlfn.XLOOKUP(L_Map[[#This Row],[MÃ TM]],L_TM[MÃ],L_TM[BCR],0),1,0)","v":0},{"$f":"_xlfn.XLOOKUP(L_Map[[#This Row],[MÃ BC]],L_FS[MÃ],L_FS[CHỈ TIÊU],\"-\")","v":"Chi phí quản lý doanh nghiệp"},{"$f":"_xlfn.XLOOKUP(L_Map[[#This Row],[MÃ TM]],L_TM[MÃ],L_TM[CHỈ TIÊU],\"-\")","v":"Chi phí SXKD theo yếu tố"}]
[null,null,"031_",{"$f":"IF(L_Map[[#This Row],[MÃ BC]]<>\"\",COUNTIFS(L_Map[MÃ BC],L_Map[[#This Row],[MÃ BC]]),0)","v":1},"351_",{"$f":"IF(L_Map[[#This Row],[MÃ TM]]<>\"\",COUNTIFS(L_Map[MÃ TM],L_Map[[#This Row],[MÃ TM]]),0)","v":1},{"$f":"IF(_xlfn.XLOOKUP(L_Map[[#This Row],[MÃ TM]],L_TM[MÃ],L_TM[BCR],0),1,0)","v":0},{"$f":"_xlfn.XLOOKUP(L_Map[[#This Row],[MÃ BC]],L_FS[MÃ],L_FS[CHỈ TIÊU],\"-\")","v":"Thu nhập khác"},{"$f":"_xlfn.XLOOKUP(L_Map[[#This Row],[MÃ TM]],L_TM[MÃ],L_TM[CHỈ TIÊU],\"-\")","v":"Thu nhập khác"}]
["Map chỉ tiêu BC-TM",null,"032_",{"$f":"IF(L_Map[[#This Row],[MÃ BC]]<>\"\",COUNTIFS(L_Map[MÃ BC],L_Map[[#This Row],[MÃ BC]]),0)","v":1},"352_",{"$f":"IF(L_Map[[#This Row],[MÃ TM]]<>\"\",COUNTIFS(L_Map[MÃ TM],L_Map[[#This Row],[MÃ TM]]),0)","v":1},{"$f":"IF(_xlfn.XLOOKUP(L_Map[[#This Row],[MÃ TM]],L_TM[MÃ],L_TM[BCR],0),1,0)","v":0},{"$f":"_xlfn.XLOOKUP(L_Map[[#This Row],[MÃ BC]],L_FS[MÃ],L_FS[CHỈ TIÊU],\"-\")","v":"Chi phí khác"},{"$f":"_xlfn.XLOOKUP(L_Map[[#This Row],[MÃ TM]],L_TM[MÃ],L_TM[CHỈ TIÊU],\"-\")","v":"Chi phí khác"}]
[null,null,"051_",{"$f":"IF(L_Map[[#This Row],[MÃ BC]]<>\"\",COUNTIFS(L_Map[MÃ BC],L_Map[[#This Row],[MÃ BC]]),0)","v":1},"361_",{"$f":"IF(L_Map[[#This Row],[MÃ TM]]<>\"\",COUNTIFS(L_Map[MÃ TM],L_Map[[#This Row],[MÃ TM]]),0)","v":1},{"$f":"IF(_xlfn.XLOOKUP(L_Map[[#This Row],[MÃ TM]],L_TM[MÃ],L_TM[BCR],0),1,0)","v":0},{"$f":"_xlfn.XLOOKUP(L_Map[[#This Row],[MÃ BC]],L_FS[MÃ],L_FS[CHỈ TIÊU],\"-\")","v":"Chi phí thuế TNDN hiện hành"},{"$f":"_xlfn.XLOOKUP(L_Map[[#This Row],[MÃ TM]],L_TM[MÃ],L_TM[CHỈ TIÊU],\"-\")","v":"Chi phí thuế TNDN hiện hành"}]
["Chỉ tiêu dòng tiền",null,"052_",{"$f":"IF(L_Map[[#This Row],[MÃ BC]]<>\"\",COUNTIFS(L_Map[MÃ BC],L_Map[[#This Row],[MÃ BC]]),0)","v":1},"362_",{"$f":"IF(L_Map[[#This Row],[MÃ TM]]<>\"\",COUNTIFS(L_Map[MÃ TM],L_Map[[#This Row],[MÃ TM]]),0)","v":1},{"$f":"IF(_xlfn.XLOOKUP(L_Map[[#This Row],[MÃ TM]],L_TM[MÃ],L_TM[BCR],0),1,0)","v":0},{"$f":"_xlfn.XLOOKUP(L_Map[[#This Row],[MÃ BC]],L_FS[MÃ],L_FS[CHỈ TIÊU],\"-\")","v":"Chi phí thuế TNDN hoãn lại"},{"$f":"_xlfn.XLOOKUP(L_Map[[#This Row],[MÃ TM]],L_TM[MÃ],L_TM[CHỈ TIÊU],\"-\")","v":"Chi phí thuế TNDN hoãn lại"}]
[null,null,"061_",{"$f":"IF(L_Map[[#This Row],[MÃ BC]]<>\"\",COUNTIFS(L_Map[MÃ BC],L_Map[[#This Row],[MÃ BC]]),0)","v":1},"",{"$f":"IF(L_Map[[#This Row],[MÃ TM]]<>\"\",COUNTIFS(L_Map[MÃ TM],L_Map[[#This Row],[MÃ TM]]),0)","v":0},{"$f":"IF(_xlfn.XLOOKUP(L_Map[[#This Row],[MÃ TM]],L_TM[MÃ],L_TM[BCR],0),1,0)","v":0},{"$f":"_xlfn.XLOOKUP(L_Map[[#This Row],[MÃ BC]],L_FS[MÃ],L_FS[CHỈ TIÊU],\"-\")","v":"Lợi nhuận sau thuế của CĐ cty mẹ"},{"$f":"_xlfn.XLOOKUP(L_Map[[#This Row],[MÃ TM]],L_TM[MÃ],L_TM[CHỈ TIÊU],\"-\")","v":"-"}]
["Phân loại vốn vay",null,"062_",{"$f":"IF(L_Map[[#This Row],[MÃ BC]]<>\"\",COUNTIFS(L_Map[MÃ BC],L_Map[[#This Row],[MÃ BC]]),0)","v":1},"",{"$f":"IF(L_Map[[#This Row],[MÃ TM]]<>\"\",COUNTIFS(L_Map[MÃ TM],L_Map[[#This Row],[MÃ TM]]),0)","v":0},{"$f":"IF(_xlfn.XLOOKUP(L_Map[[#This Row],[MÃ TM]],L_TM[MÃ],L_TM[BCR],0),1,0)","v":0},{"$f":"_xlfn.XLOOKUP(L_Map[[#This Row],[MÃ BC]],L_FS[MÃ],L_FS[CHỈ TIÊU],\"-\")","v":"Lợi nhuận sau thuế của CĐ không ks"},{"$f":"_xlfn.XLOOKUP(L_Map[[#This Row],[MÃ TM]],L_TM[MÃ],L_TM[CHỈ TIÊU],\"-\")","v":"-"}]
[null,null,"111_",{"$f":"IF(L_Map[[#This Row],[MÃ BC]]<>\"\",COUNTIFS(L_Map[MÃ BC],L_Map[[#This Row],[MÃ BC]]),0)","v":1},"010_",{"$f":"IF(L_Map[[#This Row],[MÃ TM]]<>\"\",COUNTIFS(L_Map[MÃ TM],L_Map[[#This Row],[MÃ TM]]),0)","v":2},{"$f":"IF(_xlfn.XLOOKUP(L_Map[[#This Row],[MÃ TM]],L_TM[MÃ],L_TM[BCR],0),1,0)","v":0},{"$f":"_xlfn.XLOOKUP(L_Map[[#This Row],[MÃ BC]],L_FS[MÃ],L_FS[CHỈ TIÊU],\"-\")","v":"Tiền"},{"$f":"_xlfn.XLOOKUP(L_Map[[#This Row],[MÃ TM]],L_TM[MÃ],L_TM[CHỈ TIÊU],\"-\")","v":"Tiền và tương đương tiền"}]
["Danh mục khác",null,"112_",{"$f":"IF(L_Map[[#This Row],[MÃ BC]]<>\"\",COUNTIFS(L_Map[MÃ BC],L_Map[[#This Row],[MÃ BC]]),0)","v":1},"010_",{"$f":"IF(L_Map[[#This Row],[MÃ TM]]<>\"\",COUNTIFS(L_Map[MÃ TM],L_Map[[#This Row],[MÃ TM]]),0)","v":2},{"$f":"IF(_xlfn.XLOOKUP(L_Map[[#This Row],[MÃ TM]],L_TM[MÃ],L_TM[BCR],0),1,0)","v":0},{"$f":"_xlfn.XLOOKUP(L_Map[[#This Row],[MÃ BC]],L_FS[MÃ],L_FS[CHỈ TIÊU],\"-\")","v":"Các khoản tương đương tiền"},{"$f":"_xlfn.XLOOKUP(L_Map[[#This Row],[MÃ TM]],L_TM[MÃ],L_TM[CHỈ TIÊU],\"-\")","v":"Tiền và tương đương tiền"}]
[null,null,"121_",{"$f":"IF(L_Map[[#This Row],[MÃ BC]]<>\"\",COUNTIFS(L_Map[MÃ BC],L_Map[[#This Row],[MÃ BC]]),0)","v":1},"026_",{"$f":"IF(L_Map[[#This Row],[MÃ TM]]<>\"\",COUNTIFS(L_Map[MÃ TM],L_Map[[#This Row],[MÃ TM]]),0)","v":1},{"$f":"IF(_xlfn.XLOOKUP(L_Map[[#This Row],[MÃ TM]],L_TM[MÃ],L_TM[BCR],0),1,0)","v":0},{"$f":"_xlfn.XLOOKUP(L_Map[[#This Row],[MÃ BC]],L_FS[MÃ],L_FS[CHỈ TIÊU],\"-\")","v":"Chứng khoán kinh doanh"},{"$f":"_xlfn.XLOOKUP(L_Map[[#This Row],[MÃ TM]],L_TM[MÃ],L_TM[CHỈ TIÊU],\"-\")","v":"Chứng khoán kinh doanh"}]
["Tùy chọn",null,"122_",{"$f":"IF(L_Map[[#This Row],[MÃ BC]]<>\"\",COUNTIFS(L_Map[MÃ BC],L_Map[[#This Row],[MÃ BC]]),0)","v":1},"027_",{"$f":"IF(L_Map[[#This Row],[MÃ TM]]<>\"\",COUNTIFS(L_Map[MÃ TM],L_Map[[#This Row],[MÃ TM]]),0)","v":1},{"$f":"IF(_xlfn.XLOOKUP(L_Map[[#This Row],[MÃ TM]],L_TM[MÃ],L_TM[BCR],0),1,0)","v":0},{"$f":"_xlfn.XLOOKUP(L_Map[[#This Row],[MÃ BC]],L_FS[MÃ],L_FS[CHỈ TIÊU],\"-\")","v":"Dự phòng giảm giá chứng khoán kinh doanh *"},{"$f":"_xlfn.XLOOKUP(L_Map[[#This Row],[MÃ TM]],L_TM[MÃ],L_TM[CHỈ TIÊU],\"-\")","v":"Dự phòng giảm giá chứng khoán kinh doanh *"}]
[null,null,"123_",{"$f":"IF(L_Map[[#This Row],[MÃ BC]]<>\"\",COUNTIFS(L_Map[MÃ BC],L_Map[[#This Row],[MÃ BC]]),0)","v":1},"021_",{"$f":"IF(L_Map[[#This Row],[MÃ TM]]<>\"\",COUNTIFS(L_Map[MÃ TM],L_Map[[#This Row],[MÃ TM]]),0)","v":1},{"$f":"IF(_xlfn.XLOOKUP(L_Map[[#This Row],[MÃ TM]],L_TM[MÃ],L_TM[BCR],0),1,0)","v":0},{"$f":"_xlfn.XLOOKUP(L_Map[[#This Row],[MÃ BC]],L_FS[MÃ],L_FS[CHỈ TIÊU],\"-\")","v":"Đầu tư nắm giữ đến ngày đáo hạn ngắn hạn"},{"$f":"_xlfn.XLOOKUP(L_Map[[#This Row],[MÃ TM]],L_TM[MÃ],L_TM[CHỈ TIÊU],\"-\")","v":"Đầu tư nắm giữ đến ngày đáo hạn ngắn hạn"}]
[null,null,"131_",{"$f":"IF(L_Map[[#This Row],[MÃ BC]]<>\"\",COUNTIFS(L_Map[MÃ BC],L_Map[[#This Row],[MÃ BC]]),0)","v":1},"031_",{"$f":"IF(L_Map[[#This Row],[MÃ TM]]<>\"\",COUNTIFS(L_Map[MÃ TM],L_Map[[#This Row],[MÃ TM]]),0)","v":1},{"$f":"IF(_xlfn.XLOOKUP(L_Map[[#This Row],[MÃ TM]],L_TM[MÃ],L_TM[BCR],0),1,0)","v":0},{"$f":"_xlfn.XLOOKUP(L_Map[[#This Row],[MÃ BC]],L_FS[MÃ],L_FS[CHỈ TIÊU],\"-\")","v":"Phải thu ngắn hạn của khách hàng"},{"$f":"_xlfn.XLOOKUP(L_Map[[#This Row],[MÃ TM]],L_TM[MÃ],L_TM[CHỈ TIÊU],\"-\")","v":"Phải thu ngắn hạn của khách hàng"}]
[null,null,"132_",{"$f":"IF(L_Map[[#This Row],[MÃ BC]]<>\"\",COUNTIFS(L_Map[MÃ BC],L_Map[[#This Row],[MÃ BC]]),0)","v":1},"033_",{"$f":"IF(L_Map[[#This Row],[MÃ TM]]<>\"\",COUNTIFS(L_Map[MÃ TM],L_Map[[#This Row],[MÃ TM]]),0)","v":1},{"$f":"IF(_xlfn.XLOOKUP(L_Map[[#This Row],[MÃ TM]],L_TM[MÃ],L_TM[BCR],0),1,0)","v":0},{"$f":"_xlfn.XLOOKUP(L_Map[[#This Row],[MÃ BC]],L_FS[MÃ],L_FS[CHỈ TIÊU],\"-\")","v":"Trả trước cho người bán ngắn hạn"},{"$f":"_xlfn.XLOOKUP(L_Map[[#This Row],[MÃ TM]],L_TM[MÃ],L_TM[CHỈ TIÊU],\"-\")","v":"Trả trước cho người bán ngắn hạn"}]
[null,null,"133_",{"$f":"IF(L_Map[[#This Row],[MÃ BC]]<>\"\",COUNTIFS(L_Map[MÃ BC],L_Map[[#This Row],[MÃ BC]]),0)","v":1},"063_",{"$f":"IF(L_Map[[#This Row],[MÃ TM]]<>\"\",COUNTIFS(L_Map[MÃ TM],L_Map[[#This Row],[MÃ TM]]),0)","v":1},{"$f":"IF(_xlfn.XLOOKUP(L_Map[[#This Row],[MÃ TM]],L_TM[MÃ],L_TM[BCR],0),1,0)","v":0},{"$f":"_xlfn.XLOOKUP(L_Map[[#This Row],[MÃ BC]],L_FS[MÃ],L_FS[CHỈ TIÊU],\"-\")","v":"Phải thu nội bộ ngắn hạn"},{"$f":"_xlfn.XLOOKUP(L_Map[[#This Row],[MÃ TM]],L_TM[MÃ],L_TM[CHỈ TIÊU],\"-\")","v":"Phải thu nội bộ ngắn hạn"}]
[null,null,"134_",{"$f":"IF(L_Map[[#This Row],[MÃ BC]]<>\"\",COUNTIFS(L_Map[MÃ BC],L_Map[[#This Row],[MÃ BC]]),0)","v":1},"065_",{"$f":"IF(L_Map[[#This Row],[MÃ TM]]<>\"\",COUNTIFS(L_Map[MÃ TM],L_Map[[#This Row],[MÃ TM]]),0)","v":1},{"$f":"IF(_xlfn.XLOOKUP(L_Map[[#This Row],[MÃ TM]],L_TM[MÃ],L_TM[BCR],0),1,0)","v":0},{"$f":"_xlfn.XLOOKUP(L_Map[[#This Row],[MÃ BC]],L_FS[MÃ],L_FS[CHỈ TIÊU],\"-\")","v":"Phải thu theo tiến độ HĐXD"},{"$f":"_xlfn.XLOOKUP(L_Map[[#This Row],[MÃ TM]],L_TM[MÃ],L_TM[CHỈ TIÊU],\"-\")","v":"Phải thu theo tiến độ HĐXD"}]
[null,null,"135_",{"$f":"IF(L_Map[[#This Row],[MÃ BC]]<>\"\",COUNTIFS(L_Map[MÃ BC],L_Map[[#This Row],[MÃ BC]]),0)","v":1},"041_",{"$f":"IF(L_Map[[#This Row],[MÃ TM]]<>\"\",COUNTIFS(L_Map[MÃ TM],L_Map[[#This Row],[MÃ TM]]),0)","v":1},{"$f":"IF(_xlfn.XLOOKUP(L_Map[[#This Row],[MÃ TM]],L_TM[MÃ],L_TM[BCR],0),1,0)","v":0},{"$f":"_xlfn.XLOOKUP(L_Map[[#This Row],[MÃ BC]],L_FS[MÃ],L_FS[CHỈ TIÊU],\"-\")","v":"Các khoản phải thu khác"},{"$f":"_xlfn.XLOOKUP(L_Map[[#This Row],[MÃ TM]],L_TM[MÃ],L_TM[CHỈ TIÊU],\"-\")","v":"Phải thu khác ngắn hạn"}]
[null,null,"136_",{"$f":"IF(L_Map[[#This Row],[MÃ BC]]<>\"\",COUNTIFS(L_Map[MÃ BC],L_Map[[#This Row],[MÃ BC]]),0)","v":1},"043_",{"$f":"IF(L_Map[[#This Row],[MÃ TM]]<>\"\",COUNTIFS(L_Map[MÃ TM],L_Map[[#This Row],[MÃ TM]]),0)","v":1},{"$f":"IF(_xlfn.XLOOKUP(L_Map[[#This Row],[MÃ TM]],L_TM[MÃ],L_TM[BCR],0),1,0)","v":0},{"$f":"_xlfn.XLOOKUP(L_Map[[#This Row],[MÃ BC]],L_FS[MÃ],L_FS[CHỈ TIÊU],\"-\")","v":"Dự phòng phải thu ngắn hạn khó đòi *"},{"$f":"_xlfn.XLOOKUP(L_Map[[#This Row],[MÃ TM]],L_TM[MÃ],L_TM[CHỈ TIÊU],\"-\")","v":"Dự phòng phải thu ngắn hạn khó đòi *"}]
[null,null,"137_",{"$f":"IF(L_Map[[#This Row],[MÃ BC]]<>\"\",COUNTIFS(L_Map[MÃ BC],L_Map[[#This Row],[MÃ BC]]),0)","v":1},"050_",{"$f":"IF(L_Map[[#This Row],[MÃ TM]]<>\"\",COUNTIFS(L_Map[MÃ TM],L_Map[[#This Row],[MÃ TM]]),0)","v":1},{"$f":"IF(_xlfn.XLOOKUP(L_Map[[#This Row],[MÃ TM]],L_TM[MÃ],L_TM[BCR],0),1,0)","v":0},{"$f":"_xlfn.XLOOKUP(L_Map[[#This Row],[MÃ BC]],L_FS[MÃ],L_FS[CHỈ TIÊU],\"-\")","v":"Tài sản thiếu chờ xử lý"},{"$f":"_xlfn.XLOOKUP(L_Map[[#This Row],[MÃ TM]],L_TM[MÃ],L_TM[CHỈ TIÊU],\"-\")","v":"Tài sản thiếu chờ xử lý"}]
[null,null,"141_",{"$f":"IF(L_Map[[#This Row],[MÃ BC]]<>\"\",COUNTIFS(L_Map[MÃ BC],L_Map[[#This Row],[MÃ BC]]),0)","v":1},"071_",{"$f":"IF(L_Map[[#This Row],[MÃ TM]]<>\"\",COUNTIFS(L_Map[MÃ TM],L_Map[[#This Row],[MÃ TM]]),0)","v":1},{"$f":"IF(_xlfn.XLOOKUP(L_Map[[#This Row],[MÃ TM]],L_TM[MÃ],L_TM[BCR],0),1,0)","v":0},{"$f":"_xlfn.XLOOKUP(L_Map[[#This Row],[MÃ BC]],L_FS[MÃ],L_FS[CHỈ TIÊU],\"-\")","v":"Hàng tồn kho"},{"$f":"_xlfn.XLOOKUP(L_Map[[#This Row],[MÃ TM]],L_TM[MÃ],L_TM[CHỈ TIÊU],\"-\")","v":"Hàng tồn kho"}]
[null,null,"142_",{"$f":"IF(L_Map[[#This Row],[MÃ BC]]<>\"\",COUNTIFS(L_Map[MÃ BC],L_Map[[#This Row],[MÃ BC]]),0)","v":1},"072_",{"$f":"IF(L_Map[[#This Row],[MÃ TM]]<>\"\",COUNTIFS(L_Map[MÃ TM],L_Map[[#This Row],[MÃ TM]]),0)","v":1},{"$f":"IF(_xlfn.XLOOKUP(L_Map[[#This Row],[MÃ TM]],L_TM[MÃ],L_TM[BCR],0),1,0)","v":0},{"$f":"_xlfn.XLOOKUP(L_Map[[#This Row],[MÃ BC]],L_FS[MÃ],L_FS[CHỈ TIÊU],\"-\")","v":"Dự phòng giảm giá hàng tồn kho *"},{"$f":"_xlfn.XLOOKUP(L_Map[[#This Row],[MÃ TM]],L_TM[MÃ],L_TM[CHỈ TIÊU],\"-\")","v":"Dự phòng giảm giá hàng tồn kho *"}]
[null,null,"161_",{"$f":"IF(L_Map[[#This Row],[MÃ BC]]<>\"\",COUNTIFS(L_Map[MÃ BC],L_Map[[#This Row],[MÃ BC]]),0)","v":1},"141_",{"$f":"IF(L_Map[[#This Row],[MÃ TM]]<>\"\",COUNTIFS(L_Map[MÃ TM],L_Map[[#This Row],[MÃ TM]]),0)","v":1},{"$f":"IF(_xlfn.XLOOKUP(L_Map[[#This Row],[MÃ TM]],L_TM[MÃ],L_TM[BCR],0),1,0)","v":0},{"$f":"_xlfn.XLOOKUP(L_Map[[#This Row],[MÃ BC]],L_FS[MÃ],L_FS[CHỈ TIÊU],\"-\")","v":"Chi phí chờ phân bổ ngắn hạn"},{"$f":"_xlfn.XLOOKUP(L_Map[[#This Row],[MÃ TM]],L_TM[MÃ],L_TM[CHỈ TIÊU],\"-\")","v":"Chi phí chờ phân bổ ngắn hạn"}]
[null,null,"163_",{"$f":"IF(L_Map[[#This Row],[MÃ BC]]<>\"\",COUNTIFS(L_Map[MÃ BC],L_Map[[#This Row],[MÃ BC]]),0)","v":1},"191_",{"$f":"IF(L_Map[[#This Row],[MÃ TM]]<>\"\",COUNTIFS(L_Map[MÃ TM],L_Map[[#This Row],[MÃ TM]]),0)","v":2},{"$f":"IF(_xlfn.XLOOKUP(L_Map[[#This Row],[MÃ TM]],L_TM[MÃ],L_TM[BCR],0),1,0)","v":0},{"$f":"_xlfn.XLOOKUP(L_Map[[#This Row],[MÃ BC]],L_FS[MÃ],L_FS[CHỈ TIÊU],\"-\")","v":"Thuế và các khoản phải thu Nhà nước"},{"$f":"_xlfn.XLOOKUP(L_Map[[#This Row],[MÃ TM]],L_TM[MÃ],L_TM[CHỈ TIÊU],\"-\")","v":"Thuế và các khoản phải nộp Nhà nước"}]
[null,null,"165_",{"$f":"IF(L_Map[[#This Row],[MÃ BC]]<>\"\",COUNTIFS(L_Map[MÃ BC],L_Map[[#This Row],[MÃ BC]]),0)","v":1},"061_",{"$f":"IF(L_Map[[#This Row],[MÃ TM]]<>\"\",COUNTIFS(L_Map[MÃ TM],L_Map[[#This Row],[MÃ TM]]),0)","v":1},{"$f":"IF(_xlfn.XLOOKUP(L_Map[[#This Row],[MÃ TM]],L_TM[MÃ],L_TM[BCR],0),1,0)","v":0},{"$f":"_xlfn.XLOOKUP(L_Map[[#This Row],[MÃ BC]],L_FS[MÃ],L_FS[CHỈ TIÊU],\"-\")","v":"Tài sản ngắn hạn khác"},{"$f":"_xlfn.XLOOKUP(L_Map[[#This Row],[MÃ TM]],L_TM[MÃ],L_TM[CHỈ TIÊU],\"-\")","v":"Tài sản khác ngắn hạn"}]
[null,null,"211_",{"$f":"IF(L_Map[[#This Row],[MÃ BC]]<>\"\",COUNTIFS(L_Map[MÃ BC],L_Map[[#This Row],[MÃ BC]]),0)","v":1},"032_",{"$f":"IF(L_Map[[#This Row],[MÃ TM]]<>\"\",COUNTIFS(L_Map[MÃ TM],L_Map[[#This Row],[MÃ TM]]),0)","v":1},{"$f":"IF(_xlfn.XLOOKUP(L_Map[[#This Row],[MÃ TM]],L_TM[MÃ],L_TM[BCR],0),1,0)","v":0},{"$f":"_xlfn.XLOOKUP(L_Map[[#This Row],[MÃ BC]],L_FS[MÃ],L_FS[CHỈ TIÊU],\"-\")","v":"Phải thu dài hạn của khách hàng"},{"$f":"_xlfn.XLOOKUP(L_Map[[#This Row],[MÃ TM]],L_TM[MÃ],L_TM[CHỈ TIÊU],\"-\")","v":"Phải thu dài hạn của khách hàng"}]
[null,null,"212_",{"$f":"IF(L_Map[[#This Row],[MÃ BC]]<>\"\",COUNTIFS(L_Map[MÃ BC],L_Map[[#This Row],[MÃ BC]]),0)","v":1},"034_",{"$f":"IF(L_Map[[#This Row],[MÃ TM]]<>\"\",COUNTIFS(L_Map[MÃ TM],L_Map[[#This Row],[MÃ TM]]),0)","v":1},{"$f":"IF(_xlfn.XLOOKUP(L_Map[[#This Row],[MÃ TM]],L_TM[MÃ],L_TM[BCR],0),1,0)","v":0},{"$f":"_xlfn.XLOOKUP(L_Map[[#This Row],[MÃ BC]],L_FS[MÃ],L_FS[CHỈ TIÊU],\"-\")","v":"Trả trước cho người bán dài hạn"},{"$f":"_xlfn.XLOOKUP(L_Map[[#This Row],[MÃ TM]],L_TM[MÃ],L_TM[CHỈ TIÊU],\"-\")","v":"Trả trước cho người bán dài hạn"}]
[null,null,"213_",{"$f":"IF(L_Map[[#This Row],[MÃ BC]]<>\"\",COUNTIFS(L_Map[MÃ BC],L_Map[[#This Row],[MÃ BC]]),0)","v":1},"064_",{"$f":"IF(L_Map[[#This Row],[MÃ TM]]<>\"\",COUNTIFS(L_Map[MÃ TM],L_Map[[#This Row],[MÃ TM]]),0)","v":2},{"$f":"IF(_xlfn.XLOOKUP(L_Map[[#This Row],[MÃ TM]],L_TM[MÃ],L_TM[BCR],0),1,0)","v":0},{"$f":"_xlfn.XLOOKUP(L_Map[[#This Row],[MÃ BC]],L_FS[MÃ],L_FS[CHỈ TIÊU],\"-\")","v":"Vốn kinh doanh ở đơn vị trực thuộc"},{"$f":"_xlfn.XLOOKUP(L_Map[[#This Row],[MÃ TM]],L_TM[MÃ],L_TM[CHỈ TIÊU],\"-\")","v":"Phải thu nội bộ dài hạn"}]
[null,null,"214_",{"$f":"IF(L_Map[[#This Row],[MÃ BC]]<>\"\",COUNTIFS(L_Map[MÃ BC],L_Map[[#This Row],[MÃ BC]]),0)","v":1},"064_",{"$f":"IF(L_Map[[#This Row],[MÃ TM]]<>\"\",COUNTIFS(L_Map[MÃ TM],L_Map[[#This Row],[MÃ TM]]),0)","v":2},{"$f":"IF(_xlfn.XLOOKUP(L_Map[[#This Row],[MÃ TM]],L_TM[MÃ],L_TM[BCR],0),1,0)","v":0},{"$f":"_xlfn.XLOOKUP(L_Map[[#This Row],[MÃ BC]],L_FS[MÃ],L_FS[CHỈ TIÊU],\"-\")","v":"Phải thu nội bộ dài hạn"},{"$f":"_xlfn.XLOOKUP(L_Map[[#This Row],[MÃ TM]],L_TM[MÃ],L_TM[CHỈ TIÊU],\"-\")","v":"Phải thu nội bộ dài hạn"}]
[null,null,"215_",{"$f":"IF(L_Map[[#This Row],[MÃ BC]]<>\"\",COUNTIFS(L_Map[MÃ BC],L_Map[[#This Row],[MÃ BC]]),0)","v":1},"042_",{"$f":"IF(L_Map[[#This Row],[MÃ TM]]<>\"\",COUNTIFS(L_Map[MÃ TM],L_Map[[#This Row],[MÃ TM]]),0)","v":1},{"$f":"IF(_xlfn.XLOOKUP(L_Map[[#This Row],[MÃ TM]],L_TM[MÃ],L_TM[BCR],0),1,0)","v":0},{"$f":"_xlfn.XLOOKUP(L_Map[[#This Row],[MÃ BC]],L_FS[MÃ],L_FS[CHỈ TIÊU],\"-\")","v":"Phải thu dài hạn khác"},{"$f":"_xlfn.XLOOKUP(L_Map[[#This Row],[MÃ TM]],L_TM[MÃ],L_TM[CHỈ TIÊU],\"-\")","v":"Phải thu khác dài hạn"}]
[null,null,"216_",{"$f":"IF(L_Map[[#This Row],[MÃ BC]]<>\"\",COUNTIFS(L_Map[MÃ BC],L_Map[[#This Row],[MÃ BC]]),0)","v":1},"044_",{"$f":"IF(L_Map[[#This Row],[MÃ TM]]<>\"\",COUNTIFS(L_Map[MÃ TM],L_Map[[#This Row],[MÃ TM]]),0)","v":1},{"$f":"IF(_xlfn.XLOOKUP(L_Map[[#This Row],[MÃ TM]],L_TM[MÃ],L_TM[BCR],0),1,0)","v":0},{"$f":"_xlfn.XLOOKUP(L_Map[[#This Row],[MÃ BC]],L_FS[MÃ],L_FS[CHỈ TIÊU],\"-\")","v":"Dự phòng phải thu dài hạn khó đòi *"},{"$f":"_xlfn.XLOOKUP(L_Map[[#This Row],[MÃ TM]],L_TM[MÃ],L_TM[CHỈ TIÊU],\"-\")","v":"Dự phòng phải thu dài hạn khó đòi *"}]
[null,null,"222_",{"$f":"IF(L_Map[[#This Row],[MÃ BC]]<>\"\",COUNTIFS(L_Map[MÃ BC],L_Map[[#This Row],[MÃ BC]]),0)","v":2},"091_",{"$f":"IF(L_Map[[#This Row],[MÃ TM]]<>\"\",COUNTIFS(L_Map[MÃ TM],L_Map[[#This Row],[MÃ TM]]),0)","v":1},{"$f":"IF(_xlfn.XLOOKUP(L_Map[[#This Row],[MÃ TM]],L_TM[MÃ],L_TM[BCR],0),1,0)","v":0},{"$f":"_xlfn.XLOOKUP(L_Map[[#This Row],[MÃ BC]],L_FS[MÃ],L_FS[CHỈ TIÊU],\"-\")","v":"Nguyên giá TSCĐ hữu hình"},{"$f":"_xlfn.XLOOKUP(L_Map[[#This Row],[MÃ TM]],L_TM[MÃ],L_TM[CHỈ TIÊU],\"-\")","v":"TSCĐ hữu hình - Nguyên giá"}]
[null,null,"222_",{"$f":"IF(L_Map[[#This Row],[MÃ BC]]<>\"\",COUNTIFS(L_Map[MÃ BC],L_Map[[#This Row],[MÃ BC]]),0)","v":2},"091s",{"$f":"IF(L_Map[[#This Row],[MÃ TM]]<>\"\",COUNTIFS(L_Map[MÃ TM],L_Map[[#This Row],[MÃ TM]]),0)","v":1},{"$f":"IF(_xlfn.XLOOKUP(L_Map[[#This Row],[MÃ TM]],L_TM[MÃ],L_TM[BCR],0),1,0)","v":0},{"$f":"_xlfn.XLOOKUP(L_Map[[#This Row],[MÃ BC]],L_FS[MÃ],L_FS[CHỈ TIÊU],\"-\")","v":"Nguyên giá TSCĐ hữu hình"},{"$f":"_xlfn.XLOOKUP(L_Map[[#This Row],[MÃ TM]],L_TM[MÃ],L_TM[CHỈ TIÊU],\"-\")","v":"NG TSCĐ HH đã KH hết đang sử dụng"}]
[null,null,"223_",{"$f":"IF(L_Map[[#This Row],[MÃ BC]]<>\"\",COUNTIFS(L_Map[MÃ BC],L_Map[[#This Row],[MÃ BC]]),0)","v":1},"092_",{"$f":"IF(L_Map[[#This Row],[MÃ TM]]<>\"\",COUNTIFS(L_Map[MÃ TM],L_Map[[#This Row],[MÃ TM]]),0)","v":1},{"$f":"IF(_xlfn.XLOOKUP(L_Map[[#This Row],[MÃ TM]],L_TM[MÃ],L_TM[BCR],0),1,0)","v":0},{"$f":"_xlfn.XLOOKUP(L_Map[[#This Row],[MÃ BC]],L_FS[MÃ],L_FS[CHỈ TIÊU],\"-\")","v":"Giá trị hao mòn lũy kế TSCĐ hữu hình"},{"$f":"_xlfn.XLOOKUP(L_Map[[#This Row],[MÃ TM]],L_TM[MÃ],L_TM[CHỈ TIÊU],\"-\")","v":"TSCĐ hữu hình - Hao mòn lũy kế *"}]
[null,null,"225_",{"$f":"IF(L_Map[[#This Row],[MÃ BC]]<>\"\",COUNTIFS(L_Map[MÃ BC],L_Map[[#This Row],[MÃ BC]]),0)","v":1},"111_",{"$f":"IF(L_Map[[#This Row],[MÃ TM]]<>\"\",COUNTIFS(L_Map[MÃ TM],L_Map[[#This Row],[MÃ TM]]),0)","v":1},{"$f":"IF(_xlfn.XLOOKUP(L_Map[[#This Row],[MÃ TM]],L_TM[MÃ],L_TM[BCR],0),1,0)","v":0},{"$f":"_xlfn.XLOOKUP(L_Map[[#This Row],[MÃ BC]],L_FS[MÃ],L_FS[CHỈ TIÊU],\"-\")","v":"Nguyên giá TSCĐ thuê tài chính"},{"$f":"_xlfn.XLOOKUP(L_Map[[#This Row],[MÃ TM]],L_TM[MÃ],L_TM[CHỈ TIÊU],\"-\")","v":"TSCĐ thuê tài chính - Nguyên giá"}]
[null,null,"226_",{"$f":"IF(L_Map[[#This Row],[MÃ BC]]<>\"\",COUNTIFS(L_Map[MÃ BC],L_Map[[#This Row],[MÃ BC]]),0)","v":1},"112_",{"$f":"IF(L_Map[[#This Row],[MÃ TM]]<>\"\",COUNTIFS(L_Map[MÃ TM],L_Map[[#This Row],[MÃ TM]]),0)","v":1},{"$f":"IF(_xlfn.XLOOKUP(L_Map[[#This Row],[MÃ TM]],L_TM[MÃ],L_TM[BCR],0),1,0)","v":0},{"$f":"_xlfn.XLOOKUP(L_Map[[#This Row],[MÃ BC]],L_FS[MÃ],L_FS[CHỈ TIÊU],\"-\")","v":"Giá trị hao mòn lũy kế TSCĐ thuê tài chính"},{"$f":"_xlfn.XLOOKUP(L_Map[[#This Row],[MÃ TM]],L_TM[MÃ],L_TM[CHỈ TIÊU],\"-\")","v":"TSCĐ thuê tài chính - Hao mòn lũy kế *"}]
[null,null,"228_",{"$f":"IF(L_Map[[#This Row],[MÃ BC]]<>\"\",COUNTIFS(L_Map[MÃ BC],L_Map[[#This Row],[MÃ BC]]),0)","v":2},"101_",{"$f":"IF(L_Map[[#This Row],[MÃ TM]]<>\"\",COUNTIFS(L_Map[MÃ TM],L_Map[[#This Row],[MÃ TM]]),0)","v":1},{"$f":"IF(_xlfn.XLOOKUP(L_Map[[#This Row],[MÃ TM]],L_TM[MÃ],L_TM[BCR],0),1,0)","v":0},{"$f":"_xlfn.XLOOKUP(L_Map[[#This Row],[MÃ BC]],L_FS[MÃ],L_FS[CHỈ TIÊU],\"-\")","v":"Nguyên giá TSCĐ vô hình"},{"$f":"_xlfn.XLOOKUP(L_Map[[#This Row],[MÃ TM]],L_TM[MÃ],L_TM[CHỈ TIÊU],\"-\")","v":"TSCĐ vô hình - Nguyên giá"}]
[null,null,"228_",{"$f":"IF(L_Map[[#This Row],[MÃ BC]]<>\"\",COUNTIFS(L_Map[MÃ BC],L_Map[[#This Row],[MÃ BC]]),0)","v":2},"101s",{"$f":"IF(L_Map[[#This Row],[MÃ TM]]<>\"\",COUNTIFS(L_Map[MÃ TM],L_Map[[#This Row],[MÃ TM]]),0)","v":1},{"$f":"IF(_xlfn.XLOOKUP(L_Map[[#This Row],[MÃ TM]],L_TM[MÃ],L_TM[BCR],0),1,0)","v":0},{"$f":"_xlfn.XLOOKUP(L_Map[[#This Row],[MÃ BC]],L_FS[MÃ],L_FS[CHỈ TIÊU],\"-\")","v":"Nguyên giá TSCĐ vô hình"},{"$f":"_xlfn.XLOOKUP(L_Map[[#This Row],[MÃ TM]],L_TM[MÃ],L_TM[CHỈ TIÊU],\"-\")","v":"NG TSCĐ VH đã KH hết đang sử dụng"}]
[null,null,"229_",{"$f":"IF(L_Map[[#This Row],[MÃ BC]]<>\"\",COUNTIFS(L_Map[MÃ BC],L_Map[[#This Row],[MÃ BC]]),0)","v":1},"102_",{"$f":"IF(L_Map[[#This Row],[MÃ TM]]<>\"\",COUNTIFS(L_Map[MÃ TM],L_Map[[#This Row],[MÃ TM]]),0)","v":1},{"$f":"IF(_xlfn.XLOOKUP(L_Map[[#This Row],[MÃ TM]],L_TM[MÃ],L_TM[BCR],0),1,0)","v":0},{"$f":"_xlfn.XLOOKUP(L_Map[[#This Row],[MÃ BC]],L_FS[MÃ],L_FS[CHỈ TIÊU],\"-\")","v":"Giá trị hao mòn lũy kế TSCĐ vô hình"},{"$f":"_xlfn.XLOOKUP(L_Map[[#This Row],[MÃ TM]],L_TM[MÃ],L_TM[CHỈ TIÊU],\"-\")","v":"TSCĐ vô hình - Hao mòn lũy kế *"}]
[null,null,"241_",{"$f":"IF(L_Map[[#This Row],[MÃ BC]]<>\"\",COUNTIFS(L_Map[MÃ BC],L_Map[[#This Row],[MÃ BC]]),0)","v":1},"131_",{"$f":"IF(L_Map[[#This Row],[MÃ TM]]<>\"\",COUNTIFS(L_Map[MÃ TM],L_Map[[#This Row],[MÃ TM]]),0)","v":1},{"$f":"IF(_xlfn.XLOOKUP(L_Map[[#This Row],[MÃ TM]],L_TM[MÃ],L_TM[BCR],0),1,0)","v":0},{"$f":"_xlfn.XLOOKUP(L_Map[[#This Row],[MÃ BC]],L_FS[MÃ],L_FS[CHỈ TIÊU],\"-\")","v":"Nguyên giá BĐS đầu tư"},{"$f":"_xlfn.XLOOKUP(L_Map[[#This Row],[MÃ TM]],L_TM[MÃ],L_TM[CHỈ TIÊU],\"-\")","v":"BĐS đầu tư - Nguyên giá"}]
[null,null,"242_",{"$f":"IF(L_Map[[#This Row],[MÃ BC]]<>\"\",COUNTIFS(L_Map[MÃ BC],L_Map[[#This Row],[MÃ BC]]),0)","v":1},"132_",{"$f":"IF(L_Map[[#This Row],[MÃ TM]]<>\"\",COUNTIFS(L_Map[MÃ TM],L_Map[[#This Row],[MÃ TM]]),0)","v":1},{"$f":"IF(_xlfn.XLOOKUP(L_Map[[#This Row],[MÃ TM]],L_TM[MÃ],L_TM[BCR],0),1,0)","v":0},{"$f":"_xlfn.XLOOKUP(L_Map[[#This Row],[MÃ BC]],L_FS[MÃ],L_FS[CHỈ TIÊU],\"-\")","v":"Giá trị hao mòn lũy kế BĐS đầu tư *"},{"$f":"_xlfn.XLOOKUP(L_Map[[#This Row],[MÃ TM]],L_TM[MÃ],L_TM[CHỈ TIÊU],\"-\")","v":"BĐS đầu tư - Hao mòn lũy kế *"}]
[null,null,"251_",{"$f":"IF(L_Map[[#This Row],[MÃ BC]]<>\"\",COUNTIFS(L_Map[MÃ BC],L_Map[[#This Row],[MÃ BC]]),0)","v":1},"081_",{"$f":"IF(L_Map[[#This Row],[MÃ TM]]<>\"\",COUNTIFS(L_Map[MÃ TM],L_Map[[#This Row],[MÃ TM]]),0)","v":1},{"$f":"IF(_xlfn.XLOOKUP(L_Map[[#This Row],[MÃ TM]],L_TM[MÃ],L_TM[BCR],0),1,0)","v":0},{"$f":"_xlfn.XLOOKUP(L_Map[[#This Row],[MÃ BC]],L_FS[MÃ],L_FS[CHỈ TIÊU],\"-\")","v":"Chi phí sản xuất, kinh doanh dở dang dài hạn"},{"$f":"_xlfn.XLOOKUP(L_Map[[#This Row],[MÃ TM]],L_TM[MÃ],L_TM[CHỈ TIÊU],\"-\")","v":"Chi phí SXKD dở dang dài hạn"}]
[null,null,"252_",{"$f":"IF(L_Map[[#This Row],[MÃ BC]]<>\"\",COUNTIFS(L_Map[MÃ BC],L_Map[[#This Row],[MÃ BC]]),0)","v":1},"082_",{"$f":"IF(L_Map[[#This Row],[MÃ TM]]<>\"\",COUNTIFS(L_Map[MÃ TM],L_Map[[#This Row],[MÃ TM]]),0)","v":1},{"$f":"IF(_xlfn.XLOOKUP(L_Map[[#This Row],[MÃ TM]],L_TM[MÃ],L_TM[BCR],0),1,0)","v":0},{"$f":"_xlfn.XLOOKUP(L_Map[[#This Row],[MÃ BC]],L_FS[MÃ],L_FS[CHỈ TIÊU],\"-\")","v":"Chi phí xây dựng cơ bản dở dang"},{"$f":"_xlfn.XLOOKUP(L_Map[[#This Row],[MÃ TM]],L_TM[MÃ],L_TM[CHỈ TIÊU],\"-\")","v":"Chi phí XDCB dở dang"}]
[null,null,"261_",{"$f":"IF(L_Map[[#This Row],[MÃ BC]]<>\"\",COUNTIFS(L_Map[MÃ BC],L_Map[[#This Row],[MÃ BC]]),0)","v":1},"023_",{"$f":"IF(L_Map[[#This Row],[MÃ TM]]<>\"\",COUNTIFS(L_Map[MÃ TM],L_Map[[#This Row],[MÃ TM]]),0)","v":1},{"$f":"IF(_xlfn.XLOOKUP(L_Map[[#This Row],[MÃ TM]],L_TM[MÃ],L_TM[BCR],0),1,0)","v":0},{"$f":"_xlfn.XLOOKUP(L_Map[[#This Row],[MÃ BC]],L_FS[MÃ],L_FS[CHỈ TIÊU],\"-\")","v":"Đầu tư vào công ty con"},{"$f":"_xlfn.XLOOKUP(L_Map[[#This Row],[MÃ TM]],L_TM[MÃ],L_TM[CHỈ TIÊU],\"-\")","v":"Đầu tư vào công ty con"}]
[null,null,"262_",{"$f":"IF(L_Map[[#This Row],[MÃ BC]]<>\"\",COUNTIFS(L_Map[MÃ BC],L_Map[[#This Row],[MÃ BC]]),0)","v":1},"024_",{"$f":"IF(L_Map[[#This Row],[MÃ TM]]<>\"\",COUNTIFS(L_Map[MÃ TM],L_Map[[#This Row],[MÃ TM]]),0)","v":1},{"$f":"IF(_xlfn.XLOOKUP(L_Map[[#This Row],[MÃ TM]],L_TM[MÃ],L_TM[BCR],0),1,0)","v":0},{"$f":"_xlfn.XLOOKUP(L_Map[[#This Row],[MÃ BC]],L_FS[MÃ],L_FS[CHỈ TIÊU],\"-\")","v":"Đầu tư vào công ty liên doanh, liên kết"},{"$f":"_xlfn.XLOOKUP(L_Map[[#This Row],[MÃ TM]],L_TM[MÃ],L_TM[CHỈ TIÊU],\"-\")","v":"Đầu tư vào công ty liên kết"}]
[null,null,"263_",{"$f":"IF(L_Map[[#This Row],[MÃ BC]]<>\"\",COUNTIFS(L_Map[MÃ BC],L_Map[[#This Row],[MÃ BC]]),0)","v":1},"025_",{"$f":"IF(L_Map[[#This Row],[MÃ TM]]<>\"\",COUNTIFS(L_Map[MÃ TM],L_Map[[#This Row],[MÃ TM]]),0)","v":1},{"$f":"IF(_xlfn.XLOOKUP(L_Map[[#This Row],[MÃ TM]],L_TM[MÃ],L_TM[BCR],0),1,0)","v":0},{"$f":"_xlfn.XLOOKUP(L_Map[[#This Row],[MÃ BC]],L_FS[MÃ],L_FS[CHỈ TIÊU],\"-\")","v":"Đầu tư góp vốn vào đơn vị khác"},{"$f":"_xlfn.XLOOKUP(L_Map[[#This Row],[MÃ TM]],L_TM[MÃ],L_TM[CHỈ TIÊU],\"-\")","v":"Đầu tư góp vốn vào đơn vị khác"}]
[null,null,"264_",{"$f":"IF(L_Map[[#This Row],[MÃ BC]]<>\"\",COUNTIFS(L_Map[MÃ BC],L_Map[[#This Row],[MÃ BC]]),0)","v":1},"028_",{"$f":"IF(L_Map[[#This Row],[MÃ TM]]<>\"\",COUNTIFS(L_Map[MÃ TM],L_Map[[#This Row],[MÃ TM]]),0)","v":2},{"$f":"IF(_xlfn.XLOOKUP(L_Map[[#This Row],[MÃ TM]],L_TM[MÃ],L_TM[BCR],0),1,0)","v":0},{"$f":"_xlfn.XLOOKUP(L_Map[[#This Row],[MÃ BC]],L_FS[MÃ],L_FS[CHỈ TIÊU],\"-\")","v":"Dự phòng tổn thất đầu tư vào đơn vị khác dài hạn *"},{"$f":"_xlfn.XLOOKUP(L_Map[[#This Row],[MÃ TM]],L_TM[MÃ],L_TM[CHỈ TIÊU],\"-\")","v":"Dự phòng đầu tư tài chính dài hạn *"}]
[null,null,"265_",{"$f":"IF(L_Map[[#This Row],[MÃ BC]]<>\"\",COUNTIFS(L_Map[MÃ BC],L_Map[[#This Row],[MÃ BC]]),0)","v":1},"022_",{"$f":"IF(L_Map[[#This Row],[MÃ TM]]<>\"\",COUNTIFS(L_Map[MÃ TM],L_Map[[#This Row],[MÃ TM]]),0)","v":1},{"$f":"IF(_xlfn.XLOOKUP(L_Map[[#This Row],[MÃ TM]],L_TM[MÃ],L_TM[BCR],0),1,0)","v":0},{"$f":"_xlfn.XLOOKUP(L_Map[[#This Row],[MÃ BC]],L_FS[MÃ],L_FS[CHỈ TIÊU],\"-\")","v":"Đầu tư nắm giữ đến ngày đáo hạn dài hạn"},{"$f":"_xlfn.XLOOKUP(L_Map[[#This Row],[MÃ TM]],L_TM[MÃ],L_TM[CHỈ TIÊU],\"-\")","v":"Đầu tư nắm giữ đến ngày đáo hạn dài hạn"}]
[null,null,"266_",{"$f":"IF(L_Map[[#This Row],[MÃ BC]]<>\"\",COUNTIFS(L_Map[MÃ BC],L_Map[[#This Row],[MÃ BC]]),0)","v":1},"028_",{"$f":"IF(L_Map[[#This Row],[MÃ TM]]<>\"\",COUNTIFS(L_Map[MÃ TM],L_Map[[#This Row],[MÃ TM]]),0)","v":2},{"$f":"IF(_xlfn.XLOOKUP(L_Map[[#This Row],[MÃ TM]],L_TM[MÃ],L_TM[BCR],0),1,0)","v":0},{"$f":"_xlfn.XLOOKUP(L_Map[[#This Row],[MÃ BC]],L_FS[MÃ],L_FS[CHỈ TIÊU],\"-\")","v":"Dự phòng đầu tư nắm giữ đến ngày đáo hạn dài hạn *"},{"$f":"_xlfn.XLOOKUP(L_Map[[#This Row],[MÃ TM]],L_TM[MÃ],L_TM[CHỈ TIÊU],\"-\")","v":"Dự phòng đầu tư tài chính dài hạn *"}]
[null,null,"271_",{"$f":"IF(L_Map[[#This Row],[MÃ BC]]<>\"\",COUNTIFS(L_Map[MÃ BC],L_Map[[#This Row],[MÃ BC]]),0)","v":1},"142_",{"$f":"IF(L_Map[[#This Row],[MÃ TM]]<>\"\",COUNTIFS(L_Map[MÃ TM],L_Map[[#This Row],[MÃ TM]]),0)","v":1},{"$f":"IF(_xlfn.XLOOKUP(L_Map[[#This Row],[MÃ TM]],L_TM[MÃ],L_TM[BCR],0),1,0)","v":0},{"$f":"_xlfn.XLOOKUP(L_Map[[#This Row],[MÃ BC]],L_FS[MÃ],L_FS[CHỈ TIÊU],\"-\")","v":"Chi phí chờ phân bổ dài hạn"},{"$f":"_xlfn.XLOOKUP(L_Map[[#This Row],[MÃ TM]],L_TM[MÃ],L_TM[CHỈ TIÊU],\"-\")","v":"Chi phí chờ phân bổ dài hạn"}]
[null,null,"272_",{"$f":"IF(L_Map[[#This Row],[MÃ BC]]<>\"\",COUNTIFS(L_Map[MÃ BC],L_Map[[#This Row],[MÃ BC]]),0)","v":1},"261_",{"$f":"IF(L_Map[[#This Row],[MÃ TM]]<>\"\",COUNTIFS(L_Map[MÃ TM],L_Map[[#This Row],[MÃ TM]]),0)","v":1},{"$f":"IF(_xlfn.XLOOKUP(L_Map[[#This Row],[MÃ TM]],L_TM[MÃ],L_TM[BCR],0),1,0)","v":0},{"$f":"_xlfn.XLOOKUP(L_Map[[#This Row],[MÃ BC]],L_FS[MÃ],L_FS[CHỈ TIÊU],\"-\")","v":"Tài sản thuế thu nhập hoãn lại"},{"$f":"_xlfn.XLOOKUP(L_Map[[#This Row],[MÃ TM]],L_TM[MÃ],L_TM[CHỈ TIÊU],\"-\")","v":"Tài sản thuế TNDN hoãn lại"}]
[null,null,"273_",{"$f":"IF(L_Map[[#This Row],[MÃ BC]]<>\"\",COUNTIFS(L_Map[MÃ BC],L_Map[[#This Row],[MÃ BC]]),0)","v":1},"062_",{"$f":"IF(L_Map[[#This Row],[MÃ TM]]<>\"\",COUNTIFS(L_Map[MÃ TM],L_Map[[#This Row],[MÃ TM]]),0)","v":2},{"$f":"IF(_xlfn.XLOOKUP(L_Map[[#This Row],[MÃ TM]],L_TM[MÃ],L_TM[BCR],0),1,0)","v":0},{"$f":"_xlfn.XLOOKUP(L_Map[[#This Row],[MÃ BC]],L_FS[MÃ],L_FS[CHỈ TIÊU],\"-\")","v":"Thiết bị, vật tư, phụ tùng thay thế dài hạn"},{"$f":"_xlfn.XLOOKUP(L_Map[[#This Row],[MÃ TM]],L_TM[MÃ],L_TM[CHỈ TIÊU],\"-\")","v":"Tài sản khác dài hạn"}]
[null,null,"274_",{"$f":"IF(L_Map[[#This Row],[MÃ BC]]<>\"\",COUNTIFS(L_Map[MÃ BC],L_Map[[#This Row],[MÃ BC]]),0)","v":1},"062_",{"$f":"IF(L_Map[[#This Row],[MÃ TM]]<>\"\",COUNTIFS(L_Map[MÃ TM],L_Map[[#This Row],[MÃ TM]]),0)","v":2},{"$f":"IF(_xlfn.XLOOKUP(L_Map[[#This Row],[MÃ TM]],L_TM[MÃ],L_TM[BCR],0),1,0)","v":0},{"$f":"_xlfn.XLOOKUP(L_Map[[#This Row],[MÃ BC]],L_FS[MÃ],L_FS[CHỈ TIÊU],\"-\")","v":"Tài sản dài hạn khác"},{"$f":"_xlfn.XLOOKUP(L_Map[[#This Row],[MÃ TM]],L_TM[MÃ],L_TM[CHỈ TIÊU],\"-\")","v":"Tài sản khác dài hạn"}]
[null,null,"279_",{"$f":"IF(L_Map[[#This Row],[MÃ BC]]<>\"\",COUNTIFS(L_Map[MÃ BC],L_Map[[#This Row],[MÃ BC]]),0)","v":1},"151_",{"$f":"IF(L_Map[[#This Row],[MÃ TM]]<>\"\",COUNTIFS(L_Map[MÃ TM],L_Map[[#This Row],[MÃ TM]]),0)","v":1},{"$f":"IF(_xlfn.XLOOKUP(L_Map[[#This Row],[MÃ TM]],L_TM[MÃ],L_TM[BCR],0),1,0)","v":0},{"$f":"_xlfn.XLOOKUP(L_Map[[#This Row],[MÃ BC]],L_FS[MÃ],L_FS[CHỈ TIÊU],\"-\")","v":"Lợi thế thương mại"},{"$f":"_xlfn.XLOOKUP(L_Map[[#This Row],[MÃ TM]],L_TM[MÃ],L_TM[CHỈ TIÊU],\"-\")","v":"Lợi thế thương mại"}]
[null,null,"311_",{"$f":"IF(L_Map[[#This Row],[MÃ BC]]<>\"\",COUNTIFS(L_Map[MÃ BC],L_Map[[#This Row],[MÃ BC]]),0)","v":1},"171_",{"$f":"IF(L_Map[[#This Row],[MÃ TM]]<>\"\",COUNTIFS(L_Map[MÃ TM],L_Map[[#This Row],[MÃ TM]]),0)","v":1},{"$f":"IF(_xlfn.XLOOKUP(L_Map[[#This Row],[MÃ TM]],L_TM[MÃ],L_TM[BCR],0),1,0)","v":0},{"$f":"_xlfn.XLOOKUP(L_Map[[#This Row],[MÃ BC]],L_FS[MÃ],L_FS[CHỈ TIÊU],\"-\")","v":"Phải trả người bán ngắn hạn"},{"$f":"_xlfn.XLOOKUP(L_Map[[#This Row],[MÃ TM]],L_TM[MÃ],L_TM[CHỈ TIÊU],\"-\")","v":"Phải trả người bán ngắn hạn"}]
[null,null,"312_",{"$f":"IF(L_Map[[#This Row],[MÃ BC]]<>\"\",COUNTIFS(L_Map[MÃ BC],L_Map[[#This Row],[MÃ BC]]),0)","v":1},"173_",{"$f":"IF(L_Map[[#This Row],[MÃ TM]]<>\"\",COUNTIFS(L_Map[MÃ TM],L_Map[[#This Row],[MÃ TM]]),0)","v":1},{"$f":"IF(_xlfn.XLOOKUP(L_Map[[#This Row],[MÃ TM]],L_TM[MÃ],L_TM[BCR],0),1,0)","v":0},{"$f":"_xlfn.XLOOKUP(L_Map[[#This Row],[MÃ BC]],L_FS[MÃ],L_FS[CHỈ TIÊU],\"-\")","v":"Người mua trả trước ngắn hạn"},{"$f":"_xlfn.XLOOKUP(L_Map[[#This Row],[MÃ TM]],L_TM[MÃ],L_TM[CHỈ TIÊU],\"-\")","v":"Người mua trả trước ngắn hạn"}]
[null,null,"313_",{"$f":"IF(L_Map[[#This Row],[MÃ BC]]<>\"\",COUNTIFS(L_Map[MÃ BC],L_Map[[#This Row],[MÃ BC]]),0)","v":1},"181_",{"$f":"IF(L_Map[[#This Row],[MÃ TM]]<>\"\",COUNTIFS(L_Map[MÃ TM],L_Map[[#This Row],[MÃ TM]]),0)","v":1},{"$f":"IF(_xlfn.XLOOKUP(L_Map[[#This Row],[MÃ TM]],L_TM[MÃ],L_TM[BCR],0),1,0)","v":0},{"$f":"_xlfn.XLOOKUP(L_Map[[#This Row],[MÃ BC]],L_FS[MÃ],L_FS[CHỈ TIÊU],\"-\")","v":"Phải trả về cổ tức, lợi nhuận"},{"$f":"_xlfn.XLOOKUP(L_Map[[#This Row],[MÃ TM]],L_TM[MÃ],L_TM[CHỈ TIÊU],\"-\")","v":"Phải trả về cổ tức, lợi nhuận"}]
[null,null,"314_",{"$f":"IF(L_Map[[#This Row],[MÃ BC]]<>\"\",COUNTIFS(L_Map[MÃ BC],L_Map[[#This Row],[MÃ BC]]),0)","v":1},"191_",{"$f":"IF(L_Map[[#This Row],[MÃ TM]]<>\"\",COUNTIFS(L_Map[MÃ TM],L_Map[[#This Row],[MÃ TM]]),0)","v":2},{"$f":"IF(_xlfn.XLOOKUP(L_Map[[#This Row],[MÃ TM]],L_TM[MÃ],L_TM[BCR],0),1,0)","v":0},{"$f":"_xlfn.XLOOKUP(L_Map[[#This Row],[MÃ BC]],L_FS[MÃ],L_FS[CHỈ TIÊU],\"-\")","v":"Thuế và các khoản phải nộp Nhà nước ngắn hạn"},{"$f":"_xlfn.XLOOKUP(L_Map[[#This Row],[MÃ TM]],L_TM[MÃ],L_TM[CHỈ TIÊU],\"-\")","v":"Thuế và các khoản phải nộp Nhà nước"}]
[null,null,"315_",{"$f":"IF(L_Map[[#This Row],[MÃ BC]]<>\"\",COUNTIFS(L_Map[MÃ BC],L_Map[[#This Row],[MÃ BC]]),0)","v":1},null,{"$f":"IF(L_Map[[#This Row],[MÃ TM]]<>\"\",COUNTIFS(L_Map[MÃ TM],L_Map[[#This Row],[MÃ TM]]),0)","v":0},{"$f":"IF(_xlfn.XLOOKUP(L_Map[[#This Row],[MÃ TM]],L_TM[MÃ],L_TM[BCR],0),1,0)","v":0},{"$f":"_xlfn.XLOOKUP(L_Map[[#This Row],[MÃ BC]],L_FS[MÃ],L_FS[CHỈ TIÊU],\"-\")","v":"Phải trả người lao động"},{"$f":"_xlfn.XLOOKUP(L_Map[[#This Row],[MÃ TM]],L_TM[MÃ],L_TM[CHỈ TIÊU],\"-\")","v":"-"}]
[null,null,"316_",{"$f":"IF(L_Map[[#This Row],[MÃ BC]]<>\"\",COUNTIFS(L_Map[MÃ BC],L_Map[[#This Row],[MÃ BC]]),0)","v":1},"201_",{"$f":"IF(L_Map[[#This Row],[MÃ TM]]<>\"\",COUNTIFS(L_Map[MÃ TM],L_Map[[#This Row],[MÃ TM]]),0)","v":1},{"$f":"IF(_xlfn.XLOOKUP(L_Map[[#This Row],[MÃ TM]],L_TM[MÃ],L_TM[BCR],0),1,0)","v":0},{"$f":"_xlfn.XLOOKUP(L_Map[[#This Row],[MÃ BC]],L_FS[MÃ],L_FS[CHỈ TIÊU],\"-\")","v":"Chi phí phải trả ngắn hạn"},{"$f":"_xlfn.XLOOKUP(L_Map[[#This Row],[MÃ TM]],L_TM[MÃ],L_TM[CHỈ TIÊU],\"-\")","v":"Chi phí phải trả ngắn hạn"}]
[null,null,"317_",{"$f":"IF(L_Map[[#This Row],[MÃ BC]]<>\"\",COUNTIFS(L_Map[MÃ BC],L_Map[[#This Row],[MÃ BC]]),0)","v":1},"213_",{"$f":"IF(L_Map[[#This Row],[MÃ TM]]<>\"\",COUNTIFS(L_Map[MÃ TM],L_Map[[#This Row],[MÃ TM]]),0)","v":3},{"$f":"IF(_xlfn.XLOOKUP(L_Map[[#This Row],[MÃ TM]],L_TM[MÃ],L_TM[BCR],0),1,0)","v":0},{"$f":"_xlfn.XLOOKUP(L_Map[[#This Row],[MÃ BC]],L_FS[MÃ],L_FS[CHỈ TIÊU],\"-\")","v":"Phải trả nội bộ ngắn hạn"},{"$f":"_xlfn.XLOOKUP(L_Map[[#This Row],[MÃ TM]],L_TM[MÃ],L_TM[CHỈ TIÊU],\"-\")","v":"Phải trả nội bộ ngắn hạn"}]
[null,null,"318_",{"$f":"IF(L_Map[[#This Row],[MÃ BC]]<>\"\",COUNTIFS(L_Map[MÃ BC],L_Map[[#This Row],[MÃ BC]]),0)","v":1},"215_",{"$f":"IF(L_Map[[#This Row],[MÃ TM]]<>\"\",COUNTIFS(L_Map[MÃ TM],L_Map[[#This Row],[MÃ TM]]),0)","v":1},{"$f":"IF(_xlfn.XLOOKUP(L_Map[[#This Row],[MÃ TM]],L_TM[MÃ],L_TM[BCR],0),1,0)","v":0},{"$f":"_xlfn.XLOOKUP(L_Map[[#This Row],[MÃ BC]],L_FS[MÃ],L_FS[CHỈ TIÊU],\"-\")","v":"Phải trả theo tiến độ HĐXD ngắn hạn"},{"$f":"_xlfn.XLOOKUP(L_Map[[#This Row],[MÃ TM]],L_TM[MÃ],L_TM[CHỈ TIÊU],\"-\")","v":"Phải trả theo tiến độ HĐXD"}]
[null,null,"319_",{"$f":"IF(L_Map[[#This Row],[MÃ BC]]<>\"\",COUNTIFS(L_Map[MÃ BC],L_Map[[#This Row],[MÃ BC]]),0)","v":1},"221_",{"$f":"IF(L_Map[[#This Row],[MÃ TM]]<>\"\",COUNTIFS(L_Map[MÃ TM],L_Map[[#This Row],[MÃ TM]]),0)","v":1},{"$f":"IF(_xlfn.XLOOKUP(L_Map[[#This Row],[MÃ TM]],L_TM[MÃ],L_TM[BCR],0),1,0)","v":0},{"$f":"_xlfn.XLOOKUP(L_Map[[#This Row],[MÃ BC]],L_FS[MÃ],L_FS[CHỈ TIÊU],\"-\")","v":"Doanh thu chờ phân bổ ngắn hạn"},{"$f":"_xlfn.XLOOKUP(L_Map[[#This Row],[MÃ TM]],L_TM[MÃ],L_TM[CHỈ TIÊU],\"-\")","v":"Doanh thu chờ phân bổ ngắn hạn"}]
[null,null,"320_",{"$f":"IF(L_Map[[#This Row],[MÃ BC]]<>\"\",COUNTIFS(L_Map[MÃ BC],L_Map[[#This Row],[MÃ BC]]),0)","v":1},"211_",{"$f":"IF(L_Map[[#This Row],[MÃ TM]]<>\"\",COUNTIFS(L_Map[MÃ TM],L_Map[[#This Row],[MÃ TM]]),0)","v":1},{"$f":"IF(_xlfn.XLOOKUP(L_Map[[#This Row],[MÃ TM]],L_TM[MÃ],L_TM[BCR],0),1,0)","v":0},{"$f":"_xlfn.XLOOKUP(L_Map[[#This Row],[MÃ BC]],L_FS[MÃ],L_FS[CHỈ TIÊU],\"-\")","v":"Các khoản phải trả ngắn hạn khác"},{"$f":"_xlfn.XLOOKUP(L_Map[[#This Row],[MÃ TM]],L_TM[MÃ],L_TM[CHỈ TIÊU],\"-\")","v":"Phải trả ngắn hạn khác"}]
[null,null,"321_",{"$f":"IF(L_Map[[#This Row],[MÃ BC]]<>\"\",COUNTIFS(L_Map[MÃ BC],L_Map[[#This Row],[MÃ BC]]),0)","v":1},"161_",{"$f":"IF(L_Map[[#This Row],[MÃ TM]]<>\"\",COUNTIFS(L_Map[MÃ TM],L_Map[[#This Row],[MÃ TM]]),0)","v":1},{"$f":"IF(_xlfn.XLOOKUP(L_Map[[#This Row],[MÃ TM]],L_TM[MÃ],L_TM[BCR],0),1,0)","v":0},{"$f":"_xlfn.XLOOKUP(L_Map[[#This Row],[MÃ BC]],L_FS[MÃ],L_FS[CHỈ TIÊU],\"-\")","v":"Vay và nợ thuê tài chính ngắn hạn"},{"$f":"_xlfn.XLOOKUP(L_Map[[#This Row],[MÃ TM]],L_TM[MÃ],L_TM[CHỈ TIÊU],\"-\")","v":"Vay và nợ thuê tài chính ngắn hạn"}]
[null,null,"322_",{"$f":"IF(L_Map[[#This Row],[MÃ BC]]<>\"\",COUNTIFS(L_Map[MÃ BC],L_Map[[#This Row],[MÃ BC]]),0)","v":1},"251_",{"$f":"IF(L_Map[[#This Row],[MÃ TM]]<>\"\",COUNTIFS(L_Map[MÃ TM],L_Map[[#This Row],[MÃ TM]]),0)","v":1},{"$f":"IF(_xlfn.XLOOKUP(L_Map[[#This Row],[MÃ TM]],L_TM[MÃ],L_TM[BCR],0),1,0)","v":0},{"$f":"_xlfn.XLOOKUP(L_Map[[#This Row],[MÃ BC]],L_FS[MÃ],L_FS[CHỈ TIÊU],\"-\")","v":"Dự phòng phải trả ngắn hạn"},{"$f":"_xlfn.XLOOKUP(L_Map[[#This Row],[MÃ TM]],L_TM[MÃ],L_TM[CHỈ TIÊU],\"-\")","v":"Dự phòng phải trả ngắn hạn"}]
[null,null,"323_",{"$f":"IF(L_Map[[#This Row],[MÃ BC]]<>\"\",COUNTIFS(L_Map[MÃ BC],L_Map[[#This Row],[MÃ BC]]),0)","v":1},"271_",{"$f":"IF(L_Map[[#This Row],[MÃ TM]]<>\"\",COUNTIFS(L_Map[MÃ TM],L_Map[[#This Row],[MÃ TM]]),0)","v":4},{"$f":"IF(_xlfn.XLOOKUP(L_Map[[#This Row],[MÃ TM]],L_TM[MÃ],L_TM[BCR],0),1,0)","v":0},{"$f":"_xlfn.XLOOKUP(L_Map[[#This Row],[MÃ BC]],L_FS[MÃ],L_FS[CHỈ TIÊU],\"-\")","v":"Quỹ khen thưởng, phúc lợi"},{"$f":"_xlfn.XLOOKUP(L_Map[[#This Row],[MÃ TM]],L_TM[MÃ],L_TM[CHỈ TIÊU],\"-\")","v":"Quỹ không thuộc CSH"}]
[null,null,"324_",{"$f":"IF(L_Map[[#This Row],[MÃ BC]]<>\"\",COUNTIFS(L_Map[MÃ BC],L_Map[[#This Row],[MÃ BC]]),0)","v":1},"271_",{"$f":"IF(L_Map[[#This Row],[MÃ TM]]<>\"\",COUNTIFS(L_Map[MÃ TM],L_Map[[#This Row],[MÃ TM]]),0)","v":4},{"$f":"IF(_xlfn.XLOOKUP(L_Map[[#This Row],[MÃ TM]],L_TM[MÃ],L_TM[BCR],0),1,0)","v":0},{"$f":"_xlfn.XLOOKUP(L_Map[[#This Row],[MÃ BC]],L_FS[MÃ],L_FS[CHỈ TIÊU],\"-\")","v":"Quỹ bình ổn giá"},{"$f":"_xlfn.XLOOKUP(L_Map[[#This Row],[MÃ TM]],L_TM[MÃ],L_TM[CHỈ TIÊU],\"-\")","v":"Quỹ không thuộc CSH"}]
[null,null,"331_",{"$f":"IF(L_Map[[#This Row],[MÃ BC]]<>\"\",COUNTIFS(L_Map[MÃ BC],L_Map[[#This Row],[MÃ BC]]),0)","v":1},"172_",{"$f":"IF(L_Map[[#This Row],[MÃ TM]]<>\"\",COUNTIFS(L_Map[MÃ TM],L_Map[[#This Row],[MÃ TM]]),0)","v":1},{"$f":"IF(_xlfn.XLOOKUP(L_Map[[#This Row],[MÃ TM]],L_TM[MÃ],L_TM[BCR],0),1,0)","v":0},{"$f":"_xlfn.XLOOKUP(L_Map[[#This Row],[MÃ BC]],L_FS[MÃ],L_FS[CHỈ TIÊU],\"-\")","v":"Phải trả người bán dài hạn"},{"$f":"_xlfn.XLOOKUP(L_Map[[#This Row],[MÃ TM]],L_TM[MÃ],L_TM[CHỈ TIÊU],\"-\")","v":"Phải trả người bán dài hạn"}]
[null,null,"332_",{"$f":"IF(L_Map[[#This Row],[MÃ BC]]<>\"\",COUNTIFS(L_Map[MÃ BC],L_Map[[#This Row],[MÃ BC]]),0)","v":1},"174_",{"$f":"IF(L_Map[[#This Row],[MÃ TM]]<>\"\",COUNTIFS(L_Map[MÃ TM],L_Map[[#This Row],[MÃ TM]]),0)","v":1},{"$f":"IF(_xlfn.XLOOKUP(L_Map[[#This Row],[MÃ TM]],L_TM[MÃ],L_TM[BCR],0),1,0)","v":0},{"$f":"_xlfn.XLOOKUP(L_Map[[#This Row],[MÃ BC]],L_FS[MÃ],L_FS[CHỈ TIÊU],\"-\")","v":"Người mua trả trước dài hạn"},{"$f":"_xlfn.XLOOKUP(L_Map[[#This Row],[MÃ TM]],L_TM[MÃ],L_TM[CHỈ TIÊU],\"-\")","v":"Người mua trả trước dài hạn"}]
[null,null,"334_",{"$f":"IF(L_Map[[#This Row],[MÃ BC]]<>\"\",COUNTIFS(L_Map[MÃ BC],L_Map[[#This Row],[MÃ BC]]),0)","v":1},"202_",{"$f":"IF(L_Map[[#This Row],[MÃ TM]]<>\"\",COUNTIFS(L_Map[MÃ TM],L_Map[[#This Row],[MÃ TM]]),0)","v":1},{"$f":"IF(_xlfn.XLOOKUP(L_Map[[#This Row],[MÃ TM]],L_TM[MÃ],L_TM[BCR],0),1,0)","v":0},{"$f":"_xlfn.XLOOKUP(L_Map[[#This Row],[MÃ BC]],L_FS[MÃ],L_FS[CHỈ TIÊU],\"-\")","v":"Chi phí phải trả dài hạn"},{"$f":"_xlfn.XLOOKUP(L_Map[[#This Row],[MÃ TM]],L_TM[MÃ],L_TM[CHỈ TIÊU],\"-\")","v":"Chi phí phải trả dài hạn"}]
[null,null,"335_",{"$f":"IF(L_Map[[#This Row],[MÃ BC]]<>\"\",COUNTIFS(L_Map[MÃ BC],L_Map[[#This Row],[MÃ BC]]),0)","v":1},"213_",{"$f":"IF(L_Map[[#This Row],[MÃ TM]]<>\"\",COUNTIFS(L_Map[MÃ TM],L_Map[[#This Row],[MÃ TM]]),0)","v":3},{"$f":"IF(_xlfn.XLOOKUP(L_Map[[#This Row],[MÃ TM]],L_TM[MÃ],L_TM[BCR],0),1,0)","v":0},{"$f":"_xlfn.XLOOKUP(L_Map[[#This Row],[MÃ BC]],L_FS[MÃ],L_FS[CHỈ TIÊU],\"-\")","v":"Phải trả nội bộ về vốn kinh doanh"},{"$f":"_xlfn.XLOOKUP(L_Map[[#This Row],[MÃ TM]],L_TM[MÃ],L_TM[CHỈ TIÊU],\"-\")","v":"Phải trả nội bộ ngắn hạn"}]
[null,null,"336_",{"$f":"IF(L_Map[[#This Row],[MÃ BC]]<>\"\",COUNTIFS(L_Map[MÃ BC],L_Map[[#This Row],[MÃ BC]]),0)","v":1},"213_",{"$f":"IF(L_Map[[#This Row],[MÃ TM]]<>\"\",COUNTIFS(L_Map[MÃ TM],L_Map[[#This Row],[MÃ TM]]),0)","v":3},{"$f":"IF(_xlfn.XLOOKUP(L_Map[[#This Row],[MÃ TM]],L_TM[MÃ],L_TM[BCR],0),1,0)","v":0},{"$f":"_xlfn.XLOOKUP(L_Map[[#This Row],[MÃ BC]],L_FS[MÃ],L_FS[CHỈ TIÊU],\"-\")","v":"Phải trả nội bộ dài hạn"},{"$f":"_xlfn.XLOOKUP(L_Map[[#This Row],[MÃ TM]],L_TM[MÃ],L_TM[CHỈ TIÊU],\"-\")","v":"Phải trả nội bộ ngắn hạn"}]
[null,null,"337_",{"$f":"IF(L_Map[[#This Row],[MÃ BC]]<>\"\",COUNTIFS(L_Map[MÃ BC],L_Map[[#This Row],[MÃ BC]]),0)","v":1},"222_",{"$f":"IF(L_Map[[#This Row],[MÃ TM]]<>\"\",COUNTIFS(L_Map[MÃ TM],L_Map[[#This Row],[MÃ TM]]),0)","v":1},{"$f":"IF(_xlfn.XLOOKUP(L_Map[[#This Row],[MÃ TM]],L_TM[MÃ],L_TM[BCR],0),1,0)","v":0},{"$f":"_xlfn.XLOOKUP(L_Map[[#This Row],[MÃ BC]],L_FS[MÃ],L_FS[CHỈ TIÊU],\"-\")","v":"Doanh thu chờ phân bổ dài hạn"},{"$f":"_xlfn.XLOOKUP(L_Map[[#This Row],[MÃ TM]],L_TM[MÃ],L_TM[CHỈ TIÊU],\"-\")","v":"Doanh thu chờ phân bổ dài hạn"}]
[null,null,"338_",{"$f":"IF(L_Map[[#This Row],[MÃ BC]]<>\"\",COUNTIFS(L_Map[MÃ BC],L_Map[[#This Row],[MÃ BC]]),0)","v":1},"212_",{"$f":"IF(L_Map[[#This Row],[MÃ TM]]<>\"\",COUNTIFS(L_Map[MÃ TM],L_Map[[#This Row],[MÃ TM]]),0)","v":1},{"$f":"IF(_xlfn.XLOOKUP(L_Map[[#This Row],[MÃ TM]],L_TM[MÃ],L_TM[BCR],0),1,0)","v":0},{"$f":"_xlfn.XLOOKUP(L_Map[[#This Row],[MÃ BC]],L_FS[MÃ],L_FS[CHỈ TIÊU],\"-\")","v":"Phải trả dài hạn khác"},{"$f":"_xlfn.XLOOKUP(L_Map[[#This Row],[MÃ TM]],L_TM[MÃ],L_TM[CHỈ TIÊU],\"-\")","v":"Phải trả dài hạn khác"}]
[null,null,"339_",{"$f":"IF(L_Map[[#This Row],[MÃ BC]]<>\"\",COUNTIFS(L_Map[MÃ BC],L_Map[[#This Row],[MÃ BC]]),0)","v":1},"162_",{"$f":"IF(L_Map[[#This Row],[MÃ TM]]<>\"\",COUNTIFS(L_Map[MÃ TM],L_Map[[#This Row],[MÃ TM]]),0)","v":2},{"$f":"IF(_xlfn.XLOOKUP(L_Map[[#This Row],[MÃ TM]],L_TM[MÃ],L_TM[BCR],0),1,0)","v":0},{"$f":"_xlfn.XLOOKUP(L_Map[[#This Row],[MÃ BC]],L_FS[MÃ],L_FS[CHỈ TIÊU],\"-\")","v":"Vay và nợ thuê tài chính dài hạn"},{"$f":"_xlfn.XLOOKUP(L_Map[[#This Row],[MÃ TM]],L_TM[MÃ],L_TM[CHỈ TIÊU],\"-\")","v":"Vay và nợ thuê tài chính dài hạn hạn"}]
[null,null,"340_",{"$f":"IF(L_Map[[#This Row],[MÃ BC]]<>\"\",COUNTIFS(L_Map[MÃ BC],L_Map[[#This Row],[MÃ BC]]),0)","v":2},"162_",{"$f":"IF(L_Map[[#This Row],[MÃ TM]]<>\"\",COUNTIFS(L_Map[MÃ TM],L_Map[[#This Row],[MÃ TM]]),0)","v":2},{"$f":"IF(_xlfn.XLOOKUP(L_Map[[#This Row],[MÃ TM]],L_TM[MÃ],L_TM[BCR],0),1,0)","v":0},{"$f":"_xlfn.XLOOKUP(L_Map[[#This Row],[MÃ BC]],L_FS[MÃ],L_FS[CHỈ TIÊU],\"-\")","v":"Trái phiếu chuyển đổi"},{"$f":"_xlfn.XLOOKUP(L_Map[[#This Row],[MÃ TM]],L_TM[MÃ],L_TM[CHỈ TIÊU],\"-\")","v":"Vay và nợ thuê tài chính dài hạn hạn"}]
[null,null,"341_",{"$f":"IF(L_Map[[#This Row],[MÃ BC]]<>\"\",COUNTIFS(L_Map[MÃ BC],L_Map[[#This Row],[MÃ BC]]),0)","v":1},"271_",{"$f":"IF(L_Map[[#This Row],[MÃ TM]]<>\"\",COUNTIFS(L_Map[MÃ TM],L_Map[[#This Row],[MÃ TM]]),0)","v":4},{"$f":"IF(_xlfn.XLOOKUP(L_Map[[#This Row],[MÃ TM]],L_TM[MÃ],L_TM[BCR],0),1,0)","v":0},{"$f":"_xlfn.XLOOKUP(L_Map[[#This Row],[MÃ BC]],L_FS[MÃ],L_FS[CHỈ TIÊU],\"-\")","v":"Cổ phiếu ưu đãi"},{"$f":"_xlfn.XLOOKUP(L_Map[[#This Row],[MÃ TM]],L_TM[MÃ],L_TM[CHỈ TIÊU],\"-\")","v":"Quỹ không thuộc CSH"}]
[null,null,"342_",{"$f":"IF(L_Map[[#This Row],[MÃ BC]]<>\"\",COUNTIFS(L_Map[MÃ BC],L_Map[[#This Row],[MÃ BC]]),0)","v":1},"262_",{"$f":"IF(L_Map[[#This Row],[MÃ TM]]<>\"\",COUNTIFS(L_Map[MÃ TM],L_Map[[#This Row],[MÃ TM]]),0)","v":1},{"$f":"IF(_xlfn.XLOOKUP(L_Map[[#This Row],[MÃ TM]],L_TM[MÃ],L_TM[BCR],0),1,0)","v":0},{"$f":"_xlfn.XLOOKUP(L_Map[[#This Row],[MÃ BC]],L_FS[MÃ],L_FS[CHỈ TIÊU],\"-\")","v":"Thuế thu nhập hoãn lại phải trả"},{"$f":"_xlfn.XLOOKUP(L_Map[[#This Row],[MÃ TM]],L_TM[MÃ],L_TM[CHỈ TIÊU],\"-\")","v":"Thuế TNDN hoãn lại phải trả"}]
[null,null,"343_",{"$f":"IF(L_Map[[#This Row],[MÃ BC]]<>\"\",COUNTIFS(L_Map[MÃ BC],L_Map[[#This Row],[MÃ BC]]),0)","v":1},"252_",{"$f":"IF(L_Map[[#This Row],[MÃ TM]]<>\"\",COUNTIFS(L_Map[MÃ TM],L_Map[[#This Row],[MÃ TM]]),0)","v":1},{"$f":"IF(_xlfn.XLOOKUP(L_Map[[#This Row],[MÃ TM]],L_TM[MÃ],L_TM[BCR],0),1,0)","v":0},{"$f":"_xlfn.XLOOKUP(L_Map[[#This Row],[MÃ BC]],L_FS[MÃ],L_FS[CHỈ TIÊU],\"-\")","v":"Dự phòng phải trả dài hạn"},{"$f":"_xlfn.XLOOKUP(L_Map[[#This Row],[MÃ TM]],L_TM[MÃ],L_TM[CHỈ TIÊU],\"-\")","v":"Dự phòng phải trả dài hạn"}]
[null,null,"344_",{"$f":"IF(L_Map[[#This Row],[MÃ BC]]<>\"\",COUNTIFS(L_Map[MÃ BC],L_Map[[#This Row],[MÃ BC]]),0)","v":1},"271_",{"$f":"IF(L_Map[[#This Row],[MÃ TM]]<>\"\",COUNTIFS(L_Map[MÃ TM],L_Map[[#This Row],[MÃ TM]]),0)","v":4},{"$f":"IF(_xlfn.XLOOKUP(L_Map[[#This Row],[MÃ TM]],L_TM[MÃ],L_TM[BCR],0),1,0)","v":0},{"$f":"_xlfn.XLOOKUP(L_Map[[#This Row],[MÃ BC]],L_FS[MÃ],L_FS[CHỈ TIÊU],\"-\")","v":"Quỹ phát triển khoa học và công nghệ"},{"$f":"_xlfn.XLOOKUP(L_Map[[#This Row],[MÃ TM]],L_TM[MÃ],L_TM[CHỈ TIÊU],\"-\")","v":"Quỹ không thuộc CSH"}]
[null,null,"412_",{"$f":"IF(L_Map[[#This Row],[MÃ BC]]<>\"\",COUNTIFS(L_Map[MÃ BC],L_Map[[#This Row],[MÃ BC]]),0)","v":1},"270_",{"$f":"IF(L_Map[[#This Row],[MÃ TM]]<>\"\",COUNTIFS(L_Map[MÃ TM],L_Map[[#This Row],[MÃ TM]]),0)","v":14},{"$f":"IF(_xlfn.XLOOKUP(L_Map[[#This Row],[MÃ TM]],L_TM[MÃ],L_TM[BCR],0),1,0)","v":0},{"$f":"_xlfn.XLOOKUP(L_Map[[#This Row],[MÃ BC]],L_FS[MÃ],L_FS[CHỈ TIÊU],\"-\")","v":"Thặng dư vốn cổ phần"},{"$f":"_xlfn.XLOOKUP(L_Map[[#This Row],[MÃ TM]],L_TM[MÃ],L_TM[CHỈ TIÊU],\"-\")","v":"Vốn chủ sở hữu"}]
[null,null,"413_",{"$f":"IF(L_Map[[#This Row],[MÃ BC]]<>\"\",COUNTIFS(L_Map[MÃ BC],L_Map[[#This Row],[MÃ BC]]),0)","v":1},"270_",{"$f":"IF(L_Map[[#This Row],[MÃ TM]]<>\"\",COUNTIFS(L_Map[MÃ TM],L_Map[[#This Row],[MÃ TM]]),0)","v":14},{"$f":"IF(_xlfn.XLOOKUP(L_Map[[#This Row],[MÃ TM]],L_TM[MÃ],L_TM[BCR],0),1,0)","v":0},{"$f":"_xlfn.XLOOKUP(L_Map[[#This Row],[MÃ BC]],L_FS[MÃ],L_FS[CHỈ TIÊU],\"-\")","v":"Quyền chọn chuyển đổi trái phiếu"},{"$f":"_xlfn.XLOOKUP(L_Map[[#This Row],[MÃ TM]],L_TM[MÃ],L_TM[CHỈ TIÊU],\"-\")","v":"Vốn chủ sở hữu"}]
[null,null,"414_",{"$f":"IF(L_Map[[#This Row],[MÃ BC]]<>\"\",COUNTIFS(L_Map[MÃ BC],L_Map[[#This Row],[MÃ BC]]),0)","v":1},"270_",{"$f":"IF(L_Map[[#This Row],[MÃ TM]]<>\"\",COUNTIFS(L_Map[MÃ TM],L_Map[[#This Row],[MÃ TM]]),0)","v":14},{"$f":"IF(_xlfn.XLOOKUP(L_Map[[#This Row],[MÃ TM]],L_TM[MÃ],L_TM[BCR],0),1,0)","v":0},{"$f":"_xlfn.XLOOKUP(L_Map[[#This Row],[MÃ BC]],L_FS[MÃ],L_FS[CHỈ TIÊU],\"-\")","v":"Vốn khác của chủ sở hữu"},{"$f":"_xlfn.XLOOKUP(L_Map[[#This Row],[MÃ TM]],L_TM[MÃ],L_TM[CHỈ TIÊU],\"-\")","v":"Vốn chủ sở hữu"}]
[null,null,"415_",{"$f":"IF(L_Map[[#This Row],[MÃ BC]]<>\"\",COUNTIFS(L_Map[MÃ BC],L_Map[[#This Row],[MÃ BC]]),0)","v":1},"270_",{"$f":"IF(L_Map[[#This Row],[MÃ TM]]<>\"\",COUNTIFS(L_Map[MÃ TM],L_Map[[#This Row],[MÃ TM]]),0)","v":14},{"$f":"IF(_xlfn.XLOOKUP(L_Map[[#This Row],[MÃ TM]],L_TM[MÃ],L_TM[BCR],0),1,0)","v":0},{"$f":"_xlfn.XLOOKUP(L_Map[[#This Row],[MÃ BC]],L_FS[MÃ],L_FS[CHỈ TIÊU],\"-\")","v":"Cổ phiếu mua lại của chính mình *"},{"$f":"_xlfn.XLOOKUP(L_Map[[#This Row],[MÃ TM]],L_TM[MÃ],L_TM[CHỈ TIÊU],\"-\")","v":"Vốn chủ sở hữu"}]
[null,null,"416_",{"$f":"IF(L_Map[[#This Row],[MÃ BC]]<>\"\",COUNTIFS(L_Map[MÃ BC],L_Map[[#This Row],[MÃ BC]]),0)","v":1},"270_",{"$f":"IF(L_Map[[#This Row],[MÃ TM]]<>\"\",COUNTIFS(L_Map[MÃ TM],L_Map[[#This Row],[MÃ TM]]),0)","v":14},{"$f":"IF(_xlfn.XLOOKUP(L_Map[[#This Row],[MÃ TM]],L_TM[MÃ],L_TM[BCR],0),1,0)","v":0},{"$f":"_xlfn.XLOOKUP(L_Map[[#This Row],[MÃ BC]],L_FS[MÃ],L_FS[CHỈ TIÊU],\"-\")","v":"Chênh lệch đánh giá lại tài sản"},{"$f":"_xlfn.XLOOKUP(L_Map[[#This Row],[MÃ TM]],L_TM[MÃ],L_TM[CHỈ TIÊU],\"-\")","v":"Vốn chủ sở hữu"}]
[null,null,"417_",{"$f":"IF(L_Map[[#This Row],[MÃ BC]]<>\"\",COUNTIFS(L_Map[MÃ BC],L_Map[[#This Row],[MÃ BC]]),0)","v":1},"270_",{"$f":"IF(L_Map[[#This Row],[MÃ TM]]<>\"\",COUNTIFS(L_Map[MÃ TM],L_Map[[#This Row],[MÃ TM]]),0)","v":14},{"$f":"IF(_xlfn.XLOOKUP(L_Map[[#This Row],[MÃ TM]],L_TM[MÃ],L_TM[BCR],0),1,0)","v":0},{"$f":"_xlfn.XLOOKUP(L_Map[[#This Row],[MÃ BC]],L_FS[MÃ],L_FS[CHỈ TIÊU],\"-\")","v":"Chênh lệch tỷ giá hối đoái"},{"$f":"_xlfn.XLOOKUP(L_Map[[#This Row],[MÃ TM]],L_TM[MÃ],L_TM[CHỈ TIÊU],\"-\")","v":"Vốn chủ sở hữu"}]
[null,null,"418_",{"$f":"IF(L_Map[[#This Row],[MÃ BC]]<>\"\",COUNTIFS(L_Map[MÃ BC],L_Map[[#This Row],[MÃ BC]]),0)","v":1},"270_",{"$f":"IF(L_Map[[#This Row],[MÃ TM]]<>\"\",COUNTIFS(L_Map[MÃ TM],L_Map[[#This Row],[MÃ TM]]),0)","v":14},{"$f":"IF(_xlfn.XLOOKUP(L_Map[[#This Row],[MÃ TM]],L_TM[MÃ],L_TM[BCR],0),1,0)","v":0},{"$f":"_xlfn.XLOOKUP(L_Map[[#This Row],[MÃ BC]],L_FS[MÃ],L_FS[CHỈ TIÊU],\"-\")","v":"Quỹ đầu tư phát triển"},{"$f":"_xlfn.XLOOKUP(L_Map[[#This Row],[MÃ TM]],L_TM[MÃ],L_TM[CHỈ TIÊU],\"-\")","v":"Vốn chủ sở hữu"}]
[null,null,"419_",{"$f":"IF(L_Map[[#This Row],[MÃ BC]]<>\"\",COUNTIFS(L_Map[MÃ BC],L_Map[[#This Row],[MÃ BC]]),0)","v":1},"270_",{"$f":"IF(L_Map[[#This Row],[MÃ TM]]<>\"\",COUNTIFS(L_Map[MÃ TM],L_Map[[#This Row],[MÃ TM]]),0)","v":14},{"$f":"IF(_xlfn.XLOOKUP(L_Map[[#This Row],[MÃ TM]],L_TM[MÃ],L_TM[BCR],0),1,0)","v":0},{"$f":"_xlfn.XLOOKUP(L_Map[[#This Row],[MÃ BC]],L_FS[MÃ],L_FS[CHỈ TIÊU],\"-\")","v":"Quỹ khác thuộc vốn chủ sở hữu"},{"$f":"_xlfn.XLOOKUP(L_Map[[#This Row],[MÃ TM]],L_TM[MÃ],L_TM[CHỈ TIÊU],\"-\")","v":"Vốn chủ sở hữu"}]
[null,null,"41a_",{"$f":"IF(L_Map[[#This Row],[MÃ BC]]<>\"\",COUNTIFS(L_Map[MÃ BC],L_Map[[#This Row],[MÃ BC]]),0)","v":1},"270_",{"$f":"IF(L_Map[[#This Row],[MÃ TM]]<>\"\",COUNTIFS(L_Map[MÃ TM],L_Map[[#This Row],[MÃ TM]]),0)","v":14},{"$f":"IF(_xlfn.XLOOKUP(L_Map[[#This Row],[MÃ TM]],L_TM[MÃ],L_TM[BCR],0),1,0)","v":0},{"$f":"_xlfn.XLOOKUP(L_Map[[#This Row],[MÃ BC]],L_FS[MÃ],L_FS[CHỈ TIÊU],\"-\")","v":"Cổ phiếu phổ thông có quyền biểu quyết"},{"$f":"_xlfn.XLOOKUP(L_Map[[#This Row],[MÃ TM]],L_TM[MÃ],L_TM[CHỈ TIÊU],\"-\")","v":"Vốn chủ sở hữu"}]
[null,null,"41b_",{"$f":"IF(L_Map[[#This Row],[MÃ BC]]<>\"\",COUNTIFS(L_Map[MÃ BC],L_Map[[#This Row],[MÃ BC]]),0)","v":2},"270_",{"$f":"IF(L_Map[[#This Row],[MÃ TM]]<>\"\",COUNTIFS(L_Map[MÃ TM],L_Map[[#This Row],[MÃ TM]]),0)","v":14},{"$f":"IF(_xlfn.XLOOKUP(L_Map[[#This Row],[MÃ TM]],L_TM[MÃ],L_TM[BCR],0),1,0)","v":0},{"$f":"_xlfn.XLOOKUP(L_Map[[#This Row],[MÃ BC]],L_FS[MÃ],L_FS[CHỈ TIÊU],\"-\")","v":"Cổ phiếu ưu đãi"},{"$f":"_xlfn.XLOOKUP(L_Map[[#This Row],[MÃ TM]],L_TM[MÃ],L_TM[CHỈ TIÊU],\"-\")","v":"Vốn chủ sở hữu"}]
[null,null,"420_",{"$f":"IF(L_Map[[#This Row],[MÃ BC]]<>\"\",COUNTIFS(L_Map[MÃ BC],L_Map[[#This Row],[MÃ BC]]),0)","v":1},"270_",{"$f":"IF(L_Map[[#This Row],[MÃ TM]]<>\"\",COUNTIFS(L_Map[MÃ TM],L_Map[[#This Row],[MÃ TM]]),0)","v":14},{"$f":"IF(_xlfn.XLOOKUP(L_Map[[#This Row],[MÃ TM]],L_TM[MÃ],L_TM[BCR],0),1,0)","v":0},{"$f":"_xlfn.XLOOKUP(L_Map[[#This Row],[MÃ BC]],L_FS[MÃ],L_FS[CHỈ TIÊU],\"-\")","v":"-"},{"$f":"_xlfn.XLOOKUP(L_Map[[#This Row],[MÃ TM]],L_TM[MÃ],L_TM[CHỈ TIÊU],\"-\")","v":"Vốn chủ sở hữu"}]
[null,null,"429_",{"$f":"IF(L_Map[[#This Row],[MÃ BC]]<>\"\",COUNTIFS(L_Map[MÃ BC],L_Map[[#This Row],[MÃ BC]]),0)","v":1},"270_",{"$f":"IF(L_Map[[#This Row],[MÃ TM]]<>\"\",COUNTIFS(L_Map[MÃ TM],L_Map[[#This Row],[MÃ TM]]),0)","v":14},{"$f":"IF(_xlfn.XLOOKUP(L_Map[[#This Row],[MÃ TM]],L_TM[MÃ],L_TM[BCR],0),1,0)","v":0},{"$f":"_xlfn.XLOOKUP(L_Map[[#This Row],[MÃ BC]],L_FS[MÃ],L_FS[CHỈ TIÊU],\"-\")","v":"Lợi ích của cổ đông không kiểm soát"},{"$f":"_xlfn.XLOOKUP(L_Map[[#This Row],[MÃ TM]],L_TM[MÃ],L_TM[CHỈ TIÊU],\"-\")","v":"Vốn chủ sở hữu"}]
[null,null,"42a_",{"$f":"IF(L_Map[[#This Row],[MÃ BC]]<>\"\",COUNTIFS(L_Map[MÃ BC],L_Map[[#This Row],[MÃ BC]]),0)","v":1},"270_",{"$f":"IF(L_Map[[#This Row],[MÃ TM]]<>\"\",COUNTIFS(L_Map[MÃ TM],L_Map[[#This Row],[MÃ TM]]),0)","v":14},{"$f":"IF(_xlfn.XLOOKUP(L_Map[[#This Row],[MÃ TM]],L_TM[MÃ],L_TM[BCR],0),1,0)","v":0},{"$f":"_xlfn.XLOOKUP(L_Map[[#This Row],[MÃ BC]],L_FS[MÃ],L_FS[CHỈ TIÊU],\"-\")","v":"LNST chưa phân phối lũy kế đến cuối kỳ trước"},{"$f":"_xlfn.XLOOKUP(L_Map[[#This Row],[MÃ TM]],L_TM[MÃ],L_TM[CHỈ TIÊU],\"-\")","v":"Vốn chủ sở hữu"}]
[null,null,"42b_",{"$f":"IF(L_Map[[#This Row],[MÃ BC]]<>\"\",COUNTIFS(L_Map[MÃ BC],L_Map[[#This Row],[MÃ BC]]),0)","v":1},"270_",{"$f":"IF(L_Map[[#This Row],[MÃ TM]]<>\"\",COUNTIFS(L_Map[MÃ TM],L_Map[[#This Row],[MÃ TM]]),0)","v":14},{"$f":"IF(_xlfn.XLOOKUP(L_Map[[#This Row],[MÃ TM]],L_TM[MÃ],L_TM[BCR],0),1,0)","v":0},{"$f":"_xlfn.XLOOKUP(L_Map[[#This Row],[MÃ BC]],L_FS[MÃ],L_FS[CHỈ TIÊU],\"-\")","v":"LNST chưa phân phối kỳ này"},{"$f":"_xlfn.XLOOKUP(L_Map[[#This Row],[MÃ TM]],L_TM[MÃ],L_TM[CHỈ TIÊU],\"-\")","v":"Vốn chủ sở hữu"}]
[null,null,"340_",{"$f":"IF(L_Map[[#This Row],[MÃ BC]]<>\"\",COUNTIFS(L_Map[MÃ BC],L_Map[[#This Row],[MÃ BC]]),0)","v":2},"232_",{"$f":"IF(L_Map[[#This Row],[MÃ TM]]<>\"\",COUNTIFS(L_Map[MÃ TM],L_Map[[#This Row],[MÃ TM]]),0)","v":1},{"$f":"IF(_xlfn.XLOOKUP(L_Map[[#This Row],[MÃ TM]],L_TM[MÃ],L_TM[BCR],0),1,0)","v":0},{"$f":"_xlfn.XLOOKUP(L_Map[[#This Row],[MÃ BC]],L_FS[MÃ],L_FS[CHỈ TIÊU],\"-\")","v":"Trái phiếu chuyển đổi"},{"$f":"_xlfn.XLOOKUP(L_Map[[#This Row],[MÃ TM]],L_TM[MÃ],L_TM[CHỈ TIÊU],\"-\")","v":"Trái phiếu chuyển đổi"}]
[null,null,"41b_",{"$f":"IF(L_Map[[#This Row],[MÃ BC]]<>\"\",COUNTIFS(L_Map[MÃ BC],L_Map[[#This Row],[MÃ BC]]),0)","v":2},"241_",{"$f":"IF(L_Map[[#This Row],[MÃ TM]]<>\"\",COUNTIFS(L_Map[MÃ TM],L_Map[[#This Row],[MÃ TM]]),0)","v":1},{"$f":"IF(_xlfn.XLOOKUP(L_Map[[#This Row],[MÃ TM]],L_TM[MÃ],L_TM[BCR],0),1,0)","v":0},{"$f":"_xlfn.XLOOKUP(L_Map[[#This Row],[MÃ BC]],L_FS[MÃ],L_FS[CHỈ TIÊU],\"-\")","v":"Cổ phiếu ưu đãi"},{"$f":"_xlfn.XLOOKUP(L_Map[[#This Row],[MÃ TM]],L_TM[MÃ],L_TM[CHỈ TIÊU],\"-\")","v":"Cổ phiếu ưu đãi phân loại là nợ phải trả"}]
[null,null,"234_",{"$f":"IF(L_Map[[#This Row],[MÃ BC]]<>\"\",COUNTIFS(L_Map[MÃ BC],L_Map[[#This Row],[MÃ BC]]),0)","v":1},"122_",{"$f":"IF(L_Map[[#This Row],[MÃ TM]]<>\"\",COUNTIFS(L_Map[MÃ TM],L_Map[[#This Row],[MÃ TM]]),0)","v":1},{"$f":"IF(_xlfn.XLOOKUP(L_Map[[#This Row],[MÃ TM]],L_TM[MÃ],L_TM[BCR],0),1,0)","v":0},{"$f":"_xlfn.XLOOKUP(L_Map[[#This Row],[MÃ BC]],L_FS[MÃ],L_FS[CHỈ TIÊU],\"-\")","v":"Con vật nuôi cho SP định kỳ đến giai đoạn trưởng thành (nguyên giá)"},{"$f":"_xlfn.XLOOKUP(L_Map[[#This Row],[MÃ TM]],L_TM[MÃ],L_TM[CHỈ TIÊU],\"-\")","v":"Con vật cho SP định kỳ đạt đến GĐ trưởng thành - Nguyên giá"}]
[null,null,"235_",{"$f":"IF(L_Map[[#This Row],[MÃ BC]]<>\"\",COUNTIFS(L_Map[MÃ BC],L_Map[[#This Row],[MÃ BC]]),0)","v":1},"123_",{"$f":"IF(L_Map[[#This Row],[MÃ TM]]<>\"\",COUNTIFS(L_Map[MÃ TM],L_Map[[#This Row],[MÃ TM]]),0)","v":1},{"$f":"IF(_xlfn.XLOOKUP(L_Map[[#This Row],[MÃ TM]],L_TM[MÃ],L_TM[BCR],0),1,0)","v":0},{"$f":"_xlfn.XLOOKUP(L_Map[[#This Row],[MÃ BC]],L_FS[MÃ],L_FS[CHỈ TIÊU],\"-\")","v":"Con vật nuôi cho SP định kỳ đến giai đoạn trưởng thành (KH lũy kế)"},{"$f":"_xlfn.XLOOKUP(L_Map[[#This Row],[MÃ TM]],L_TM[MÃ],L_TM[CHỈ TIÊU],\"-\")","v":"Con vật cho SP định kỳ đạt đến GĐ trưởng thành - Khấu hao lũy kế"}]
[null,null,"151_",{"$f":"IF(L_Map[[#This Row],[MÃ BC]]<>\"\",COUNTIFS(L_Map[MÃ BC],L_Map[[#This Row],[MÃ BC]]),0)","v":1},"121_",{"$f":"IF(L_Map[[#This Row],[MÃ TM]]<>\"\",COUNTIFS(L_Map[MÃ TM],L_Map[[#This Row],[MÃ TM]]),0)","v":3},{"$f":"IF(_xlfn.XLOOKUP(L_Map[[#This Row],[MÃ TM]],L_TM[MÃ],L_TM[BCR],0),1,0)","v":0},{"$f":"_xlfn.XLOOKUP(L_Map[[#This Row],[MÃ BC]],L_FS[MÃ],L_FS[CHỈ TIÊU],\"-\")","v":"Con vật nuôi lấy sản phẩm một lần ngắn hạn"},{"$f":"_xlfn.XLOOKUP(L_Map[[#This Row],[MÃ TM]],L_TM[MÃ],L_TM[CHỈ TIÊU],\"-\")","v":"Tài sản sinh học khác"}]
[null,null,"152_",{"$f":"IF(L_Map[[#This Row],[MÃ BC]]<>\"\",COUNTIFS(L_Map[MÃ BC],L_Map[[#This Row],[MÃ BC]]),0)","v":1},"121_",{"$f":"IF(L_Map[[#This Row],[MÃ TM]]<>\"\",COUNTIFS(L_Map[MÃ TM],L_Map[[#This Row],[MÃ TM]]),0)","v":3},{"$f":"IF(_xlfn.XLOOKUP(L_Map[[#This Row],[MÃ TM]],L_TM[MÃ],L_TM[BCR],0),1,0)","v":0},{"$f":"_xlfn.XLOOKUP(L_Map[[#This Row],[MÃ BC]],L_FS[MÃ],L_FS[CHỈ TIÊU],\"-\")","v":"Cây trồng theo mùa vụ hoặc lấy SP một lần ngắn hạn"},{"$f":"_xlfn.XLOOKUP(L_Map[[#This Row],[MÃ TM]],L_TM[MÃ],L_TM[CHỈ TIÊU],\"-\")","v":"Tài sản sinh học khác"}]
[null,null,"232_",{"$f":"IF(L_Map[[#This Row],[MÃ BC]]<>\"\",COUNTIFS(L_Map[MÃ BC],L_Map[[#This Row],[MÃ BC]]),0)","v":1},"121_",{"$f":"IF(L_Map[[#This Row],[MÃ TM]]<>\"\",COUNTIFS(L_Map[MÃ TM],L_Map[[#This Row],[MÃ TM]]),0)","v":3},{"$f":"IF(_xlfn.XLOOKUP(L_Map[[#This Row],[MÃ TM]],L_TM[MÃ],L_TM[BCR],0),1,0)","v":0},{"$f":"_xlfn.XLOOKUP(L_Map[[#This Row],[MÃ BC]],L_FS[MÃ],L_FS[CHỈ TIÊU],\"-\")","v":"Con vật nuôi cho SP định kỳ chưa đến gđ trưởng thành"},{"$f":"_xlfn.XLOOKUP(L_Map[[#This Row],[MÃ TM]],L_TM[MÃ],L_TM[CHỈ TIÊU],\"-\")","v":"Tài sản sinh học khác"}]

{"sheet":"Dòng tiền","index":6,"n_rows":54,"n_cols":8,"rows_kept":54,"cut":false,"hidden":false,"merged":[[0,0,3,0]]}
[{"$f":"'✅'!A1","v":"Tasco Group"}]
[]
[null,null,null,"CHỈ TIÊU DÒNG TIỀN"]
[null,null,null,null,null,"⏬"]
[{"$f":"'Công ty'!A5","v":"BCTC hợp nhất"},null,"MÃ","CHỈ TIÊU","NHÓM","CFⁿ",null,"Mã trùng"]
[null,null,"01_","Lợi nhuận trước thuế","KD gián tiếp",true,null,{"$f":"_Trùng(L_CF[MÃ])","v":"01_"}]
[null,null,"_","ĐIỀU CHỈNH CHO CÁC KHOẢN",null,null,null,"02_"]
["Tập đoàn",null,"02_","Khấu hao tài sản cố định và BĐSĐT","KD gián tiếp",true,null,"03_"]
[null,null,"02ᵇ","Khấu hao tài sản sinh học","KD gián tiếp",true,null,"04_"]
["Danh mục công ty",null,"02ᶜ","Phân bổ lợi thế thương mại","KD gián tiếp",true,null,"05_"]
[null,null,"03_","Các khoản dự phòng","KD gián tiếp",true,null,"06_"]
["Thông tin công ty",null,"04_","(Lãi)/lỗ CLTG do đánh giá lại các khoản mục tiền tệ gốc ngoại tệ","KD gián tiếp",true,null,"07_"]
[null,null,"05_","(Lãi)/lỗ từ hoạt động đầu tư, tài chính","KD gián tiếp",true]
["Tài khoản kế toán",null,"06_","Chi phí đi vay","KD gián tiếp",true]
[null,null,"07_","Các khoản điều chỉnh khác","KD gián tiếp",true]
["Chỉ tiêu báo cáo",null,"08_","LỢI NHUẬN/(LỖ) TỪ HĐKD TRƯỚC THAY ĐỔI VLĐ"]
[null,null,"09_","(Tăng)/giảm các khoản phải thu","KD gián tiếp",true]
["Chỉ tiêu thuyết minh",null,"10_","(Tăng)/giảm hàng tồn kho","KD gián tiếp",true]
[null,null,"11_","Tăng/(giảm) các khoản phải trả","KD gián tiếp",true]
["Map chỉ tiêu BC-TM",null,"12_","(Tăng)/giảm chi phí chờ phân bổ","KD gián tiếp",true]
[null,null,"13_","(Tăng)/giảm chứng khoán kinh doanh","KD gián tiếp",true]
["Chỉ tiêu dòng tiền",null,"14_","Chi phí đi vay đã trả","KD gián tiếp",true]
[null,null,"15_","Thuế thu nhập doanh nghiệp đã nộp","KD gián tiếp",true]
["Phân loại vốn vay",null,"16_","Tiền thu khác từ hoạt động kinh doanh","KD gián tiếp",true]
[null,null,"17_","Tiền chi khác cho hoạt động kinh doanh","KD gián tiếp",true]
["Danh mục khác",null,"20_","LƯU CHUYỂN TIỀN THUẦN TỪ HOẠT ĐỘNG KINH DOANH"]
[null,null,"21_","Tiền chi để mua sắm, xây dựng TSCĐ và các TSDH khác","Đầu tư",true]
["Tùy chọn",null,"22_","Tiền thu từ thanh lý, nhượng bán TSCĐ và các TSDH khác","Đầu tư",true]
[null,null,"23_","Tiền chi cho vay, mua các công cụ nợ của đơn vị khác","Đầu tư",true]
[null,null,"24_","Tiền thu hồi cho vay, bán lại các công cụ nợ của đơn vị khác","Đầu tư",true]
[null,null,"25_","Tiền chi đầu tư góp vốn vào đơn vị khác","Đầu tư",true]
[null,null,"26_","Tiền thu hồi đầu tư góp vốn vào đơn vị khác","Đầu tư",true]
[null,null,"27_","Tiền thu lãi cho vay","Đầu tư",true]
[null,null,"27ᵇ","Tiền thu lãi cổ tức và lợi nhuận được chia","Đầu tư",true]
[null,null,"30_","LƯU CHUYỂN TIỀN THUẦN TỪ HOẠT ĐỘNG ĐẦU TƯ"]
[null,null,"31_","Tiền thu từ phát hành cổ phiếu, nhận vốn góp của CSH","Tài chính",true]
[null,null,"32_","Tiền trả lại vốn góp cho các CSH, mua lại cổ phiếu đã phát hành","Tài chính",true]
[null,null,"33_","Tiền thu từ đi vay","Tài chính",true]
[null,null,"34_","Tiền trả nợ gốc vay","Tài chính",true]
[null,null,"35_","Tiền trả nợ gốc thuê tài chính","Tài chính",true]
[null,null,"36_","Cổ tức, lợi nhuận đã trả cho chủ sở hữu","Tài chính",true]
[null,null,"40_","LƯU CHUYỂN TIỀN THUẦN TỪ HOẠT ĐỘNG TÀI CHÍNH"]
[null,null,"50_","LƯU CHUYỂN TIỀN THUẦN TRONG KỲ"]
[null,null,"60_","TIỀN VÀ TƯƠNG ĐƯƠNG TIỀN ĐẦU KỲ"]
[null,null,"61_","Ảnh hưởng của thay đổi tỷ giá hối đoái quy đổi ngoại tệ"]
[null,null,"70_","Tiền và tương đương tiền cuối kỳ"]
[]
[null,null,"01_","Tiền thu từ bán hàng, cung cấp dịch vụ và doanh thu khác","KD trực tiếp"]
[null,null,"02_","Tiền chi trả cho người cung cấp hàng hóa và dịch vụ","KD trực tiếp"]
[null,null,"03_","Tiền chi trả cho người lao động","KD trực tiếp"]
[null,null,"04_","Tiền lãi vay đã trả","KD trực tiếp"]
[null,null,"05_","Thuế thu nhập doanh nghiệp đã nộp","KD trực tiếp"]
[null,null,"06_","Tiền thu khác từ hoạt động kinh doanh","KD trực tiếp"]
[null,null,"07_","Tiền chi khác cho hoạt động kinh doanh","KD trực tiếp"]

{"sheet":"Tập đoàn","index":7,"n_rows":28,"n_cols":12,"rows_kept":28,"cut":false,"hidden":false,"merged":[[0,0,3,0]]}
[{"$f":"'✅'!A1","v":"Tasco Group"}]
[]
[null,null,"TẬP ĐOÀN"]
[]
["BCTC hợp nhất²",null,"TẬP ĐOÀN","CTY MẸ","KH CTY MẸ","_","KH CTY MẸ",null,{"$f":"_xlfn.LET(_xlpm.a,_xlfn.TEXTJOIN(\";\",TRUE,L_TĐ[TẬP ĐOÀN]),_xlpm.b,L_TĐ[TẬP ĐOÀN],_xlpm.c,ROWS(_xlpm.a),_xlpm.d,ROWS(_xlpm.b),_xlpm.e,_xlpm.c+_xlpm.d,IF(_xlfn.SEQUENCE(_xlpm.e)<=_xlpm.c,INDEX(_xlpm.a,_xlfn.SEQUENCE(_xlpm.c),{1}),INDEX(_xlpm.b,_xlfn.SEQUENCE(_xlpm.e)-_xlpm.c,{1})))","v":"TASCOᴳ;TASCOAUTOᴳ;SVCᴳ;SGFᴳ;SVCHNᴳ;SVCDNᴳ;BTFᴳ;TGPᴳ;CARPLAᴳ;HSHᴳ;MDNᴳ;TLTKᴳ;DNPᴳ;DNPWᴳ"},null,"Kiểm tra trùng","Kiểm tra lồng"]
[null,null,"TASCOᴳ","100_",{"$f":"_xlfn.XLOOKUP(L_TĐ[[#This Row],[CTY MẸ]],L_CTY[MÃ],L_CTY[KÝ HIỆU])","v":"TASCO"},null,{"$f":"_xlfn.XLOOKUP(L_TĐ[CTY MẸ],L_CTY[MÃ],L_CTY[KÝ HIỆU],\"-\")","v":"TASCO"},null,"TASCOᴳ",null,{"$f":"_Trùng(L_TĐ[TẬP ĐOÀN])","v":"null"},{"$f":"_Lồng(L_TĐ[TẬP ĐOÀN])","v":"null"}]
[null,null,"TASCOAUTOᴳ","200_",{"$f":"_xlfn.XLOOKUP(L_TĐ[[#This Row],[CTY MẸ]],L_CTY[MÃ],L_CTY[KÝ HIỆU])","v":"TASCOAUTO"},null,"TASCOAUTO",null,"TASCOAUTOᴳ"]
["Tập đoàn",null,"SVCᴳ","300_",{"$f":"_xlfn.XLOOKUP(L_TĐ[[#This Row],[CTY MẸ]],L_CTY[MÃ],L_CTY[KÝ HIỆU])","v":"SVC"},null,"SVC",null,"SVCᴳ"]
[null,null,"SGFᴳ","311_",{"$f":"_xlfn.XLOOKUP(L_TĐ[[#This Row],[CTY MẸ]],L_CTY[MÃ],L_CTY[KÝ HIỆU])","v":"SGF"},null,"SGF",null,"SGFᴳ"]
["Danh mục công ty",null,"SVCHNᴳ","314_",{"$f":"_xlfn.XLOOKUP(L_TĐ[[#This Row],[CTY MẸ]],L_CTY[MÃ],L_CTY[KÝ HIỆU])","v":"SVCHN"},null,"SVCHN",null,"SVCHNᴳ"]
[null,null,"SVCDNᴳ","320_",{"$f":"_xlfn.XLOOKUP(L_TĐ[[#This Row],[CTY MẸ]],L_CTY[MÃ],L_CTY[KÝ HIỆU])","v":"SVCDN"},null,"SVCDN",null,"SVCDNᴳ"]
["Thông tin công ty",null,"BTFᴳ","364_",{"$f":"_xlfn.XLOOKUP(L_TĐ[[#This Row],[CTY MẸ]],L_CTY[MÃ],L_CTY[KÝ HIỆU])","v":"BTF"},null,"BTF",null,"BTFᴳ"]
[null,null,"TGPᴳ","385_",{"$f":"_xlfn.XLOOKUP(L_TĐ[[#This Row],[CTY MẸ]],L_CTY[MÃ],L_CTY[KÝ HIỆU])","v":"TGP"},null,"TGP",null,"TGPᴳ"]
["Tài khoản kế toán",null,"CARPLAᴳ","357_",{"$f":"_xlfn.XLOOKUP(L_TĐ[[#This Row],[CTY MẸ]],L_CTY[MÃ],L_CTY[KÝ HIỆU])","v":"CARPLA"},null,"CARPLA",null,"CARPLAᴳ"]
[null,null,"HSHᴳ","310_",{"$f":"_xlfn.XLOOKUP(L_TĐ[[#This Row],[CTY MẸ]],L_CTY[MÃ],L_CTY[KÝ HIỆU])","v":"HSH"},null,"HSH",null,"HSHᴳ"]
["Chỉ tiêu báo cáo",null,"MDNᴳ","384_",{"$f":"_xlfn.XLOOKUP(L_TĐ[[#This Row],[CTY MẸ]],L_CTY[MÃ],L_CTY[KÝ HIỆU])","v":"MDN"},null,"MDN",null,"MDNᴳ"]
[null,null,"TLTKᴳ","373_",{"$f":"_xlfn.XLOOKUP(L_TĐ[[#This Row],[CTY MẸ]],L_CTY[MÃ],L_CTY[KÝ HIỆU])","v":"TLTK"},null,"TLTK",null,"TLTKᴳ"]
["Chỉ tiêu thuyết minh",null,"DNPᴳ","010_",{"$f":"_xlfn.XLOOKUP(L_TĐ[[#This Row],[CTY MẸ]],L_CTY[MÃ],L_CTY[KÝ HIỆU])","v":"DNP"},null,"DNP",null,"DNPᴳ"]
[null,null,"DNPWᴳ","049_",{"$f":"_xlfn.XLOOKUP(L_TĐ[[#This Row],[CTY MẸ]],L_CTY[MÃ],L_CTY[KÝ HIỆU])","v":"DNPW"},null,"DNPW",null,"DNPWᴳ"]
["Map chỉ tiêu BC-TM"]
[]
["Chỉ tiêu dòng tiền"]
[]
["Phân loại vốn vay"]
[]
["Danh mục khác"]
[]
["Tùy chọn"]

{"sheet":"Vốn vay","index":8,"n_rows":35,"n_cols":10,"rows_kept":35,"cut":false,"hidden":false,"merged":[[0,0,3,0]]}
[{"$f":"'✅'!A1","v":"Tasco Group"}]
[]
[null,null,"ĐỐI TƯỢNG VAY",null,null,"ĐỐI TƯỢNG VAY",null,"NGÂN HÀNG"]
[]
[{"$f":"'Công ty'!A5","v":"BCTC hợp nhất"},null,"VAY / NHÓM","LOẠI",null,"VAY / ĐỐI TƯỢNG",null,"VAY / NGÂN HÀNG",null,"NHÓM ĐỐI TƯỢNG VAY"]
[null,null,"Vay ngắn hạn","Ngắn hạn",null,"Ngân hàng",null,"Ngân hàng SinoPac",null,"Vay ngân hàng "]
[null,null,"Vay dài hạn đến hạn trả ","Ngắn hạn",null,"Tổ chức khác",null,"Ngân hàng TNHH MTV Standard Chartered Việt Nam",null,"Vay cá nhân và tổ chức khác"]
["Tập đoàn",null,"Nợ thuê tài chính đến hạn trả ","Ngắn hạn",null,"Cá nhân",null,"Ngân hàng TMCP Công Thương Việt Nam (Vietinbank)",null,"Trái phiếu ngắn hạn"]
[null,null,"Trái phiếu ngắn hạn","Ngắn hạn",null,"Bên liên quan",null,"Ngân hàng TMCP Tiên Phong (TPBank)",null,"Vay dài hạn đến hạn trả"]
["Danh mục công ty",null,"Trái phiếu dài hạn đến hạn trả ","Ngắn hạn",null,null,null,"Ngân Hàng TMCP Phát Triển Việt Nam (VDB)",null,"Nợ thuê tài chính đến hạn trả"]
[null,null,"Vay dài hạn","Dài hạn",null,null,null,"Ngân hàng TMCP Ngoại thương Việt Nam (Vietcombank)",null,"Trái phiếu dài hạn đến hạn trả"]
["Thông tin công ty",null,"Nợ thuê tài chính dài hạn ","Dài hạn",null,null,null,"Ngân hàng TMCP Đầu tư và Phát triển Việt Nam (BIDV)",null,"Nợ thuê tài chính"]
[null,null,"Trái phiếu dài hạn","Dài hạn",null,null,null,"Ngân hàng TMCP Quốc Tế (VIB)",null,"Trái phiếu phát hành"]
["Tài khoản kế toán",null,null,null,null,null,null,"Ngân hàng TMCP Kỹ Thương (Techcombank)"]
[null,null,null,null,null,null,null,"Ngân hàng TMCP Hàng Hải (MSB)"]
["Chỉ tiêu báo cáo",null,null,null,null,null,null,"Ngân hàng TMCP Quân Đội (MB Bank)"]
[null,null,null,null,null,null,null,"Ngân hàng TMCP NN và PTNT Việt Nam (Agribank)"]
["Chỉ tiêu thuyết minh",null,null,null,null,null,null,"Ngân hàng TMCP Việt Nam Thịnh vượng (VPBank)"]
[null,null,null,null,null,null,null,"Ngân hàng TMCP Việt Á (VietABank)"]
["Map chỉ tiêu BC-TM",null,null,null,null,null,null,"Ngân hàng TNHH MTV Woori Việt Nam"]
[null,null,null,null,null,null,null,"Ngân hàng TNHH MTV Shinhan Việt Nam"]
["Chỉ tiêu dòng tiền",null,null,null,null,null,null,"Ngân hàng TNHH MTV HSBC (Việt Nam) (HSBC)"]
[null,null,null,null,null,null,null,"Ngân hàng TMCP Xuất Nhập khẩu Việt Nam (Eximbank)"]
["Phân loại vốn vay",null,null,null,null,null,null,"Ngân hàng TMCP Thịnh vượng & Phát triển (PG Bank)"]
[null,null,null,null,null,null,null,"Ngân hàng TMCP Phát triển Tp Hồ Chí Minh (HDBank)"]
["Danh mục khác",null,null,null,null,null,null,"BIDV-SuMi TRUST Leasing Co., Ltd (BSL)"]
[null,null,null,null,null,null,null,"Công ty CP Tasco Auto"]
["Tùy chọn",null,null,null,null,null,null,"Công ty TNHH MTV Tasco 6"]
[null,null,null,null,null,null,null,"Công ty CP Chứng khoán NH Công thương Việt Nam"]
[null,null,null,null,null,null,null,"Công ty CP Chứng khoán VNDIRECT"]
[null,null,null,null,null,null,null,"Công ty CP Chứng khoán Bảo Việt"]
[null,null,null,null,null,null,null,"Công ty TNHH Chứng khoán VCB"]
[null,null,null,null,null,null,null,"Công ty CP Chứng khoán BIDV"]
[null,null,null,null,null,null,null,"Công ty CP Chứng khoán Dầu khí"]
[null,null,null,null,null,null,null,"Ngân hàng TMCP Á Châu (ACB)"]

{"sheet":"Khác","index":9,"n_rows":36,"n_cols":16,"rows_kept":36,"cut":false,"hidden":false,"merged":[[0,0,3,0]]}
[{"$f":"'✅'!A1","v":"Tasco Group"}]
[]
[null,null,"LĨNH VỰC",null,"KHU VỰC",null,"KỲ BÁO CÁO",null,null,null,"BÊN LIÊN QUAN",null,null,null,"RÚT GỌN TÊN"]
[]
[{"$f":"'Công ty'!A5","v":"BCTC hợp nhất"},null,"LĨNH VỰC",null,"KHU VỰC",null,"KỲ BÁO CÁO","Cả năm",null,{"$f":"(YEAR(TODAY())-2000)*100","v":2600},"BÊN LIÊN QUAN","TÊN KHÁCH HÀNG","PHÂN LOẠI",null,"Đổi từ","Sang"]
[null,null,"Hoạt động xây lắp",null,"Miền Bắc",null,{"$f":"\"Q\"&J6","v":"Q2501"},{"$f":"IF(RIGHT(L_KY[[#This Row],[KỲ BÁO CÁO]],1)+0=4,TRUE,FALSE)","v":false},null,{"$f":"J$5-100+1","v":2501},null,null,null,null,"Khách hàng","KH"]
[null,null,"Kinh doanh BĐS, dự án",null,"Miền Nam",null,"Q2502",{"$f":"IF(RIGHT(L_KY[[#This Row],[KỲ BÁO CÁO]],1)+0=4,TRUE,FALSE)","v":false},null,{"$f":"J$5-100+2","v":2502},null,null,null,null,"Tập đoàn","TĐ"]
["Tập đoàn",null,"Mua bán hàng hóa",null,"Miền Trung",null,"Q2503",{"$f":"IF(RIGHT(L_KY[[#This Row],[KỲ BÁO CÁO]],1)+0=4,TRUE,FALSE)","v":false},null,{"$f":"J$5-100+3","v":2503},null,null,null,null,"Tổng công ty","TCT"]
[null,null,"Nước sạch MT",null,null,null,"Q2504",{"$f":"IF(RIGHT(L_KY[[#This Row],[KỲ BÁO CÁO]],1)+0=4,TRUE,FALSE)","v":true},null,{"$f":"J$5-100+4","v":2504},null,null,null,null,"Tổng cty","TCT"]
["Danh mục công ty",null,"Hạ tầng nước",null,null,null,"Q2601",{"$f":"IF(RIGHT(L_KY[[#This Row],[KỲ BÁO CÁO]],1)+0=4,TRUE,FALSE)","v":false},null,{"$f":"J$5+1","v":2601},null,null,null,null,"Công ty","Cty"]
[null,null,"Vật liệu xây dựng",null,null,null,"Q2602",{"$f":"IF(RIGHT(L_KY[[#This Row],[KỲ BÁO CÁO]],1)+0=4,TRUE,FALSE)","v":false},null,{"$f":"J$5+2","v":2602},null,null,null,null,"Chi nhánh","CN"]
["Thông tin công ty",null,"Đồ gia dụng",null,null,null,"Q2603",{"$f":"IF(RIGHT(L_KY[[#This Row],[KỲ BÁO CÁO]],1)+0=4,TRUE,FALSE)","v":false},null,{"$f":"J$5+3","v":2603},null,null,null,null,"Ngân Hàng","NH"]
[null,null,"Bao bì",null,null,null,"Q2604",{"$f":"IF(RIGHT(L_KY[[#This Row],[KỲ BÁO CÁO]],1)+0=4,TRUE,FALSE)","v":true},null,{"$f":"J$5+4","v":2604},null,null,null,null,"Bệnh viện","BV"]
["Tài khoản kế toán",null,"Khác",null,null,null,null,null,null,null,null,null,null,null,"Văn phòng","VP"]
[null,null,null,null,null,null,null,null,null,null,null,null,null,null,"Sở giao dịch","SGD"]
["Chỉ tiêu báo cáo",null,null,null,null,null,null,null,null,null,null,null,null,null,"Ủy ban nhân dân","UBND"]
[null,null,null,null,null,null,null,null,null,null,null,null,null,null," và "," & "]
["Chỉ tiêu thuyết minh",null,null,null,null,null,null,null,null,null,null,null,null,null,"Cổ phần","CP"]
[null,null,null,null,null,null,null,null,null,null,null,null,null,null,"Trách nhiệm hữu hạn","TNHH"]
["Map chỉ tiêu BC-TM",null,null,null,null,null,null,null,null,null,null,null,null,null,"Một thành viên","MTV"]
[null,null,null,null,null,null,null,null,null,null,null,null,null,null,"Bất động sản","BĐS"]
["Chỉ tiêu dòng tiền",null,null,null,null,null,null,null,null,null,null,null,null,null,"Xuất nhập khẩu","XNK"]
[null,null,null,null,null,null,null,null,null,null,null,null,null,null,"Tư vấn","TV"]
["Phân loại vốn vay",null,null,null,null,null,null,null,null,null,null,null,null,null,"Đầu tư","ĐT"]
[null,null,null,null,null,null,null,null,null,null,null,null,null,null,"Phát triển","PT"]
["Danh mục khác",null,null,null,null,null,null,null,null,null,null,null,null,null,"Thương mại","TM"]
[null,null,null,null,null,null,null,null,null,null,null,null,null,null,"Dịch vụ","DV"]
["Tùy chọn",null,null,null,null,null,null,null,null,null,null,null,null,null,"Sản xuất","SX"]
[null,null,null,null,null,null,null,null,null,null,null,null,null,null,"Xây dựng","XD"]
[null,null,null,null,null,null,null,null,null,null,null,null,null,null,"Công nghệ","CN"]
[null,null,null,null,null,null,null,null,null,null,null,null,null,null,"Quản lý","QL"]
[null,null,null,null,null,null,null,null,null,null,null,null,null,null,"Môi trường","MT"]
[null,null,null,null,null,null,null,null,null,null,null,null,null,null,"Quảng cáo","QC"]
[null,null,null,null,null,null,null,null,null,null,null,null,null,null,"Du lịch","DL"]
[null,null,null,null,null,null,null,null,null,null,null,null,null,null,"Vietinbank","VTB"]
[null,null,null,null,null,null,null,null,null,null,null,null,null,null,"Vietcombank","VCB"]

{"sheet":"↓","index":10,"n_rows":175,"n_cols":14,"rows_kept":175,"cut":false,"hidden":true,"merged":[]}
["CHỌN",null,"TẬP ĐOÀN","BCTC","NHÓM TM","CÔNG TY","FS","BS","PL","TMBC","CF","LĨNH VỰC","KHU VỰC","KỲ BÁO CÁO"]
[true,{"$f":"A2:A3","v":true},{"$f":"L_TĐ[TẬP ĐOÀN]","v":"TASCOᴳ"},{"$f":"_xlfn.UNIQUE(L_FS[KHOẢN MỤC])","v":"_"},{"$f":"NH_TM[NH TM]","v":"N1"},{"$f":"_xlfn.LET(_xlpm.a,L_CTY[MÃ],_xlpm.a&IF(Chọn_mã_có_tên,\";\"&_xlfn.XLOOKUP(_xlpm.a,_xlpm.a,L_CTY[KÝ HIỆU]),\"\"))","v":"100_;TASCO"},{"$f":"_xlfn.LET(_xlpm.a,_xlfn._xlws.FILTER(L_FS[MÃ],L_FS[HT]=TRUE),_xlpm.a&IF(Chọn_mã_có_tên,\";\"&_xlfn.XLOOKUP(_xlpm.a,L_FS[MÃ],L_FS[CHỈ TIÊU]),\"\"))","v":"000_;Tài khoản ngoại bảng"},{"$f":"_xlfn.LET(_xlpm.a,_xlfn._xlws.FILTER(L_FS[MÃ],(L_FS[BS]<>0)*(L_FS[HT]=TRUE)),_xlpm.a&IF(Chọn_mã_có_tên,\";\"&_xlfn.XLOOKUP(_xlpm.a,L_FS[MÃ],L_FS[CHỈ TIÊU]),\"\"))","v":"111_;Tiền"},{"$f":"_xlfn.LET(_xlpm.a,_xlfn._xlws.FILTER(L_FS[MÃ],(L_FS[PL]<>0)*(L_FS[HT]=TRUE)),_xlpm.a&IF(Chọn_mã_có_tên,\";\"&_xlfn.XLOOKUP(_xlpm.a,L_FS[MÃ],L_FS[CHỈ TIÊU]),\"\"))","v":"001_;Doanh thu bán hàng & cung cấp dịch vụ"},{"$f":"_xlfn.LET(_xlpm.a,L_TM[MÃ],_xlpm.a&IF(Chọn_mã_có_tên,\";\"&_xlfn.XLOOKUP(_xlpm.a,_xlpm.a,L_TM[CHỈ TIÊU]),\"\"))","v":"010_;Tiền và tương đương tiền"},{"$f":"_xlfn.LET(_xlpm.a,L_CF[MÃ],_xlpm.a&IF(Chọn_mã_có_tên,_xlfn.XLOOKUP(_xlpm.a,_xlpm.a,L_CF[CHỈ TIÊU]),\"\"))","v":"01_Lợi nhuận trước thuế"},{"$f":"L_LV[LĨNH VỰC]","v":"Hoạt động xây lắp"},{"$f":"L_KV[KHU VỰC]","v":"Miền Bắc"},{"$f":"L_KY[KỲ BÁO CÁO]","v":"Q2501"}]
[false,false,"TASCOAUTOᴳ","KQKD","N2","173_;CPVETC","001_;Doanh thu bán hàng & cung cấp dịch vụ","112_;Các khoản tương đương tiền","002_;Các khoản giảm trừ","021_;Đầu tư nắm giữ đến ngày đáo hạn ngắn hạn","_ĐIỀU CHỈNH CHO CÁC KHOẢN","Kinh doanh BĐS, dự án","Miền Nam","Q2502"]
[null,null,"SVCᴳ","TS ngắn","N3","186_;LAND","002_;Các khoản giảm trừ","121_;Chứng khoán kinh doanh","011_;Giá vốn hàng bán","022_;Đầu tư nắm giữ đến ngày đáo hạn dài hạn","02_Khấu hao tài sản cố định và BĐSĐT","Mua bán hàng hóa","Miền Trung","Q2503"]
[null,null,"SGFᴳ","TS dài","N4","114_;BAOHIEM","011_;Giá vốn hàng bán","122_;Dự phòng giảm giá chứng khoán kinh doanh *","021_;Lãi/lỗ bán, thanh lý BĐS đầu tư","023_;Đầu tư vào công ty con","02ᵇKhấu hao tài sản sinh học","Nước sạch MT",null,"Q2504"]
[null,null,"SVCHNᴳ","Nợ ngắn","N5","185_;BOTH","021_;Lãi/lỗ bán, thanh lý BĐS đầu tư","123_;Đầu tư nắm giữ đến ngày đáo hạn ngắn hạn","022_;Doanh thu hoạt động tài chính","024_;Đầu tư vào công ty liên kết","02ᶜPhân bổ lợi thế thương mại","Hạ tầng nước",null,"Q2601"]
[null,null,"SVCDNᴳ","Nợ dài","N6","151_;TAS6","022_;Doanh thu hoạt động tài chính","124_;Dự phòng đầu tư nắm giữ đến ngày đáo hạn ngắn hạn *","023_;Chi phí tài chính","025_;Đầu tư góp vốn vào đơn vị khác","03_Các khoản dự phòng","Vật liệu xây dựng",null,"Q2602"]
[null,null,"BTFᴳ","Vốn khác","BP","171_;TASQB","023_;Chi phí tài chính","125_;Đầu tư ngắn hạn khác","025_;Chi phí bán hàng","026_;Chứng khoán kinh doanh","04_(Lãi)/lỗ CLTG do đánh giá lại các khoản mục tiền tệ gốc ngoại tệ","Đồ gia dụng",null,"Q2603"]
[null,null,"TGPᴳ","Vốn góp","N¹¹","157_;TASHP","024_;- Trong đó: chi phí đi vay","126_;Dự phòng tổn thất các khoản đầu tư ngắn hạn khác *","026_;Chi phí quản lý doanh nghiệp","027_;Dự phòng giảm giá chứng khoán kinh doanh *","05_(Lãi)/lỗ từ hoạt động đầu tư, tài chính","Bao bì",null,"Q2604"]
[null,null,"CARPLAᴳ",null,"N¹²","147_;TASNT","025_;Chi phí bán hàng","131_;Phải thu ngắn hạn của khách hàng","027_;Phần lãi (lỗ) trong cty liên kết, liên doanh","028_;Dự phòng đầu tư tài chính dài hạn *","06_Chi phí đi vay","Khác"]
[null,null,"HSHᴳ",null,null,"133_;TNHHVETC","026_;Chi phí quản lý doanh nghiệp","132_;Trả trước cho người bán ngắn hạn","031_;Thu nhập khác","031_;Phải thu ngắn hạn của khách hàng","07_Các khoản điều chỉnh khác"]
[null,null,"MDNᴳ",null,null,"200_;TASCOAUTO","027_;Phần lãi (lỗ) trong cty liên kết, liên doanh","133_;Phải thu nội bộ ngắn hạn","032_;Chi phí khác","031s;Phải thu ngắn hạn của khách hàng ᴿ","08_LỢI NHUẬN/(LỖ) TỪ HĐKD TRƯỚC THAY ĐỔI VLĐ"]
[null,null,"TLTKᴳ",null,null,"228_;BOTHTPT","031_;Thu nhập khác","134_;Phải thu theo tiến độ HĐXD","051_;Chi phí thuế TNDN hiện hành","032_;Phải thu dài hạn của khách hàng","09_(Tăng)/giảm các khoản phải thu"]
[null,null,"DNPᴳ",null,null,"265_;NVTH","032_;Chi phí khác","135_;Các khoản phải thu khác","052_;Chi phí thuế TNDN hoãn lại","032s;Phải thu dài hạn của khách hàng ᴿ","10_(Tăng)/giảm hàng tồn kho"]
[null,null,"DNPWᴳ",null,null,"288_;DNF","051_;Chi phí thuế TNDN hiện hành","136_;Dự phòng phải thu ngắn hạn khó đòi *","062_;Lợi nhuận sau thuế của CĐ không ks","033_;Trả trước cho người bán ngắn hạn","11_Tăng/(giảm) các khoản phải trả"]
[null,null,null,null,null,"229_;VHN","052_;Chi phí thuế TNDN hoãn lại","137_;Tài sản thiếu chờ xử lý",null,"033s;Trả trước cho người bán ngắn hạn ᴿ","12_(Tăng)/giảm chi phí chờ phân bổ"]
[null,null,null,null,null,"252_;VBA","062_;Lợi nhuận sau thuế của CĐ không ks","141_;Hàng tồn kho",null,"034_;Trả trước cho người bán dài hạn","13_(Tăng)/giảm chứng khoán kinh doanh"]
[null,null,null,null,null,"218_;VSG","111_;Tiền","142_;Dự phòng giảm giá hàng tồn kho *",null,"034s;Trả trước cho người bán dài hạn ᴿ","14_Chi phí đi vay đã trả"]
[null,null,null,null,null,"289_;NEH","112_;Các khoản tương đương tiền","151_;Con vật nuôi lấy sản phẩm một lần ngắn hạn",null,"041_;Phải thu khác ngắn hạn","15_Thuế thu nhập doanh nghiệp đã nộp"]
[null,null,null,null,null,"300_;SVC","121_;Chứng khoán kinh doanh","152_;Cây trồng theo mùa vụ hoặc lấy SP một lần ngắn hạn",null,"041s;Phải thu khác ngắn hạn ᴿ","16_Tiền thu khác từ hoạt động kinh doanh"]
[null,null,null,null,null,"311_;SGF","122_;Dự phòng giảm giá chứng khoán kinh doanh *","153_;Dự phòng tổn thất tài sản sinh học ngắn hạn",null,"042_;Phải thu khác dài hạn","17_Tiền chi khác cho hoạt động kinh doanh"]
[null,null,null,null,null,"353_;CTHF","123_;Đầu tư nắm giữ đến ngày đáo hạn ngắn hạn","161_;Chi phí chờ phân bổ ngắn hạn",null,"042s;Phải thu khác dài hạn ᴿ","20_LƯU CHUYỂN TIỀN THUẦN TỪ HOẠT ĐỘNG KINH DOANH"]
[null,null,null,null,null,"364_;BTF","124_;Dự phòng đầu tư nắm giữ đến ngày đáo hạn ngắn hạn *","162_;Thuế GTGT được khấu trừ",null,"043_;Dự phòng phải thu ngắn hạn khó đòi *","21_Tiền chi để mua sắm, xây dựng TSCĐ và các TSDH khác"]
[null,null,null,null,null,"350_;MTN","125_;Đầu tư ngắn hạn khác","163_;Thuế và các khoản phải thu Nhà nước",null,"044_;Dự phòng phải thu dài hạn khó đòi *","22_Tiền thu từ thanh lý, nhượng bán TSCĐ và các TSDH khác"]
[null,null,null,null,null,"351_;NTP","126_;Dự phòng tổn thất các khoản đầu tư ngắn hạn khác *","164_;Giao dịch mua bán lại trái phiếu Chính phủ",null,"050_;Tài sản thiếu chờ xử lý","23_Tiền chi cho vay, mua các công cụ nợ của đơn vị khác"]
[null,null,null,null,null,"347_;MLA","131_;Phải thu ngắn hạn của khách hàng","165_;Tài sản ngắn hạn khác",null,"051_;Nợ xấu","24_Tiền thu hồi cho vay, bán lại các công cụ nợ của đơn vị khác"]
[null,null,null,null,null,"338_;MTC","132_;Trả trước cho người bán ngắn hạn","211_;Phải thu dài hạn của khách hàng",null,"061_;Tài sản khác ngắn hạn","25_Tiền chi đầu tư góp vốn vào đơn vị khác"]
[null,null,null,null,null,"386_;TNF","133_;Phải thu nội bộ ngắn hạn","212_;Trả trước cho người bán dài hạn",null,"062_;Tài sản khác dài hạn","26_Tiền thu hồi đầu tư góp vốn vào đơn vị khác"]
[null,null,null,null,null,"409_;TSG","134_;Phải thu theo tiến độ HĐXD","213_;Vốn kinh doanh ở đơn vị trực thuộc",null,"063_;Phải thu nội bộ ngắn hạn","27_Tiền thu lãi cho vay"]
[null,null,null,null,null,"331_;FXAUTO","135_;Các khoản phải thu khác","214_;Phải thu nội bộ dài hạn",null,"064_;Phải thu nội bộ dài hạn","27ᵇTiền thu lãi cổ tức và lợi nhuận được chia"]
[null,null,null,null,null,"359_;HYPL","136_;Dự phòng phải thu ngắn hạn khó đòi *","215_;Phải thu dài hạn khác",null,"065_;Phải thu theo tiến độ HĐXD","30_LƯU CHUYỂN TIỀN THUẦN TỪ HOẠT ĐỘNG ĐẦU TƯ"]
[null,null,null,null,null,"313_;BTHF","137_;Tài sản thiếu chờ xử lý","216_;Dự phòng phải thu dài hạn khó đòi *",null,"071_;Hàng tồn kho","31_Tiền thu từ phát hành cổ phiếu, nhận vốn góp của CSH"]
[null,null,null,null,null,"394_;MBT","141_;Hàng tồn kho","222_;Nguyên giá TSCĐ hữu hình",null,"072_;Dự phòng giảm giá hàng tồn kho *","32_Tiền trả lại vốn góp cho các CSH, mua lại cổ phiếu đã phát hành"]
[null,null,null,null,null,"334_;SGCL","142_;Dự phòng giảm giá hàng tồn kho *","223_;Giá trị hao mòn lũy kế TSCĐ hữu hình",null,"081_;Chi phí SXKD dở dang dài hạn","33_Tiền thu từ đi vay"]
[null,null,null,null,null,"385_;TGP","151_;Con vật nuôi lấy sản phẩm một lần ngắn hạn","225_;Nguyên giá TSCĐ thuê tài chính",null,"082_;Chi phí XDCB dở dang","34_Tiền trả nợ gốc vay"]
[null,null,null,null,null,"388_;TNB","152_;Cây trồng theo mùa vụ hoặc lấy SP một lần ngắn hạn","226_;Giá trị hao mòn lũy kế TSCĐ thuê tài chính",null,"091_;TSCĐ hữu hình - Nguyên giá","35_Tiền trả nợ gốc thuê tài chính"]
[null,null,null,null,null,"342_;YCT","153_;Dự phòng tổn thất tài sản sinh học ngắn hạn","228_;Nguyên giá TSCĐ vô hình",null,"091s;NG TSCĐ HH đã KH hết đang sử dụng","36_Cổ tức, lợi nhuận đã trả cho chủ sở hữu"]
[null,null,null,null,null,"332_;SGNS","161_;Chi phí chờ phân bổ ngắn hạn","229_;Giá trị hao mòn lũy kế TSCĐ vô hình",null,"092_;TSCĐ hữu hình - Hao mòn lũy kế *","40_LƯU CHUYỂN TIỀN THUẦN TỪ HOẠT ĐỘNG TÀI CHÍNH"]
[null,null,null,null,null,"322_;SGVD","162_;Thuế GTGT được khấu trừ","232_;Con vật nuôi cho SP định kỳ chưa đến gđ trưởng thành",null,"101_;TSCĐ vô hình - Nguyên giá","50_LƯU CHUYỂN TIỀN THUẦN TRONG KỲ"]
[null,null,null,null,null,"314_;SVCHN","163_;Thuế và các khoản phải thu Nhà nước","234_;Con vật nuôi cho SP định kỳ đến giai đoạn trưởng thành (nguyên giá)",null,"101s;NG TSCĐ VH đã KH hết đang sử dụng","60_TIỀN VÀ TƯƠNG ĐƯƠNG TIỀN ĐẦU KỲ"]
[null,null,null,null,null,"329_;TLB","164_;Giao dịch mua bán lại trái phiếu Chính phủ","235_;Con vật nuôi cho SP định kỳ đến giai đoạn trưởng thành (KH lũy kế)",null,"102_;TSCĐ vô hình - Hao mòn lũy kế *","61_Ảnh hưởng của thay đổi tỷ giá hối đoái quy đổi ngoại tệ"]
[null,null,null,null,null,"341_;THD","165_;Tài sản ngắn hạn khác","236_;Con vật nuôi lấy sản phẩm một lần dài hạn",null,"111_;TSCĐ thuê tài chính - Nguyên giá","70_Tiền và tương đương tiền cuối kỳ"]
[null,null,null,null,null,"339_;TCL","211_;Phải thu dài hạn của khách hàng","237_;Cây trồng theo mùa vụ hoặc lấy sản phẩm một lần dài hạn",null,"112_;TSCĐ thuê tài chính - Hao mòn lũy kế *",""]
[null,null,null,null,null,"349_;HDF","212_;Trả trước cho người bán dài hạn","238_;Dự phòng tổn thất tài sản sinh học dài hạn *",null,"121_;Tài sản sinh học khác","01_Lợi nhuận trước thuế"]
[null,null,null,null,null,"411_;GLYNKHD","213_;Vốn kinh doanh ở đơn vị trực thuộc","241_;Nguyên giá BĐS đầu tư",null,"122_;Con vật cho SP định kỳ đạt đến GĐ trưởng thành - Nguyên giá","02_Khấu hao tài sản cố định và BĐSĐT"]
[null,null,null,null,null,"362_;SVCTH","214_;Phải thu nội bộ dài hạn","242_;Giá trị hao mòn lũy kế BĐS đầu tư *",null,"123_;Con vật cho SP định kỳ đạt đến GĐ trưởng thành - Khấu hao lũy kế","03_Các khoản dự phòng"]
[null,null,null,null,null,"318_;SVCKNM","215_;Phải thu dài hạn khác","251_;Chi phí sản xuất, kinh doanh dở dang dài hạn",null,"131_;BĐS đầu tư - Nguyên giá","04_(Lãi)/lỗ CLTG do đánh giá lại các khoản mục tiền tệ gốc ngoại tệ"]
[null,null,null,null,null,"370_;SVCMB","216_;Dự phòng phải thu dài hạn khó đòi *","252_;Chi phí xây dựng cơ bản dở dang",null,"132_;BĐS đầu tư - Hao mòn lũy kế *","05_(Lãi)/lỗ từ hoạt động đầu tư, tài chính"]
[null,null,null,null,null,"357_;CARPLA","222_;Nguyên giá TSCĐ hữu hình","261_;Đầu tư vào công ty con",null,"141_;Chi phí chờ phân bổ ngắn hạn","06_Chi phí đi vay"]
[null,null,null,null,null,"358_;CARMEDIA","223_;Giá trị hao mòn lũy kế TSCĐ hữu hình","262_;Đầu tư vào công ty liên doanh, liên kết",null,"142_;Chi phí chờ phân bổ dài hạn","07_Các khoản điều chỉnh khác"]
[null,null,null,null,null,"407_;CARSERVICE","225_;Nguyên giá TSCĐ thuê tài chính","263_;Đầu tư góp vốn vào đơn vị khác",null,"151_;Lợi thế thương mại"]
[null,null,null,null,null,"408_;STARGO","226_;Giá trị hao mòn lũy kế TSCĐ thuê tài chính","264_;Dự phòng tổn thất đầu tư vào đơn vị khác dài hạn *",null,"161_;Vay và nợ thuê tài chính ngắn hạn"]
[null,null,null,null,null,"174_;DIG","228_;Nguyên giá TSCĐ vô hình","265_;Đầu tư nắm giữ đến ngày đáo hạn dài hạn",null,"162_;Vay và nợ thuê tài chính dài hạn hạn"]
[null,null,null,null,null,"416_;CARSEVĐNB","229_;Giá trị hao mòn lũy kế TSCĐ vô hình","266_;Dự phòng đầu tư nắm giữ đến ngày đáo hạn dài hạn *",null,"171_;Phải trả người bán ngắn hạn"]
[null,null,null,null,null,"419_;RSA","232_;Con vật nuôi cho SP định kỳ chưa đến gđ trưởng thành","271_;Chi phí chờ phân bổ dài hạn",null,"171s;Phải trả người bán ngắn hạn ᴿ"]
[null,null,null,null,null,"420_;VETC AUTO PARTS","234_;Con vật nuôi cho SP định kỳ đến giai đoạn trưởng thành (nguyên giá)","272_;Tài sản thuế thu nhập hoãn lại",null,"172_;Phải trả người bán dài hạn"]
[null,null,null,null,null,"315_;GLYNK","235_;Con vật nuôi cho SP định kỳ đến giai đoạn trưởng thành (KH lũy kế)","273_;Thiết bị, vật tư, phụ tùng thay thế dài hạn",null,"172s;Phải trả người bán dài hạn ᴿ"]
[null,null,null,null,null,"337_;TASG","236_;Con vật nuôi lấy sản phẩm một lần dài hạn","274_;Tài sản dài hạn khác",null,"173_;Người mua trả trước ngắn hạn"]
[null,null,null,null,null,"402_;GLYNKHN","237_;Cây trồng theo mùa vụ hoặc lấy sản phẩm một lần dài hạn","279_;Lợi thế thương mại",null,"173s;Người mua trả trước ngắn hạn ᴿ"]
[null,null,null,null,null,"323_;TCTC","238_;Dự phòng tổn thất tài sản sinh học dài hạn *","311_;Phải trả người bán ngắn hạn",null,"174_;Người mua trả trước dài hạn"]
[null,null,null,null,null,"414_;AG25","241_;Nguyên giá BĐS đầu tư","312_;Người mua trả trước ngắn hạn",null,"174s;Người mua trả trước dài hạn ᴿ"]
[null,null,null,null,null,"415_;GeelyAG","242_;Giá trị hao mòn lũy kế BĐS đầu tư *","313_;Phải trả về cổ tức, lợi nhuận",null,"181_;Phải trả về cổ tức, lợi nhuận"]
[null,null,null,null,null,"361_;DNST","251_;Chi phí sản xuất, kinh doanh dở dang dài hạn","314_;Thuế và các khoản phải nộp Nhà nước ngắn hạn",null,"191_;Thuế và các khoản phải nộp Nhà nước"]
[null,null,null,null,null,"320_;SVCDN","252_;Chi phí xây dựng cơ bản dở dang","315_;Phải trả người lao động",null,"201_;Chi phí phải trả ngắn hạn"]
[null,null,null,null,null,"310_;HSH","261_;Đầu tư vào công ty con","316_;Chi phí phải trả ngắn hạn",null,"202_;Chi phí phải trả dài hạn"]
[null,null,null,null,null,"352_;HST","262_;Đầu tư vào công ty liên doanh, liên kết","317_;Phải trả nội bộ ngắn hạn",null,"211_;Phải trả ngắn hạn khác"]
[null,null,null,null,null,"325_;HGL","263_;Đầu tư góp vốn vào đơn vị khác","318_;Phải trả theo tiến độ HĐXD ngắn hạn",null,"211s;Phải trả ngắn hạn khác ᴿ"]
[null,null,null,null,null,"321_;HKT","264_;Dự phòng tổn thất đầu tư vào đơn vị khác dài hạn *","319_;Doanh thu chờ phân bổ ngắn hạn",null,"212_;Phải trả dài hạn khác"]
[null,null,null,null,null,"366_;TAGL","265_;Đầu tư nắm giữ đến ngày đáo hạn dài hạn","320_;Các khoản phải trả ngắn hạn khác",null,"212s;Phải trả dài hạn khác ᴿ"]
[null,null,null,null,null,"384_;MDN","266_;Dự phòng đầu tư nắm giữ đến ngày đáo hạn dài hạn *","321_;Vay và nợ thuê tài chính ngắn hạn",null,"213_;Phải trả nội bộ ngắn hạn"]
[null,null,null,null,null,"345_;MQN","271_;Chi phí chờ phân bổ dài hạn","322_;Dự phòng phải trả ngắn hạn",null,"214_;Phải trả nội bộ dài hạn"]
[null,null,null,null,null,"403_;AutoDN","272_;Tài sản thuế thu nhập hoãn lại","323_;Quỹ khen thưởng, phúc lợi",null,"215_;Phải trả theo tiến độ HĐXD"]
[null,null,null,null,null,"379_;HYHT","273_;Thiết bị, vật tư, phụ tùng thay thế dài hạn","324_;Quỹ bình ổn giá",null,"221_;Doanh thu chờ phân bổ ngắn hạn"]
[null,null,null,null,null,"363_;IDT","274_;Tài sản dài hạn khác","325_;Giao dịch mua bán lại trái phiếu Chính phủ",null,"222_;Doanh thu chờ phân bổ dài hạn"]
[null,null,null,null,null,"343_;OTOS","279_;Lợi thế thương mại","331_;Phải trả người bán dài hạn",null,"251_;Dự phòng phải trả ngắn hạn"]
[null,null,null,null,null,"367_;HYVT","311_;Phải trả người bán ngắn hạn","332_;Người mua trả trước dài hạn",null,"252_;Dự phòng phải trả dài hạn"]
[null,null,null,null,null,"336_;TABSG","312_;Người mua trả trước ngắn hạn","333_;Thuế và các khoản phải nộp Nhà nước dài hạn",null,"231_;Trái phiếu thường"]
[null,null,null,null,null,"360_;HNBD","313_;Phải trả về cổ tức, lợi nhuận","334_;Chi phí phải trả dài hạn",null,"232_;Trái phiếu chuyển đổi"]
[null,null,null,null,null,"326_;HCT","314_;Thuế và các khoản phải nộp Nhà nước ngắn hạn","335_;Phải trả nội bộ về vốn kinh doanh",null,"241_;Cổ phiếu ưu đãi phân loại là nợ phải trả"]
[null,null,null,null,null,"324_;TBSG","315_;Phải trả người lao động","336_;Phải trả nội bộ dài hạn",null,"261_;Tài sản thuế TNDN hoãn lại"]
[null,null,null,null,null,"356_;SDH","316_;Chi phí phải trả ngắn hạn","337_;Doanh thu chờ phân bổ dài hạn",null,"262_;Thuế TNDN hoãn lại phải trả"]
[null,null,null,null,null,"316_;MBR","317_;Phải trả nội bộ ngắn hạn","338_;Phải trả dài hạn khác",null,"270_;Vốn chủ sở hữu"]
[null,null,null,null,null,"382_;BDF","318_;Phải trả theo tiến độ HĐXD ngắn hạn","339_;Vay và nợ thuê tài chính dài hạn",null,"270s;Vốn chủ sở hữu (năm trước)"]
[null,null,null,null,null,"346_;MLD","319_;Doanh thu chờ phân bổ ngắn hạn","340_;Trái phiếu chuyển đổi",null,"271_;Quỹ không thuộc CSH"]
[null,null,null,null,null,"330_;HTD","320_;Các khoản phải trả ngắn hạn khác","341_;Cổ phiếu ưu đãi",null,"272_;Nguồn kinh phí"]
[null,null,null,null,null,"372_;HKG","321_;Vay và nợ thuê tài chính ngắn hạn","342_;Thuế thu nhập hoãn lại phải trả",null,"281_;Chênh lệch đánh giá lại tài sản"]
[null,null,null,null,null,"333_;MGCT","322_;Dự phòng phải trả ngắn hạn","343_;Dự phòng phải trả dài hạn",null,"291_;Chênh lệch tỷ giá"]
[null,null,null,null,null,"383_;VAV","323_;Quỹ khen thưởng, phúc lợi","344_;Quỹ phát triển khoa học và công nghệ",null,"311_;Doanh thu bán hàng"]
[null,null,null,null,null,"344_;SVCMN","324_;Quỹ bình ổn giá","412_;Thặng dư vốn cổ phần",null,"311s;Doanh thu bán hàng ᴿ"]
[null,null,null,null,null,"317_;NEA","325_;Giao dịch mua bán lại trái phiếu Chính phủ","413_;Quyền chọn chuyển đổi trái phiếu",null,"312_;Giảm trừ doanh thu"]
[null,null,null,null,null,"373_;TLTK","331_;Phải trả người bán dài hạn","414_;Vốn khác của chủ sở hữu",null,"320_;Giá vốn hàng bán"]
[null,null,null,null,null,"395_;TTN","332_;Người mua trả trước dài hạn","415_;Cổ phiếu mua lại của chính mình *",null,"320s;Giá vốn hàng bán ᴿ"]
[null,null,null,null,null,"417_;TAMN","333_;Thuế và các khoản phải nộp Nhà nước dài hạn","416_;Chênh lệch đánh giá lại tài sản",null,"331_;Doanh thu tài chính"]
[null,null,null,null,null,"328_;SVCINVEST","334_;Chi phí phải trả dài hạn","417_;Chênh lệch tỷ giá hối đoái",null,"332_;Chi phí tài chính"]
[null,null,null,null,null,"396_;GPO","335_;Phải trả nội bộ về vốn kinh doanh","418_;Quỹ đầu tư phát triển",null,"341_;Chi phí bán hàng"]
[null,null,null,null,null,"397_;SWD","336_;Phải trả nội bộ dài hạn","419_;Quỹ khác thuộc vốn chủ sở hữu",null,"342_;Chi phí QLDN"]
[null,null,null,null,null,"398_;TASCOCV","337_;Doanh thu chờ phân bổ dài hạn","41a_;Cổ phiếu phổ thông có quyền biểu quyết",null,"351_;Thu nhập khác"]
[null,null,null,null,null,"399_;TASCOPC","338_;Phải trả dài hạn khác","41b_;Cổ phiếu ưu đãi",null,"352_;Chi phí khác"]
[null,null,null,null,null,"400_;TASCORT","339_;Vay và nợ thuê tài chính dài hạn","429_;Lợi ích của cổ đông không kiểm soát",null,"361_;Chi phí thuế TNDN hiện hành"]
[null,null,null,null,null,"418_;TACT","340_;Trái phiếu chuyển đổi","42a_;LNST chưa phân phối lũy kế đến cuối kỳ trước",null,"362_;Chi phí thuế TNDN hoãn lại"]
[null,null,null,null,null,"401_;PREEV","341_;Cổ phiếu ưu đãi","42b_;LNST chưa phân phối kỳ này",null,"370_;Chi phí SXKD theo yếu tố"]
[null,null,null,null,null,"139_;ANASER","342_;Thuế thu nhập hoãn lại phải trả",null,null,"381_;Doanh thu bộ phận"]
[null,null,null,null,null,"312_;TESC","343_;Dự phòng phải trả dài hạn",null,null,"382_;LN sau thuế bộ phận"]
[null,null,null,null,null,"319_;GDF","344_;Quỹ phát triển khoa học và công nghệ",null,null,"383_;Tài sản bộ phận"]
[null,null,null,null,null,"327_;SVCQN","412_;Thặng dư vốn cổ phần",null,null,"384_;Nợ phải trả bộ phận"]
[null,null,null,null,null,"348_;TTTL","413_;Quyền chọn chuyển đổi trái phiếu"]
[null,null,null,null,null,"389_;GREELYNK","414_;Vốn khác của chủ sở hữu"]
[null,null,null,null,null,"390_;HONGHAI","415_;Cổ phiếu mua lại của chính mình *"]
[null,null,null,null,null,"391_;TANAN","416_;Chênh lệch đánh giá lại tài sản"]
[null,null,null,null,null,"392_;VNHAT","417_;Chênh lệch tỷ giá hối đoái"]
[null,null,null,null,null,"393_;SVCDT","418_;Quỹ đầu tư phát triển"]
[null,null,null,null,null,"412_;TASFINANCE","419_;Quỹ khác thuộc vốn chủ sở hữu"]
[null,null,null,null,null,"413_;BRITISHCAR","41a_;Cổ phiếu phổ thông có quyền biểu quyết"]
[null,null,null,null,null,"010_;DNP","41b_;Cổ phiếu ưu đãi"]
[null,null,null,null,null,"011_;NDN","429_;Lợi ích của cổ đông không kiểm soát"]
[null,null,null,null,null,"022_;TPP","42a_;LNST chưa phân phối lũy kế đến cuối kỳ trước"]
[null,null,null,null,null,"049_;DNPW","42b_;LNST chưa phân phối kỳ này"]
[null,null,null,null,null,"085_;CMC"]
[null,null,null,null,null,"062_;DBG"]
[null,null,null,null,null,"080_;NS3"]
[null,null,null,null,null,"020_;BHW"]
[null,null,null,null,null,"056_;BTW"]
[null,null,null,null,null,"054_;DTW"]
[null,null,null,null,null,"083_;WTN"]
[null,null,null,null,null,"012_;DTG"]
[null,null,null,null,null,"075_;BAW"]
[null,null,null,null,null,"092_;HWC"]
[null,null,null,null,null,"073_;HWCMN"]
[null,null,null,null,null,"040_;NHW"]
[null,null,null,null,null,"032_;NHWKD"]
[null,null,null,null,null,"071_;NHWXL"]
[null,null,null,null,null,"090_;BPW"]
[null,null,null,null,null,"014_;DNPST"]
[null,null,null,null,null,"038_;ECO"]
[null,null,null,null,null,"065_;CVT"]
[null,null,null,null,null,"099_;STW"]
[null,null,null,null,null,"027_;DDX"]
[null,null,null,null,null,"064_;DHW"]
[null,null,null,null,null,"015_;CRW"]
[null,null,null,null,null,"037_;BGW"]
[null,null,null,null,null,"028_;VLC"]
[null,null,null,null,null,"081_;HWCME"]
[null,null,null,null,null,"086_;DNPLA"]
[null,null,null,null,null,"082_;CHT"]
[null,null,null,null,null,"089_;LAW"]
[null,null,null,null,null,"094_;CTW"]
[null,null,null,null,null,"084_;CT2"]
[null,null,null,null,null,"093_;CMW"]
[null,null,null,null,null,"091_;NQB"]
[null,null,null,null,null,"095_;TTH"]
[null,null,null,null,null,"087_;DNPQB"]
[null,null,null,null,null,"017_;SII"]
[null,null,null,null,null,"018_;CuChi"]
[null,null,null,null,null,"019_;GLW"]
[null,null,null,null,null,"023_;SDW"]
[null,null,null,null,null,"024_;Enviro"]
[null,null,null,null,null,"025_;SAW"]
[null,null,null,null,null,"021_;THW"]
[null,null,null,null,null,"026_;SPW"]
[null,null,null,null,null,"066_;PT"]
[null,null,null,null,null,"039_;VKH"]
[null,null,null,null,null,"096_;ENG"]
[null,null,null,null,null,"097_;DPT"]
[null,null,null,null,null,"471_;TAAG"]
[null,null,null,null,null,"472_;TABT"]
[null,null,null,null,null,"473_;TKTL"]
[null,null,null,null,null,"474_;VDS"]
[null,null,null,null,null,"098_;S&D"]
[null,null,null,null,null,"101_;Meta"]
[null,null,null,null,null,"102_;Headway"]
[null,null,null,null,null,"103_;TAMO"]
[null,null,null,null,null,"104_;ECOTRUCK"]
[null,null,null,null,null,"105_;ECOTRUCKRT"]
[null,null,null,null,null,"106_;TAPHARMA"]
[null,null,null,null,null,"107_;TASCOCKD"]

{"sheet":"Công ty","index":11,"n_rows":179,"n_cols":14,"rows_kept":179,"cut":false,"hidden":false,"merged":[[0,0,3,0]]}
[{"$f":"'✅'!A1","v":"Tasco Group"}]
[]
[null,null,null,null,"DANH MỤC CÔNG TY"]
[null,null,{"$f":"COUNTA(L_CTY[MÃ])","v":174}]
["BCTC hợp nhất",null,"MÃ","KÝ HIỆU","TÊN CÔNG TY","MÃ SỐ THUẾ","GHI CHÚ","NỘI BỘ","TT",null,"Trùng mã","Lồng mã","Trùng KH","Lồng KH"]
[null,null,"100_","TASCO","Công ty CP Tasco","0600264117_",null,"Yes",1,null,{"$f":"_Trùng(L_CTY[MÃ])","v":"null"},{"$f":"_Lồng(L_CTY[MÃ])","v":"null"},{"$f":"_Trùng(L_CTY[KÝ HIỆU])","v":"null"},{"$f":"_Lồng(L_CTY[KÝ HIỆU])","v":"TASCO"}]
[null,null,"173_","CPVETC","Công ty CP VETC","0106858609_",null,"Yes",2,null,null,null,null,"BOTH"]
["Tập đoàn",null,"186_","LAND","Công ty TNHH Tasco Land","0109935403_",null,"Yes",3,null,null,null,null,"SVC"]
[null,null,"114_","BAOHIEM","Công ty TNHH Bảo hiểm Tasco","0302391670_",null,"Yes",4,null,null,null,null,"GLYNK"]
["Danh mục công ty",null,"185_","BOTH","Công ty TNHH MTV Tasco BOT","0110375308_",null,"Yes",5,null,null,null,null,"DNP"]
[null,null,"151_","TAS6","Công ty TNHH MTV Tasco 6","0600542036_",null,"Yes",6,null,null,null,null,"HWC"]
["Thông tin công ty",null,"171_","TASQB","Công ty TNHH MTV Tasco Quảng Bình","3100959525_",null,"Yes",7,null,null,null,null,"NHW"]
[null,null,"157_","TASHP","Công ty TNHH MTV Tasco Hải Phòng","0201632182_",null,"Yes",8,null,null,null,null,"ECO"]
["Tài khoản kế toán",null,"147_","TASNT","Công ty CP Tasco Nam Thái","0600454929_",null,"Yes",9,null,null,null,null,"PT"]
[null,null,"133_","TNHHVETC","Công ty TNHH thu phí tự động VETC","0107500414_",null,"Yes",10,null,null,null,null,"ECOTRUCK"]
["Chỉ tiêu báo cáo",null,"200_","TASCOAUTO","Công ty CP Tasco Auto","0109793371_",null,"Yes",11]
[null,null,"228_","BOTHTPT","Công ty TNHH BOT Hùng Thắng Phú Thọ","2600940457_",null,"Yes",12]
["Chỉ tiêu thuyết minh",null,"265_","NVTH","Công ty CP NVT Holdings","0109935146_",null,"Yes",13]
[null,null,"288_","DNF","Công ty CP Dana","0400259800_",null,"Yes",14]
["Map chỉ tiêu BC-TM",null,"229_","VHN","Công ty TNHH Ô tô Bắc Âu Hà Nội","0107460232_",null,"Yes",15]
[null,null,"252_","VBA","Công ty CP Ô tô Bắc Âu","0313532348_",null,"Yes",16]
["Chỉ tiêu dòng tiền",null,"218_","VSG","Công ty TNHH Ô tô Bắc Âu Sài Gòn","0317098241_",null,"Yes",17]
[null,null,"289_","NEH","Công ty TNHH New Energy Holdings","0110395745_",null,"Yes",18]
["Phân loại vốn vay",null,"300_","SVC","Công ty CP Dịch vụ Tổng Hợp Sài Gòn","0301154821_",null,"Yes",19]
[null,null,"311_","SGF","Công ty CP Dịch vụ Sài Gòn Ô tô","0302030265_",null,"Yes",20]
["Danh mục khác",null,"353_","CTHF","Công ty CP Đầu tư TMDV Sài Gòn ô tô Cần Thơ","1801310132_",null,"Yes",21]
[null,null,"364_","BTF","Công ty CP Bến Thành Ô tô","0309708126_",null,"Yes",22]
["Tùy chọn",null,"350_","MTN","Công ty CP Ô tô Sài Gòn Tây Ninh","3901300117_",null,"Yes"]
[null,null,"351_","NTP","Công ty CP Đầu tư TMDV Ô tô Tân Phú","0317001517_",null,"Yes",24]
[null,null,"347_","MLA","Công ty CP Ô tô Sài Gòn Long An","1102007831_",null,"Yes"]
[null,null,"338_","MTC","Công ty CP Ô tô Trường Chinh","0317596832_",null,"Yes",26]
[null,null,"386_","TNF","Công ty CP Ô tô Bến Thành Tây Ninh","3901240299_",null,"Yes",27]
[null,null,"409_","TSG","Công ty CP Tasco Auto Tây Sài Gòn","0318821304_",null,"Yes",28]
[null,null,"331_","FXAUTO","Công ty TNHH FX Auto","0316395058_",null,"Yes",29]
[null,null,"359_","HYPL","Công ty CP Đầu tư Thương mại Dịch vụ Ô tô Sài Gòn Phú Lâm","0315441978_",null,"Yes",30]
[null,null,"313_","BTHF","Công ty CP Dịch vụ ô tô Bình Thuận","3401155091_",null,"Yes",31]
[null,null,"394_","MBT","Công ty cổ phần Ô tô Bình Thuận","3401206807_",null,"Yes",32]
[null,null,"334_","SGCL","Công ty CP Ô tô Sài Gòn Cửu Long","1801343681_",null,"Yes",33]
[null,null,"385_","TGP","Công ty TNHH Toyota Giải Phóng","0100773902_",null,"Yes",34]
[null,null,"388_","TNB","Công ty CP Toyota Ninh Bình","2700928647_",null,"Yes",35]
[null,null,"342_","YCT","Công ty TNHH Thương mại Dịch vụ Sài Gòn","1800638890_",null,"Yes",36]
[null,null,"332_","SGNS","Công ty CP Sài Gòn Ngôi sao","0305081349_",null,"Yes",37]
[null,null,"322_","SGVD","Công ty TNHH TMDV Sài Gòn Viễn Đông","0305281725_",null,"Yes",38]
[null,null,"314_","SVCHN","Công ty CP Savico Hà Nội","0102305191_",null,"Yes",39]
[null,null,"329_","TLB","Công ty TNHH Toyota Long Biên","0104069006_",null,"Yes",40]
[null,null,"341_","THD","Công ty TNHH Toyota Hải Dương","0801070584_",null,"Yes",41]
[null,null,"339_","TCL","Công ty TNHH Toyota Chí Linh","0801329043_",null,"Yes",42]
[null,null,"349_","HDF","Công ty TNHH Đầu tư và Dịch vụ Ô tô Hải Dương","0801224562_",null,"Yes",43]
[null,null,"411_","GLYNKHD","Công ty Cổ phần G-Lynk Hải Dương","0801446283_",null,"Yes",44]
[null,null,"362_","SVCTH","Công ty TNHH Savico Thanh Hóa","2803049045_",null,"Yes",45]
[null,null,"318_","SVCKNM","Công ty CP Savico Kỷ nguyên mới","0601246174_",null,"Yes",46]
[null,null,"370_","SVCMB","Công ty TNHH Đầu tư và Phát triển SVC Miền Bắc","0110299907_",null,"Yes",47]
[null,null,"357_","CARPLA","Công ty CP Carpla","0108684098_",null,"Yes",48]
[null,null,"358_","CARMEDIA","Công ty TNHH Truyền thông Carpla","0110938487_",null,"Yes",49]
[null,null,"407_","CARSERVICE","Công ty TNHH Dịch vụ Ô tô Carpla","0110938494_",null,"Yes",50]
[null,null,"408_","STARGO","Công ty TNHH Stargo","0110670007_",null,"Yes",51]
[null,null,"174_","DIG","Công ty TNHH VETC Digital","0110947989_",null,"Yes",52]
[null,null,"416_","CARSEVĐNB","Công ty TNHH Carpla Service Đông Nam Bộ","3703323271_",null,"Yes",53]
[null,null,"419_","RSA","Công ty TNHH VETC RSA","0111119321_",null,"Yes",54]
[null,null,"420_","VETC AUTO PARTS","Công ty TNHH VETC Auto Parts","0319071809_",null,"Yes",55]
[null,null,"315_","GLYNK","Công ty CP Glynk","0110503782_",null,"Yes",56]
[null,null,"337_","TASG","Công ty CP Tasco Auto Sài Gòn","0313881275_",null,"Yes",61]
[null,null,"402_","GLYNKHN","Công ty TNHH G-Lynk Hà Nội","0110930417_",null,"Yes",58]
[null,null,"323_","TCTC","Công ty TNHH Toyota Cần Thơ","1800662639_",null,"Yes",59]
[null,null,"414_","AG25","Công ty TNHH MTV AG-25","1602195573_",null,"Yes",60]
[null,null,"415_","GeelyAG","Công ty CP Geely An Giang","1602195894_",null,"Yes"]
[null,null,"361_","DNST","Công ty CP Đầu tư Đà Nẵng Sơn Trà","0401610891_",null,"Yes",62]
[null,null,"320_","SVCDN","Công ty CP Savico Đà Nẵng","0401581979_",null,"Yes",63]
[null,null,"310_","HSH","Công ty CP Ô tô Sông Hàn","0401337755_",null,"Yes",64]
[null,null,"352_","HST","Công ty TNHH MTV Ô tô Sơn Trà","0401922788_",null,"Yes",65]
[null,null,"325_","HGL","Công ty TNHH MTV Ô tô Gia Lai","5901039192_",null,"Yes",66]
[null,null,"321_","HKT","Công ty CP Ô tô Kon Tum","6101237239_",null,"Yes",67]
[null,null,"366_","TAGL","Công ty TNHH Tasco Auto Gia Lai","4101468352_",null,"Yes",68]
[null,null,"384_","MDN","Công ty TNHH Ô tô Đà Nẵng","0401863067_",null,"Yes",69]
[null,null,"345_","MQN","Công ty TNHH Ô tô Quảng Nam","4001202630_",null,"Yes",70]
[null,null,"403_","AutoDN","Công ty Cổ phần Tasco Auto Đà Nẵng","0402260199_",null,"Yes",71]
[null,null,"379_","HYHT","Công ty CP Hưng Thịnh Ô tô","0401920614_",null,"Yes",72]
[null,null,"363_","IDT","Công ty CP Ô tô Đại Thịnh","0401976127_",null,"Yes",73]
[null,null,"343_","OTOS","Công ty CP OTOS","0312801485_",null,"Yes",74]
[null,null,"367_","HYVT","Công ty TNHH xe và thiết bị chuyên dùng Vĩnh Thịnh","3801177156_",null,"Yes"]
[null,null,"336_","TABSG","Công ty CP Tasco Auto Bắc Sài Gòn","3702366949_",null,"Yes",76]
[null,null,"360_","HNBD","Công ty CP Ô tô Đông Bình Dương","3703141786_",null,"Yes"]
[null,null,"326_","HCT","Công ty CP Ô tô Nam Sông Hậu","1801395908_",null,"Yes",78]
[null,null,"324_","TBSG","Công ty CP Ô tô Tây Bắc Sài Gòn","0313291741_",null,"Yes",79]
[null,null,"356_","SDH","Công ty TNHH TM&DV Ô tô Đồng Hiệp","1101940058_",null,"Yes"]
[null,null,"316_","MBR","Công ty CP Ô tô Bà Rịa Vũng Tàu","3502458462_",null,"Yes",81]
[null,null,"382_","BDF","Công ty CP DV Ô tô TP Mới Bình Dương","3702287077_",null,"Yes",82]
[null,null,"346_","MLD","Công ty TNHH Ô tô Lâm Đồng","5801392333_",null,"Yes",83]
[null,null,"330_","HTD","Công ty CP Ô tô Sao Tây Nam","1801413586_",null,"Yes",84]
[null,null,"372_","HKG","Công ty TNHH MTV DV TM Đầu tư Ô tô Kiên Giang","1702176976_",null,"Yes",85]
[null,null,"333_","MGCT","Công ty CP Dịch vụ Ô tô Cần Thơ","1801716686_",null,"Yes"]
[null,null,"383_","VAV","Công ty CP Ô tô Âu Việt","0402052199_",null,"Yes",87]
[null,null,"344_","SVCMN","Công ty CP Đầu tư phát triển Savico Miền Nam","0317596423_",null,"Yes",88]
[null,null,"317_","NEA","Công ty CP Ô tô New Energy","0317663221_",null,"Yes"]
[null,null,"373_","TLTK","Công ty TNHH Toyota Lý Thường Kiệt","0302751838_",null,"Yes",90]
[null,null,"395_","TTN","Công Ty TNHH MTV Toyota Tây Ninh","3901343230_",null,"Yes",91]
[null,null,"417_","TAMN","Công ty TNHH Tasco Auto Miền Nam","0319091315_",null,"Yes",92]
[null,null,"328_","SVCINVEST","Công ty CP Đầu tư SAVICO","0313958908_",null,"Yes",93]
[null,null,"396_","GPO","Công ty Cổ phần Giải pháp Ô tô","0110842961_",null,"Yes",94]
[null,null,"397_","SWD","Công ty TNHH Sweden Auto","0313761612_",null,"Yes",95]
[null,null,"398_","TASCOCV","Công ty cổ phần phân phối xe thương mại Tasco","0110663828_",null,"Yes"]
[null,null,"399_","TASCOPC","Công ty TNHH Phân phối Ô tô Tasco","0110828678_",null,"Yes",97]
[null,null,"400_","TASCORT","Công ty TNHH Kinh doanh Ô tô Tasco","0110878453_",null,"Yes",98]
[null,null,"418_","TACT","Công ty TNHH Tasco Auto Cần Thơ","1801806499_",null,"Yes",99]
[null,null,"401_","PREEV","Công ty TNHH Premium EV","0110835139_",null,"Yes",100]
[null,null,"139_","ANASER","Công ty TNHH Ana services","0107787703_",null,"Yes"]
[null,null,"312_","TESC","Công ty CP Toyota Đông Sài Gòn","0303091197_",null,"Yes"]
[null,null,"319_","GDF","Công ty CP Dịch vụ Sài Gòn Ô tô Gia Định","0315137858_",null,"Yes"]
[null,null,"327_","SVCQN","Công ty TNHH Savico Quảng Nam","4001147588_",null,"Yes"]
[null,null,"348_","TTTL","Công ty CP Đầu tư phát triển Tri thức Tương Lai","0110578435_",null,"Yes"]
[null,null,"389_","GREELYNK","Công ty CP Greenlynk Automotives","0317913834_",null,"Yes"]
[null,null,"390_","HONGHAI","Công ty Cổ phần du lịch Hồng Hải","4200686538_",null,"Yes"]
[null,null,"391_","TANAN","Công ty Cổ phần phát triển Du lịch Tân An","4200571417_",null,"Yes"]
[null,null,"392_","VNHAT","Công ty CP đầu tư và phát triển y tế Việt Nhật","0101178800_",null,"Yes"]
[null,null,"393_","SVCDT","Công ty CP Du thuyền SVC","4201968158_",null,"Yes"]
[null,null,"412_","TASFINANCE","Công ty TNHH Tasco Investment","0109383696 _",null,"Yes",101]
[null,null,"413_","BRITISHCAR","Công ty TNHH Ô tô Thể thao Anh Quốc","0110950445_",null,"Yes",102]
[null,null,"010_","DNP","Công ty CP DNP Holding","3600662561_",null,"Yes",103]
[null,null,"011_","NDN","Công ty CP Nhựa Đồng Nai","3603291925_",null,"Yes",104]
[null,null,"022_","TPP","Công ty CP Tân Phú Việt Nam","0303640880_",null,"Yes",105]
[null,null,"049_","DNPW","Công ty CP Đầu tư ngành nước DNP","2400813885_",null,"Yes",106]
[null,null,"085_","CMC","Công ty CP CMC","2600106523_",null,"Yes",107]
[null,null,"062_","DBG","Công ty TNHH Đầu tư Hạ tầng nước DNP - Bắc Giang","2400799373_",null,"Yes",108]
[null,null,"080_","NS3","Công ty CP Sản xuất Kinh doanh nước sạch số 3 Hà Nội","0106973513_",null,"Yes",109]
[null,null,"020_","BHW","Công ty CP Bình Hiệp","3400411352_",null,"Yes",110]
[null,null,"056_","BTW","Công ty CP Cấp thoát nước Bình Thuận","3400164953_",null,"Yes",111]
[null,null,"054_","DTW","Công ty CP Nhà máy nước Đồng Tâm","1200648505_",null,"Yes",112]
[null,null,"083_","WTN","Công ty CP Cấp thoát nước Tây Ninh","3900243762_",null,"Yes",113]
[null,null,"012_","DTG","Công ty CP Quản lý và Vận hành hệ thống nước sạch","1201522142_",null,"Yes",114]
[null,null,"075_","BAW","Công ty CP Đầu tư nước Bình An","3401135916_",null,"Yes",115]
[null,null,"092_","HWC","Công ty CP DNP Hawaco","0108859703_",null,"Yes",116]
[null,null,"073_","HWCMN","Công ty CP DNP Hawaco Miền Nam","0316388195_",null,"Yes",117]
[null,null,"040_","NHW","Công ty CP Đô thị Ninh Hòa","4200442852_",null,"Yes",118]
[null,null,"032_","NHWKD","Công ty TNHH Kiểm định Đo lường Ninh Hòa","4201807136_",null,"Yes",119]
[null,null,"071_","NHWXL","Công ty TNHH MTV Xây lắp Đô thị Ninh Hòa","4201667094_",null,"Yes",120]
[null,null,"090_","BPW","Công ty CP Cấp thoát nước Bình Phước","3800228182_",null,"Yes",121]
[null,null,"014_","DNPST","Công ty CP Nước thô DNP - Sông Tiền","1201660914_",null,"Yes",122]
[null,null,"038_","ECO","Công ty CP Thiết bị và Công nghệ Ecop Việt Nam","0107353671_",null,"Yes",123]
[null,null,"065_","CVT","Công ty TNHH Đầu tư và Phát triển CVT","2601064731_",null,"Yes",124]
[null,null,"099_","STW","Công ty CP Đầu tư Xây dựng Cấp thoát nước Sơn Thạnh","4201803822_",null,"Yes",125]
[null,null,"027_","DDX","Công ty TNHH Cấp thoát nước Đại Dương Xanh",null,null,"Yes"]
[null,null,"064_","DHW","Công ty CP Nước và Môi trường Đông Hải",null,null,"Yes"]
[null,null,"015_","CRW","Công ty CP Đô thị Cam Ranh",null,null,"Yes"]
[null,null,"037_","BGW","Công ty CP Nước sạch Bắc Giang",null,null,"Yes"]
[null,null,"028_","VLC","Công ty TNHH Xuất nhập khẩu Nhựa Việt Lào",null,null,"Yes"]
[null,null,"081_","HWCME","Công ty CP DNP Hawaco Cơ điện",null,null,"Yes"]
[null,null,"086_","DNPLA","Công ty CP Đầu tư Hạ tầng nước DNP Long An",null,null,"Yes"]
[null,null,"082_","CHT","Công ty CP Công trình Đô thị Châu Thành",null,null,"Yes"]
[null,null,"089_","LAW","Công ty CP Cấp thoát nước Long An",null,null,"Yes"]
[null,null,"094_","CTW","Công ty CP Cấp thoát nước Cần Thơ",null,null,"Yes"]
[null,null,"084_","CT2","Công ty CP Cấp thoát nước Cần Thơ 2",null,null,"Yes"]
[null,null,"093_","CMW","Công ty CP Cấp nước Cà Mau",null,null,"Yes"]
[null,null,"091_","NQB","Công ty CP Cấp nước Quảng Bình",null,null,"Yes"]
[null,null,"095_","TTH","Công ty CP Công trình Đô thị Thủ Thừa",null,null,"Yes"]
[null,null,"087_","DNPQB","Công ty CP Đầu tư Hạ tầng nước DNP Quảng Bình",null,null,"Yes"]
[null,null,"017_","SII","Công ty CP Hạ Tầng nước Sài Gòn","0303476454_",null,"Yes",126]
[null,null,"018_","CuChi","Công ty CP Cấp thoát nước Củ Chi","0313303884_",null,"Yes",127]
[null,null,"019_","GLW","Công ty CP Cấp thoát nước Gia Lai","5900189614_",null,"Yes",128]
[null,null,"023_","SDW","Công ty CP Cấp thoát nước Dankia","5800916256_",null,"Yes",129]
[null,null,"024_","Enviro","Công ty CP Kỹ thuật Enviro",null,null,"Yes"]
[null,null,"025_","SAW","Công ty CP Nước Sài Gòn- An Khê","5901039114_",null,"Yes",130]
[null,null,"021_","THW","Công ty CP đầu tư nước Tân Hiệp",null,null,"Yes"]
[null,null,"026_","SPW","Công ty CP Nước Sài Gòn- Pleiku",null,null,"Yes"]
[null,null,"066_","PT","Công ty TNHH Đầu tư và Phát triển Hạ tầng Công nghiệp PT","2601101292_",null,"Yes",131]
[null,null,"039_","VKH","Viện khoa học và công nghệ nước","0110547130_",null,"Yes",132]
[null,null,"096_","ENG","Công ty CP Năng lượng Tasco","0318788791_",null,"Yes",133]
[null,null,"097_","DPT","Công ty CP sản xuất và thương mại DNP","3502549374_",null,"Yes",134]
[null,null,"471_","TAAG","Công ty TNHH Tasco Auto An Giang","1702338987_",null,"Yes",135]
[null,null,"472_","TABT","Công ty TNHH Tasco Auto Bình Thuận","3401276466_",null,"Yes",136]
[null,null,"473_","TKTL","Công ty Cổ phần Đầu tư Phát triển Công nghệ TKT Land","0110038091_",null,"Yes",137]
[null,null,"474_","VDS","Công ty TNHH Great Auto","0318032349_",null,"Yes",138]
[null,null,"098_","S&D","Công ty CP Giải pháp ngành nước S&D","0111212842_",null,"Yes",139]
[null,null,"101_","Meta","Công ty CP Kĩ thuật Meta","0109280323_",null,"Yes",140]
[null,null,"102_","Headway","Công ty Cổ phần Tasco Headway","0319395553_",null,"Yes"]
[null,null,"103_","TAMO","Công ty TNHH Tasco Mobility","0111490737_",null,"Yes",141]
[null,null,"104_","ECOTRUCK","Công ty TNHH xe tải điện Tasco","0111506835_",null,"Yes",142]
[null,null,"105_","ECOTRUCKRT","Công ty TNHH TMDV Xe tải điện Tasco","0111506440_",null,"Yes",143]
[null,null,"106_","TAPHARMA","Công ty TNHH Sinh phẩm và Dược phẩm Tasco","0111474213_",null,"Yes",144]
[null,null,"107_","TASCOCKD","Công ty CP Sản xuất Ô tô Tasco","1001318647_",null,"Yes",145]

{"sheet":"~ctbc","index":12,"n_rows":246,"n_cols":8,"rows_kept":246,"cut":false,"hidden":false,"merged":[]}
["FILE:","https://docs.google.com/spreadsheets/d/e/2PACX-1vT_xdizaM6xU82PsBTJ7T7HATJlPSLeVfWs_vFQyJPSH8UMu-X72xvw4pGSxe1IUQ/pub?output=xlsx","SQL:","SELECT * FROM [ctbc$A1:E]",null,null,null," "]
["Opt:","HEAD filter","To:",{"$f":"[1]!QRange(A5)","v":"A5"}]
[]
[]
["MÃ TRƯỚC","TÊN TRƯỚC","MÃ SAU","TÊN SAU","THAY ĐỔI"]
["000_","Tài khoản ngoại bảng","000_","Tài khoản ngoại bảng","giữ nguyên"]
["001_","Doanh thu bán hàng & cung cấp dịch vụ","001_","Doanh thu bán hàng & cung cấp dịch vụ","giữ nguyên"]
["002_","Các khoản giảm trừ","002_","Các khoản giảm trừ","giữ nguyên"]
["011_","Giá vốn hàng bán","011_","Giá vốn hàng bán","giữ nguyên"]
[null,null,"021_","Lãi/lỗ bán, thanh lý BĐS đầu tư","thêm mã mới"]
["021_","Doanh thu hoạt động tài chính","022_","Doanh thu hoạt động tài chính","đổi mã"]
["022_","Chi phí tài chính","023_","Chi phí tài chính","đổi mã"]
["023_","- Trong đó: chi phí lãi vay","024_","- Trong đó: chi phí đi vay","đổi cả mã cả tên"]
["024_","Phần lãi (lỗ) trong cty liên kết, liên doanh","027_","Phần lãi (lỗ) trong cty liên kết, liên doanh","đổi mã"]
["025_","Chi phí bán hàng","025_","Chi phí bán hàng","giữ nguyên"]
["026_","Chi phí quản lý doanh nghiệp","026_","Chi phí quản lý doanh nghiệp","giữ nguyên"]
["031_","Thu nhập khác","031_","Thu nhập khác","giữ nguyên"]
["032_","Chi phí khác","032_","Chi phí khác","giữ nguyên"]
["051_","Chi phí thuế TNDN hiện hành","051_","Chi phí thuế TNDN hiện hành","giữ nguyên"]
["052_","Chi phí thuế TNDN hoãn lại","052_","Chi phí thuế TNDN hoãn lại","giữ nguyên"]
["061_","Lợi nhuận sau thuế của CĐ cty mẹ","061_","Lợi nhuận sau thuế của CĐ cty mẹ","đổi mã"]
["062_","Lợi nhuận sau thuế của CĐ không ks","062_","Lợi nhuận sau thuế của CĐ không ks","giữ nguyên"]
["111_","Tiền","111_","Tiền","giữ nguyên"]
["112_","Các khoản tương đương tiền","112_","Các khoản tương đương tiền","giữ nguyên"]
["121_","Chứng khoán kinh doanh","121_","Chứng khoán kinh doanh","giữ nguyên"]
["122_","Dự phòng giảm giá chứng khoán kinh doanh (*)","122_","Dự phòng giảm giá chứng khoán kinh doanh *","đổi tên"]
["123_","Đầu tư nắm giữ đến ngày đáo hạn ngắn hạn","123_","Đầu tư nắm giữ đến ngày đáo hạn ngắn hạn","giữ nguyên"]
[null,null,"124_","Dự phòng đầu tư nắm giữ đến ngày đáo hạn ngắn hạn *","thêm mã mới"]
[null,null,"125_","Đầu tư ngắn hạn khác","thêm mã mới"]
[null,null,"126_","Dự phòng tổn thất các khoản đầu tư ngắn hạn khác *","thêm mã mới"]
["131_","Phải thu ngắn hạn của khách hàng","131_","Phải thu ngắn hạn của khách hàng","giữ nguyên"]
["132_","Trả trước cho người bán ngắn hạn","132_","Trả trước cho người bán ngắn hạn","giữ nguyên"]
["133_","Phải thu nội bộ ngắn hạn","133_","Phải thu nội bộ ngắn hạn","giữ nguyên"]
["134_","Phải thu theo tiến độ kế hoạch HĐXD","134_","Phải thu theo tiến độ HĐXD","đổi tên"]
["135_","Phải thu về cho vay ngắn hạn",null,null,"xóa mã cũ"]
["136_","Các khoản phải thu khác","135_","Các khoản phải thu khác","đổi mã"]
["137_","Dự phòng phải thu ngắn hạn khó đòi (*)","136_","Dự phòng phải thu ngắn hạn khó đòi *","đổi cả mã cả tên"]
["139_","Tài sản thiếu chờ xử lý","137_","Tài sản thiếu chờ xử lý","đổi mã"]
["141_","Hàng tồn kho","141_","Hàng tồn kho","giữ nguyên"]
["149_","Dự phòng giảm giá hàng tồn kho (*)","142_","Dự phòng giảm giá hàng tồn kho *","đổi cả mã cả tên"]
[null,null,"151_","Con vật nuôi lấy sản phẩm một lần ngắn hạn","thêm mã mới"]
[null,null,"152_","Cây trồng theo mùa vụ hoặc lấy SP một lần ngắn hạn","thêm mã mới"]
[null,null,"153_","Dự phòng tổn thất tài sản sinh học ngắn hạn","thêm mã mới"]
["151_","Chi phí trả trước ngắn hạn","161_","Chi phí chờ phân bổ ngắn hạn","đổi cả mã cả tên"]
["152_","Thuế GTGT được khấu trừ","162_","Thuế GTGT được khấu trừ","đổi mã"]
["153_","Thuế và các khoản phải thu Nhà nước","163_","Thuế và các khoản phải thu Nhà nước","đổi mã"]
["154_","Giao dịch mua bán lại trái phiếu Chính phủ","164_","Giao dịch mua bán lại trái phiếu Chính phủ","đổi mã"]
["155_","Tài sản ngắn hạn khác","165_","Tài sản ngắn hạn khác","đổi mã"]
["211_","Phải thu dài hạn của khách hàng","211_","Phải thu dài hạn của khách hàng","giữ nguyên"]
["212_","Trả trước cho người bán dài hạn","212_","Trả trước cho người bán dài hạn","giữ nguyên"]
["213_","Vốn kinh doanh ở đơn vị trực thuộc","213_","Vốn kinh doanh ở đơn vị trực thuộc","giữ nguyên"]
["214_","Phải thu nội bộ dài hạn","214_","Phải thu nội bộ dài hạn","giữ nguyên"]
["215_","Phải thu về cho vay dài hạn",null,null,"xóa mã cũ"]
["216_","Phải thu dài hạn khác","215_","Phải thu dài hạn khác","đổi mã"]
["219_","Dự phòng phải thu dài hạn khó đòi (*)","216_","Dự phòng phải thu dài hạn khó đòi *","đổi cả mã cả tên"]
["222_","Nguyên giá TSCĐ hữu hình","222_","Nguyên giá TSCĐ hữu hình","giữ nguyên"]
["223_","Giá trị hao mòn lũy kế TSCĐ hữu hình","223_","Giá trị hao mòn lũy kế TSCĐ hữu hình","giữ nguyên"]
["225_","Nguyên giá TSCĐ thuê tài chính","225_","Nguyên giá TSCĐ thuê tài chính","giữ nguyên"]
["226_","Giá trị hao mòn lũy kế TSCĐ thuê tài chính","226_","Giá trị hao mòn lũy kế TSCĐ thuê tài chính","giữ nguyên"]
["228_","Nguyên giá TSCĐ vô hình","228_","Nguyên giá TSCĐ vô hình","giữ nguyên"]
["229_","Giá trị hao mòn lũy kế TSCĐ vô hình","229_","Giá trị hao mòn lũy kế TSCĐ vô hình","giữ nguyên"]
[null,null,"232_","Con vật nuôi cho SP định kỳ chưa đến gđ trưởng thành","thêm mã mới"]
[null,null,"234_","Con vật nuôi cho SP định kỳ đến giai đoạn trưởng thành (nguyên giá)","thêm mã mới"]
[null,null,"235_","Con vật nuôi cho SP định kỳ đến giai đoạn trưởng thành (KH lũy kế)","thêm mã mới"]
[null,null,"236_","Con vật nuôi lấy sản phẩm một lần dài hạn","thêm mã mới"]
[null,null,"237_","Cây trồng theo mùa vụ hoặc lấy sản phẩm một lần dài hạn","thêm mã mới"]
[null,null,"238_","Dự phòng tổn thất tài sản sinh học dài hạn *","thêm mã mới"]
["231_","Nguyên giá BĐS đầu tư","241_","Nguyên giá BĐS đầu tư","đổi mã"]
["232_","Giá trị hao mòn lũy kế (*) BĐS đầu tư","242_","Giá trị hao mòn lũy kế BĐS đầu tư *","đổi cả mã cả tên"]
["241_","Chi phí sản xuất, kinh doanh dở dang dài hạn","251_","Chi phí sản xuất, kinh doanh dở dang dài hạn","đổi mã"]
["242_","Chi phí xây dựng cơ bản dở dang","252_","Chi phí xây dựng cơ bản dở dang","đổi mã"]
["251_","Đầu tư vào công ty con","261_","Đầu tư vào công ty con","đổi mã"]
["252_","Đầu tư vào công ty liên doanh, liên kết","262_","Đầu tư vào công ty liên doanh, liên kết","đổi mã"]
["253_","Đầu tư góp vốn vào đơn vị khác","263_","Đầu tư góp vốn vào đơn vị khác","đổi mã"]
["254_","Dự phòng đầu tư tài chính dài hạn (*)","264_","Dự phòng tổn thất đầu tư vào đơn vị khác dài hạn *","đổi cả mã cả tên"]
["255_","Đầu tư nắm giữ đến ngày đáo hạn dài hạn","265_","Đầu tư nắm giữ đến ngày đáo hạn dài hạn","đổi mã"]
[null,null,"266_","Dự phòng đầu tư nắm giữ đến ngày đáo hạn dài hạn *","thêm mã mới"]
["261_","Chi phí trả trước dài hạn","271_","Chi phí chờ phân bổ dài hạn","đổi cả mã cả tên"]
["262_","Tài sản thuế thu nhập hoãn lại","272_","Tài sản thuế thu nhập hoãn lại","đổi mã"]
["263_","Thiết bị, vật tư, phụ tùng thay thế dài hạn","273_","Thiết bị, vật tư, phụ tùng thay thế dài hạn","đổi mã"]
["268_","Tài sản dài hạn khác","274_","Tài sản dài hạn khác","đổi mã"]
["269_","Lợi thế thương mại","279_","Lợi thế thương mại","đổi mã"]
["311_","Phải trả người bán ngắn hạn","311_","Phải trả người bán ngắn hạn","giữ nguyên"]
["312_","Người mua trả tiền trước ngắn hạn","312_","Người mua trả trước ngắn hạn","đổi tên"]
[null,null,"313_","Phải trả về cổ tức, lợi nhuận","thêm mã mới"]
["313_","Thuế và các khoản phải nộp Nhà nước","314_","Thuế và các khoản phải nộp Nhà nước ngắn hạn","đổi cả mã cả tên"]
["314_","Phải trả người lao động","315_","Phải trả người lao động","đổi mã"]
["315_","Chi phí phải trả ngắn hạn","316_","Chi phí phải trả ngắn hạn","đổi mã"]
["316_","Phải trả nội bộ ngắn hạn","317_","Phải trả nội bộ ngắn hạn","đổi mã"]
["317_","Phải trả theo tiến độ kế hoạch HĐXD","318_","Phải trả theo tiến độ HĐXD ngắn hạn","đổi cả mã cả tên"]
["318_","Doanh thu chưa thực hiện ngắn hạn","319_","Doanh thu chờ phân bổ ngắn hạn","đổi cả mã cả tên"]
["319_","Các khoản phải trả ngắn hạn khác","320_","Các khoản phải trả ngắn hạn khác","đổi mã"]
["320_","Vay và nợ thuê tài chính ngắn hạn","321_","Vay và nợ thuê tài chính ngắn hạn","đổi mã"]
["321_","Dự phòng phải trả ngắn hạn","322_","Dự phòng phải trả ngắn hạn","đổi mã"]
["322_","Quỹ khen thưởng, phúc lợi","323_","Quỹ khen thưởng, phúc lợi","đổi mã"]
["323_","Quỹ bình ổn giá","324_","Quỹ bình ổn giá","đổi mã"]
["324_","Giao dịch mua bán lại trái phiếu Chính phủ","325_","Giao dịch mua bán lại trái phiếu Chính phủ","đổi mã"]
["331_","Phải trả người bán dài hạn","331_","Phải trả người bán dài hạn","giữ nguyên"]
["332_","Người mua trả tiền trước dài hạn","332_","Người mua trả trước dài hạn","đổi tên"]
[null,null,"333_","Thuế và các khoản phải nộp Nhà nước dài hạn","thêm mã mới"]
["333_","Chi phí phải trả dài hạn","334_","Chi phí phải trả dài hạn","đổi mã"]
["334_","Phải trả nội bộ về vốn kinh doanh","335_","Phải trả nội bộ về vốn kinh doanh","đổi mã"]
["335_","Phải trả nội bộ dài hạn","336_","Phải trả nội bộ dài hạn","đổi mã"]
["336_","Doanh thu chưa thực hiện dài hạn","337_","Doanh thu chờ phân bổ dài hạn","đổi cả mã cả tên"]
["337_","Phải trả dài hạn khác","338_","Phải trả dài hạn khác","đổi mã"]
["338_","Vay và nợ thuê tài chính dài hạn","339_","Vay và nợ thuê tài chính dài hạn","đổi mã"]
["339_","Trái phiếu chuyển đổi","340_","Trái phiếu chuyển đổi","đổi mã"]
["340_","Cổ phiếu ưu đãi","341_","Cổ phiếu ưu đãi","đổi mã"]
["341_","Thuế thu nhập hoãn lại phải trả","342_","Thuế thu nhập hoãn lại phải trả","đổi mã"]
["342_","Dự phòng phải trả dài hạn","343_","Dự phòng phải trả dài hạn","đổi mã"]
["343_","Quỹ phát triển khoa học và công nghệ","344_","Quỹ phát triển khoa học và công nghệ","đổi mã"]
["41a_","Cổ phiếu phổ thông có quyền biểu quyết","41a_","Cổ phiếu phổ thông có quyền biểu quyết","giữ nguyên"]
["41b_","Cổ phiếu ưu đãi","41b_","Cổ phiếu ưu đãi","giữ nguyên"]
["412_","Thặng dư vốn cổ phần","412_","Thặng dư vốn cổ phần","giữ nguyên"]
["413_","Quyền chọn chuyển đổi trái phiếu","413_","Quyền chọn chuyển đổi trái phiếu","giữ nguyên"]
["414_","Vốn khác của chủ sở hữu","414_","Vốn khác của chủ sở hữu","giữ nguyên"]
["415_","Cổ phiếu quỹ (*)","415_","Cổ phiếu mua lại của chính mình *","đổi tên"]
["416_","Chênh lệch đánh giá lại tài sản","416_","Chênh lệch đánh giá lại tài sản","giữ nguyên"]
["417_","Chênh lệch tỷ giá hối đoái","417_","Chênh lệch tỷ giá hối đoái","giữ nguyên"]
["418_","Quỹ đầu tư phát triển","418_","Quỹ đầu tư phát triển","giữ nguyên"]
["419_","Quỹ hỗ trợ sắp xếp doanh nghiệp",null,null,"xóa mã cũ"]
["420_","Quỹ khác thuộc vốn chủ sở hữu","419_","Quỹ khác thuộc vốn chủ sở hữu","đổi mã"]
["42a_","LNST chưa phân phối lũy kế đến cuối kỳ trước","42a_","LNST chưa phân phối lũy kế đến cuối kỳ trước","giữ nguyên"]
["42b_","LNST chưa phân phối kỳ này","42b_","LNST chưa phân phối kỳ này","giữ nguyên"]
["429_","Lợi ích của cổ đông không kiểm soát","429_","Lợi ích của cổ đông không kiểm soát","giữ nguyên"]
[]
[]
[" '000_'",null," '000_'"]
[" '001_'",null," '001_'"]
[" '002_'",null," '002_'"]
[" '011_'",null," '011_'"]
[null,null," '021_'"]
[" '021_'",null," '022_'"]
[" '022_'",null," '023_'"]
[" '023_'",null," '024_'"]
[" '024_'",null," '029_'"]
[" '025_'",null," '025_'"]
[" '026_'",null," '026_'"]
[" '031_'",null," '031_'"]
[" '032_'",null," '032_'"]
[" '051_'",null," '051_'"]
[" '052_'",null," '052_'"]
[" '062_'",null," '062_'"]
[" '111_'",null," '111_'"]
[" '112_'",null," '112_'"]
[" '121_'",null," '121_'"]
[" '122_'",null," '122_'"]
[" '123_'",null," '123_'"]
[null,null," '124_'"]
[null,null," '125_'"]
[null,null," '126_'"]
[" '131_'",null," '131_'"]
[" '132_'",null," '132_'"]
[" '133_'",null," '133_'"]
[" '134_'",null," '134_'"]
[" '135_'"]
[" '136_'",null," '135_'"]
[" '137_'",null," '136_'"]
[" '139_'",null," '137_'"]
[" '141_'",null," '141_'"]
[" '149_'",null," '142_'"]
[null,null," '151_'"]
[null,null," '152_'"]
[null,null," '153_'"]
[" '151_'",null," '161_'"]
[" '152_'",null," '162_'"]
[" '153_'",null," '163_'"]
[" '154_'",null," '164_'"]
[" '155_'",null," '165_'"]
[" '211_'",null," '211_'"]
[" '212_'",null," '212_'"]
[" '213_'",null," '213_'"]
[" '214_'",null," '214_'"]
[" '215_'"]
[" '216_'",null," '215_'"]
[" '219_'",null," '216_'"]
[" '222_'",null," '222_'"]
[" '223_'",null," '223_'"]
[" '225_'",null," '225_'"]
[" '226_'",null," '226_'"]
[" '228_'",null," '228_'"]
[" '229_'",null," '229_'"]
[null,null," '232_'"]
[null,null," '234_'"]
[null,null," '235_'"]
[null,null," '236_'"]
[null,null," '237_'"]
[null,null," '238_'"]
[" '231_'",null," '241_'"]
[" '232_'",null," '242_'"]
[" '241_'",null," '251_'"]
[" '242_'",null," '252_'"]
[" '251_'",null," '261_'"]
[" '252_'",null," '262_'"]
[" '253_'",null," '263_'"]
[" '254_'",null," '264_'"]
[" '255_'",null," '265_'"]
[null,null," '266_'"]
[" '261_'",null," '271_'"]
[" '262_'",null," '272_'"]
[" '263_'",null," '273_'"]
[" '268_'",null," '274_'"]
[" '269_'",null," '279_'"]
[" '311_'",null," '311_'"]
[" '312_'",null," '312_'"]
[null,null," '313_'"]
[" '313_'",null," '314_'"]
[" '314_'",null," '315_'"]
[" '315_'",null," '316_'"]
[" '316_'",null," '317_'"]
[" '317_'",null," '318_'"]
[" '318_'",null," '319_'"]
[" '319_'",null," '320_'"]
[" '320_'",null," '321_'"]
[" '321_'",null," '322_'"]
[" '322_'",null," '323_'"]
[" '323_'",null," '324_'"]
[" '324_'",null," '325_'"]
[" '331_'",null," '331_'"]
[" '332_'",null," '332_'"]
[null,null," '333_'"]
[" '333_'",null," '334_'"]
[" '334_'",null," '335_'"]
[" '335_'",null," '336_'"]
[" '336_'",null," '337_'"]
[" '337_'",null," '338_'"]
[" '338_'",null," '339_'"]
[" '339_'",null," '340_'"]
[" '340_'",null," '341_'"]
[" '341_'",null," '342_'"]
[" '342_'",null," '343_'"]
[" '343_'",null," '344_'"]
[" '41a_'",null," '41a_'"]
[" '41b_'",null," '41b_'"]
[" '412_'",null," '412_'"]
[" '413_'",null," '413_'"]
[" '414_'",null," '414_'"]
[" '415_'",null," '415_'"]
[" '416_'",null," '416_'"]
[" '417_'",null," '417_'"]
[" '418_'",null," '418_'"]
[" '419_'"]
[" '420_'",null," '419_'"]
[" '42a_'",null," '42a_'"]
[" '42b_'",null," '42b_'"]
[" '429_'",null," '429_'"]

{"sheet":"~cttm","index":13,"n_rows":150,"n_cols":5,"rows_kept":150,"cut":false,"hidden":false,"merged":[]}
["FILE:",{"$f":"'~ctbc'!B1","v":"https://docs.google.com/spreadsheets/d/e/2PACX-1vT_xdizaM6xU82PsBTJ7T7HATJlPSLeVfWs_vFQyJPSH8UMu-X72xvw4pGSxe1IUQ/pub?output=xlsx"},"SQL:","SELECT * FROM [cttm$A1:E]"]
["Opt:","HEAD filter","To:",{"$f":"[1]!QRange(A5)","v":"A5"}]
[]
[]
["MÃ TRƯỚC","CHỈ TIÊU TRƯỚC","MÃ SAU","CHỈ TIÊU ᴿAU","THAY ĐỔI"]
["010_","Tiền và tương đương tiền","010_","Tiền và tương đương tiền","giữ nguyên"]
["021_","Đầu tư nắm giữ đến ngày đáo hạn ngắn hạn","021_","Đầu tư nắm giữ đến ngày đáo hạn ngắn hạn","giữ nguyên"]
["022_","Đầu tư nắm giữ đến ngày đáo hạn dài hạn","022_","Đầu tư nắm giữ đến ngày đáo hạn dài hạn","giữ nguyên"]
["023_","Đầu tư vào công ty con","023_","Đầu tư vào công ty con","giữ nguyên"]
["024_","Đầu tư vào công ty liên kết","024_","Đầu tư vào công ty liên kết","giữ nguyên"]
["025_","Đầu tư góp vốn vào đơn vị khác","025_","Đầu tư góp vốn vào đơn vị khác","giữ nguyên"]
["026_","Chứng khoán kinh doanh","026_","Chứng khoán kinh doanh","giữ nguyên"]
["027_","Dự phòng giảm giá chứng khoán kinh doanh (*)","027_","Dự phòng giảm giá chứng khoán kinh doanh *","đổi tên"]
["028_","Dự phòng đầu tư tài chính dài hạn (*)","028_","Dự phòng đầu tư tài chính dài hạn *","đổi tên"]
["031_","Phải thu của khách hàng ngắn hạn","031_","Phải thu ngắn hạn của khách hàng","đổi tên"]
["031x","Phải thu của khách hàng ngắn hạn ᴿ","031s","Phải thu ngắn hạn của khách hàng ᴿ","đổi cả mã cả tên"]
["032_","Phải thu của khách hàng dài hạn","032_","Phải thu dài hạn của khách hàng","đổi tên"]
["032x","Phải thu của khách hàng dài hạn ᴿ","032s","Phải thu dài hạn của khách hàng ᴿ","đổi cả mã cả tên"]
["033_","Trả trước cho người bán ngắn hạn","033_","Trả trước cho người bán ngắn hạn","giữ nguyên"]
["033x","Trả trước cho người bán ngắn hạn ᴿ","033s","Trả trước cho người bán ngắn hạn ᴿ","đổi mã"]
["034_","Trả trước cho người bán dài hạn","034_","Trả trước cho người bán dài hạn","giữ nguyên"]
["034x","Trả trước cho người bán dài hạn ᴿ","034s","Trả trước cho người bán dài hạn ᴿ","đổi mã"]
["041_","Phải thu khác ngắn hạn","041_","Phải thu khác ngắn hạn","giữ nguyên"]
["041x","Phải thu khác ngắn hạn","041s","Phải thu khác ngắn hạn ᴿ","đổi cả mã cả tên"]
["042_","Phải thu khác dài hạn","042_","Phải thu khác dài hạn","giữ nguyên"]
["042x","Phải thu khác dài hạn","042s","Phải thu khác dài hạn ᴿ","đổi cả mã cả tên"]
["043_","Phải thu về cho vay ngắn hạn",null,null,"xóa mã cũ"]
["044_","Phải thu về cho vay dài hạn",null,null,"xóa mã cũ"]
["045_","Dự phòng phải thu khó đòi ngắn hạn (*)","043_","Dự phòng phải thu ngắn hạn khó đòi *","đổi cả mã cả tên"]
["046_","Dự phòng phải thu khó đòi dài hạn (*)","044_","Dự phòng phải thu dài hạn khó đòi *","đổi cả mã cả tên"]
["050_","Tài sản thiếu chờ xử lý","050_","Tài sản thiếu chờ xử lý","giữ nguyên"]
[null,null,"051_","Nợ xấu","thêm mã mới"]
["061_","Tài sản khác ngắn hạn","061_","Tài sản khác ngắn hạn","giữ nguyên"]
["062_","Tài sản khác dài hạn","062_","Tài sản khác dài hạn","giữ nguyên"]
["063_","Phải thu nội bộ ngắn hạn","063_","Phải thu nội bộ ngắn hạn","giữ nguyên"]
["064_","Phải thu nội bộ dài hạn","064_","Phải thu nội bộ dài hạn","giữ nguyên"]
["065_","Phải thu theo tiến độ kế hoạch HĐXD","065_","Phải thu theo tiến độ HĐXD","đổi tên"]
["071_","Hàng tồn kho","071_","Hàng tồn kho","giữ nguyên"]
["072_","Dự phòng giảm giá hàng tồn kho (*)","072_","Dự phòng giảm giá hàng tồn kho *","đổi tên"]
["081_","Chi phí SXKD dở dang dài hạn","081_","Chi phí SXKD dở dang dài hạn","giữ nguyên"]
["082_","Chi phí XDCB dở dang","082_","Chi phí XDCB dở dang","giữ nguyên"]
["091_","TSCĐ hữu hình - Nguyên giá","091_","TSCĐ hữu hình - Nguyên giá","giữ nguyên"]
["091x","NG TSCĐ HH đã KH hết đang sử dụng","091s","NG TSCĐ HH đã KH hết đang sử dụng","đổi mã"]
["092_","TSCĐ hữu hình - Hao mòn lũy kế (*)","092_","TSCĐ hữu hình - Hao mòn lũy kế *","đổi tên"]
["101_","TSCĐ vô hình - Nguyên giá","101_","TSCĐ vô hình - Nguyên giá","giữ nguyên"]
["101x","NG TSCĐ VH đã KH hết đang sử dụng","101s","NG TSCĐ VH đã KH hết đang sử dụng","đổi mã"]
["102_","TSCĐ vô hình - Hao mòn lũy kế (*)","102_","TSCĐ vô hình - Hao mòn lũy kế *","đổi tên"]
["111_","TSCĐ thuê tài chính - Nguyên giá","111_","TSCĐ thuê tài chính - Nguyên giá","giữ nguyên"]
["112_","TSCĐ thuê tài chính - Hao mòn lũy kế (*)","112_","TSCĐ thuê tài chính - Hao mòn lũy kế *","đổi tên"]
[null,null,"121_","Tài sản sinh học khác","thêm mã mới"]
[null,null,"122_","Con vật cho SP định kỳ đạt đến GĐ trưởng thành - Nguyên giá","thêm mã mới"]
[null,null,"123_","Con vật cho SP định kỳ đạt đến GĐ trưởng thành - Khấu hao lũy kế","thêm mã mới"]
["121_","BĐS đầu tư - Nguyên giá","131_","BĐS đầu tư - Nguyên giá","đổi mã"]
["122_","BĐS đầu tư - Hao mòn lũy kế (*)","132_","BĐS đầu tư - Hao mòn lũy kế *","đổi cả mã cả tên"]
["131_","Chi phí trả trước ngắn hạn","141_","Chi phí chờ phân bổ ngắn hạn","đổi cả mã cả tên"]
["132_","Chi phí trả trước dài hạn","142_","Chi phí chờ phân bổ dài hạn","đổi cả mã cả tên"]
["141_","Lợi thế thương mại","151_","Lợi thế thương mại","đổi mã"]
["151_","Vay ngắn hạn","161_","Vay và nợ thuê tài chính ngắn hạn","đổi cả mã cả tên"]
["152_","Vay dài hạn","162_","Vay và nợ thuê tài chính dài hạn hạn","đổi cả mã cả tên"]
["161_","Phải trả người bán ngắn hạn","171_","Phải trả người bán ngắn hạn","đổi mã"]
["161x","Phải trả người bán ngắn hạn ᴿ","171s","Phải trả người bán ngắn hạn ᴿ","đổi mã"]
["162_","Phải trả người bán dài hạn","172_","Phải trả người bán dài hạn","đổi mã"]
["162x","Phải trả người bán dài hạn ᴿ","172s","Phải trả người bán dài hạn ᴿ","đổi mã"]
["163_","Người mua trả trước ngắn hạn","173_","Người mua trả trước ngắn hạn","đổi mã"]
["163x","Người mua trả trước ngắn hạn ᴿ","173s","Người mua trả trước ngắn hạn ᴿ","đổi mã"]
["164_","Người mua trả trước dài hạn","174_","Người mua trả trước dài hạn","đổi mã"]
["164x","Người mua trả trước dài hạn ᴿ","174s","Người mua trả trước dài hạn ᴿ","đổi mã"]
[null,null,"181_","Phải trả về cổ tức, lợi nhuận","thêm mã mới"]
["170_","Thuế và các khoản phải nộp Nhà nước","191_","Thuế và các khoản phải nộp Nhà nước","đổi mã"]
[null,null,"192_","Thuế GTGT được khấu trừ","thêm mã mới"]
["181_","Chi phí phải trả ngắn hạn","201_","Chi phí phải trả ngắn hạn","đổi mã"]
["182_","Chi phí phải trả dài hạn","202_","Chi phí phải trả dài hạn","đổi mã"]
["191_","Phải trả khác ngắn hạn","211_","Phải trả ngắn hạn khác","đổi cả mã cả tên"]
["191x","Phải trả khác ngắn hạn","211s","Phải trả ngắn hạn khác ᴿ","đổi cả mã cả tên"]
["192_","Phải trả khác dài hạn","212_","Phải trả dài hạn khác","đổi cả mã cả tên"]
["192x","Phải trả khác dài hạn","212s","Phải trả dài hạn khác ᴿ","đổi cả mã cả tên"]
["193_","Phải trả nội bộ ngắn hạn","213_","Phải trả nội bộ ngắn hạn","đổi mã"]
["194_","Phải trả nội bộ dài hạn","214_","Phải trả nội bộ dài hạn","đổi mã"]
["195_","Phải trả theo tiến độ kế hoạch HĐXD","215_","Phải trả theo tiến độ HĐXD","đổi cả mã cả tên"]
["201_","Doanh thu chưa thực hiện ngắn hạn","221_","Doanh thu chờ phân bổ ngắn hạn","đổi cả mã cả tên"]
["202_","Doanh thu chưa thực hiện dài hạn","222_","Doanh thu chờ phân bổ dài hạn","đổi cả mã cả tên"]
[null,null,"231_","Trái phiếu thường","thêm mã mới"]
[null,null,"232_","Trái phiếu chuyển đổi","thêm mã mới"]
[null,null,"241_","Cổ phiếu ưu đãi phân loại là nợ phải trả","thêm mã mới"]
["211_","Dự phòng phải trả ngắn hạn","251_","Dự phòng phải trả ngắn hạn","đổi mã"]
["212_","Dự phòng phải trả dài hạn","252_","Dự phòng phải trả dài hạn","đổi mã"]
["241_","Tài sản thuế TNDN hoãn lại","261_","Tài sản thuế TNDN hoãn lại","đổi mã"]
["242_","Thuế TNDN hoãn lại phải trả","262_","Thuế TNDN hoãn lại phải trả","đổi mã"]
["250_","Vốn chủ sở hữu","270_","Vốn chủ sở hữu","đổi mã"]
["250x","Vốn chủ sở hữu (năm trước)","270s","Vốn chủ sở hữu (năm trước)","đổi mã"]
["251_","Quỹ không thuộc CSH","271_","Quỹ không thuộc CSH","đổi mã"]
["252_","Nguồn kinh phí","272_","Nguồn kinh phí","đổi mã"]
[null,null,"281_","Chênh lệch đánh giá lại tài sản","thêm mã mới"]
[null,null,"291_","Chênh lệch tỷ giá","thêm mã mới"]
["311_","Doanh thu bán hàng","311_","Doanh thu bán hàng","giữ nguyên"]
["311x","Doanh thu bán hàng ᴿ","311s","Doanh thu bán hàng ᴿ","đổi mã"]
["312_","Giảm trừ doanh thu","312_","Giảm trừ doanh thu","giữ nguyên"]
["320_","Giá vốn hàng bán","320_","Giá vốn hàng bán","giữ nguyên"]
["320x","Giá vốn hàng bán ᴿ","320s","Giá vốn hàng bán ᴿ","đổi mã"]
["331_","Doanh thu tài chính","331_","Doanh thu tài chính","giữ nguyên"]
["332_","Chi phí tài chính","332_","Chi phí tài chính","giữ nguyên"]
["341_","Chi phí bán hàng","341_","Chi phí bán hàng","giữ nguyên"]
["342_","Chi phí QLDN","342_","Chi phí QLDN","giữ nguyên"]
["351_","Thu nhập khác","351_","Thu nhập khác","giữ nguyên"]
["352_","Chi phí khác","352_","Chi phí khác","giữ nguyên"]
["361_","Chi phí thuế TNDN hiện hành","361_","Chi phí thuế TNDN hiện hành","giữ nguyên"]
["362_","Chi phí thuế TNDN hoãn lại","362_","Chi phí thuế TNDN hoãn lại","giữ nguyên"]
["370_","Chi phí SXKD theo yếu tố","370_","Chi phí SXKD theo yếu tố","giữ nguyên"]
["381_","Doanh thu bộ phận","381_","Doanh thu bộ phận","giữ nguyên"]
["382_","LN sau thuế bộ phận","382_","LN sau thuế bộ phận","giữ nguyên"]
["383_","Tài sản bộ phận","383_","Tài sản bộ phận","giữ nguyên"]
["384_","Nợ phải trả bộ phận","384_","Nợ phải trả bộ phận","giữ nguyên"]
[]
[null,null,"407_","Cam kết đi thuê","thêm mã mới"]
[null,null,"441_","Cam kết cho thuê","thêm mã mới"]
[null,null,"425_","ᴿố người lao động","thêm mã mới"]
[null,null,"409_","Chuyển lỗ","thêm mã mới"]
[null,null,"404_","CP lãi vay bị khống chế chuyển năm ᴿau","thêm mã mới"]
[null,null,"410_"]
[null,null,"445_"]
[null,null,"467_"]
[null,null,"440_"]
[null,null,"458_"]
[null,null,"411_"]
[null,null,"482_"]
[null,null,"449_"]
[null,null,"465_"]
[null,null,"430_"]
[null,null,"429_"]
[null,null,"456_"]
[null,null,"442_"]
[null,null,"479_"]
[null,null,"408_"]
[null,null,"485_"]
[null,null,"455_"]
[null,null,"461_"]
[null,null,"468_"]
[null,null,"405_"]
[null,null,"469_"]
[null,null,"415_"]
[null,null,"481_"]
[null,null,"450_"]
[null,null,"486_"]
[null,null,"417_"]
[null,null,"483_"]
[null,null,"464_"]
[null,null,"472_"]
[null,null,"401_"]
[null,null,"436_"]
[null,null,"478_"]